Workbook

Sheet Overview
C1: ******************************************************************************************************************************************************
C2: COPYRIGHT NOTIFICATION
C4: GREET™ SOFTWARE
C6: GREET1 MODEL
C8: Email contact: greet@anl.gov
C9: ******************************************************************************************************************************************************
C11: © COPYRIGHT 2012 UChicago Argonne, LLC ALL RIGHTS RESERVED
C13: THIS SOFTWARE DISCLOSES MATERIAL PROTECTED UNDER COPYRIGHT LAW, AND FURTHER DISSEMINATION IS PROHIBITED WITHOUT PRIOR WRITTEN CONSENT OF THE PATENT COUNSEL OF ARGONNE NATIONAL LABORATORY, EXCEPT AS NOTED IN THE “LICENSING TERMS AND CONDITIONS” NOTED BELOW.
C15: ******************************************************************************************************************************************************
C17: ARGONNE NATIONAL LABORATORY, WITH A FACILITY IN THE STATE OF ILLINOIS, IS OWNED BY THE UNITED STATES GOVERNMENT, AND OPERATED BY UCHICAGO ARGONNE, LLC UNDER PROVISION OF A CONTRACT WITH THE DEPARTMENT OF ENERGY.
C20: ******************************************************************************************************************************************************
C22: GOVERNMENT LICENSE
C24: ******************************************************************************************************************************************************
C26: NOTICE: This data was produced by UChicago Argonne, LLC under Contract No. DE-AC02-06CH11357 with the Department of Energy. For 5 years from May 2012, the Government is granted for itself and others acting on its behalf a nonexclusive, paid-up, irrevocable worldwide license in this data to reproduce, prepare derivative works, and perform publicly and display publicly, by or on behalf of the Government. There is provision for the possible extension of the term of this license. Subsequent to that period or any extension granted, the Government is granted for itself and others acting on its behalf a nonexclusive, paid-up, irrevocable worldwide license in this ﻿data to reproduce, prepare derivative works, distribute copies to the public, perform publicly and display publicly, and to permit others to do so. The specific term of the license can be identified by inquiry made to UChicago Argonne, LLC or DOE.
C28: ******************************************************************************************************************************************************
C30: END-USER LICENSING TERMS AND CONDITIONS
C32: ******************************************************************************************************************************************************
C34: Redistribution and use of the GREET software is permitted provided that the following conditions are met:
C36: 1. Redistributions of the GREET software must retain the above copyright notice, this list of conditions and the following disclaimer. Modification or reverse compilation of the source code is not permitted.
C38: 2. Neither the names of UChicago Argonne, LLC or the Department of Energy nor the names of its contributors may be used to endorse or promote products derived from this software without prior written permission.
C40: 3. The software redistribution, if any, must include the following acknowledgment: "This product includes software produced by UChicago Argonne, LLC under Contract No. DE-AC02-06CH11357 with the Department of Energy.”
C42: 4. Any published results should indicate that the GREET software was developed by Argonne National Laboratory. If you publish results generated using GREET you should identify the GREET software version number. If you publish results generated using input data other than the input data supplied with the GREET software you must indicate that these results relied upon changed input data.
C44: *****************************************************************************************************************************************************
C46: DISCLAIMER
C48: *****************************************************************************************************************************************************
C51: THIS SOFTWARE AND MANUAL ARE SUPPLIED "AS IS" WITHOUT WARRANTY OF ANY KIND.
C52: Neither the United States GOVERNMENT, nor the United States Department of Energy, NOR uchicago argonne, LLC, nor any of their employees, makes any warranty, express or implied, or assumes any legal liability or responsibility for the accuracy, completeness, or usefulness of any information, data, apparatus, product, or process disclosed, or represents that its use would not infringe privately owned rights
C56: Color Scheme for Cells in the GREET Model
C57: Clear cells are primarily for calculations and secondary assumptions
C60: Yellow cells are key input assumptions that users can change for their own simulations
C63: Peach cells are key options that users can select for their own simulations from drop-down menu
C69: Blue cells are GREET forecast cells for running stochastic simulations
C72: Gray cells are placeholder pathways. Even though simulations of these pathways are completed in GREET, no thorough research was conducted to examine key input assumptions for the pathways.
C75: Cells with red triangle in the upper right corner contain comments. Users are advised to read the comments
C77: Color Scheme for Tabs in the GREET Model
C78: Clear tab is for GREET overview
C81: Yellow tabs indicate worksheets for input assumptions
C84: Peach tabs indicate worksheets for fuel production
C87: Green tabs indicate worksheets for stochastic simulations
C90: Gray tabs indicate supporting worksheets
C93: Blue tabs indicate worksheets for well-to-wheels and well-to-wake results
C97: Brief Descriptions of GREET 1_2013 Worksheets
A98: Sheet | C98: Description
A99: Inputs | C99: Key input parameters that users can specify for GREET simulations. If users use the GREET GUI program, the GUI input values interact mostly with values in this sheet.
A100: Results | C100: Well-to-pump and well-to-wheels energy use and emissions results for vehicle/fuel technology combinations
A101: Petroleum | C101: Calculations of well-to-pump energy use and emissions for petroleum-based fuels (including production of additives)
A102: NG | C102: Calculations of well-to-pump energy use and emissions for NG-based fuels
A103: MeOH&FTD | C103: Calculations of well-to-pump energy use and emissions for methanol (MeOH), dimethyl ether (DME), Fischer-Tropsch diesel (FTD), and Fischer-Tropsch (FT) naphtha
A104: EtOH | C104: Calculations of well-to-pump energy use and emissions for producing ethanol from corn, sugarcane, and cellulosic biomass and producing butanol from corn
A105: Electric | C105: Calculations of energy use and emissions for electricity generation
A106: Hydrogen | C106: Calculations of well-to-pump energy use and emissions for hydrogen production pathways
A107: BioOil | C107: Calculations of well-to-pump energy use and emissions for biodiesel, renewable diesel, and renewable gasoline from soybeans, palm, rapeseed, jatropha and camelina
A108: Algae | C108: Calculations of well-to-pump energy use and emissions for biodiesel, renewable diesel, and renewable gasoline from algae
A109: RNG | C109: Calculations of well-to-pump energy use and emissions for renewable natural gas from landfill gas, manure anaerobic digestion and wastewater sludge anaerobic digestion
A110: Pyrolysis | C110: Calculations of well-to-pump energy use and emissions for pyrolysis-based renewable gasoline and diesel
A111: Fuel_Prod_TS | C111: Time-series tables for key parametric assumptions for well-to-pump fuel production processes. This sheet interacts with other fuel production sheets
A112: EF_TS | C112: Time-series tables for emission factors of combustion technologies applied to stationary sources
A113: EF | C113: Emission factors of combustion technologies by fuel type. This sheet interacts with EF_TS sheet.
A114: Fuel_Specs | C114: Specifications of individual fuels and global warming potentials of GHGs
A115: Car_TS | C115: Time-series tables of fuel economy and emission rates/changes associated with vehicle operations for passenger cars
A116: LDT1_TS | C116: Time-series tables of fuel economy and emission rates/changes associated with vehicle operations for light duty truck 1
A117: LDT2_TS | C117: Time-series tables of fuel economy and emission rates/changes associated with vehicle operations for light duty truck 2
A118: Vehicles | C118: Calculations of energy use and emissions for vehicle operations
A119: Urban_Shares | C119: Share of urban emissions out of total emissions of criteria pollutants for major GREET simulated activities
A120: Compression | C120: Calculations of energy use and efficiency of natural gas and hydrogen compression processes
A121: Coal | C121: Calculations of well-to-pump energy use and emissions for coal mining
A122: T&D_Flowcharts | C122: Flowcharts of transportation and distribution for each energy feedstock and fuel
A123: T&D | C123: Calculations of energy use and emissions for transportation and distribution of energy feedstocks and fuels
A124: Uranium | C124: Calculations of well-to-pump energy use and emissions for uranium ore mining and uranium fuel production
A125: Ag_Inputs | C125: Calculations of energy use and emissions for manufacturing agricultural inputs including fertilizers, herbicides, and insecticides and manufacturing agricultural machinery
A126: Enzymes_Yeast | C126: Calculations of energy use and emissions for manufacturing enzymes and yeast
A127: E-D_Additives | C127: Calculations of well-to-pump energy use and emissions for additives to blend ethanol in diesel fuel
A128: JetFuel_WTP | C128: Calculations of well-to-pump energy use and emissions for jet A, Fischer-Tropsch jet and hydrotreated renewable jet
A129: JetFuel_PTWa | C129: Calculations for pump-to-wake energy use and emissions for passenger and freight aircrafts
A130: JetFuel_WTWa | C130: Well-to-pump and well-to-wake energy use and emissions results for jet fuel/aircraft technology combinations
A131: MarineFuel_PTH | C131: Calculations for pump-to-haul energy use and emissions for marine vessels
A132: MarineFuel_WTH | C132: Well-to-pump and well-to-haul energy use and emissions results for marine fuel/vessel technology combinations
A133: Dist_Specs | C133: Detailed specifications of the input parameters built with distribution functions. The user is cautioned against making any changes to this sheet.
A134: Forecast_Specs | C134: Detailed information of defined forecast items for a particular stochastic simulation run. The user is cautioned against making any changes to this sheet.
A135: Forecast_Deleted | C135: List of the forecast items that were deleted, if any, as specified by the user. The user is cautioned against making any changes to this sheet.
C137: Key Notes for GREET Simulations
A138: 1 | C138: The cells which are colored as yellow and green present default assumptions for GREET calculations. Users can simply place their own
C139: assumptions regarding given issues in these cells to replace the default assumptions.
A140: 2 | C140: The GREET model is designed with the so-called circular calculation feature in Excel in order to account for secondary energy and emission
C141: effects. In circular calculations, if a cell requiring a value is accidentally inputted with a non-value entry, the whole model may be corrupted,
C142: and the model cannot be repaired by inputting a value to the same cell. Users are strongly recommended to save their work frequently
C143: and keep the original copy of the GREET model as a backup.
A144: 3 | C144: The Automatic Calculation feature is disabled to avoid error messages stemming from GREET’s use of circular calculation. Clicking on
C145: the Results tab will prompt GREET to recalculate the entire workbook whenever changes are made for input assumptions. When
C146: changes are made for the worksheets without time-series tables, users can make GREET recalculate results by pressing the F9 key.
C147: However, the manual recalculation with the F9 key is disabled in the worksheets with time-series tables because it interferes with the
C148: macro interpolating time-series parameters. The changes made for the worksheets with time-series tables become effective when users
C149: leave the worksheet.
A150: 4 | C150: The AutoSave feature is disabled to improve stability. The feature is enabled when GREET is closed so that other Excel files will auto save.
A151: 5 | C151: Some add-ins (e.g. Acrobat PDFMaker Office COM add-in) are unloaded when GREET is closed in order to keep Excel from prompting
C152: for VBA Password.
C155: This software was authored by:
C157: Michael Wang
C158: Center for Transportation Research
C159: Energy Systems Division
C160: Argonne National Laboratory
C161: 9700 S. Cass Avenue
C162: Argonne, IL 60439 USA
C163: Phone: 630/252-2819
C164: E-mail: mqwang@anl.gov

Sheet T1 Calculator
A1: Tier 1 Fuel Carbon Intensity Calculator for the Low Carbon Fuel Standard | Q1: For CI Summary Button | AA1: 1 | AB1: 1-U.S Ave Mix | AC1: 1 | AE1: Feedstock | AH1: Transportation
Q2: =AF17 -> Molasses Ethanol | S2: =S3+S6+V6+X6 -> 48.3149398 | AA2: 2 | AB2: 2-User Defined Mix | AC2: 2 | AE2: Corn Ethanol - Dry Mill | AH2: Select
Q3: =IF(Q2="Corn Ethanol - Dry Mill","Corn production",IF(Q2="Corn Ethanol - Wet Mill (not applicable)","Corn production",IF(Q2="Grain Sorghum Ethanol","Grain Sorghum production",IF(Q2="Sugarcane Ethanol","Sugarcane production",IF(Q2="Sugarcane EtOH w/Mech Harvesting & Power Exp","Sugarcane production",IF(Q2="Sugarcane EtOH w/Mech Harvesting","Sugarcane production",IF(Q2="Sugarcane EtOH w/Power Exp","Sugarcane production",IF(Q2="Sugarcane Ethanol - Base Case","Sugarcane production",IF(Q2="Molasses Ethanol","Molasses production",IF(Q2="Soybean Biodiesel","Soybean production",IF(Q2="Tallow Biodiesel","Rendered Tallow production",IF(Q2="UCO Biodiesel","Rendered UCO production",IF(Q2="Canola Biodiesel","Canola production",IF(Q2="Soybean Renewable Diesel","Soybean production",IF(Q2="Tallow Renewable Diesel","Rendered Tallow production",IF(Q2="UCO Renewable Diesel","Rendered UCO production",IF(Q2="Canola Renewable Diesel","Canola production",IF(Q2="North American NG - CNG","NA NG production",IF(Q2="North American NG - LNG","NA NG production",IF(Q2="North American NG - L-CNG","NA NG production",IF(Q2="Landfill Gas - CNG","Landfill Gas production",IF(Q2="Landfill Gas - LNG","Landfill Gas production",IF(Q2="Landfill Gas - L-CNG","Landfill Gas production",IF(Q2="Animal Waste - CNG","Biomethane production",IF(Q2="Animal Waste - LNG","Biomethane production",IF(Q2="Animal Waste - L-CNG","Biomethane production",IF(Q2="Corn Oil Biodiesel","Corn Oil production",IF(Q2="Corn Oil Renewable Diesel","Corn Oil production","N/A")))))))))))))))))))))))))))) -> Molasses production | S3: =IF(Q2="Corn Ethanol - Dry Mill",C62,IF(Q2="Corn Ethanol - Wet Mill",C72,IF(Q2="Grain Sorghum Ethanol",C124,IF(Q2="Sugarcane Ethanol",C176,IF(Q2="Sugarcane EtOH w/Mech Harvesting & Power Exp",C176+C167+G166,IF(Q2="Sugarcane EtOH w/Mech Harvesting",C176+C167,IF(Q2="Sugarcane EtOH w/Power Exp",C176+G166,IF(Q2="Sugarcane Ethanol - Base Case",C176,IF(Q2="Molasses Ethanol",C229,IF(Q2="Soybean Biodiesel",C310,IF(Q2="Tallow Biodiesel",C370,IF(Q2="UCO Biodiesel",C429,IF(Q2="Canola Biodiesel",C509,IF(Q2="Soybean Renewable Diesel",C664,IF(Q2="Tallow Renewable Diesel",C723,IF(Q2="UCO Renewable Diesel",C781,IF(Q2="Canola Renewable Diesel",C861,IF(Q2="North American NG - CNG",C962,IF(Q2="North American NG - LNG",C1003,IF(Q2="North American NG - L-CNG",C1048,IF(Q2="Landfill Gas - CNG",C1088,IF(Q2="Landfill Gas - LNG",C1129,IF(Q2="Landfill Gas - L-CNG",C1173,IF(Q2="Animal Waste - CNG",C1210,IF(Q2="Animal Waste - LNG",C1251,IF(Q2="Animal Waste - L-CNG",C1292,IF(Q2="Corn Oil Biodiesel",C579,IF(Q2="Corn Oil Renewable Diesel",C913,"N/A")))))))))))))))))))))))))))) -> 24.77 | AA3: 3 | AB3: 3-CAMX Mix | AC3: 3 | AE3: Sugarcane | AH3: Ocean Tanker
AA4: 4 | AB4: 4-NWPP Mix | AC4: 4 | AE4: Grain Sorghum | AH4: Barge
AA5: 5 | AB5: 5-AZNM Mix | AC5: 5 | AE5: Others | AH5: Pipeline
A6: LCFS Baseline Year: 2010 | B6: Release Date: September 29, 2015 | D6: Color Scheme for cells | E6: User Inputs | F6: Recorded CI | G6: Final CI | Q6: =IF(Q2="Corn Ethanol - Dry Mill","Ethanol production",IF(Q2="Corn Ethanol - Wet Mill (not applicable)","Ethanol production",IF(Q2="Grain Sorghum Ethanol","Ethanol production",IF(Q2="Sugarcane Ethanol","Ethanol production",IF(Q2="Sugarcane EtOH w/Mech Harvesting & Power Exp","Ethanol production",IF(Q2="Sugarcane EtOH w/Mech Harvesting","Ethanol production",IF(Q2="Sugarcane EtOH w/Power Exp","Ethanol production",IF(Q2="Sugarcane Ethanol - Base Case","Ethanol production",IF(Q2="Molasses Ethanol","Ethanol production",IF(Q2="Soybean Biodiesel","Biodiesel production",IF(Q2="Tallow Biodiesel","Biodiesel production",IF(Q2="UCO Biodiesel","Biodiesel production",IF(Q2="Canola Biodiesel","Biodiesel production",IF(Q2="Soybean Renewable Diesel","Renewable Diesel production",IF(Q2="Tallow Renewable Diesel","Renewable Diesel production",IF(Q2="UCO Renewable Diesel","Renewable Diesel production",IF(Q2="Canola Renewable Diesel","Renewable Diesel production",IF(Q2="North American NG - CNG","CNG production",IF(Q2="North American NG - LNG","LNG production",IF(Q2="North American NG - L-CNG","L-CNG production",IF(Q2="Landfill Gas - CNG","CNG production",IF(Q2="Landfill Gas - LNG","LNG production",IF(Q2="Landfill Gas - L-CNG","L-CNG production",IF(Q2="Animal Waste - CNG","CNG production",IF(Q2="Animal Waste - LNG","LNG production",IF(Q2="Animal Waste - L-CNG","L-CNG production",IF(Q2="Corn Oil Biodiesel","Biodiesel",IF(Q2="Corn Oil Renewable Diesel","Renewable Diesel production","N/A")))))))))))))))))))))))))))) -> Ethanol production | S6: =IF(Q2="Corn Ethanol - Dry Mill",G58+G60,IF(Q2="Grain Sorghum Ethanol",G120+G122,IF(Q2="Sugarcane Ethanol",G172+G174,IF(Q2="Sugarcane EtOH w/Mech Harvesting & Power Exp",SUM(G172,G174),IF(Q2="Sugarcane EtOH w/Mech Harvesting",G172+G174,IF(Q2="Sugarcane EtOH w/Power Exp",G172+G174,IF(Q2="Sugarcane Ethanol - Base Case",G172+G174,IF(Q2="Molasses Ethanol",G225+G227,IF(Q2="Soybean Biodiesel",G306,IF(Q2="Tallow Biodiesel",G366,IF(Q2="UCO Biodiesel",G425,IF(Q2="Canola Biodiesel",G505,IF(Q2="Soybean Renewable Diesel",G660,IF(Q2="Tallow Renewable Diesel",G719,IF(Q2="UCO Renewable Diesel",G777,IF(Q2="Canola Renewable Diesel",G857,IF(Q2="North American NG - CNG",G959,IF(Q2="North American NG - LNG",G1000,IF(Q2="North American NG - L-CNG",G1045,IF(Q2="Landfill Gas - CNG",G1085,IF(Q2="Landfill Gas - LNG",G1126,IF(Q2="Landfill Gas - L-CNG",G1170,IF(Q2="Animal Waste - CNG",G1207,IF(Q2="Corn Oil Biodiesel",G575,IF(Q2="Corn Oil Renewable Diesel",G909,"N/A"))))))))))))))))))))))))) -> 11.7449398 | U6: Indirect Land Use Change | V6: =IF(Q2="Corn Ethanol - Dry Mill",G61,IF(Q2="Corn Ethanol - Wet Mill",#REF!,IF(Q2="Grain Sorghum Ethanol",G123,IF(Q2="Sugarcane Ethanol",G175,IF(Q2="Sugarcane EtOH w/Mech Harvesting & Power Exp",G175,IF(Q2="Sugarcane EtOH w/Mech Harvesting",G175,IF(Q2="Sugarcane EtOH w/Power Exp",G175,IF(Q2="Sugarcane Ethanol - Base Case",G175,IF(Q2="Molasses Ethanol",G228,IF(Q2="Soybean Biodiesel",G309,IF(Q2="Tallow Biodiesel",G369,IF(Q2="UCO Biodiesel",G428,IF(Q2="Canola Biodiesel",G508,IF(Q2="Soybean Renewable Diesel",G663,IF(Q2="Tallow Renewable Diesel",G722,IF(Q2="UCO Renewable Diesel",G780,IF(Q2="Canola Renewable Diesel",G860,IF(Q2="North American NG - CNG",G961,IF(Q2="North American NG - LNG",G1002,IF(Q2="North American NG - L-CNG",G1047,IF(Q2="Landfill Gas - CNG",G1087,IF(Q2="Landfill Gas - LNG",G1128,IF(Q2="Landfill Gas - L-CNG",G1172,IF(Q2="Animal Waste - CNG",G1209,IF(Q2="Animal Waste - LNG",G1250,IF(Q2="Animal Waste - L-CNG",G1291,IF(Q2="Corn Oil Biodiesel",G578,IF(Q2="Corn Oil Renewable Diesel",G912,"N/A")))))))))))))))))))))))))))) -> 11.8 | W6: Tank-to-Wheels | X6: =IF(Q2="Corn Ethanol - Dry Mill",G59,IF(Q2="Grain Sorghum Ethanol",G121,IF(Q2="Sugarcane Ethanol",G173,IF(Q2="Sugarcane EtOH w/Mech Harvesting & Power Exp",G173,IF(Q2="Sugarcane EtOH w/Mech Harvesting",G173,IF(Q2="Sugarcane EtOH w/Power Exp",G173,IF(Q2="Sugarcane Ethanol - Base Case",G173,IF(Q2="Molasses Ethanol",G226,IF(Q2="Soybean Biodiesel",G307,IF(Q2="Tallow Biodiesel",G367,IF(Q2="UCO Biodiesel",G426,IF(Q2="Canola Biodiesel",G506,IF(Q2="Soybean Renewable Diesel",G661,IF(Q2="Tallow Renewable Diesel",G720,IF(Q2="UCO Renewable Diesel",G778,IF(Q2="Canola Renewable Diesel",G858,IF(Q2="North American NG - CNG",G960,IF(Q2="North American NG - LNG",G1001,IF(Q2="North American NG - L-CNG",G1046,IF(Q2="Landfill Gas - CNG",G1086,IF(Q2="Landfill Gas - LNG",G1127,IF(Q2="Landfill Gas - L-CNG",G1171,IF(Q2="Animal Waste - CNG",G1208,IF(Q2="Animal Waste - LNG",G1248,IF(Q2="Animal Waste - L-CNG",G1289,IF(Q2="Corn Oil Biodiesel",G576,IF(Q2="Corn Oil Renewable Diesel",G910,"N/A"))))))))))))))))))))))))))) -> 0 | AA6: 6 | AB6: 6-RMPA Mix | AC6: 6 | AE6: ------------------ | AH6: Rail
A7: Select Feedstock and Fuel (double-click) | H7: Default values | Q7: Enter the "User defined electricity mix" below, if cell "User Defined Mix" is selected | V7: Enter the "User defined crude sources" below, if "User Defined" is selected | AA7: 7 | AB7: 7-MROW Mix | AC7: 7 | AE7: Soybean Biodiesel | AH7: MD Truck
A8: Step 1a) Select Feedstock Production to calculate Feedstock CI | C8: Feedstock Production | E8: Step 2a) Select Fuel Production to calculate Fuel CI | Q8: =IF(OR(AH21=2,AH25=2),"2-User Defined Mix","") ->  | R8: =Q8 ->  | S8: Average | T8: Brazillian Mix | V8: =IF(OR(B10="User Defined Crude",E10="User Defined Crude"),"User Defined Crude","") ->  | W8: U.S Ave | X8: User Defined Crude | Y8: CA-2010-Crude | AA8: 8 | AB8: 8-SPNO Mix | AC8: 8 | AE8: Tallow Biodiesel | AH8: HDD Truck
A9: Step 1b) Select Regional Electricity Mix for Feedstock (shown in the U.S. map far right) | B9: 1-U.S Ave Mix | D9: Step 2b) Select Regional Electricity Mix for Fuel (shown in the U.S. map far right) | E9: 1-U.S Ave Mix | H9: Feedstock | I9: Fuel | Q9: Resid Oil/Fossil fuels | R9: 0 | S9: =R9 -> 0 | T9: 0.0337 | V9: U.S Domestic | W9: 0.3727 | X9: 0 | Y9: =38.78%+14.48% -> 0.5326 | AA9: 9 | AB9: 9-SPSO Mix | AC9: 9 | AE9: Used Cooking Oil Biodiesel
A10: Step 1c) Select Region for Crude Oil Use | B10: U.S. Ave Crude | D10: Step 2c) Select Region for Crude Oil Use | E10: U.S. Ave Crude | Q10: Natural gas | R10: 0.475 | S10: =R10 -> 0.475 | T10: 0.0789 | V10: Canada-Oil Sands | W10: 0.08 | X10: 0 | Y10: 0.0333 | AA10: 10 | AB10: 10-ERCT Mix | AC10: 10 | AE10: Soybean Renewable Diesel | AH10: N/A
A11: Step 1d) Enter your values in yellow cells, click "Calculate" to calculate the Feedstock CI then record feedstock CI to the orange cell. | E11: Step 2d) Enter your values to yellow cells, click "Calculate" to update the model. The final CI is in green cell | Q11: Coal | R11: 0 | S11: 0 | T11: 0.0187 | V11: Canada-Conv. crude | W11: 0.0542 | X11: 0 | Y11: 0.0045 | AA11: 11 | AB11: 11-MROE Mix | AC11: 11 | AE11: Tallow Renewable Diesel
A12: Corn Ethanol - Dry Mill | D12: Ethanol yield, gal/bu | E12: =B14 -> 2.72 | I12: 2.7 | J12: Corn Ethanol - Dry Mill Corn Ethanol - Dry Mill Corn Ethanol - Dry Mill Corn Ethanol - Dry Mill Corn Ethanol - Dry Mill | Q12: Nuclear | R12: 0.075 | S12: 0.075 | T12: 0.026 | V12: Mexico | W12: 0.0783 | X12: 0 | Y12: 0 | AA12: 12 | AB12: 12-SRMW Mix | AC12: 12 | AE12: Used Cooking Oil Renewable Diesel | AH12: Yes
D13: Ethanol produced, gal | E13: 100000000 | L13: Electricity Mix from U.S. EPA eGRID for the year 2010 | Q13: Biomass | R13: 0.0325 | S13: 0.0325 | T13: 0.0698 | V13: Middle East | W13: 0.1165 | X13: 0.05 | Y13: 0.2051 | AA13: 13 | AB13: 13-SRMV Mix | AC13: 13 | AE13: ---------- | AH13: No
A14: Ethanol yield, gal/bu | B14: 2.72 | D14: Total thermal energy use, MMBtu in LHV | E14: =E18*E13/10^6 -> 2729600 | L14: Color Scheme for Cells in the CA-GREET2.0 Model | Q14: Hydroelectric | R14: 0.14 | S14: 0.14 | T14: 0.7645 | V14: Latin America | W14: 0.1206 | X14: 0.91 | Y14: 0.1802 | AA14: 14 | AB14: 14-RFCM Mix | AC14: 14 | AE14: North American NG | AH14: N/A
D15: Total electricity use, kWh | E15: =E26*E13 -> 60650000 | M15: User Inputs | Q15: Geothermal | R15: 0.06 | S15: 0.06 | T15: 0 | V15: Africa | W15: 0.1437 | X15: 0 | Y15: 0.0136 | AA15: 15 | AB15: 15-RFCW Mix | AC15: 15
A16: Corn Farming | D16: Ethanol Production | E16: Btu/gal | F16: % | G16: CI, g/MJ | M16: Recorded Values | Q16: Wind | R16: 0.0925 | S16: 0.0925 | T16: 0.0083 | V16: Others | W16: =1-SUM(W9:W15) -> 0.034 | X16: =100%-(SUM(X9:X15)) -> 0.04 | Y16: =1-SUM(Y9:Y15) -> 0.0307 | AA16: 16 | AB16: 16-SRTV Mix | AC16: 16
A17: Farming energy, Btu/bu | B17: 9608 | C17: =EtOH!C435 -> 4.363446588 | D17: Total Plant Energy (Btu/gal) | E17: =(E18+E26*kWh2BTU) -> 29365.46391 | G17: =EtOH!I435 -> 31.68700423 | H17: 9608 | I17: 18953.31 | M17: Final CI | Q17: Solar PV | R17: 0.125 | S17: 0.125 | T17: 0 | V17: Total | W17: =SUM(W9:W16) -> 1 | X17: =SUM(X9:X16) -> 1 | AA17: 17 | AB17: 17-SRSO Mix | AC17: 17 | AE17: 8 | AF17: =VLOOKUP(AE17,$AD$18:$AE$43,2,FALSE) -> Molasses Ethanol | AH17: Feedstock Production
D18: Plant Thermal Energy (Btu/gal) | E18: =SUM(E19:E25,E27) -> 27296 | Q18: Others (purchased) | R18: 0.0005 | S18: 0.0005 | T18: 0 | AA18: 18 | AB18: 18-NEWE Mix | AC18: 18 | AD18: 1 | AE18: SELECT ETHANOL----- | AH18: Fuel Production
A19: Residual oil, % | B19: =0%*(1-B28) -> 0 | D19: Residual oil | E19: 0 | F19: =E19/$E$17 -> 0 | H19: =0%*(1-H28) -> 0 | Q19: Total | R19: =SUM(R9:R17,R18) -> 1.0005 | S19: =SUM(S9:S18) -> 1.0005 | T19: =SUM(T9:T18) -> 0.9999 | AA19: 19 | AB19: 19-NYUP Mix | AC19: 19 | AD19: 2 | AE19: Corn Ethanol - Dry Mill | AF19: DNAVCORNETOHDM | AH19: =IF(Q10="Natural Gas",1,0) -> 1
A20: Diesel fuel, % | B20: 0.49227 | D20: Diesel fuel | E20: 0 | F20: =E20/$E$17 -> 0 | H20: 0.4922738491 | AA20: 20 | AB20: 20-RFCE Mix | AC20: 20 | AD20: 3 | AE20: Grain Sorghum Ethanol | AF20: DNAVSGETOH | AH20: Feedstock Electricity Selection
A21: Gasoline, % | B21: 0.1470254659 | D21: Gasoline | E21: 0 | F21: 0 | H21: 0.1470254659 | AA21: 21 | AB21: 21-NYLI Mix | AC21: 21 | AD21: 4 | AE21: Sugarcane EtOH w/Mech Harvesting & Power Exp | AF21: DNAVSCETOHMHPE | AH21: =VLOOKUP(B9,$AB$1:$AC$29,2,FALSE) -> 1
A22: Natural gas, % | B22: 0.1354529545 | D22: Natural gas | E22: 27296 | F22: 0.9295272871 | H22: 0.1354529545 | I22: 0.8671 | AA22: 22 | AB22: 22-NYCW Mix | AC22: 22 | AD22: 5 | AE22: Sugarcane EtOH w/Mech Harvesting | AF22: DNAVSCETOHMH | AH22: Feedstock Crude Selection
A23: Coal, % | B23: =0%*(1-B28) -> 0 | D23: Coal | E23: 0 | F23: 0 | H23: =0%*(1-H28) -> 0 | AA23: 23 | AB23: 23-SRVC Mix | AC23: 23 | AD23: 6 | AE23: Sugarcane EtOH w/Power Exp | AF23: DNAVSCETOHPE | AH23: =VLOOKUP(B10,R45:S50,2,FALSE) -> 1
A24: Liquefied petroleum gas, % | B24: 0.1793122194 | D24: Liquefied petroleum gas | F24: 0 | H24: 0.1793122194 | AA24: 24 | AB24: 24-FRCC Mix | AC24: 24 | AD24: 7 | AE24: Sugarcane Ethanol - Base Case | AF24: DNAVSCETOH | AH24: Fuel Electricity Selection
A25: Biomass, % | B25: 0 | D25: Biomass | E25: 0 | F25: 0 | AA25: 25 | AB25: 25-AKMS Mix | AC25: 25 | AD25: 8 | AE25: Molasses Ethanol | AF25: DNAVMOLETOH | AH25: =VLOOKUP(E9,$AB$1:$AC$29,2,FALSE) -> 1
A26: Electricity, % | B26: 0.0459 | D26: Electricity (kWh/gal) | E26: 0.6065 | F26: =E26*kWh2BTU/$E$17 -> 0.07047271285 | H26: 0.04593551098 | I26: 0.1329 | AA26: 26 | AB26: 26-AKGD Mix | AC26: 26 | AD26: 9 | AE26: SELECT BD or RD---- | AH26: Fuel Crude Selection
A27: Renewable natural gas, % | B27: =1-B19-B20-B21-B22-B23-B24-B25-B26 -> 3.936010313e-05 | D27: Renewable natural gas | E27: 0 | F27: 0 | H27: =1-H19-H20-H21-H22-H23-H24-H25-H26 -> -8.257283746e-16 | I27: =1-I19-I20-I21-I22-I23-I24-I25-I26 -> 0 | AA27: 27 | AB27: 27-HIOA Mix | AC27: 27 | AD27: 10 | AE27: Soybean Biodiesel | AF27: DNAVSBBD | AH27: =VLOOKUP(E10,$R45:S50,2,FALSE) -> 1
A28: Feed Loss, % | B28: 0 | D28: Alpha Amylase (grams/gal) | E28: 2.55 | I28: 2.661075237 | AA28: 28 | AB28: 28-HIMS Mix | AC28: 28 | AD28: 11 | AE28: Tallow Biodiesel | AF28: DNAVTALLOWBD
D29: Gluco Amylase (grams/gal) | E29: 5.48 | I29: 5.725343692 | AA29: 29 | AB29: 29- Brazillian Mix | AC29: 29 | AD29: 12 | AE29: UCO Biodiesel | AF29: DNAVUCOBD | AH29: With Mechanized Harvesting & Power Export
A30: Fertilizers | C30: =EtOH!D435 -> 14.33309012 | D30: Cellulase (grams/gal) | E30: 0 | I30: 0 | AD30: 13 | AE30: Canola Biodiesel | AF30: DNAVCANBD | AH30: With Mechanized Harvesting
A31: Nitrogen, g/bu | B31: =EtOH!D336 -> 423.3 | D31: Yeast (grams/gal) | E31: 2.78 | I31: 2.902991168 | AD31: 14 | AE31: Corn Oil Biodiesel | AF31: DNAVCOILBD | AH31: With Power Export
A32: P2O5, g/bu | B32: =EtOH!E336 -> 145.8 | D32: Sulfuric acid (H2SO4, (grams/gal) | E32: 0 | AD32: 15 | AE32: Soybean Renewable Diesel | AF32: DNAVSBRD | AH32: Base Case
A33: K2O, g/bu | B33: =EtOH!F336 -> 151.3 | D33: Ammonia (NH3, (grams/gal) | E33: 0 | AD33: 16 | AE33: Tallow Renewable Diesel | AF33: DNAVTALLOWRD
A34: CaCO3, g/bu | B34: =EtOH!G336 -> 1149.87 | D34: NaOH (grams/gal) | E34: 0 | AD34: 17 | AE34: UCO Renewable Diesel | AF34: DNAVUCORD
A35: Herbicide, g/bu | B35: =EtOH!H336 -> 7 | D35: CaO (grams/gal) | E35: 0 | H35: 415.33 | AD35: 18 | AE35: Canola Renewable Diesel | AF35: DNAVCANRD
A36: Insecticide, g/bu | B36: =EtOH!I336 -> 0.06 | D36: Urea (grams/gal) | E36: 0 | H36: 147.77 | AD36: 19 | AE36: Corn Oil Renewable Diesel | AF36: DNAVCOILRD
A37: N2O in Soil | C37: =EtOH!E435 -> 15.71188165 | H37: 172.11 | AD37: 20 | AE37: SELECT NG or RNG ----
A38: N in N2O as % of N in N fertilizer | B38: =Inputs!M330 -> 0.01325 | H38: 1149.87 | AD38: 21 | AE38: North American NG - CNG | AF38: DNAVNANGCNG
A39: N in N2O as % of N in biomass | B39: =Inputs!E330 -> 0.01225 | H39: 4.75 | AD39: 22 | AE39: North American NG - LNG | AF39: DNAVNANGLNG
A40: N above and below ground biomass: g/bushel | B40: =Inputs!E327 -> 141.6 | H40: 0.4 | AD40: 23 | AE40: North American NG - L-CNG | AF40: DNAVNANGLCNG
A41: Corn Transportation | C41: =EtOH!F435 -> 2.063131936 | D41: EtOH Transport and Distribution | G41: =EtOH!J435 -> 3.85629278 | AD41: 24 | AE41: Landfill Gas - CNG | AF41: DNAVLFGCNG
A42: From field to collection center | B42: MD Truck | D42: From EtOH Plant to railyard | E42: HDD Truck | AD42: 25 | AE42: Landfill Gas - LNG | AF42: DNAVLFGLNG
A43: Shares | B43: 1 | D43: Shares | E43: 1 | AD43: 26 | AE43: Landfill Gas - L-CNG | AF43: DNAVLFGLCNG
A44: Miles | B44: 10 | D44: Miles | E44: 50 | H44: 10 | I44: 10 | AD44: 27 | AE44: ----- | AF44: DNAVAWCNG
A45: From collection center to rail/port or to EtOH plant | B45: HDD Truck | D45: From railyard to CA railyard | E45: Rail | R45: U.S. Ave Crude | S45: 1 | AD45: 28 | AH45: Animal Waste - LNG (Not applicable in Tier 1)
A46: Shares | B46: 1 | D46: Shares | E46: 1 | R46: User Defined Crude | S46: 2 | AD46: 29 | AH46: Animal Waste - L-CNG (Not applicable in Tier 1)
A47: Miles | B47: 40 | D47: Miles | E47: 1850 | H47: 40 | I47: 40 | R47: CA Crude | S47: 3
A48: From rail/port to California | B48: Rail | D48: From railyard 80% to blending terminal | E48: HDD Truck
A49: Shares | B49: 1 | D49: Shares | E49: 0.8
A50: Miles | B50: 0 | D50: Miles | E50: 100 | H50: 0 | I50: 80
A51: 80% from CA railyard to EtOH plant | B51: HDD Truck | D51: From terminal to fuel stations | E51: HDD Truck
A52: Shares | B52: 0.8 | D52: Shares | E52: 1
A53: Miles | B53: 0 | D53: Miles | E53: 71 | H53: 0 | I53: 30
A54: Co-product credit for displacement | C54: =EtOH!G435 -> -17.66286467
A55: DGS Yield, Bone dry lbs/gal | B55: 5.635 | H55: -5.635
A56: Displacement Ratio, lb corn/lb DGS | B56: 0.781:1
A57: lb soy bean meal/lb DGS and lb urea/lb DGS | B57: 0.307:1 and 0.023:1 | H57: 1
A58: Total Feedstock CI, g/MJ | C58: =C17+C37+C30+C41+C54 -> 18.80868563 | E58: Total Fuel CI, g/MJ | G58: =G41+G17 -> 35.54329701 | H58: =IF(C58=EtOH!C418,"OK","Check value") -> OK | I58: =IF(G58=EtOH!D418,"OK","Check value") -> OK
E59: Total Tank-to-Wheel, g/MJ | G59: 0
E60: Denaturant, g/MJ | G60: =EtOH!L439 -> 0.546174427
E61: Indirect Land Use, g/MJ | G61: =EtOH!L440 -> 19.8
A62: Step 1d) | B62: Record Feedstock CI above | C62: 28.49 | E62: Total Well-to-Tank CI, g/MJ | G62: =C62+G58+G59+G60+G61 -> 84.37947144 | H62: Feedstock | I62: Fuel
I63: 2.62
H68: 9608 | I68: 18953.31
H70: =0%*(1-#REF!) -> 
H71: 0.4922738491
D72: User's Fuel Production Data | H72: Feedstock | I72: Fuel
A73: Grain Sorghum Ethanol | D73: Ethanol yield, gal/bu | E73: =B75 -> 2.82 | I73: 2.62 | J73: Grain Sorghum Ethanol Dry Mill Grain Sorghum Ethanol Dry Mill Grain Sorghum Ethanol Dry Mill Grain Sorghum Ethanol Dry Mill
D74: Ethanol produced, gal | E74: 50000000
A75: Ethanol yield, gal/bu | B75: 2.82 | D75: Total thermal energy, MMBtu in LHV | E75: =E79*E74/10^6 -> 1216150
D76: Total electricity use, kWh | E76: =E87/kWh2BTU*E74 -> 10858.28312
A77: Sorghum Farming | C77: CI, g/MJ | D77: Ethanol Production | E77: Btu/gal | F77: % | G77: CI, g/MJ
A78: Farming energy, Btu/bu | B78: 16741 | C78: =EtOH!EK435 -> 6.734648244 | D78: Total Plant Energy (Btu/gal) | E78: =(E79+E87*kWh2BTU) -> 26851.39696 | F78: =SUM(F80:F88) -> 1 | G78: =EtOH!ER435 -> 31.33856665 | H78: 16741 | I78: 18953.31
D79: Plant Thermal Energy (Btu/gal) | E79: =SUM(E80:E86,E88) -> 24323
A80: Residual oil, % | B80: =0%*(1-B89) -> 0 | D80: Residual oil | F80: =E80/$E$78 -> 0 | H80: =0%*(1-H89) -> 0
A81: Diesel fuel, % | B81: 0.35737 | D81: Diesel fuel | E81: 0 | F81: 0 | H81: 0.35737
A82: Gasoline, % | B82: 0.18516 | D82: Gasoline | F82: 0 | H82: 0.18516
A83: Natural gas, % | B83: 0.45666 | D83: Natural gas | E83: 24323 | F83: =E83/$E$78 -> 0.9058374147 | H83: 0.45666 | I83: 0.8671
A84: Coal, % | B84: =0%*(1-B89) -> 0 | D84: Coal | E84: 0 | F84: =E84/$E$78 -> 0 | H84: =0%*(1-H89) -> 0
A85: Liquefied petroleum gas, % | B85: 0 | D85: Liquefied petroleum gas | F85: 0 | H85: 0
A86: Biomass, % | D86: Biomass | E86: 0 | F86: =E86/$E$78 -> 0
A87: Electricity, % | B87: 0.00081 | D87: Electricity (kWh/gal) | E87: 0.741 | F87: =E87*kWh2BTU/$E$78 -> 0.0941625853 | H87: 0.00081 | I87: 0.1329
A88: Renewable natural gas, % | B88: =1-B80-B81-B82-B83-B84-B85-B86-B87 -> 3.295974604e-17 | D88: Renewable natural gas | F88: =E88/E79 -> 0 | H88: =1-H80-H81-H82-H83-H84-H85-H86-H87 -> 3.295974604e-17 | I88: =1-I80-I81-I82-I83-I84-I85-I86-I87 -> 0
A89: Feed Loss, % | B89: 0 | D89: Alpha Amylase (grams/gal) | E89: 2.55 | H89: 0 | I89: 2.566036836
D90: Gluco Amylase (grams/gal) | E90: 5.49 | I90: 5.520867132
A91: Fertilizers | C91: =EtOH!EL435 -> 16.50299337 | D91: Cellulase (grams/gal) | E91: 0 | I91: 0
A92: - Nitrogen, g/bu | B92: 625.5 | D92: Yeast (grams/gal) | E92: 2.79 | I92: 2.799312912
A93: P2O5, g/bu | B93: 165.3 | D93: Sulfuric acid (H2SO4, (grams/gal) | E93: 0 | I93: 0
A94: K2O, g/bu | B94: 17.3 | D94: Ammonia (NH3, (grams/gal) | E94: 0 | I94: 0
A95: CaCO3, g/bu | B95: 0 | D95: NaOH (grams/gal) | E95: 0
A96: Herbicide, g/bu | B96: 28.67 | D96: CaO (grams/gal) | E96: 0
A97: Insecticide, g/bu | B97: 0 | D97: Urea (grams/gal) | E97: 0 | H97: 625.5
A98: N2O in Soil | C98: =EtOH!EM435 -> 18.04069344 | H98: 165.3
A99: N in N2O as % of N in N fertilizer | B99: =Inputs!M330 -> 0.01325 | H99: 17.3
A100: N in N2O as % of N in biomass | B100: =Inputs!K330 -> 0.01225 | H100: 0
A101: N above and below ground biomass: g/bushel | B101: =Inputs!K327 -> 149.0287 | H101: 28.67
H102: 0
A103: Sorghum Transportation | C103: =EtOH!EN435 -> 2.030582887 | D103: EtOH Transport & Distribution | G103: =EtOH!ES435 -> 3.85629278
A104: From field to collection center | B104: MD Truck | D104: Use Ethanol Transportation in Corn Ethanol Dry Mill section above
A105: Shares | B105: 1
A106: Miles | B106: 10 | H106: 20 | I106: 10
A107: From collection center to railyard or EtOH plant | B107: HDD Truck
A108: Shares | B108: 1
A109: Miles | B109: 40 | H109: 40 | I109: 40
A110: Sorghum from railyard to CA | B110: Rail
A111: Shares | B111: 1
A112: Miles | B112: 0 | H112: 0 | I112: 50
A113: =IF(B103="Yes","From CA railyard to EtOH plant","") ->  | B113: HDD Truck
A114: Shares | B114: 0.8
A115: Miles | B115: 0 | H115: 0
A116: Co-product credit | C116: =EtOH!EP435 -> -12.585198
A117: DGS Yield, Bone-dry lb/gal EtOH | B117: 5.635
A118: Displacement Ratio, lb corn/lb DGS (not sorghum) | B118: 0.781 | H118: 5.63
A119: lb soy bean meal/lb DGS and lb urea/lb DGS | B119: 0.307:1 and 0.023:1
A120: Total Feedstock CI, g/MJ | C120: =C78+C91++C98+C103+C116 -> 30.72371994 | E120: Total Fuel CI, g/MJ | G120: =G78+G103 -> 35.19485943 | H120: =IF(C120=EtOH!AS418,"OK","Check value") -> Check value | I120: =IF(G120=EtOH!AT418,"OK","Check value") -> Check value
E121: Total Tank-to-Wheel, g/MJ | G121: 0
E122: Denaturant, g/MJ | G122: =EtOH!EU439 -> 0.4768230397
E123: Indirect Land Use, g/MJ | G123: =EtOH!EU440 -> 19.4
A124: Step 1d) | B124: Record Feedstock CI above -> | C124: 31.13 | E124: Total Well-to-Tank CI, g/MJ | G124: =C124+G120+G121+G122+G123 -> 86.20168247
A125: Sugarcane Ethanol | D125: Ethanol yield, gal/wet tonne | E125: =B131 -> 21.4 | H125: Feedstock | I125: Fuel | J125: Sugarcane Ethanol Sugarcane Ethanol Sugarcane Ethanol Sugarcane Ethanol Sugarcane Ethanol Sugarcane Ethanol Sugarcane Ethanol
A126: 1. Sugarcane EtOH w/Mechanized and Power Export | C126: =C176+G172+G175+C167+G166+G174 -> 46.53878794 | D126: Ethanol produced, gal | E126: 70000000 | I126: 21.4
A127: 2. Sugarcane EtOH w/Mechanized Harvesting only | C127: =C176+G172+G175+C167+G174 -> 46.53878794 | D127: Total thermal energy use, MMBtu in LHV | E127: =E134*E126/10^6 -> 21000
A128: 3. Sugarcane EtOH with Power Export only | C128: =C176+G172+G175+G166+G174 -> 51.57101701 | D128: Total electricity use, kWh | E128: =E142/kWh2BTU*E126 -> 146.5179505
A129: 4. Base case, no mechanized and power export | C129: =G176 -> 51.57101701 | D129: Ethanol Production | E129: Btu/gal | F129: % | G129: CI, g/MJ
H130: 95000 | I130: =300+0.000392*Fuel_Specs!B75+0.00721*Fuel_Specs!B74 -> 102157.3469
A131: Ethanol yield, gal/wet tonne | B131: 21.4
H132: =0%*(1-H141) -> 0 | I132: 0.002936646352
A133: Farming | C133: CI, g/MJ | D133: Total Plant Energy (Btu/gal) | E133: =E134+E142*kWh2BTU -> 324.3695156 | F133: =SUM(F135:F143) -> 1 | G133: =EtOH!DR435 -> 2.899995211 | H133: 0.383
A134: Farming energy, Btu/tonne | B134: 95000 | C134: =EtOH!$DJ$435 -> 4.813129072 | D134: Plant Thermal Energy (Btu/gal) | E134: =SUM(E135:E141,E143) -> 300 | H134: 0.123
A135: Residual oil, % | B135: =0%*(1-B144) -> 0 | D135: Residual oil | E135: 300 | F135: =E135/$E$133 -> 0.9248711287 | H135: 0.215
A136: Diesel fuel, % | B136: 0.383 | D136: Diesel fuel | E136: 0 | F136: 0 | H136: =0%*(1-H141) -> 0
A137: Gasoline, % | B137: 0.123 | D137: Gasoline | E137: 0 | F137: 0 | H137: 0.188
A138: Natural gas, % | B138: 0.215 | D138: Natural gas | E138: 0 | F138: 0 | H138: 0 | I138: =1-I132 -> 0.9970633536
A139: Coal, % | B139: =0%*(1-B144) -> 0 | D139: Coal | E139: 0 | F139: 0 | H139: 0.09
A140: Liquefied petroleum gas, % | B140: 0.188 | D140: Liquefied petroleum gas | E140: 0 | F140: 0 | H140: =1-H132-H133-H134-H135-H136-H137-H138-H139 -> 0.001
A141: Biomass, % | B141: 0 | D141: Biomass | E141: 0 | F141: =E141/$E$133 -> 0 | H141: 0 | I141: 0
A142: Electricity, % | B142: 0.09 | D142: Electricity (kWh/gal) | E142: 0.007142 | F142: =E142*kWh2BTU/$E$133 -> 0.07512887134 | I142: 0
A143: Renewable natural gas, % | B143: =1-B135-B136-B137-B138-B139-B140-B141-B142 -> 0.001 | D143: Renewable natural gas | F143: =E143/$E$133 -> 0 | I143: 0
A144: Feed Loss, % | B144: 0 | I144: 0
A145: Fertilizers | C145: =EtOH!DK435 -> 4.731226864 | D145: Yeast (grams/gal) | E145: 0
A146: Nitrogen, g/tonne | B146: 800 | D146: Sulfuric acid (H2SO4, grams/gal) | E146: 0 | H146: 800
A147: P2O5, g/tonne | B147: 300 | D147: Lime (grams/tonne of cane) | E147: 880 | H147: 300
A148: K2O, g/tonne | B148: 1000 | D148: Transportation and Distribution | G148: =EtOH!DT435 -> 6.926192969 | H148: 1000
A149: CaCO3, g/tonne | B149: 5200 | D149: From ethanol plant to port | E149: HDD Truck | H149: 5200
A150: Herbicide, g/tonne | B150: 45 | D150: Shares | E150: 1 | H150: 45
A151: Insecticide, g/tonne | B151: 2.5 | D151: Miles | E151: 130 | H151: 2.5
A152: N2O in Soil | C152: =EtOH!DL435 -> 7.200292853 | D152: From ethanol plant to port | E152: Pipeline
A153: N in N2O as % of N in N fertilizer | B153: =Inputs!M330 -> 0.01325 | D153: Shares | E153: 1
A154: N in N2O as % of N in biomass | B154: =Inputs!L330 -> 0.01225 | D154: Miles | E154: 0 | H154: 12 | I154: 10
A155: N above and below ground biomass: g/tonne | B155: =Inputs!L327 -> 1036 | D155: From ethanol plant to port | E155: Rail
A156: Cane Transportation | C156: =EtOH!DM435 -> 1.330020371 | D156: Shares | E156: 1 | H156: 40 | I156: 40
A157: From Field to Ethanol Plant | B157: MDD Truck | D157: Miles | E157: 0
A158: Shares | B158: 1 | D158: From port to CA port | E158: Ocean Tanker | H158: 0 | I158: 50
A159: Miles | B159: 2 | D159: Shares | E159: 1
A160: From Field to Ethanol Plant | B160: HDD Truck | D160: Miles | E160: 8758.4 | H160: 0
A161: Shares | B161: 1 | D161: From CA port to blending terminals | E161: HDD Truck
A162: Miles | B162: 10 | D162: Miles | E162: 40 | H162: 0.15
A163: Straw Burning | C163: =EtOH!DN435 -> 10.06445813 | D163: From terminals to fueling stations | E163: HDD Truck | H163: 0.5 | I163: =I164/21.4 -> 0.953271028
A164: Straw yield: dry tonne/wet tonne of sugarcane | B164: =EtOH!DP357 -> 0.2142 | D164: Miles | E164: 50 | H164: 0.28 | I164: 20.4
A165: Moisture in straw, % | B165: 0.15 | D165: Exported Electricity | E165: No
A166: Burn Field, % | B166: 1 | D166: Exported Electricity Credit | G166: =EtOH!DS435 -> 0
A167: Mechanized Havesting Credit | B167: =IF(OR(AF17="Sugarcane EtOH w/Power Exp",AF17="Sugarcane Ethanol - Base Case"),"No","Yes") -> Yes | C167: =EtOH!DO435 -> -5.032229066 | D167: Net exported electricity, kWh/gal | E167: 0.96
A168: % of mechanized fields, (enter 0% if no credit) | B168: 0 | D168: Net exported electricity, kWh/wet tonne | E168: =E167*E125 -> 20.544 | H168: =IF(C172=EtOH!BC418,"OK","Check value") -> Check value | I168: =IF(G172=EtOH!BD418,"OK","Check value") -> OK
A169: Filter Cake T&D (miles) | C169: =EtOH!DP435 -> 0.01506412841
A170: by HDT, miles | B170: 10
A171: kg filtercake/tonne cane | B171: =EtOH!C86 -> 2.870264064
A172: Total Feedstock CI, g/MJ | C172: =IF(OR(AF17="Sugarcane EtOH w/Mech Harvesting",AF17="Sugarcane EtOH w/Mech Harvesting & Power Exp"),C134+C145+C152+C156+C163+C169+C167,C134+C145+C152+C156+C163+C169) -> 28.15419142 | E172: Total Fuel CI, g/MJ | G172: =IF(OR(AF17="Sugarcane EtOH w/Mech Harvesting",AF17="Sugarcane Ethanol - Base Case"),G133+G148,G133+G148+G166) -> 9.82618818
E173: Total Tank-to-Wheel, g/MJ | G173: 0
E174: Denaturant, g/MJ | G174: =EtOH!DV439 -> 1.794828829
E175: Indirect Land Use, g/MJ | G175: =EtOH!DV440 -> 11.8
A176: Step 1d) | B176: Record Feedstock CI above -> | C176: 28.15 | E176: Total Well-to-Tank CI, g/MJ | G176: =C176+G172+G173+G174+G175 -> 51.57101701
A178: Molasses Ethanol | D178: Ethanol yield, gal/wet tonne | E178: =EtOH!DN408 -> 7.354791617 | J178: Molasses Ethanol Molasses Ethanol Molasses Ethanol Molasses Ethanol Molasses Ethanol Molasses Ethanol Molasses Ethanol
A179: 1. Molasses EtOH w/Mechanized and Power Export | C179: =C229+G225+G228+C219+G210+G227+G226 -> 48.3149398 | D179: Ethanol produced, gal | E179: 70000000
A180: 2. Molasses EtOH w/Mechanized Harvesting only | C180: =C229+G225+G228+C219+G227+G226 -> 48.3149398 | D180: Total thermal energy use, MMBtu in LHV | E180: =E188*E179/10^6 -> 21000
A181: 3. Molasses EtOH with Power Export only | C181: =C229+G225+G228+G210+G227 -> 48.3149398 | D181: Total electricity use, kWh | E181: =E196/kWh2BTU*E179 -> 146.5179505
A182: 4. Molasses EtOH - Base case, no mechanized and power export | C182: =G229 -> 48.3149398 | D182: Ethanol Production | E182: Btu/gal | F182: % | G182: CI, g/MJ
A183: Sugarcane Juice share | B183: 0.69 | C183: Go to
A184: Sugar EtOH share-click Molasses parameters ---> | B184: =1-B183 -> 0.31 | C184: Molasses_parameters
A185: Farming | C185: CI, g/MJ
A186: Farming energy, Btu/tonne | B186: 95000 | C186: =EtOH!$DJ$451 -> 4.901612259
A187: Residual oil, % | B187: =0%*(1-B196) -> 0 | D187: Total Plant Energy (Btu/gal) | E187: =E188+E196*kWh2BTU -> 324.3695156 | F187: =SUM(F189:F197) -> 1 | G187: =EtOH!DS451 -> 2.899995211
A188: Diesel fuel, % | B188: 0.383 | D188: Plant Thermal Energy (Btu/gal) | E188: =SUM(E189:E195,E197) -> 300
A189: Gasoline, % | B189: 0.123 | D189: Residual oil | E189: 300 | F189: =E189/$E$133 -> 0.9248711287
A190: Natural gas, % | B190: 0.215 | D190: Diesel fuel | E190: 0 | F190: 0
A191: Coal, % | B191: =0%*(1-B196) -> 0 | D191: Gasoline | E191: 0 | F191: 0
A192: Liquefied petroleum gas, % | B192: 0.188 | D192: Natural gas | E192: 0 | F192: 0
A193: Biomass, % | B193: 0 | D193: Coal | E193: 0 | F193: 0
A194: Electricity, % | B194: 0.09 | D194: Liquefied petroleum gas | E194: 0 | F194: 0
A195: Renewable natural gas, % | B195: =1-B187-B188-B189-B190-B191-B192-B193-B194 -> 0.001 | D195: Biomass | E195: 0 | F195: 0
A196: Feed Loss, % | B196: 0 | D196: Electricity (kWh/gal) | E196: 0.007142 | F196: =E196*kWh2BTU/$E$133 -> 0.07512887134
A197: Fertilizers | C197: =EtOH!DK451 -> 4.818204384 | D197: Renewable natural gas | F197: =E197/$E$133 -> 0
A198: Nitrogen, g/tonne | B198: 800 | D198: Yeast (grams/gal) | E198: 0
A199: P2O5, g/tonne | B199: 300 | D199: Sulfuric acid (H2SO4, grams/gal) | E199: 0
A200: K2O, g/tonne | B200: 1000 | D200: Lime (grams/tonne of cane) | E200: 800
A201: CaCO3, g/tonne | B201: 5200
A202: Herbicide, g/tonne | B202: 45 | D202: Transportation and Distribution | G202: =EtOH!DU451 -> 6.926192969
A203: Insecticide, g/tonne | B203: 2.5 | D203: See Sugarcane Ethanol Transportation Above
A204: N2O in Soil | C204: =EtOH!DL451 -> 7.332660975
A205: N in N2O as % of N in N fertilizer | B205: =Inputs!M330 -> 0.01325
A206: N in N2O as % of N in biomass | B206: =Inputs!L330 -> 0.01225
... 319 more rows

Sheet Inputs
A6: Scenario Control Variables and Input Assumptions
A7: 1. Key Options for Simulation
B8: 1.1) Target Year for Simulation
E9: 2010
B11: 1.2) Point-Estimation or Probability-Estimation Option
E12: no | F12: yes | G12: … To run probability-based simulations
F13: no | G13: ... Not to run probability-based simulations (instead, to run point-estimation simulations)
A15: 2. Vehicle Types for Simulation
E16: 2 | F16: 1 -- Passenger Cars; 2 -- Light-Duty Trucks 1; 3 -- Light-Duty Trucks 2
A18: 3. Petroleum-Based Fuels
B19: 3.1) Petroleum Recovery Options
C20: 3.1.a) Share of crude oil sources
E21: =IF('T1 Calculator'!C8="Feedstock Production",'T1 Calculator'!AH23,IF('T1 Calculator'!C8="Fuel Production",'T1 Calculator'!AH27,1)) -> 1 | F21: Basis of share of crude oil sources: 1 -- EIA projection, 2 -- User defined, 3 -- CA Crude
F22: U.S. Domestic | G22: Canada (Oil Sands) | H22: Canada (Conv. Crude) | I22: Mexico | J22: Middle East | K22: Latin America | L22: Africa | M22: Others
E23: EIA projection | F23: =Fuel_Prod_TS!$AJ$9 -> 0.353 | G23: =Fuel_Prod_TS!$AK$9 -> 0.057 | H23: =Fuel_Prod_TS!$AL$9 -> 0.076 | I23: =Fuel_Prod_TS!$AM$9 -> 0.07833 | J23: =Fuel_Prod_TS!$AN$9 -> 0.114 | K23: =Fuel_Prod_TS!$AO$9 -> 0.135 | L23: =Fuel_Prod_TS!$AP$9 -> 0.148 | M23: =1-SUM(F23:L23) -> 0.03867
E24: User defined | F24: ='T1 Calculator'!X9 -> 0 | G24: ='T1 Calculator'!X10 -> 0 | H24: ='T1 Calculator'!X11 -> 0 | I24: ='T1 Calculator'!X12 -> 0 | J24: ='T1 Calculator'!X13 -> 0.05 | K24: ='T1 Calculator'!X14 -> 0.91 | L24: ='T1 Calculator'!X15 -> 0 | M24: =1-SUM(F24:L24) -> 0.04
E25: California | F25: ='T1 Calculator'!Y9 -> 0.5326 | G25: ='T1 Calculator'!Y10 -> 0.0333 | H25: ='T1 Calculator'!Y11 -> 0.0045 | I25: ='T1 Calculator'!Y12 -> 0 | J25: ='T1 Calculator'!Y13 -> 0.2051 | K25: ='T1 Calculator'!Y14 -> 0.1802 | L25: ='T1 Calculator'!Y15 -> 0.0136 | M25: =1-SUM(F25:L25) -> 0.0307
E26: Used in calculation | F26: =IF($E21=1,F23,IF($E$21=2,F24,F25)) -> 0.353 | G26: 0.057 | H26: 0.076 | I26: 0.07833 | J26: 0.114 | K26: 0.135 | L26: 0.148 | M26: =IF($E21=1,M23,M24) -> 0.03867
E27: API gravity | F27: 30.7 | G27: =32*(OilSands_IMUProcess_Share*I35+OilSands_InSituProcess_Share*I36)+21*(OilSands_IMUProcess_Share*J35+OilSands_InSituProcess_Share*J36) -> 26.5 | H27: 26.5 | I27: 26.5 | J27: 31.8 | K27: 24.8 | L27: 38.3 | M27: 32
E28: S Content (wt %) | F28: 1.39 | G28: =Fuel_Specs!H8*(OilSands_IMUProcess_Share*I35+OilSands_InSituProcess_Share*I36)+Fuel_Specs!H9*(OilSands_IMUProcess_Share*J35+OilSands_InSituProcess_Share*J36)*100 -> 1.9009 | H28: 1.94 | I28: 2.2 | J28: 2.26 | K28: 2.8 | L28: 0.289 | M28: 0.764
E29: Average transportation distances (mi) | F29: See T&D_Flowcharts tab | G29: 1708 | H29: 1708 | I29: 797 | J29: 14596 | K29: 4620 | L29: 7280 | M29: 6128
C30: 3.1.b) Efficiency for Petroleum Recovery
D31: 3.1.b.i) Conventional Crude Recovery
E32: =Fuel_Prod_TS!$C$9 -> 0.98
D33: 3.1.b.ii) Oil Sands Recovery and Upgrading
F34: Bitumen recovery | G34: Bitumen Upgrading | H34: H2 Use for Upgrading: SCF/mmBtu product | I34: Share of Upgrading in Oil Sand Recovery | J34: Share of Refining in Oil Sand Recovery
E35: Surface Mining | F35: =Fuel_Prod_TS!$C$22 -> 0.948 | G35: =Fuel_Prod_TS!$G$22 -> 0.986 | H35: =Fuel_Prod_TS!$AA$22 -> 290.3 | I35: 1 | J35: =1-I35 -> 0
E36: In Situ Production | F36: =Fuel_Prod_TS!$K$22 -> 0.843 | G36: =Fuel_Prod_TS!$O$22 -> 0.986 | H36: =Fuel_Prod_TS!$AE$22 -> 111.6 | I36: 0 | J36: =1-I36 -> 1
C37: 3.1.c) Selection of Oil Sands Recovery Methods
E38: Surface Mining | F38: =Fuel_Prod_TS!$S$22 -> 0.5
E39: In Situ Production | F39: =1-F38 -> 0.5
C40: 3.1.d) Source of H2 Production for Use in Oil Sands Recovery
E41: 1 | F41: 1 -- NG; 2 -- Nuclear (Thermo-Chemical Water Cracking); 3 -- Electrolysis (Nuclear HTGR); 4 -- Coal; 5 -- Pet Coke
C42: 3.1.e) Source of Steam Production for Use in Oil Sands Recovery
E43: 1 | F43: 1-- NG; 2 -- Nuclear (HTGR); 3 -- Coal; 4 -- Pet Coke
B45: 3.2) Conventional Crude Transport Options | K45: California Crude Transport (from OPGEE model 2010)
F46: Domestic: Alaska | G46: Domestic: U.S. 48 States | H46: Imported: Offshore Countries | I46: Imported Canada and Mexico | L46: Domestic: Alaska | M46: Domestic: U.S. 48 States | N46: Imported: Offshore Countries | O46: Imported Canada and Mexico
E47: Domestic Share of Crude Input to Refineries | G47: =1-F49-H49-I50-I51 -> 0.3743372216 | K47: Domestic Share of Crude Input to CA Refineries
E48: Mode Shares | K48: Mode Shares
E49: Ocean Tanker | F49: =MIN(3.5%,F24) -> 0 | H49: =IFERROR(SUM(J26:M26)/(1-G26),0) -> 0.4620042418 | K49: Ocean Tanker | L49: 0.1099 | N49: 0.4043
E50: Pipeline | G50: See T&D_Flowcharts tab | I50: =IFERROR(H26/(1-G26),0) -> 0.08059384942 | K50: Pipeline | L50: 0.0372 | M50: 0.3773 | N50: 0.032 | O50: 0.0155
E51: Rail | G51: See T&D_Flowcharts tab | I51: =IFERROR(I26/(1-G26),0) -> 0.08306468717 | K51: Rail | M51: 0.0008 | O51: 0.023
E52: Average transportation distances (mi) | K52: Average transportation distances (mi)
E53: Ocean Tanker | F53: 2100 | H53: =IFERROR(SUMPRODUCT(J26:M26,J29:M29)/SUM(J26:M26),AVERAGE(J29:M29)) -> 8267.848968 | K53: Ocean Tanker | L53: 2364 | N53: 3709
E54: Pipeline | G54: See T&D_Flowcharts tab | I54: =H29 -> 1708 | K54: Pipeline | L54: 800 | M54: 100 | N54: 38 | O54: 900
E55: Rail | G55: See T&D_Flowcharts tab | I55: =I29 -> 797 | K55: Rail | M55: 2000 | O55: 1336
B57: 3.3) Petroleum Refining Efficiency
C58: 3.3.a) Simulation scenarios
E59: =IF('T1 Calculator'!E10="U.S. Ave Crude",10,9) -> 10 | F59: 1 -- Crude oil mixes defined in Section 3.1); 2 -- User defined crude quality, refinery product slate and complexity index; 3 -- Low API, high HP%; 4-- Low API, high S%; 5 -- Med. API, high S%; 6 -- Med API, med S%; 7 -- High API, high S%; 8 -- High API, low S%
C60: 3.3.b) Crude Quality, refinery product slate and complexity index
H61: Scenario | I61: 3 | J61: 4 | K61: 5 | L61: 6 | M61: 7 | N61: 8 | O61: 9 | P61: 10
F62: Used in calculation | G62: User defined | H62: Description | I62: Low API, high HP% | J62: Low API, high S% | K62: Med. API, high S% | L62: Med API, med S% | M62: High API, high S% | N62: High API, low S% | O62: California | P62: US average
E63: API gravity of Average Crude to Refineries | F63: =IF($E$59=10,SUMPRODUCT(F$26:M$26,F27:M27),IF($E$59=9,O63,IF($E$59=2,G63,INDEX(I$63:P$66,1,$E$59)))) -> 30.316385 | G63: 30.36 | I63: 16 | J63: 20 | K63: 26 | L63: 28 | M63: 30 | N63: 34 | O63: 25.16 | P63: =F27*F23+G27*G23+H27*H23+I27*I23+J27*J23+K27*K23+L27*L23+M27*M23 -> 30.316385
E64: S Content of Average Crude to Refineries (wt %) | F64: =IF($E$59=10,SUMPRODUCT(F$26:M$26,F28:M28),IF($E$59=9,O64,IF($E$59=2,G64,INDEX(I$63:N$66,2,$E$59+2)))) -> 1.62674318 | G64: 1.62 | I64: 1 | J64: 3.5 | K64: 2.5 | L64: 2 | M64: 2.5 | N64: 1 | O64: 1.3596 | P64: =F28*F23+G28*G23+H28*H23+I28*I23+J28*J23+K28*K23+L28*L23+M28*M23 -> 1.62674318
E65: Refinery Heavy Product Yield (mmBtu of mmBtu of total refinery products) | F65: =IF($E$59=10,11%,IF($E$59=9,O65,IF($E$59=2,G65,INDEX(I$63:N$66,2,$E$59+2)))) -> 0.11 | G65: 0.11 | I65: 0.22 | J65: 0.12 | K65: 0.09 | L65: 0.1 | M65: 0.09 | N65: 0.09 | O65: 0.11 | P65: 0.11
E66: Refinery Complexity Index | F66: =IF($E$59=10,10.8,IF($E$59=9,O66,IF($E$59=2,G66,INDEX(I$63:N$66,2,$E$59+2)))) -> 10.8 | G66: 10.8 | I66: 14 | J66: 13 | K66: 11 | L66: 12 | M66: 10 | N66: 9 | O66: 13.8305 | P66: 10.8
C67: 3.3.b) Overall Refinery and Product Specific Efficiency
F68: Overall | G68: Gasoline | H68: Diesel | I68: Jet | J68: Residual Oil | K68: LPG | L68: Naphtha
E69: Energy consumption ratio | G69: 1.105 | H69: 1.105 | J69: 0.41 | K69: 1.105 | L69: 0.41
E70: Estimated refinery efficiency with the share of crude oil sources (User defined in Section 3.1.a) | F70: =(0.8759+0.002008*F63-0.007628*F64+0.07874*F65-0.001847*F66)*0.9874/0.984*1 -> 0.9162352564 | G70: =1/((1/$F70-1)*G69+1) -> 0.9082469537 | H70: =1/((1/$F70-1)*H69+1) -> 0.9082469537 | I70: =H70+0.005 -> 0.9132469537 | J70: =1/((1/$F70-1)*J69+1) -> 0.9638709123 | K70: =1/((1/$F70-1)*K69+1) -> 0.9082469537 | L70: =1/((1/$F70-1)*L69+1) -> 0.9638709123
E71: Efficiency defined in the time-series tables (based on EIA projected crude oil sources, see Section 3.1.a) | G71: =Fuel_Prod_TS!$G$9 -> 0.892353 | H71: =Fuel_Prod_TS!$S$9 -> 0.8923534 | I71: =Petro_LSD_Ref_Eff+0.005 -> 0.8973534 | J71: =Petro_CNaph_Ref_Eff -> 0.9572928533 | K71: =Fuel_Prod_TS!$AA$9 -> 0.8923534 | L71: =Fuel_Prod_TS!$W$9 -> 0.9572928533
E72: Used in calculation | G72: =IF(OR($E$21=2,$E21=3),G70,G71) -> 0.892353 | H72: =IF(AND($E$21=1,$E$58=1),H71,H70) -> 0.9082469537 | I72: =IF(OR($E$21=2,$E$21=3),I70,I71) -> 0.8973534 | J72: =IF(OR($E$21=2,$E$21=3),J70,J71) -> 0.9572928533 | K72: =IF(OR($E$21=2,$E$21=3),K70,K71) -> 0.8923534 | L72: =IF(OR($E$21=2,$E$21=3),L70,L71) -> 0.9572928533
B74: 3.4) Gasoline Fuel Options
C75: 3.4.a) Ethanol blending level specification
E76: 1 | F76: 1-- By volume; 2 -- By O2 content (wt.)
C77: 3.4.b) Gasoline Specifications and Refining Efficiencies for Gasoline
F78: Ethanol blending level (by volume) | G78: Share of gasoline added in EtOH as denaturant (by volume) | H78: O2 content by wt. | I78: Sulfur level, ppm | J78: Refining Efficiency | K78: Additive type | L78: Note: Additive Types | N78: CA Refinery Efficiency
E79: Gasoline Blendstock | H79: 0 | I79: =CG_S_Ratio -> 25.5 | J79: =G72 -> 0.892353 | K79: 5 | L79: 1 -- MTBE | M79: 4 -- Ethanol
E80: Gasoline | F80: 0.1 | G80: 0.02 | H80: 0.03593740923 | I80: =FRFG_S_Ratio -> 22.86665536 | J80: =Fuel_Prod_TS!$AS$9 -> 0.8926691237 | K80: 4 | L80: 2 -- ETBE | M80: 5 -- No additive
E81: CA Gasoline | F81: 0.1 | G81: 0.025 | H81: 0.03593740923 | I81: =CARFG_S_Ratio -> 22.9024935 | J81: =Fuel_Prod_TS!$K$9 -> 0 | K81: 4 | L81: 3 -- TAME | N81: 0.89
C82: 3.4.c) Ethanol Production Options for Gasoline if ETBE or Ethanol Is Selected as the Additive
F83: Corn | G83: Willow | H83: Poplar | I83: Switchgrass | J83: Miscanthus | K83: Corn Stover | L83: Forest Residue | M83: Sorghum | N83: Sugarcane
E84: Share of Ethanol Feedstock | F84: 1 | G84: 0 | H84: 0 | I84: 0 | J84: 0 | K84: 0 | L84: 0 | M84: 0 | N84: =1-SUM(F84:M84) -> 0
B86: 3.5) Diesel and Other Petroleum-Based Fuel Options
C87: 3.5.a) Share of Low-Sulfur Diesel in Total Diesel Use, by volume
E88: =Fuel_Prod_TS!$AE$9 -> 1
C89: 3.5.b) Fuel Specifications and Refining Efficiencies
F90: Selection for U.S. or CA Use | G90: Sulfur Level, ppm | H90: Refining Efficiency | I90: Note:
E91: Conventional Diesel | F91: 2 | G91: =IF(F91=1,CD_S_Ratio,CA_CD_S_Ratio) -> 120 | H91: =Fuel_Prod_TS!$O$9 -> 0.8923534 | I91: 1 -- Fuel for U.S. use
E92: Low-Sulfur Diesel | F92: =IF(E21=3,2,1) -> 1 | G92: =LSD_S_Ratio -> 11 | H92: =H72 -> 0.9082469537 | I92: 2 -- Fuel for California use
E93: Crude Oil Naphtha | F93: 2 | G93: =CNaph_S_Ratio -> 1 | H93: =L72 -> 0.9572928533
B95: 3.6) Source of H2 Production for Use in Refineries
E96: 1 | F96: 1 -- NG; 2 -- Nuclear (Thermo-Chemical Water Cracking); 3 -- Electrolysis (Nuclear HTGR); 4 -- Coal; 5 -- Pet Coke
B98: 3.7) To include energy and emissions for petroleum well infrastructure?
E99: No | F99: (The well infrastructure includes well drilling)
A101: 4. Natural Gas to Compressed Natural Gas (CNG), Liquefied Natural Gas (LNG) and Liquefied Petroleum Gas (LPG)
B102: 4.1) Simulation Options for NG-Based Fuel Pathways
F103: Compressed Natural Gas | G103: NG-based Liquified Petroluem Gas (NGL) | H103: Liquefied Natural Gas as a Transportation Fuel | I103: Note: Feedstock Sources:
E104: Feedstock Source | F104: =IF(OR(OR('T1 Calculator'!Q2="Landfill Gas - CNG",'T1 Calculator'!Q2="Landfill Gas - LNG",'T1 Calculator'!Q2="Landfill Gas - L-CNG")), 4,1) -> 1 | G104: 1 | H104: =IF(OR(OR('T1 Calculator'!Q2="Landfill Gas - CNG",'T1 Calculator'!Q2="Landfill Gas - LNG",'T1 Calculator'!Q2="Landfill Gas - L-CNG")), 4,1) -> 1 | I104: 1 -- North American NG, 4 -- Renewable natural gas
B106: 4.2) Share of Conventional and Shale Gas for North America NG Supply
E107: Conventional Gas | F107: =1-F108 -> 0.772
E108: Shale Gas | F108: =Fuel_Prod_TS!$AY$35 -> 0.228
B110: 4.3) CH4 leakage rate for each stage in conventional NG and shale gas pathways (see Burnham et al. 2013 for more details) | I110: vol. % of CH4 over NG throughput | K110: Weighted average
F111: Unit | G111: Conventional NG | H111: Shale gas | I111: Conventional NG | J111: Shale gas
E112: Recovery - Completion CH4 Venting | F112: g CH4/mmBtu NG | G112: 0.5427772305 | H112: 12.38361645 | I112: =G112/Fuel_Specs!$E$54/mmBTU2BTU*Fuel_Specs!$B$53 -> 2.62832521e-05 | J112: =H112/Fuel_Specs!$E$54/mmBTU2BTU*Fuel_Specs!$B$53 -> 0.0005996598506 | K112: =I112*$F$107+J112*$F$108 -> 0.0001570131166
E113: Recovery - Workover CH4 Venting | F113: g CH4/mmBtu NG | G113: 0.0076447497 | H113: 2.47672329 | I113: =G113/Fuel_Specs!$E$54/mmBTU2BTU*Fuel_Specs!$B$53 -> 3.70186648e-07 | J113: =H113/Fuel_Specs!$E$54/mmBTU2BTU*Fuel_Specs!$B$53 -> 0.0001199319701 | K113: 2.763027328e-05
E114: Recovery - Liquid Unloading CH4 Venting | F114: g CH4/mmBtu NG | G114: 10.35683898 | H114: 10.35683898 | I114: =G114/Fuel_Specs!$E$54/mmBTU2BTU*Fuel_Specs!$B$53 -> 0.0005015158973 | J114: =H114/Fuel_Specs!$E$54/mmBTU2BTU*Fuel_Specs!$B$53 -> 0.0005015158973 | K114: 0.0005015158973
E115: Well Equipment - CH4 Venting and Leakage | F115: g CH4/mmBtu NG | G115: 51.34508914 | H115: 51.34508914 | I115: =G115/Fuel_Specs!$E$54/mmBTU2BTU*Fuel_Specs!$B$53 -> 0.002486316385 | J115: =H115/Fuel_Specs!$E$54/mmBTU2BTU*Fuel_Specs!$B$53 -> 0.002486316385 | K115: 0.002486316385
E116: Processing - CH4 Venting and Leakage | F116: g CH4/mmBtu NG | G116: 26.70974262 | H116: 26.70974262 | I116: =G116/Fuel_Specs!$E$54/mmBTU2BTU*Fuel_Specs!$B$53 -> 0.001293383103 | J116: =H116/Fuel_Specs!$E$54/mmBTU2BTU*Fuel_Specs!$B$53 -> 0.001293383103 | K116: 0.001293383103
E117: Transmission and Storage - CH4 Venting and Leakage | F117: g CH4/mmBtu NG/680 miles | G117: 81.18863666 | H117: 81.18863666 | I117: =G117/Fuel_Specs!$E$54/mmBTU2BTU*Fuel_Specs!$B$53 -> 0.003931449746 | J117: =H117/Fuel_Specs!$E$54/mmBTU2BTU*Fuel_Specs!$B$53 -> 0.003931449746 | K117: 0.003931449746
E118: Distribution - CH4 Venting and Leakage | F118: g CH4/mmBtu NG | G118: 63.63482228 | H118: 63.63482228 | I118: =G118/Fuel_Specs!$E$54/mmBTU2BTU*Fuel_Specs!$B$53 -> 0.003081430064 | J118: =H118/Fuel_Specs!$E$54/mmBTU2BTU*Fuel_Specs!$B$53 -> 0.003081430064 | K118: 0.003081430064
F119: Total, g/MJ | G119: =SUM(G112:G118)*Fuel_Specs!$B$85/BTU2J*F107 -> 4.276608814 | H119: =SUM(H112:H118)*Fuel_Specs!$B$85/BTU2J*NG_NASG_NANG_Supply_Share -> 1.340350064
B120: 4.4) Flaring energy and CO2 emission rate for recovery and processing in conventional NG and shale gas pathways | I120: =((SUM(I112:I115)*(1+I116)+I116)*(1+I117)+I117)*(1+I118)+I118 -> 0.01136705215 | J120: =((SUM(J112:J115)*(1+J116)+J116)*(1+J117)+J117)*(1+J118)+J118 -> 0.01206576095 | K120: =I120*$F$107+J120*$F$108 -> 0.01152635776
F121: Unit | G121: Conventional NG | H121: Shale gas
E122: Recovery - Flaring | F122: Btu NG/mmBtu NG | G122: 8370 | H122: 8292
E123: Recovery - Venting | F123: g CO2/mmBtu NG | G123: 13 | H123: 12
E124: Processing - Acid Gas Removal Equipment Venting | F124: g CO2/mmBtu NG | G124: 810 | H124: =G124 -> 810
B126: 4.5) Share of Petroleum and NG for Production of Liquefied Petroleum Gas
F127: NG | G127: Petroleum
E128: Liquefied Petroleum Gas | F128: =Fuel_Prod_TS!$G$49 -> 0.65 | G128: =1-F128 -> 0.35
B130: 4.6) To include energy and emissions for NG well infrastructure?
E131: No | F131: (The well infrastructure includes pipeline construction, well drilling and workover, and fraccing.)
A133: 5. Natural Gas, Biomass and Coal to Methanol (MeOH), Dimethyl Ether (DME), Fischer-Tropsch Diesel (FTD), and Fischer-Tropsch Naphtha (FTN)
B134: 5.1) Simulation Options for MeOH, DME, FTD and FTN Pathways
F135: Feedstock Source | G135: Plant Design Type When Natual Gas is Feedstock | H135: Plant Design Type When Flared Gas is Feedstock | I135: Plant Design Type When Landfill Gas is Feedstock | J135: Plant Design Type When Biomass is Feedstock | K135: Plant Design Type When Coal is Feedstock | L135: Plant Design Type When Coal/Biomass is Feedstock | M135: Note: Feedstock Sources: | O135: Note: Plant Design Types:
E136: Methanol | F136: 1 | G136: 2 | H136: 2 | J136: 0 | K136: 0 | M136: 1 -- North American NG | O136: 0 -- No co-products
E137: Dimethyl Ether | F137: 1 | G137: 2 | H137: 2 | I137: 0 | J137: 0 | K137: 0 | M137: 2 -- Non-North American NG | O137: 1 -- Steam co-production
E138: Fischer-Tropsch Diesel | F138: 1 | G138: 2 | H138: 0 | I138: 0 | J138: 0 | K138: 0 | L138: 0 | M138: 3 -- Non-North American flared gas | O138: 2 -- Electricity co-production
E139: Fischer-Tropsch Naphtha | F139: 1 | G139: 2 | H139: 0 | I139: 0 | M139: 5 -- Biomass
M140: 6 -- Coal via gasification (only for MeOH, DME, and FTD)
B141: 5.2) Share of Petroleum and NG for Production of FT Naphtha | M141: 7 -- Coal/Biomass (only for FTD)
F142: NG | G142: Petroleum
E143: Naphtha | F143: 1 | G143: =1-F143 -> 0
B145: 5.3) Share of Willow, Poplar, Switchgras, Miscanthus, Corn Stover, Forest Residue out of Total Biomass for Methanol, Dimethyl Ether, and Fischer-Tropsch Diesel Production
F146: Willow | G146: Poplar | H146: Switchgrass | I146: Miscanthus | J146: Corn Stover | K146: Forest Residue
E147: Methanol | F147: 0 | G147: 0 | H147: 0 | I147: 0 | J147: 0 | K147: =1-SUM(F147:J147) -> 1
E148: Dimetyl Ether | F148: 0 | G148: 0 | H148: 0 | I148: 0 | J148: 0 | K148: =1-SUM(F148:J148) -> 1
E149: Fischer-Tropsch Diesel | F149: 0 | G149: 0 | H149: 0 | I149: 0 | J149: 0 | K149: =1-SUM(F149:J149) -> 1
B151: 5.4) CO2 Sequestration Options for MeOH, DME and FTD Plants
E152: Feedstock | F152: NG | G152: RNG | H152: Biomass | I152: Coal | J152: Coal/Biomass | K152: Note:
E153: Methanol | I153: 1 | K153: 1 -- Without CO2 sequestration
E154: Dimetyl Ether | I154: 1 | K154: 2 -- With CO2 sequestration
E155: Fischer-Tropsch Diesel | F155: 1 | G155: 1 | H155: 1 | I155: 1 | J155: 1
B157: 5.5) Mass-based Share of Coal and Biomass out of Total Feedstock for Coal/Biomass co-feeding to Fischer-Tropsch Diesel Production
E158: Coal | F158: =1-Coal_Biomass_FTD_BiomassShare -> 0.8 | G158: (this is the coal as received)
E159: Biomass | F159: 0.2 | G159: (This is biomass on bone-dry basis)
B161: 5.6) Selection of Method for Estimating Credits of Co-Products for NG Based Fuel Pathways (Co-products are defined in Section 5.1)
E162: Feedstock | F162: NANG or NNANG | G162: Flared Gas | H162: RNG | I162: Biomass | J162: Coal | K162: Coal/Biomass
E163: Methanol | F163: 1 | G163: 1 | I163: 1 | J163: 1 | L163: 1 -- Displacement method
E164: Dimetyl Ether | F164: 1 | G164: 1 | H164: 1 | I164: 1 | J164: 1 | L164: 2 -- Btu-based Allocation
E165: Fischer-Tropsch Diesel | F165: 1 | G165: 1 | H165: 1 | I165: 1 | J165: 1 | K165: 1 | L165: 3 -- Market value-based Allocation
E166: Fischer-Tropsch Naphtha | F166: 1 | G166: 1 | H166: 1
B168: 5.7) Selection of FTD Plant Design with Electricity Co-production when Biomass, Coal or Coal/Biomass is Feedstock
E169: 1 | F169: 1 -- Recycled Design, 2 -- Once-Through Design
B171: 5.8) To include energy and emissions for coal well infrastructure?
E172: No | F172: (The well infrastructure includes coal mine and rail construction.)
A174: 6. Hydrogen Production
B175: 6.1) Basis of H2 Producion Assumptions for H2 from Central Coal, NG, Biomass, Electrolysis and Nuclear HTGR, and Distributed NG, Electrolysis and Ethanol
E176: 2 | F176: 1 -- H2A Model by NREL, 2 -- User Defined
C177: 6.1.a) Scenarios for H2A Model Cases
E178: 1 | F178: 1 -- Current, 2 -- Future (For the simulated years after 2015, the future scenario is recommended)
B180: 6.2) Share of H2 Production by Location
F181: Gaseous H2 | G181: Liquid H2
E182: Central Plants | F182: =Fuel_Prod_TS!$C$216 -> 0 | G182: =Fuel_Prod_TS!$C$230 -> 1
E183: Refueling Stations | F183: =1-F182 -> 1 | G183: =1-G182 -> 0
B185: 6.3) Share of H2 Feedstock Sources in Central Plants
F186: Gaseous H2 | G186: Liquid H2
E187: NG | F187: =Fuel_Prod_TS!$G$216 -> 1 | G187: =Fuel_Prod_TS!$G$230 -> 1
E188: Solar Photovoltacs | F188: =Fuel_Prod_TS!$K$216 -> 0 | G188: =Fuel_Prod_TS!$K$230 -> 0
E189: Nuclear (Thermo-Chemical Cracking of Water) | F189: =Fuel_Prod_TS!$O$216 -> 0 | G189: =Fuel_Prod_TS!$O$230 -> 0
E190: Electrolysis (Nuclear HTGR) | F190: =Fuel_Prod_TS!$S$216 -> 0 | G190: =Fuel_Prod_TS!$S$230 -> 0
E191: Coal | F191: =Fuel_Prod_TS!$W$216 -> 0 | G191: =Fuel_Prod_TS!$W$230 -> 0
E192: Biomass | F192: =Fuel_Prod_TS!$AA$216 -> 0 | G192: =Fuel_Prod_TS!$AA$230 -> 0
E193: Coke Oven Gas | F193: =Fuel_Prod_TS!$AE$216 -> 0 | G193: =1-SUM(G187:G192) -> 0
E194: Pet Coke | F194: =1-SUM(F187:F193) -> 0
B196: 6.4) Share of H2 Feedstock Sources at Refueling Stations
F197: Gaseous H2 | G197: Liquid H2
E198: NG | F198: =Fuel_Prod_TS!$AI$216 -> 1 | G198: =Fuel_Prod_TS!$AE$230 -> 1
E199: Electrolysis | F199: =Fuel_Prod_TS!$AM$216 -> 0 | G199: =Fuel_Prod_TS!$AI$230 -> 0
E200: EtOH | F200: =Fuel_Prod_TS!$AQ$216 -> 0 | G200: =Fuel_Prod_TS!$AM$230 -> 0
E201: MeOH | F201: =1-SUM(F198:F200) -> 0 | G201: =1-SUM(G198:G200) -> 0
B203: 6.5) NG Feedstock Options for H2 Production
F204: Gaseous H2 | G204: Liquid H2 | H204: Note:
E205: Central Plants | F205: 1 | G205: 1 | H205: 1 -- North American NG, 4 -- Renewable Natural Gas
E206: Refueling Stations | F206: 1 | G206: 1
B208: 6.6) CO2 Sequestration Options for Central Plant H2 Production
F209: Gaseous H2 | G209: Liquid H2
E210: NG-Based H2 Plants | F210: 1 | G210: 1
E211: Coal-Based H2 Plants | F211: 1 | G211: 1 | H211: Note:
E212: Biomass-Based H2 Plants (No CCS with H2A Model) | F212: 1 | G212: 1 | H212: 1 -- Without CO2 sequestration
E213: Pet Coke-to-H2 Plant | F213: 1 | H213: 2 -- With CO2 sequestration
B215: 6.7) Selection of H2 Plant Design Types (Not Applicable with H2A Model)
F216: NG/RNG | G216: Coal | H216: Biomass | I216: Petcoke | J216: Note:
E217: Central Plant G.H2 | F217: 0 | G217: 0 | H217: 0 | I217: 0 | J217: 0 -- No co-products
E218: Refueling Station G.H2 | F218: 0 | J218: 1 -- Steam co-production
E219: Central Plant L.H2 | F219: 0 | G219: 0 | H219: 0 | J219: 2 -- Electricity co-production
E220: Refueling Station L.H2 | F220: 0
B222: 6.8) Selection of Method for Estimating Credits of Co-Products for NG Based Fuel Pathways (Co-products are defined in Section 6.7)
F223: NG/RNG | G223: Coal | H223: Biomass | I223: Petcoke | J223: Note:
E224: Central Plant G.H2 | F224: 1 | G224: 1 | H224: 1 | I224: 1 | J224: 1 -- Displacement method
E225: Refueling Station G.H2 | F225: 1 | J225: 2 -- Btu-based Allocation
E226: Central Plant L.H2 | F226: 1 | G226: 1 | H226: 1 | J226: 3 -- Market value-based Allocation
E227: Refueling Station L.H2 | F227: 1
B229: 6.9) Electric Generation Source for H2 Production via Electrolysis at Refueling Stations
E230: Gaseous H2 | F230: Liquid H2 | G230: 1 -- Oil Power Plants, 2 -- NG Power Plants, 3 -- Coal Power Plants, 4 -- Nuclear Power Plants
E231: 6 | F231: 6 | G231: 5 -- Hydro Power Plants, 6 -- Mix for transportation use (see 10.2.a), 7 -- NGCC Turbine
B233: 6.10) Shares of Willow, Poplar, Switchgrass, and Miscanthus for H2 production in central plants
F234: Willow | G234: Poplar | H234: Switchgrass | I234: Miscanthus
E235: Gaseous H2 | F235: 0 | G235: 1 | H235: 0 | I235: =1-SUM(F235:H235) -> 0
E236: Liquid H2 | F236: 0 | G236: 1 | H236: 0 | I236: =1-SUM(F236:H236) -> 0
... 299 more rows

Sheet Results
B1: WTW Results Menu | D1: Select a vehicle type from a pink drop down menu, then press "Go"
B2: SI ICE Vehicles | F2: SI Hybrid Vehicles (HEV) | K2: SI Plug-in Hybrids (PHEV) | Q2: Per Vehicle Distnace Travelled | X2: Per Energy in Fuels
B3: SI - MeOH FFV | F3: Select Fuels | K3: Select Fuels | Q3: Energy Unit | R3: Btu | S3: mBtu | T3: J | U3: kJ | V3: MJ | X3: Energy Unit | Y3: Btu | Z3: mBtu | AA3: J | AB3: kJ | AC3: MJ
B4: SIDI ICE Vehicles | F4: CIDI Hybrid Vehicles (HEV) | K4: CIDI Plug-in Hybrids (PHEV) | R4: 1 | S4: 0.001 | T4: =BTU2J -> 1055.05585 | U4: =BTU2kJ -> 1.05505585 | V4: =BTU2MJ -> 0.00105505585 | Y4: 1 | Z4: 0.001 | AA4: =BTU2J -> 1055.05585 | AB4: =BTU2kJ -> 1.05505585 | AC4: =BTU2MJ -> 0.00105505585
B5: SIDI - CA gasoline | F5: Select Fuels | K5: Select Fuels | Q5: Emission Unit | R5: g | S5: mg | T5: kg | U5: lb | V5: oz | X5: Emission Unit | Y5: g | Z5: mg | AA5: kg | AB5: lb | AC5: oz
B6: CIDI ICE Vehicles | F6: Battery Electric Vehicles (BEV) and Fuel Cell Vehicles (FCV) | R6: 1 | S6: 1000 | T6: =g2kg -> 0.001 | U6: =g2lb -> 0.002204622622 | V6: =g2lb*16 -> 0.03527396195 | Y6: 1 | Z6: 1000 | AA6: =g2kg -> 0.001 | AB6: =g2lb -> 0.002204622622 | AC6: =g2lb*16 -> 0.03527396195
B7: CIDI - Diesel | F7: Select Fuels | Q7: Functional Unit | R7: mile | S7: km | X7: Functional Unit | Y7: mBtu | Z7: mmBtu | AA7: J | AB7: kJ | AC7: MJ
B8: Unit Selection | D8: Select units from a pink drop down menu for the Results | R8: 1 | S8: 1.60934 | Y8: 0.001 | Z8: 1e-06 | AA8: =BTU2J -> 1055.05585 | AB8: =BTU2kJ -> 1.05505585 | AC8: =BTU2MJ -> 0.00105505585
B9: Per Vehicle Distance Travelled | F9: Per Energy in Fuels
B10: Energy Unit: | C10: Btu | D10: Emission Unit: | E10: g | F10: Energy Unit: | G10: Btu | H10: Emission Unit: | I10: g
D11: Service Functional Unit: | E11: mile | H11: Energy Functional Unit: | I11: mmBtu
A12: ="1. Well-to-Pump Energy Consumption and Emissions: "&Results_EnergyUnit_Energy&" or "&Results_EnergyUnit_Emission&" per "&Results_EnergyFunctionalUnit&" of Fuel Available at Fuel Station Pumps" -> 1. Well-to-Pump Energy Consumption and Emissions: Btu or g per mmBtu of Fuel Available at Fuel Station Pumps
B13: Baseline Gasoline | C13: CA Gasoline | D13: ="Low-Level EtOH Blend with Gasoline (E"&Inputs!F628*100&", "&IF(EtOH!C6=1,"Corn"&IF(EtOH!C104=1,", dry",IF(EtOH!C104=0,", wet","")),IF(EtOH!D6=1,"Willow",IF(EtOH!E6=1,"Poplar",IF(EtOH!F6=1,"Switchgrass",IF(EtOH!G6=1,"Miscanthus",IF(EtOH!H6=1,"Corn Stover",IF(EtOH!I6=1,"Forest Residue",IF(EtOH!K6=1,"Sugarcane",IF(EtOH!J6=1,IF(EtOH!D144=1,"Grain",IF(EtOH!D144=3,"Forage","Sweet"))&" Sorghum","Mixed Source")))))))))&")" -> Low-Level EtOH Blend with Gasoline (E10, Corn, dry) | E13: Baseline Conventional and LS Diesel | F13: ="Compressed Natural Gas, " & IF(Inputs!F104=1,"NA NG",IF(Inputs!F104=2,"nNA NG",IF(Inputs!F104=3,"FG",IF(RNG!D5=1,"LFG",IF(RNG!D6=1,"AD Gas","RNG"))))) -> Compressed Natural Gas, NA NG | G13: ="Liquefied Natural Gas, "&IF(NG_LNG_FeedstockShare=1,"NA NG",IF(NG_LNG_FeedstockShare=2,"nNA NG",IF(NG_LNG_FeedstockShare=3,"FG",IF(RNG_LNG_LFGShare=1,"LFG",IF(RNG_LNG_LFGShare=0,"AD Gas","RNG"))))) -> Liquefied Natural Gas, NA NG | H13: ="Liquefied Petroleum Gas, "&IF(NG!C5=1,"Crude",IF(NG!C5=0,IF(NG_LPG_FeedstockShare=1,"NA NG",IF(NG_LPG_FeedstockShare=2,"nNA NG",IF(NG_LPG_FeedstockShare=3,"FG",IF(RNG_LPG_LFGShare=1,"LFG",IF(RNG_LNG_LFGShare=0,"AD Gas","RNG"))))),"Crude and NG Mix")) -> Liquefied Petroleum Gas, Crude and NG Mix | I13: ="Naphtha, "&IF('MeOH&FTD'!E9=1,"Crude",IF('MeOH&FTD'!E9=0,IF(Inputs!F139=1,"NA NG",IF(Inputs!F139=2,"nNA NG",IF(Inputs!F139=3,"FG",IF(RNG!B5=1,"LFG",IF(RNG!B6=1,"AD Gas","RNG"))))),"Mixed Sources")) -> Naphtha, NA NG | J13: ="M"&TEXT(Vehicles!C5*100,"0")&" for MeOH FFV, "&IF(Inputs!F136=1,"NA NG",IF(Inputs!F136=2,"nNA NG",IF(Inputs!F136=3,"FG",IF(Inputs!F136=4,IF(RNG!B5=1,"LFG",IF(RNG!B6=1,"AD Gas","RNG")),IF(Inputs!F136=5,"Biomass","Coal"))))) -> M85 for MeOH FFV, NA NG | K13: ="M"&TEXT(Vehicles!C6*100,"0")&" for Dedi. MeOH Vehicles, "&IF(Inputs!F136=1,"NA NG",IF(Inputs!F136=2,"nNA NG",IF(Inputs!F136=3,"FG",IF(Inputs!F136=4,IF(RNG!B5=1,"LFG",IF(RNG!B6=1,"AD Gas","RNG")),IF(Inputs!F136=5,"Biomass","Coal"))))) -> M90 for Dedi. MeOH Vehicles, NA NG | L13: ="MeOH for FCV: "&IF(Inputs!F136=1,"NA NG",IF(Inputs!F136=2,"nNA NG",IF(Inputs!F136=3,"FG",IF(Inputs!F136=4,IF(RNG!B5=1,"LFG",IF(RNG!B6=1,"AD Gas","RNG")),IF(Inputs!F136=5,"Biomass","Coal"))))) -> MeOH for FCV: NA NG | M13: ="E"&TEXT(Inputs!F629*100,"0")&" for FFV, "&IF(EtOH!C6=1,"Corn"&IF(EtOH!C104=1,", dry",IF(EtOH!C104=0,", wet","")),IF(EtOH!D6=1,"Willow",IF(EtOH!E6=1,"Poplar",IF(EtOH!F6=1,"Switchgrass",IF(EtOH!G6=1,"Miscanthus",IF(EtOH!H6=1,"Corn Stover",IF(EtOH!I6=1,"Forest Residue",IF(EtOH!K6=1,"Sugarcane",IF(EtOH!J6=1,IF(EtOH!D144=1,"Grain",IF(EtOH!D144=3,"Forage","Sweet"))&" Sorghum","Mixed Source"))))))))) -> E85 for FFV, Corn, dry | N13: ="BtOH for FFV: BtOH"&TEXT(Vehicles!C10*100,"0")&", Corn" -> BtOH for FFV: BtOH100, Corn | O13: ="E"&TEXT(Inputs!F630*100,"0")&" for Dedi. EtOH Vehicle, "&IF(EtOH!C6=1,"Corn"&IF(EtOH!C104=1,", dry",IF(EtOH!C104=0,", wet","")),IF(EtOH!D6=1,"Willow",IF(EtOH!E6=1,"Poplar",IF(EtOH!F6=1,"Switchgrass",IF(EtOH!G6=1,"Miscanthus",IF(EtOH!H6=1,"Corn Stover",IF(EtOH!I6=1,"Forest Residue",IF(EtOH!K6=1,"Sugarcane",IF(EtOH!J6=1,IF(EtOH!D144=1,"Grain",IF(EtOH!D144=3,"Forage","Sweet"))&" Sorghum","Mixed Source"))))))))) -> E85 for Dedi. EtOH Vehicle, Corn, dry | P13: ="EtOH for FCV, "&IF(EtOH!C6=1,"Corn"&IF(EtOH!C104=1,", dry",IF(EtOH!C104=0,", wet","")),IF(EtOH!D6=1,"Willow",IF(EtOH!E6=1,"Poplar",IF(EtOH!F6=1,"Switchgrass",IF(EtOH!G6=1,"Miscanthus",IF(EtOH!H6=1,"Corn Stover",IF(EtOH!I6=1,"Forest Residue",IF(EtOH!K6=1,"Sugarcane",IF(EtOH!J6=1,IF(EtOH!D144=1,"Grain",IF(EtOH!D144=3,"Forage","Sweet"))&" Sorghum","Mixed Source"))))))))) -> EtOH for FCV, Corn, dry | Q13: =IF(Inputs!$J$470=2,"Palm",IF(Inputs!$J$470=3,"Rapeseed",IF(Inputs!$J$470=4,"Jatropha",IF(Inputs!$J$470=5,"Camelina",IF(Inputs!$J$470=6,"Algae","Soybean")))))&"-based RG"&TEXT(Vehicles!C14*100,"0") -> Soybean-based RG100 | R13: =IF(Pyrolysis!B26=1,"Corn Stover","Forest Residue")&"-based Pyrolysis RG"&TEXT(Vehicles!C14*100,"0") -> Forest Residue-based Pyrolysis RG100 | S13: ="Grid-Connected SI PHEV: Gasoline and Electricity ("&VLOOKUP(Inputs!$F$510,Inputs!$I$491:$J$509,2,FALSE)&")" ->  | T13: ="Grid-Connected SI PHEV: CA gasoline and Electricity ("&VLOOKUP(Inputs!$F$510,Inputs!$I$491:$J$509,2,FALSE)&")" ->  | U13: ="Grid-Connected SI PHEV: Low-Level EtOH Blend with Gasoline (E"&Inputs!F628*100&", "&IF(EtOH!C6=1,"Corn"&IF(EtOH!C104=1,", dry",IF(EtOH!C104=0,", wet","")),IF(EtOH!D6=1,"Willow",IF(EtOH!E6=1,"Poplar",IF(EtOH!F6=1,"Switchgrass",IF(EtOH!G6=1,"Miscanthus",IF(EtOH!H6=1,"Corn Stover",IF(EtOH!I6=1,"Forest Residue",IF(EtOH!K6=1,"Sugarcane",IF(EtOH!J6=1,IF(EtOH!D144=1,"Grain",IF(EtOH!D144=3,"Forage","Sweet"))&" Sorghum","Mixed Source")))))))))&") and Electricity ("&VLOOKUP(Inputs!$F$510,Inputs!$I$491:$J$509,2,FALSE)&")" ->  | V13: ="Grid-Connected SI PHEV: CNG ("&IF(Inputs!F104=1,"NA NG",IF(Inputs!F104=2,"nNA NG",IF(Inputs!F104=3,"FG",IF(RNG!D5=1,"LFG",IF(RNG!D6=1,"AD Gas","RNG")))))&") and Electricity ("&VLOOKUP(Inputs!$F$510,Inputs!$I$491:$J$509,2,FALSE)&")" ->  | W13: ="Grid-Connected SI PHEV: LNG ("&IF(NG_LNG_FeedstockShare=1,"NA NG",IF(NG_LNG_FeedstockShare=2,"nNA NG",IF(NG_LNG_FeedstockShare=3,"FG",IF(RNG_LNG_LFGShare=1,"LFG",IF(RNG_LNG_LFGShare=0,"AD Gas","RNG")))))&") and Electricity ("&VLOOKUP(Inputs!$F$510,Inputs!$I$491:$J$509,2,FALSE)&")" ->  | X13: ="Grid-Connected SI PHEV: LPG ("&IF(NG!C5=1,"Crude",IF(NG!C5=0,IF(NG_LPG_FeedstockShare=1,"NA NG",IF(NG_LPG_FeedstockShare=2,"nNA NG",IF(NG_LPG_FeedstockShare=3,"FG",IF(RNG_LPG_LFGShare=1,"LFG",IF(RNG_LNG_LFGShare=0,"AD Gas","RNG"))))),"Crude and NG Mix"))&") and Electricity ("&VLOOKUP(Inputs!$F$510,Inputs!$I$491:$J$509,2,FALSE)&")" ->  | Y13: ="Grid-Connected SI PHEV: M"&TEXT(Vehicles!C6*100,"0")&" ("&IF(Inputs!F136=1,"NA NG",IF(Inputs!F136=2,"nNA NG",IF(Inputs!F136=3,"FG",IF(Inputs!F136=4,IF(RNG!B5=1,"LFG",IF(RNG!B6=1,"AD Gas","RNG")),IF(Inputs!F136=5,"Biomass","Coal")))))&") and Electricity ("&VLOOKUP(Inputs!$F$510,Inputs!$I$491:$J$509,2,FALSE)&")" ->  | Z13: ="Grid-Connected SI PHEV: E"&TEXT(Inputs!F630*100,"0")&" ("&IF(EtOH!C6=1,"Corn"&IF(EtOH!C104=1,", dry",IF(EtOH!C104=0,", wet","")),IF(EtOH!D6=1,"Willow",IF(EtOH!E6=1,"Poplar",IF(EtOH!F6=1,"Switchgrass",IF(EtOH!G6=1,"Miscanthus",IF(EtOH!H6=1,"Corn Stover",IF(EtOH!I6=1,"Forest Residue",IF(EtOH!K6=1,"Sugarcane",IF(EtOH!J6=1,IF(EtOH!D144=1,"Grain",IF(EtOH!D144=3,"Forage","Sweet"))&" Sorghum","Mixed Source")))))))))&") and Electricity ("&VLOOKUP(Inputs!$F$510,Inputs!$I$491:$J$509,2,FALSE)&")" ->  | AA13: ="Grid-Connected SI PHEV: G.H2 ("&IF(Inputs!F182=1,"Central Plants, "&IF(Inputs!F187=1,IF(Inputs!F205=1,"NA NG",IF(Inputs!F205=2,"nNA NG",IF(Inputs!F205=3,"FG",IF(RNG!D5=1,"LFG",IF(RNG!D6=1,"Manure-based AD Gas",IF(RNG!D7=1,"WWTP-based AD Gas","RNG")))))),"")&IF(Inputs!F188=1,"Solar","")&IF(C143=1,"Nuclear","")&IF(C144=1,"Electrolysis (Nuclear HTGR)","")&IF(C145=1,"Coal","")&IF(C146=1,"Biomass","")&IF(C147=1,"Coke Oven Gas","")&IF(C148=1,"Pet Coke","")&IF(MAX(Inputs!F187:F194)<1,"Mixed Sources",""),"Refueling Station, "&IF(Inputs!F198=1,IF(Inputs!F206=1,"NA NG",IF(Inputs!F206=2,"nNA NG",IF(Inputs!F206=3,"FG",IF(RNG!D5=1,"LFG",IF(RNG!D6=1,"Manure-based AD Gas",IF(RNG!D7=1,"WWTP-based AD Gas","RNG")))))))&IF(Inputs!F199=1,"Electrolysis","")&IF(Inputs!F200,"EtOH","")&IF(Inputs!F201,"MeOH","")&IF(MAX(Inputs!F198:F201)<1,"Mixed Sources",""))&") and Electricity ("&VLOOKUP(Inputs!$F$510,Inputs!$I$491:$J$509,2,FALSE)&")" ->  | AB13: ="Grid-Connected SI PHEV: L.H2 ("&IF(Inputs!G182=1,"Central Plants, "&IF(Inputs!G187=1,IF(Inputs!G205=1,"NA NG",IF(Inputs!G205=2,"nNA NG",IF(Inputs!G205=3,"FG",IF(RNG!E5=1,"LFG",IF(RNG!E6=1,"Manure-based AD Gas",IF(RNG!E7=1,"WWTP-based AD Gas","RNG")))))),"")&IF(Inputs!G188=1,"Solar","")&IF(D143=1,"Nuclear","")&IF(D144=1,"Electrolysis (Nuclear HTGR)","")&IF(D145=1,"Coal","")&IF(D146=1,"Biomass","")&IF(D147=1,"Coke Oven Gas","")&IF(D148=1,"Pet Coke","")&IF(MAX(Inputs!G187:G194)<1,"Mixed Sources",""),"Refueling Station, "&IF(Inputs!G198=1,IF(Inputs!G206=1,"NA NG",IF(Inputs!G206=2,"nNA NG",IF(Inputs!G206=3,"FG",IF(RNG!E5=1,"LFG",IF(RNG!E6=1,"Manure-based AD Gas",IF(RNG!E7=1,"WWTP-based AD Gas","RNG")))))))&IF(Inputs!G199=1,"Electrolysis","")&IF(Inputs!G200,"EtOH","")&IF(Inputs!G201,"MeOH","")&IF(MAX(Inputs!G198:G201)<1,"Mixed Sources",""))&") and Electricity ("&VLOOKUP(Inputs!$F$510,Inputs!$I$491:$J$509,2,FALSE)&")" ->  | AC13: ="DME: "&IF(Inputs!F137=1,"NA NG",IF(Inputs!F137=2,"nNA NG",IF(Inputs!F137=3,"FG",IF(Inputs!F137=4,IF(RNG!B5=1,"LFG",IF(RNG!B6=1,"AD Gas","RNG")),IF(Inputs!F137=5,"Biomass","Coal"))))) -> DME: NA NG | AD13: ="FTD"&TEXT(Vehicles!C11*100,"0")&": "&IF(Inputs!F138=1,"NA NG",IF(Inputs!F138=2,"nNA NG",IF(Inputs!F138=3,"FG",IF(Inputs!F138=4,IF(RNG!B5=1,"LFG",IF(RNG!B6=1,"AD Gas","RNG")),IF(Inputs!F138=5,"Biomass",IF(Inputs!F138=6,"Coal","Coal/Biomass("&TEXT(Inputs!F158*100,"0")&"/"&TEXT(Inputs!F159*100,"0")&")")))))) -> FTD100: NA NG | AE13: =IF(Inputs!$F$470=2,"Palm",IF(Inputs!$F$470=3,"Rapeseed",IF(Inputs!$F$470=4,"Jatropha",IF(Inputs!$F$470=5,"Camelina",IF(Inputs!$F$470=6,"Algae","Soybean")))))&"-based BD"&TEXT(Vehicles!C12*100,"0") -> Soybean-based BD20 | AF13: =IF(Inputs!E499=1,IF(Inputs!$G$470=2,"Palm",IF(Inputs!$G$470=3,"Rapeseed",IF(Inputs!$G$470=4,"Jatropha",IF(Inputs!$G$470=5,"Camelina",IF(Inputs!$G$470=6,"Algae","Soybean"))))),IF(Inputs!E499=3,IF(Inputs!$I$470=2,"Palm",IF(Inputs!$I$470=3,"Rapeseed",IF(Inputs!$I$470=4,"Jatropha",IF(Inputs!$I$470=5,"Camelina",IF(Inputs!$I$470=6,"Algae","Soybean"))))),IF(Inputs!$H$470=2,"Palm",IF(Inputs!$H$470=3,"Rapeseed",IF(Inputs!$H$470=4,"Jatropha",IF(Inputs!$H$470=5,"Camelina",IF(Inputs!$H$470=6,"Algae","Soybean")))))))&"-based RD"&IF(RD_Type=3,"III","II")&" "&TEXT(Vehicles!C13*100,"0") -> Soybean-based RDII 100 | AG13: =IF(Pyrolysis!$B$26=1,"Corn Stover","Forest Residue")&"-based RD"&IF(Inputs!E499=1,"I ","II ")&TEXT(Vehicles!C13*100,"0") -> Forest Residue-based RDII 100 | AH13: ="E-Diesel, "&IF(EtOH!C6=1,"Corn"&IF(EtOH!C104=1,", dry",IF(EtOH!C104=0,", wet","")),IF(EtOH!D6=1,"Willow",IF(EtOH!E6=1,"Poplar",IF(EtOH!F6=1,"Switchgrass",IF(EtOH!G6=1,"Miscanthus",IF(EtOH!H6=1,"Corn Stover",IF(EtOH!I6=1,"Forest Residue",IF(EtOH!K6=1,"Sugarcane",IF(EtOH!J6=1,IF(EtOH!D144=1,"Grain",IF(EtOH!D144=3,"Forage","Sweet"))&" Sorghum","Mixed Source"))))))))) -> E-Diesel, Corn, dry | AI13: ="Grid-Connected CIDI PHEV: Diesel and Electricity ("&VLOOKUP(Inputs!$F$510,Inputs!$I$491:$J$509,2,FALSE)&")" ->  | AJ13: ="Grid-Connected CIDI PHEV: DME ("&IF(Inputs!F137=1,"NA NG",IF(Inputs!F137=2,"nNA NG",IF(Inputs!F137=3,"FG",IF(Inputs!F137=4,IF(RNG!B5=1,"LFG",IF(RNG!B6=1,"AD Gas","RNG")),IF(Inputs!F137=5,"Biomass","Coal")))))&") and Electricity ("&VLOOKUP(Inputs!$F$510,Inputs!$I$491:$J$509,2,FALSE)&")" ->  | AK13: ="Grid-Connected CIDI PHEV: FTD"&TEXT(Vehicles!C11*100,"0")&" ("&IF(Inputs!F138=1,"NA NG",IF(Inputs!F138=2,"nNA NG",IF(Inputs!F138=3,"FG",IF(Inputs!F138=4,IF(RNG!B5=1,"LFG",IF(RNG!B6=1,"AD Gas","RNG")),IF(Inputs!F138=5,"Biomass",IF(Inputs!F138=6,"Coal","Coal/Biomass("&TEXT(Inputs!F158*100,"0")&"/"&TEXT(Inputs!F159*100,"0")&")")))))) &") and Electricity ("&VLOOKUP(Inputs!$F$510,Inputs!$I$491:$J$509,2,FALSE)&")" ->  | AL13: ="Grid-Connected CIDI PHEV: BD"&TEXT(Vehicles!C12*100,"0")&" ("&IF(Inputs!$F$470=2,"Palm",IF(Inputs!$F$470=3,"Rapeseed",IF(Inputs!$F$470=4,"Jatropha",IF(Inputs!$F$470=5,"Camelina",IF(Inputs!$F$470=6,"Algae","Soybean")))))&") and Electricity ("&VLOOKUP(Inputs!$F$510,Inputs!$I$491:$J$509,2,FALSE)&")" ->  | AM13: ="Grid-Connected CIDI PHEV: E-Diesel ("&IF(EtOH!C6=1,"Corn"&IF(EtOH!C104=1,", dry",IF(EtOH!C104=0,", wet","")),IF(EtOH!D6=1,"Willow",IF(EtOH!E6=1,"Poplar",IF(EtOH!F6=1,"Switchgrass",IF(EtOH!G6=1,"Miscanthus",IF(EtOH!H6=1,"Corn Stover",IF(EtOH!I6=1,"Forest Residue",IF(EtOH!K6=1,"Sugarcane",IF(EtOH!J6=1,IF(EtOH!D144=1,"Grain",IF(EtOH!D144=3,"Forage","Sweet"))&" Sorghum","Mixed Source")))))))))&") and Electricity ("&VLOOKUP(Inputs!$F$510,Inputs!$I$491:$J$509,2,FALSE)&")" ->  | AN13: ="Electricity ("&VLOOKUP(Inputs!$F$510,Inputs!$I$491:$J$509,2,FALSE)&")" ->  | AO13: ="FCV: G.H2"&IF(Inputs!F182=1,", Central Plants, "&IF(Inputs!F187=1,IF(Inputs!F205=1,"NA NG",IF(Inputs!F205=2,"nNA NG",IF(Inputs!F205=3,"FG",IF(RNG!D5=1,"LFG",IF(RNG!D6=1,"Manure-based AD Gas",IF(RNG!D7=1,"WWTP-based AD Gas","RNG")))))),"")&IF(Inputs!F188=1,"Solar","")&IF(C143=1,"Nuclear","")&IF(C144=1,"Electrolysis (Nuclear HTGR)","")&IF(C145=1,"Coal","")&IF(C146=1,"Biomass","")&IF(C147=1,"Coke Oven Gas","")&IF(C148=1,"Pet Coke","")&IF(MAX(Inputs!F187:F194)<1,"Mixed Sources",""),", Refueling Station, "&IF(Inputs!F198=1,IF(Inputs!F206=1,"NA NG",IF(Inputs!F206=2,"nNA NG",IF(Inputs!F206=3,"FG",IF(RNG!D5=1,"LFG",IF(RNG!D6=1,"Manure-based AD Gas",IF(RNG!D7=1,"WWTP-based AD Gas","RNG")))))))&IF(Inputs!F199=1,"Electrolysis","")&IF(Inputs!F200,"EtOH","")&IF(Inputs!F201,"MeOH","")&IF(MAX(Inputs!F198:F201)<1,"Mixed Sources","")) -> FCV: G.H2, Refueling Station, NA NG | AP13: ="FCV: L.H2"&IF(Inputs!G182=1,", Central Plants, "&IF(Inputs!G187=1,IF(Inputs!G205=1,"NA NG",IF(Inputs!G205=2,"nNA NG",IF(Inputs!G205=3,"FG",IF(RNG!E5=1,"LFG",IF(RNG!E6=1,"Manure-based AD Gas",IF(RNG!E7=1,"WWTP-based AD Gas","RNG")))))),"")&IF(Inputs!G188=1,"Solar","")&IF(D143=1,"Nuclear","")&IF(D144=1,"Electrolysis (Nuclear HTGR)","")&IF(D145=1,"Coal","")&IF(D146=1,"Biomass","")&IF(D147=1,"Coke Oven Gas","")&IF(D148=1,"Pet Coke","")&IF(MAX(Inputs!G187:G194)<1,"Mixed Sources",""),", Refueling Station, "&IF(Inputs!G198=1,IF(Inputs!G206=1,"NA NG",IF(Inputs!G206=2,"nNA NG",IF(Inputs!G206=3,"FG",IF(RNG!E5=1,"LFG",IF(RNG!E6=1,"Manure-based AD Gas",IF(RNG!E7=1,"WWTP-based AD Gas","RNG")))))))&IF(Inputs!G199=1,"Electrolysis","")&IF(Inputs!G200,"EtOH","")&IF(Inputs!G201,"MeOH","")&IF(MAX(Inputs!G198:G201)<1,"Mixed Sources","")) -> FCV: L.H2, Central Plants, NA NG | AQ13: ="Grid-Connected FC PHEV: G.H2 ("&IF(Inputs!F182=1,"Central Plants, "&IF(Inputs!F187=1,IF(Inputs!F205=1,"NA NG",IF(Inputs!F205=2,"nNA NG",IF(Inputs!F205=3,"FG",IF(RNG!D5=1,"LFG",IF(RNG!D6=1,"Manure-based AD Gas",IF(RNG!D7=1,"WWTP-based AD Gas","RNG")))))),"")&IF(Inputs!F188=1,"Solar","")&IF(C143=1,"Nuclear","")&IF(C144=1,"Electrolysis (Nuclear HTGR)","")&IF(C145=1,"Coal","")&IF(C146=1,"Biomass","")&IF(C147=1,"Coke Oven Gas","")&IF(C148=1,"Pet Coke","")&IF(MAX(Inputs!F187:F194)<1,"Mixed Sources",""),"Refueling Station, "&IF(Inputs!F198=1,IF(Inputs!F206=1,"NA NG",IF(Inputs!F206=2,"nNA NG",IF(Inputs!F206=3,"FG",IF(RNG!D5=1,"LFG",IF(RNG!D6=1,"Manure-based AD Gas",IF(RNG!D7=1,"WWTP-based AD Gas","RNG")))))))&IF(Inputs!F199=1,"Electrolysis","")&IF(Inputs!F200,"EtOH","")&IF(Inputs!F201,"MeOH","")&IF(MAX(Inputs!F198:F201)<1,"Mixed Sources",""))&") and Electricity ("&VLOOKUP(Inputs!$F$510,Inputs!$I$491:$J$509,2,FALSE)&")" ->  | AR13: ="Grid-Connected FC PHEV: L.H2 ("&IF(Inputs!G182=1,"Central Plants, "&IF(Inputs!G187=1,IF(Inputs!G205=1,"NA NG",IF(Inputs!G205=2,"nNA NG",IF(Inputs!G205=3,"FG",IF(RNG!E5=1,"LFG",IF(RNG!E6=1,"Manure-based AD Gas",IF(RNG!E7=1,"WWTP-based AD Gas","RNG")))))),"")&IF(Inputs!G188=1,"Solar","")&IF(D143=1,"Nuclear","")&IF(D144=1,"Electrolysis (Nuclear HTGR)","")&IF(D145=1,"Coal","")&IF(D146=1,"Biomass","")&IF(D147=1,"Coke Oven Gas","")&IF(D148=1,"Pet Coke","")&IF(MAX(Inputs!G187:G194)<1,"Mixed Sources",""),"Refueling Station, "&IF(Inputs!G198=1,IF(Inputs!G206=1,"NA NG",IF(Inputs!G206=2,"nNA NG",IF(Inputs!G206=3,"FG",IF(RNG!E5=1,"LFG",IF(RNG!E6=1,"Manure-based AD Gas",IF(RNG!E7=1,"WWTP-based AD Gas","RNG")))))))&IF(Inputs!G199=1,"Electrolysis","")&IF(Inputs!G200,"EtOH","")&IF(Inputs!G201,"MeOH","")&IF(MAX(Inputs!G198:G201)<1,"Mixed Sources",""))&") and Electricity ("&VLOOKUP(Inputs!$F$510,Inputs!$I$491:$J$509,2,FALSE)&")" -> 
A14: Total Energy | B14: =(Inputs!$E$1056*(Petroleum!$B219*Petroleum!$F$218+Petroleum!$F219)+(1-Inputs!$E$1056)*(Petroleum!$B219*Petroleum!$D$218+Petroleum!$D219))/1000000*HLOOKUP($G$10,$Y$3:$AC$4,2,FALSE)/HLOOKUP($I$11,$Y$7:$AC$8,2,FALSE) -> 316001.497 | C14: =(Petroleum!$C219*Petroleum!$G$218+Petroleum!$G219)/1000000*HLOOKUP($G$10,$Y$3:$AC$4,2,FALSE)/HLOOKUP($I$11,$Y$7:$AC$8,2,FALSE) -> 368744.8411 | D14: =((1-Vehicles!$C$26)*(1-Vehicles!$C$7)*Fuel_Specs!$B$11/((1-Vehicles!$C$26)*(1-Vehicles!$C$7)*Fuel_Specs!$B$11+Vehicles!$C$26*(1-Vehicles!$C$7)*Fuel_Specs!$B$13+Vehicles!$C$7*Fuel_Specs!$B$26)*(Petroleum!$B219*Petroleum!$D$218+Petroleum!$D219)+Vehicles!$C$26*(1-Vehicles!$C$7)*Fuel_Specs!$B$13/((1-Vehicles!$C$26)*(1-Vehicles!$C$7)*Fuel_Specs!$B$11+Vehicles!$C$26*(1-Vehicles!$C$7)*Fuel_Specs!$B$13+Vehicles!$C$7*Fuel_Specs!$B$26)*(Petroleum!B219*Petroleum!$F$218+Petroleum!$F219)+Vehicles!$C$7*Fuel_Specs!$B$26/((1-Vehicles!$C$26)*(1-Vehicles!$C$7)*Fuel_Specs!$B$11+Vehicles!$C$26*(1-Vehicles!$C$7)*Fuel_Specs!$B$13+Vehicles!$C$7*Fuel_Specs!$B$26)*(EtOH!BE402*EtOH!$BF$401+EtOH!$BF402))/1000000*HLOOKUP($G$10,$Y$3:$AC$4,2,FALSE)/HLOOKUP($I$11,$Y$7:$AC$8,2,FALSE) -> 315795.4369 | E14: =(Inputs!$E$88*(IF(Inputs!F$92=1,Petroleum!$B219,Petroleum!$C219)*Petroleum!$K$218+Petroleum!$K219)+(1-Inputs!$E$88)*(IF(Inputs!F$91=1,Petroleum!$B219,Petroleum!$C219)*Petroleum!$J$218+Petroleum!$J219))/1000000*HLOOKUP($G$10,$Y$3:$AC$4,2,FALSE)/HLOOKUP($I$11,$Y$7:$AC$8,2,FALSE) -> 257428.5987 | F14: =(NG!$H81*NG!$I$80+NG!$I81)/1000000*HLOOKUP($G$10,$Y$3:$AC$4,2,FALSE)/HLOOKUP($I$11,$Y$7:$AC$8,2,FALSE) -> 182970.2915 | G14: =(NG!$P81*NG!$Q$80+NG!$Q81)/1000000*HLOOKUP($G$10,$Y$3:$AC$4,2,FALSE)/HLOOKUP($I$11,$Y$7:$AC$8,2,FALSE) -> 251964.9777 | H14: =(NG!$V81*NG!$W$80+NG!$W81)/1000000*HLOOKUP($G$10,$Y$3:$AC$4,2,FALSE)/HLOOKUP($I$11,$Y$7:$AC$8,2,FALSE) -> 167254.1424 | I14: =('MeOH&FTD'!AV133*'MeOH&FTD'!AW$132+'MeOH&FTD'!AW133)/1000000*HLOOKUP($G$10,$Y$3:$AC$4,2,FALSE)/HLOOKUP($I$11,$Y$7:$AC$8,2,FALSE) -> 824051.555 | J14: =((1-Vehicles!$C$25)*(1-Vehicles!$C$5)*Fuel_Specs!$B$11/((1-Vehicles!$C$25)*(1-Vehicles!$C$5)*Fuel_Specs!$B$11+Vehicles!$C$25*(1-Vehicles!$C$5)*Fuel_Specs!$B$13+Vehicles!$C$5*Fuel_Specs!$B$25)*(Petroleum!$B219*Petroleum!$D$218+Petroleum!$D219)+Vehicles!$C$25*(1-Vehicles!$C$5)*Fuel_Specs!$B$13/((1-Vehicles!$C$25)*(1-Vehicles!$C$5)*Fuel_Specs!$B$11+Vehicles!$C$25*(1-Vehicles!$C$5)*Fuel_Specs!$B$13+Vehicles!$C$5*Fuel_Specs!$B$25)*(Petroleum!B219*Petroleum!$F$218+Petroleum!$F219)+Vehicles!$C$5*Fuel_Specs!$B$25/((1-Vehicles!$C$25)*(1-Vehicles!$C$5)*Fuel_Specs!$B$11+Vehicles!$C$25*(1-Vehicles!$C$5)*Fuel_Specs!$B$13+Vehicles!$C$5*Fuel_Specs!$B$25)*('MeOH&FTD'!$L133*'MeOH&FTD'!$M$132+'MeOH&FTD'!$M133))/1000000*HLOOKUP($G$10,$Y$3:$AC$4,2,FALSE)/HLOOKUP($I$11,$Y$7:$AC$8,2,FALSE) -> 542584.5487 | K14: =((1-Vehicles!$C$25)*(1-Vehicles!$C$6)*Fuel_Specs!$B$11/((1-Vehicles!$C$25)*(1-Vehicles!$C$6)*Fuel_Specs!$B$11+Vehicles!$C$25*(1-Vehicles!$C$6)*Fuel_Specs!$B$13+Vehicles!$C$6*Fuel_Specs!$B$25)*(Petroleum!$B219*Petroleum!$D$218+Petroleum!$D219)+Vehicles!$C$25*(1-Vehicles!$C$6)*Fuel_Specs!$B$13/((1-Vehicles!$C$25)*(1-Vehicles!$C$6)*Fuel_Specs!$B$11+Vehicles!$C$25*(1-Vehicles!$C$6)*Fuel_Specs!$B$13+Vehicles!$C$6*Fuel_Specs!$B$25)*(Petroleum!B219*Petroleum!$F$218+Petroleum!$F219)+Vehicles!$C$6*Fuel_Specs!$B$25/((1-Vehicles!$C$25)*(1-Vehicles!$C$6)*Fuel_Specs!$B$11+Vehicles!$C$25*(1-Vehicles!$C$6)*Fuel_Specs!$B$13+Vehicles!$C$6*Fuel_Specs!$B$25)*('MeOH&FTD'!$L133*'MeOH&FTD'!$M$132+'MeOH&FTD'!$M133))/1000000*HLOOKUP($G$10,$Y$3:$AC$4,2,FALSE)/HLOOKUP($I$11,$Y$7:$AC$8,2,FALSE) -> 575946.0133 | L14: =('MeOH&FTD'!$L133*'MeOH&FTD'!$M$132+'MeOH&FTD'!$M133)/1000000*HLOOKUP($G$10,$Y$3:$AC$4,2,FALSE)/HLOOKUP($I$11,$Y$7:$AC$8,2,FALSE) -> 652955.3455 | M14: =((1-Vehicles!$C$27)*(1-Vehicles!$C$8)*Fuel_Specs!$B$11/((1-Vehicles!$C$27)*(1-Vehicles!$C$8)*Fuel_Specs!$B$11+Vehicles!$C$27*(1-Vehicles!$C$8)*Fuel_Specs!$B$13+Vehicles!$C$8*Fuel_Specs!$B$26)*(Petroleum!$B219*Petroleum!$D$218+Petroleum!$D219)+Vehicles!$C$27*(1-Vehicles!$C$8)*Fuel_Specs!$B$13/((1-Vehicles!$C$27)*(1-Vehicles!$C$8)*Fuel_Specs!$B$11+Vehicles!$C$27*(1-Vehicles!$C$8)*Fuel_Specs!$B$13+Vehicles!$C$8*Fuel_Specs!$B$26)*(Petroleum!B219*Petroleum!$F$218+Petroleum!$F219)+Vehicles!$C$8*Fuel_Specs!$B$26/((1-Vehicles!$C$27)*(1-Vehicles!$C$8)*Fuel_Specs!$B$11+Vehicles!$C$27*(1-Vehicles!$C$8)*Fuel_Specs!$B$13+Vehicles!$C$8*Fuel_Specs!$B$26)*(EtOH!BE402*EtOH!$BF$401+EtOH!$BF402))/1000000*HLOOKUP($G$10,$Y$3:$AC$4,2,FALSE)/HLOOKUP($I$11,$Y$7:$AC$8,2,FALSE) -> 1172567.809 | N14: =((1-Vehicles!$C$28)*(1-Vehicles!$C$10)*Fuel_Specs!$B$11/((1-Vehicles!$C$28)*(1-Vehicles!$C$10)*Fuel_Specs!$B$11+Vehicles!$C$28*(1-Vehicles!$C$10)*Fuel_Specs!$B$13+Vehicles!$C$10*Fuel_Specs!$B$27)*(Petroleum!$B219*Petroleum!$D$218+Petroleum!$D219)+Vehicles!$C$28*(1-Vehicles!$C$10)*Fuel_Specs!$B$13/((1-Vehicles!$C$28)*(1-Vehicles!$C$10)*Fuel_Specs!$B$11+Vehicles!$C$28*(1-Vehicles!$C$10)*Fuel_Specs!$B$13+Vehicles!$C$10*Fuel_Specs!$B$27)*(Petroleum!B219*Petroleum!$F$218+Petroleum!$F219)+Vehicles!$C$10*Fuel_Specs!$B$27/((1-Vehicles!$C$28)*(1-Vehicles!$C$10)*Fuel_Specs!$B$11+Vehicles!$C$28*(1-Vehicles!$C$10)*Fuel_Specs!$B$13+Vehicles!$C$10*Fuel_Specs!$B$27)*(EtOH!$BI402*EtOH!$BJ$401+EtOH!$BJ402))/1000000*HLOOKUP($G$10,$Y$3:$AC$4,2,FALSE)/HLOOKUP($I$11,$Y$7:$AC$8,2,FALSE) -> 741266.9985 | O14: =((1-Vehicles!$C$27)*(1-Vehicles!$C$9)*Fuel_Specs!$B$11/((1-Vehicles!$C$27)*(1-Vehicles!$C$9)*Fuel_Specs!$B$11+Vehicles!$C$27*(1-Vehicles!$C$9)*Fuel_Specs!$B$13+Vehicles!$C$9*Fuel_Specs!$B$26)*(Petroleum!$B219*Petroleum!$D$218+Petroleum!$D219)+Vehicles!$C$27*(1-Vehicles!$C$9)*Fuel_Specs!$B$13/((1-Vehicles!$C$27)*(1-Vehicles!$C$9)*Fuel_Specs!$B$11+Vehicles!$C$27*(1-Vehicles!$C$9)*Fuel_Specs!$B$13+Vehicles!$C$9*Fuel_Specs!$B$26)*(Petroleum!B219*Petroleum!$F$218+Petroleum!$F219)+Vehicles!$C$9*Fuel_Specs!$B$26/((1-Vehicles!$C$27)*(1-Vehicles!$C$9)*Fuel_Specs!$B$11+Vehicles!$C$27*(1-Vehicles!$C$9)*Fuel_Specs!$B$13+Vehicles!$C$9*Fuel_Specs!$B$26)*(EtOH!BE402*EtOH!$BF$401+EtOH!$BF402))/1000000*HLOOKUP($G$10,$Y$3:$AC$4,2,FALSE)/HLOOKUP($I$11,$Y$7:$AC$8,2,FALSE) -> 1172567.809 | P14: =(EtOH!$BE402*EtOH!$BF$401+EtOH!$BF402)/1000000*HLOOKUP($G$10,$Y$3:$AC$4,2,FALSE)/HLOOKUP($I$11,$Y$7:$AC$8,2,FALSE) -> 1458700.248 | Q14: =((1-Vehicles!$C$29)*(1-Vehicles!$C$14)*Fuel_Specs!$B$11/((1-Vehicles!$C$29)*(1-Vehicles!$C$14)*Fuel_Specs!$B$11+Vehicles!$C$29*(1-Vehicles!$C$14)*Fuel_Specs!$B$13+Vehicles!$C$14*Fuel_Specs!$B$39)*(Petroleum!$B219*Petroleum!$D$218+Petroleum!$D219)+Vehicles!$C$29*(1-Vehicles!$C$14)*Fuel_Specs!$B$13/((1-Vehicles!$C$29)*(1-Vehicles!$C$14)*Fuel_Specs!$B$11+Vehicles!$C$29*(1-Vehicles!$C$14)*Fuel_Specs!$B$13+Vehicles!$C$14*Fuel_Specs!$B$39)*(Petroleum!B219*Petroleum!$F$218+Petroleum!$F219)+Vehicles!$C$14*Fuel_Specs!$B$39/((1-Vehicles!$C$29)*(1-Vehicles!$C$14)*Fuel_Specs!$B$11+Vehicles!$C$29*(1-Vehicles!$C$14)*Fuel_Specs!$B$13+Vehicles!$C$14*Fuel_Specs!$B$39)*(BioOil!$BQ315*BioOil!$BR$313+BioOil!$BR315))/1000000*HLOOKUP($G$10,$Y$3:$AC$4,2,FALSE)/HLOOKUP($I$11,$Y$7:$AC$8,2,FALSE) -> 823044.1151 | R14: =((1-Vehicles!$C$29)*(1-Vehicles!$C$14)*Fuel_Specs!$B$11/((1-Vehicles!$C$29)*(1-Vehicles!$C$14)*Fuel_Specs!$B$11+Vehicles!$C$29*(1-Vehicles!$C$14)*Fuel_Specs!$B$13+Vehicles!$C$14*Fuel_Specs!$B$39)*(Petroleum!$B219*Petroleum!$D$218+Petroleum!$D219)+Vehicles!$C$29*(1-Vehicles!$C$14)*Fuel_Specs!$B$13/((1-Vehicles!$C$29)*(1-Vehicles!$C$14)*Fuel_Specs!$B$11+Vehicles!$C$29*(1-Vehicles!$C$14)*Fuel_Specs!$B$13+Vehicles!$C$14*Fuel_Specs!$B$39)*(Petroleum!B219*Petroleum!$F$218+Petroleum!$F219)+Vehicles!$C$14*Fuel_Specs!$B$39/((1-Vehicles!$C$29)*(1-Vehicles!$C$14)*Fuel_Specs!$B$11+Vehicles!$C$29*(1-Vehicles!$C$14)*Fuel_Specs!$B$13+Vehicles!$C$14*Fuel_Specs!$B$39)*(Pyrolysis!$Z167*Pyrolysis!$AA$166+Pyrolysis!$AA167))/1000000*HLOOKUP($G$10,$Y$3:$AC$4,2,FALSE)/HLOOKUP($I$11,$Y$7:$AC$8,2,FALSE) -> 787297.1899 | S14: =AN14*(Vehicles!$C$21/Vehicles!$AN$53)/(Vehicles!$C$21*(1/Vehicles!$AN$53+1/Vehicles!$AO$53)+Vehicles!$C$22/Vehicles!$AP$53)+B14*(Vehicles!$C$21/Vehicles!$AO$53+Vehicles!$C$22/Vehicles!$AP$53)/(Vehicles!$C$21*(1/Vehicles!$AN$53+1/Vehicles!$AO$53)+Vehicles!$C$22/Vehicles!$AP$53) -> 583449.8904 | T14: =AN14*(Vehicles!$D$21/Vehicles!$AR$53)/(Vehicles!$D$21*(1/Vehicles!$AR$53+1/Vehicles!$AS$53)+Vehicles!$D$22/Vehicles!$AT$53)+C14*(Vehicles!$D$21/Vehicles!$AS$53+Vehicles!$D$22/Vehicles!$AT$53)/(Vehicles!$D$21*(1/Vehicles!$AR$53+1/Vehicles!$AS$53)+Vehicles!$D$22/Vehicles!$AT$53) -> 623965.1421 | U14: =AN14*(Vehicles!$F$21/Vehicles!$AZ$53)/(Vehicles!$F$21*(1/Vehicles!$AZ$53+1/Vehicles!$BA$53)+Vehicles!$F$22/Vehicles!$BB$53)+D14*(Vehicles!$F$21/Vehicles!$BA$53+Vehicles!$F$22/Vehicles!$BB$53)/(Vehicles!$F$21*(1/Vehicles!$AZ$53+1/Vehicles!$BA$53)+Vehicles!$F$22/Vehicles!$BB$53) -> 583291.6035 | V14: =AN14*(Vehicles!$G$21/Vehicles!$BD$53)/(Vehicles!$G$21*(1/Vehicles!$BD$53+1/Vehicles!$BE$53)+Vehicles!$G$22/Vehicles!$BF$53)+F14*(Vehicles!$G$21/Vehicles!$BE$53+Vehicles!$G$22/Vehicles!$BF$53)/(Vehicles!$G$21*(1/Vehicles!$BD$53+1/Vehicles!$BE$53)+Vehicles!$G$22/Vehicles!$BF$53) -> 481260.8298 | W14: =AN14*(Vehicles!$H$21/Vehicles!$BH$53)/(Vehicles!$H$21*(1/Vehicles!$BH$53+1/Vehicles!$BI$53)+Vehicles!$H$22/Vehicles!$BJ$53)+G14*(Vehicles!$H$21/Vehicles!$BI$53+Vehicles!$H$22/Vehicles!$BJ$53)/(Vehicles!$H$21*(1/Vehicles!$BH$53+1/Vehicles!$BI$53)+Vehicles!$H$22/Vehicles!$BJ$53) -> 534259.6893 | X14: =AN14*(Vehicles!$I$21/Vehicles!$BL$53)/(Vehicles!$I$21*(1/Vehicles!$BL$53+1/Vehicles!$BM$53)+Vehicles!$I$22/Vehicles!$BN$53)+H14*(Vehicles!$I$21/Vehicles!$BM$53+Vehicles!$I$22/Vehicles!$BN$53)/(Vehicles!$I$21*(1/Vehicles!$BL$53+1/Vehicles!$BM$53)+Vehicles!$I$22/Vehicles!$BN$53) -> 469188.3352 | Y14: =AN14*(Vehicles!$J$21/Vehicles!$BP$53)/(Vehicles!$J$21*(1/Vehicles!$BP$53+1/Vehicles!$BQ$53)+Vehicles!$J$22/Vehicles!$BR$53)+K14*(Vehicles!$J$21/Vehicles!$BQ$53+Vehicles!$J$22/Vehicles!$BR$53)/(Vehicles!$J$21*(1/Vehicles!$BP$53+1/Vehicles!$BQ$53)+Vehicles!$J$22/Vehicles!$BR$53) -> 783128.4982 | Z14: =AN14*(Vehicles!$K$21/Vehicles!$BT$53)/(Vehicles!$K$21*(1/Vehicles!$BT$53+1/Vehicles!$BU$53)+Vehicles!$K$22/Vehicles!$BV$53)+O14*(Vehicles!$K$21/Vehicles!$BU$53+Vehicles!$K$22/Vehicles!$BV$53)/(Vehicles!$K$21*(1/Vehicles!$BT$53+1/Vehicles!$BU$53)+Vehicles!$K$22/Vehicles!$BV$53) -> 1238001.379 | AA14: =AN14*(Vehicles!$L$21/Vehicles!$BX$53)/(Vehicles!$L$21*(1/Vehicles!$BX$53+1/Vehicles!$BY$53)+Vehicles!$L$22/Vehicles!$BZ$53)+AO14*(Vehicles!$L$21/Vehicles!$BY$53+Vehicles!$L$22/Vehicles!$BZ$53)/(Vehicles!$L$21*(1/Vehicles!$BX$53+1/Vehicles!$BY$53)+Vehicles!$L$22/Vehicles!$BZ$53) -> 981575.5195 | AB14: =AN14*(Vehicles!$L$21/Vehicles!$BX$53)/(Vehicles!$L$21*(1/Vehicles!$BX$53+1/Vehicles!$BY$53)+Vehicles!$L$22/Vehicles!$CA$53)+AP14*(Vehicles!$L$21/Vehicles!$BY$53+Vehicles!$L$22/Vehicles!$CA$53)/(Vehicles!$L$21*(1/Vehicles!$BX$53+1/Vehicles!$BY$53)+Vehicles!$L$22/Vehicles!$CA$53) -> 1593040.778 | AC14: =('MeOH&FTD'!$X133*'MeOH&FTD'!$Y$132+'MeOH&FTD'!$Y133)/1000000*HLOOKUP($G$10,$Y$3:$AC$4,2,FALSE)/HLOOKUP($I$11,$Y$7:$AC$8,2,FALSE) -> 574028.5597 | AD14: =((1-Vehicles!$C$30)*(1-Vehicles!$C$11)*Fuel_Specs!$B$15/((1-Vehicles!$C$30)*(1-Vehicles!$C$11)*Fuel_Specs!$B$15+Vehicles!$C$30*(1-Vehicles!$C$11)*Fuel_Specs!$B$18+Vehicles!$C$11*Fuel_Specs!$B$35)*(Petroleum!B219*Petroleum!$J$218+Petroleum!$J219)+Vehicles!$C$30*(1-Vehicles!$C$11)*Fuel_Specs!$B$18/((1-Vehicles!$C$30)*(1-Vehicles!$C$11)*Fuel_Specs!$B$15+Vehicles!$C$30*(1-Vehicles!$C$11)*Fuel_Specs!$B$18+Vehicles!$C$11*Fuel_Specs!$B$35)*(Petroleum!B219*Petroleum!$K$218+Petroleum!$K219)+Vehicles!$C$11*Fuel_Specs!$B$35/((1-Vehicles!$C$30)*(1-Vehicles!$C$11)*Fuel_Specs!$B$15+Vehicles!$C$30*(1-Vehicles!$C$11)*Fuel_Specs!$B$18+Vehicles!$C$11*Fuel_Specs!$B$35)*('MeOH&FTD'!$AL133*'MeOH&FTD'!$AM$132+'MeOH&FTD'!$AM133))/1000000*HLOOKUP($G$10,$Y$3:$AC$4,2,FALSE)/HLOOKUP($I$11,$Y$7:$AC$8,2,FALSE) -> 833299.6137 | AE14: =((1-Vehicles!$C$31)*(1-Vehicles!$C$12)*Fuel_Specs!$B$15/((1-Vehicles!$C$31)*(1-Vehicles!$C$12)*Fuel_Specs!$B$15+Vehicles!$C$31*(1-Vehicles!$C$12)*Fuel_Specs!$B$18+Vehicles!$C$12*Fuel_Specs!$B$34)*(Petroleum!B219*Petroleum!$J$218+Petroleum!$J219)+Vehicles!$C$31*(1-Vehicles!$C$12)*Fuel_Specs!$B$18/((1-Vehicles!$C$31)*(1-Vehicles!$C$12)*Fuel_Specs!$B$15+Vehicles!$C$31*(1-Vehicles!$C$12)*Fuel_Specs!$B$18+Vehicles!$C$12*Fuel_Specs!$B$34)*(Petroleum!B219*Petroleum!$K$218+Petroleum!$K219)+Vehicles!$C$12*Fuel_Specs!$B$34/((1-Vehicles!$C$31)*(1-Vehicles!$C$12)*Fuel_Specs!$B$15+Vehicles!$C$31*(1-Vehicles!$C$12)*Fuel_Specs!$B$18+Vehicles!$C$12*Fuel_Specs!$B$34)*(BioOil!$Y315*BioOil!$Z$313+BioOil!$Z315))/1000000*HLOOKUP($G$10,$Y$3:$AC$4,2,FALSE)/HLOOKUP($I$11,$Y$7:$AC$8,2,FALSE) -> 320875.3982 | AF14: =((1-Vehicles!$C$32)*(1-Vehicles!$C$13)*Fuel_Specs!$B$15/((1-Vehicles!$C$32)*(1-Vehicles!$C$13)*Fuel_Specs!$B$15+Vehicles!$C$32*(1-Vehicles!$C$13)*Fuel_Specs!$B$18+Vehicles!$C$13*IF(Inputs!$E$499=1,IF(Inputs!$E$499=1,Fuel_Specs!$B$36,IF(Inputs!$E$499=3,Fuel_Specs!$B$38,Fuel_Specs!$B$37)),Fuel_Specs!$B$37))*(Petroleum!B219*Petroleum!$J$218+Petroleum!$J219)+Vehicles!$C$32*(1-Vehicles!$C$13)*Fuel_Specs!$B$18/((1-Vehicles!$C$32)*(1-Vehicles!$C$13)*Fuel_Specs!$B$15+Vehicles!$C$32*(1-Vehicles!$C$13)*Fuel_Specs!$B$18+Vehicles!$C$13*IF(Inputs!$E$499=1,IF(Inputs!$E$499=1,Fuel_Specs!$B$36,IF(Inputs!$E$499=3,Fuel_Specs!$B$38,Fuel_Specs!$B$37)),Fuel_Specs!$B$37))*(Petroleum!B219*Petroleum!$K$218+Petroleum!$K219)+Vehicles!$C$13*IF(Inputs!$E$499=1,IF(Inputs!$E$499=1,Fuel_Specs!$B$36,IF(Inputs!$E$499=3,Fuel_Specs!$B$38,Fuel_Specs!$B$37)),Fuel_Specs!$B$37)/((1-Vehicles!$C$32)*(1-Vehicles!$C$13)*Fuel_Specs!$B$15+Vehicles!$C$32*(1-Vehicles!$C$13)*Fuel_Specs!$B$18+Vehicles!$C$13*IF(Inputs!$E$499=1,IF(Inputs!$E$499=1,Fuel_Specs!$B$36,IF(Inputs!$E$499=3,Fuel_Specs!$B$38,Fuel_Specs!$B$37)),Fuel_Specs!$B$37))*(BioOil!$BE315*BioOil!$BF$313+BioOil!$BF315))/1000000*HLOOKUP($G$10,$Y$3:$AC$4,2,FALSE)/HLOOKUP($I$11,$Y$7:$AC$8,2,FALSE) -> 109006.0248 | AG14: =((1-Vehicles!$C$32)*(1-Vehicles!$C$13)*Fuel_Specs!$B$15/((1-Vehicles!$C$32)*(1-Vehicles!$C$13)*Fuel_Specs!$B$15+Vehicles!$C$32*(1-Vehicles!$C$13)*Fuel_Specs!$B$18+Vehicles!$C$13*IF(Inputs!$E$499=1,Fuel_Specs!$B$36,Fuel_Specs!$B$37))*(Petroleum!B219*Petroleum!$J$218+Petroleum!$J219)+Vehicles!$C$32*(1-Vehicles!$C$13)*Fuel_Specs!$B$18/((1-Vehicles!$C$32)*(1-Vehicles!$C$13)*Fuel_Specs!$B$15+Vehicles!$C$32*(1-Vehicles!$C$13)*Fuel_Specs!$B$18+Vehicles!$C$13*IF(Inputs!$E$499=1,Fuel_Specs!$B$36,Fuel_Specs!$B$37))*(Petroleum!B219*Petroleum!$K$218+Petroleum!$K219)+Vehicles!$C$13*IF(Inputs!$E$499=1,Fuel_Specs!$B$36,Fuel_Specs!$B$37)/((1-Vehicles!$C$32)*(1-Vehicles!$C$13)*Fuel_Specs!$B$15+Vehicles!$C$32*(1-Vehicles!$C$13)*Fuel_Specs!$B$18+Vehicles!$C$13*IF(Inputs!$E$499=1,Fuel_Specs!$B$36,Fuel_Specs!$B$37))*(Pyrolysis!$AB167*Pyrolysis!$AC$166+Pyrolysis!$AC167))/1000000*HLOOKUP($G$10,$Y$3:$AC$4,2,FALSE)/HLOOKUP($I$11,$Y$7:$AC$8,2,FALSE) -> 786333.6845 | AH14: =(((1-Vehicles!$C$33)*(1-Vehicles!$C$15-Vehicles!$C$16)*Fuel_Specs!$B$15*(Petroleum!B219*Petroleum!$J$218+Petroleum!$J219)+Vehicles!$C$33*(1-Vehicles!$C$15-Vehicles!$C$16)*Fuel_Specs!$B$18*(Petroleum!B219*Petroleum!$K$218+Petroleum!$K219)+Vehicles!$C$15*Fuel_Specs!$B$26*(EtOH!BE402*EtOH!$BF$401+EtOH!$BF402)+Vehicles!$C$16*Fuel_Specs!$B$29*('E-D Additives'!$B49*'E-D Additives'!$B$48))/((1-Vehicles!$C$33)*(1-Vehicles!$C$15-Vehicles!$C$16)*Fuel_Specs!$B$15+Vehicles!$C$33*(1-Vehicles!$C$15-Vehicles!$C$16)*Fuel_Specs!$B$18+Vehicles!$C$15*Fuel_Specs!$B$26+Vehicles!$C$16*Fuel_Specs!$B$29))/1000000*HLOOKUP($G$10,$Y$3:$AC$4,2,FALSE)/HLOOKUP($I$11,$Y$7:$AC$8,2,FALSE) -> 334124.3563 | AI14: =AN14*(Vehicles!$M$21/Vehicles!$CI$53)/(Vehicles!$M$21*(1/Vehicles!$CI$53+1/Vehicles!$CJ$53)+Vehicles!$M$22/Vehicles!$CK$53)+E14*(Vehicles!$M$21/Vehicles!$CJ$53+Vehicles!$M$22/Vehicles!$CK$53)/(Vehicles!$M$21*(1/Vehicles!$CI$53+1/Vehicles!$CJ$53)+Vehicles!$M$22/Vehicles!$CK$53) -> 548913.3603 | AJ14: =AN14*(Vehicles!$N$21/Vehicles!$CM$53)/(Vehicles!$N$21*(1/Vehicles!$CM$53+1/Vehicles!$CN$53)+Vehicles!$N$22/Vehicles!$CO$53)+AC14*(Vehicles!$N$21/Vehicles!$CN$53+Vehicles!$N$22/Vehicles!$CO$53)/(Vehicles!$N$21*(1/Vehicles!$CM$53+1/Vehicles!$CN$53)+Vehicles!$N$22/Vehicles!$CO$53) -> 789381.1634 | AK14: =AN14*(Vehicles!$O$21/Vehicles!$CQ$53)/(Vehicles!$O$21*(1/Vehicles!$CQ$53+1/Vehicles!$CR$53)+Vehicles!$O$22/Vehicles!$CS$53)+AD14*(Vehicles!$O$21/Vehicles!$CR$53+Vehicles!$O$22/Vehicles!$CS$53)/(Vehicles!$O$21*(1/Vehicles!$CQ$53+1/Vehicles!$CR$53)+Vehicles!$O$22/Vehicles!$CS$53) -> 986305.8268 | AL14: =AN14*(Vehicles!$P$21/Vehicles!$CU$53)/(Vehicles!$P$21*(1/Vehicles!$CU$53+1/Vehicles!$CV$53)+Vehicles!$P$22/Vehicles!$CW$53)+AE14*(Vehicles!$P$21/Vehicles!$CV$53+Vehicles!$P$22/Vehicles!$CW$53)/(Vehicles!$P$21*(1/Vehicles!$CU$53+1/Vehicles!$CV$53)+Vehicles!$P$22/Vehicles!$CW$53) -> 597103.2351 | AM14: =AN14*(Vehicles!$R$21/Vehicles!$DC$53)/(Vehicles!$R$21*(1/Vehicles!$DC$53+1/Vehicles!$DD$53)+Vehicles!$R$22/Vehicles!$DE$53)+AH14*(Vehicles!$R$21/Vehicles!$DD$53+Vehicles!$R$22/Vehicles!$DE$53)/(Vehicles!$R$21*(1/Vehicles!$DC$53+1/Vehicles!$DD$53)+Vehicles!$R$22/Vehicles!$DE$53) -> 607166.2428 | AN14: =(Electric!$G171+Electric!$F171-1000000)/1000000*HLOOKUP($G$10,$Y$3:$AC$4,2,FALSE)/HLOOKUP($I$11,$Y$7:$AC$8,2,FALSE) -> 1469584.758 | AO14: =((Hydrogen!$Z148*Hydrogen!$AA$147+Hydrogen!$AA148)-1000000*(Hydrogen!$K$7+Hydrogen!$C$7+Hydrogen!$D$7+Hydrogen!$E$7))/1000000*HLOOKUP($G$10,$Y$3:$AC$4,2,FALSE)/HLOOKUP($I$11,$Y$7:$AC$8,2,FALSE) -> 821914.687 | AP14: =((Hydrogen!$AX148*Hydrogen!$AY$147+Hydrogen!$AY148)-1000000*(Hydrogen!$K$8+Hydrogen!$C$8+Hydrogen!$D$8+Hydrogen!$E$8))/1000000*HLOOKUP($G$10,$Y$3:$AC$4,2,FALSE)/HLOOKUP($I$11,$Y$7:$AC$8,2,FALSE) -> 1633431.593 | AQ14: =AN14*(Vehicles!$S$21/Vehicles!$DS$53)/(Vehicles!$S$21*(1/Vehicles!$DS$53+1/Vehicles!$DT$53)+Vehicles!$S$22/Vehicles!$DU$53)+AO14*(Vehicles!$S$21/Vehicles!$DT$53+Vehicles!$S$22/Vehicles!$DU$53)/(Vehicles!$S$21*(1/Vehicles!$DS$53+1/Vehicles!$DT$53)+Vehicles!$S$22/Vehicles!$DU$53) -> 1019629.385 | AR14: =AN14*(Vehicles!$S$21/Vehicles!$DS$53)/(Vehicles!$S$21*(1/Vehicles!$DS$53+1/Vehicles!$DT$53)+Vehicles!$S$22/Vehicles!$DU$53)+AP14*(Vehicles!$S$21/Vehicles!$DT$53+Vehicles!$S$22/Vehicles!$DU$53)/(Vehicles!$S$21*(1/Vehicles!$DS$53+1/Vehicles!$DT$53)+Vehicles!$S$22/Vehicles!$DU$53) -> 1583413.954
A15: WTP Efficiency | B15: =HLOOKUP($G$10,$Y$3:$AC$4,2,FALSE)/HLOOKUP($I$11,$Y$7:$AC$8,2,FALSE)/(HLOOKUP($G$10,$Y$3:$AC$4,2,FALSE)/HLOOKUP($I$11,$Y$7:$AC$8,2,FALSE)+B14) -> 0.759877555 | C15: 0.7305963609 | D15: 0.7599965557 | E15: 0.7952737842 | F15: 0.8453297662 | G15: 0.7987443881 | H15: 0.8567114595 | I15: 0.5482301184 | J15: 0.6482626841 | K15: 0.634539503 | L15: 0.6049770205 | M15: 0.460284828 | N15: 0.5742944654 | O15: 0.460284828 | P15: 0.4067189569 | Q15: 0.5485330781 | R15: 0.5595040409 | S15: 0.6315324571 | T15: 0.615776764 | U15: 0.6315955935 | V15: 0.6751005494 | W15: 0.6517801432 | X15: 0.6806479306 | Y15: 0.5608120789 | Z15: 0.4468272493 | AA15: 0.5046489474 | AB15: 0.3856476183 | AC15: 0.6353124877 | AD15: 0.5454645779 | AE15: 0.7570736811 | AF15: 0.9017083566 | AG15: 0.5598058239 | AH15: 0.7495553134 | AI15: 0.6456139031 | AJ15: 0.5588524237 | AK15: 0.5034471462 | AL15: 0.6261336012 | AM15: 0.6222131683 | AN15: 0.4049263734 | AO15: 0.5488731207 | AP15: 0.3797326662 | AQ15: 0.4951403497 | AR15: 0.387084694
A16: Fossil Fuels | B16: =(Inputs!$E$1056*(Petroleum!$B220*Petroleum!$F$218+Petroleum!$F220)+(1-Inputs!$E$1056)*(Petroleum!$B220*Petroleum!$D$218+Petroleum!$D220))/1000000*HLOOKUP($G$10,$Y$3:$AC$4,2,FALSE)/HLOOKUP($I$11,$Y$7:$AC$8,2,FALSE) -> 286890.5836 | C16: =(Petroleum!$C220*Petroleum!$G$218+Petroleum!$G220)/1000000*HLOOKUP($G$10,$Y$3:$AC$4,2,FALSE)/HLOOKUP($I$11,$Y$7:$AC$8,2,FALSE) -> 340784.4744 | D16: =((1-Vehicles!$C$26)*(1-Vehicles!$C$7)*Fuel_Specs!$B$11/((1-Vehicles!$C$26)*(1-Vehicles!$C$7)*Fuel_Specs!$B$11+Vehicles!$C$26*(1-Vehicles!$C$7)*Fuel_Specs!$B$13+Vehicles!$C$7*Fuel_Specs!$B$26)*(Petroleum!$B220*Petroleum!$D$218+Petroleum!$D220)+Vehicles!$C$26*(1-Vehicles!$C$7)*Fuel_Specs!$B$13/((1-Vehicles!$C$26)*(1-Vehicles!$C$7)*Fuel_Specs!$B$11+Vehicles!$C$26*(1-Vehicles!$C$7)*Fuel_Specs!$B$13+Vehicles!$C$7*Fuel_Specs!$B$26)*(Petroleum!B220*Petroleum!$F$218+Petroleum!$F220)+Vehicles!$C$7*Fuel_Specs!$B$26/((1-Vehicles!$C$26)*(1-Vehicles!$C$7)*Fuel_Specs!$B$11+Vehicles!$C$26*(1-Vehicles!$C$7)*Fuel_Specs!$B$13+Vehicles!$C$7*Fuel_Specs!$B$26)*(EtOH!BE403*EtOH!$BF$401+EtOH!$BF403))/1000000*HLOOKUP($G$10,$Y$3:$AC$4,2,FALSE)/HLOOKUP($I$11,$Y$7:$AC$8,2,FALSE) -> 286685.5498 | E16: =(Inputs!$E$88*(IF(Inputs!F$92=1,Petroleum!$B220,Petroleum!$C220)*Petroleum!$K$218+Petroleum!$K220)+(1-Inputs!$E$88)*(IF(Inputs!F$91=1,Petroleum!$B220,Petroleum!$C220)*Petroleum!$J$218+Petroleum!$J220))/1000000*HLOOKUP($G$10,$Y$3:$AC$4,2,FALSE)/HLOOKUP($I$11,$Y$7:$AC$8,2,FALSE) -> 251388.9754 | F16: =(NG!$H82*NG!$I$80+NG!$I82)/1000000*HLOOKUP($G$10,$Y$3:$AC$4,2,FALSE)/HLOOKUP($I$11,$Y$7:$AC$8,2,FALSE) -> 173842.0658 | G16: =(NG!$P82*NG!$Q$80+NG!$Q82)/1000000*HLOOKUP($G$10,$Y$3:$AC$4,2,FALSE)/HLOOKUP($I$11,$Y$7:$AC$8,2,FALSE) -> 250831.7343 | H16: =(NG!$V82*NG!$W$80+NG!$W82)/1000000*HLOOKUP($G$10,$Y$3:$AC$4,2,FALSE)/HLOOKUP($I$11,$Y$7:$AC$8,2,FALSE) -> 163533.0318 | I16: =('MeOH&FTD'!AV134*'MeOH&FTD'!AW$132+'MeOH&FTD'!AW134)/1000000*HLOOKUP($G$10,$Y$3:$AC$4,2,FALSE)/HLOOKUP($I$11,$Y$7:$AC$8,2,FALSE) -> 843583.963 | J16: =((1-Vehicles!$C$25)*(1-Vehicles!$C$5)*Fuel_Specs!$B$11/((1-Vehicles!$C$25)*(1-Vehicles!$C$5)*Fuel_Specs!$B$11+Vehicles!$C$25*(1-Vehicles!$C$5)*Fuel_Specs!$B$13+Vehicles!$C$5*Fuel_Specs!$B$25)*(Petroleum!$B220*Petroleum!$D$218+Petroleum!$D220)+Vehicles!$C$25*(1-Vehicles!$C$5)*Fuel_Specs!$B$13/((1-Vehicles!$C$25)*(1-Vehicles!$C$5)*Fuel_Specs!$B$11+Vehicles!$C$25*(1-Vehicles!$C$5)*Fuel_Specs!$B$13+Vehicles!$C$5*Fuel_Specs!$B$25)*(Petroleum!B220*Petroleum!$F$218+Petroleum!$F220)+Vehicles!$C$5*Fuel_Specs!$B$25/((1-Vehicles!$C$25)*(1-Vehicles!$C$5)*Fuel_Specs!$B$11+Vehicles!$C$25*(1-Vehicles!$C$5)*Fuel_Specs!$B$13+Vehicles!$C$5*Fuel_Specs!$B$25)*('MeOH&FTD'!$L134*'MeOH&FTD'!$M$132+'MeOH&FTD'!$M134))/1000000*HLOOKUP($G$10,$Y$3:$AC$4,2,FALSE)/HLOOKUP($I$11,$Y$7:$AC$8,2,FALSE) -> 545100.1001 | K16: =((1-Vehicles!$C$25)*(1-Vehicles!$C$6)*Fuel_Specs!$B$11/((1-Vehicles!$C$25)*(1-Vehicles!$C$6)*Fuel_Specs!$B$11+Vehicles!$C$25*(1-Vehicles!$C$6)*Fuel_Specs!$B$13+Vehicles!$C$6*Fuel_Specs!$B$25)*(Petroleum!$B220*Petroleum!$D$218+Petroleum!$D220)+Vehicles!$C$25*(1-Vehicles!$C$6)*Fuel_Specs!$B$13/((1-Vehicles!$C$25)*(1-Vehicles!$C$6)*Fuel_Specs!$B$11+Vehicles!$C$25*(1-Vehicles!$C$6)*Fuel_Specs!$B$13+Vehicles!$C$6*Fuel_Specs!$B$25)*(Petroleum!B220*Petroleum!$F$218+Petroleum!$F220)+Vehicles!$C$6*Fuel_Specs!$B$25/((1-Vehicles!$C$25)*(1-Vehicles!$C$6)*Fuel_Specs!$B$11+Vehicles!$C$25*(1-Vehicles!$C$6)*Fuel_Specs!$B$13+Vehicles!$C$6*Fuel_Specs!$B$25)*('MeOH&FTD'!$L134*'MeOH&FTD'!$M$132+'MeOH&FTD'!$M134))/1000000*HLOOKUP($G$10,$Y$3:$AC$4,2,FALSE)/HLOOKUP($I$11,$Y$7:$AC$8,2,FALSE) -> 579418.0873 | L16: =('MeOH&FTD'!$L134*'MeOH&FTD'!$M$132+'MeOH&FTD'!$M134)/1000000*HLOOKUP($G$10,$Y$3:$AC$4,2,FALSE)/HLOOKUP($I$11,$Y$7:$AC$8,2,FALSE) -> 658635.391 | M16: =((1-Vehicles!$C$27)*(1-Vehicles!$C$8)*Fuel_Specs!$B$11/((1-Vehicles!$C$27)*(1-Vehicles!$C$8)*Fuel_Specs!$B$11+Vehicles!$C$27*(1-Vehicles!$C$8)*Fuel_Specs!$B$13+Vehicles!$C$8*Fuel_Specs!$B$26)*(Petroleum!$B220*Petroleum!$D$218+Petroleum!$D220)+Vehicles!$C$27*(1-Vehicles!$C$8)*Fuel_Specs!$B$13/((1-Vehicles!$C$27)*(1-Vehicles!$C$8)*Fuel_Specs!$B$11+Vehicles!$C$27*(1-Vehicles!$C$8)*Fuel_Specs!$B$13+Vehicles!$C$8*Fuel_Specs!$B$26)*(Petroleum!B220*Petroleum!$F$218+Petroleum!$F220)+Vehicles!$C$8*Fuel_Specs!$B$26/((1-Vehicles!$C$27)*(1-Vehicles!$C$8)*Fuel_Specs!$B$11+Vehicles!$C$27*(1-Vehicles!$C$8)*Fuel_Specs!$B$13+Vehicles!$C$8*Fuel_Specs!$B$26)*(EtOH!BE403*EtOH!$BF$401+EtOH!$BF403))/1000000*HLOOKUP($G$10,$Y$3:$AC$4,2,FALSE)/HLOOKUP($I$11,$Y$7:$AC$8,2,FALSE) -> 904384.9043 | N16: =((1-Vehicles!$C$28)*(1-Vehicles!$C$10)*Fuel_Specs!$B$11/((1-Vehicles!$C$28)*(1-Vehicles!$C$10)*Fuel_Specs!$B$11+Vehicles!$C$28*(1-Vehicles!$C$10)*Fuel_Specs!$B$13+Vehicles!$C$10*Fuel_Specs!$B$27)*(Petroleum!$B220*Petroleum!$D$218+Petroleum!$D220)+Vehicles!$C$28*(1-Vehicles!$C$10)*Fuel_Specs!$B$13/((1-Vehicles!$C$28)*(1-Vehicles!$C$10)*Fuel_Specs!$B$11+Vehicles!$C$28*(1-Vehicles!$C$10)*Fuel_Specs!$B$13+Vehicles!$C$10*Fuel_Specs!$B$27)*(Petroleum!B220*Petroleum!$F$218+Petroleum!$F220)+Vehicles!$C$10*Fuel_Specs!$B$27/((1-Vehicles!$C$28)*(1-Vehicles!$C$10)*Fuel_Specs!$B$11+Vehicles!$C$28*(1-Vehicles!$C$10)*Fuel_Specs!$B$13+Vehicles!$C$10*Fuel_Specs!$B$27)*(EtOH!$BI403*EtOH!$BJ$401+EtOH!$BJ403))/1000000*HLOOKUP($G$10,$Y$3:$AC$4,2,FALSE)/HLOOKUP($I$11,$Y$7:$AC$8,2,FALSE) -> 707487.4703 | O16: =((1-Vehicles!$C$27)*(1-Vehicles!$C$9)*Fuel_Specs!$B$11/((1-Vehicles!$C$27)*(1-Vehicles!$C$9)*Fuel_Specs!$B$11+Vehicles!$C$27*(1-Vehicles!$C$9)*Fuel_Specs!$B$13+Vehicles!$C$9*Fuel_Specs!$B$26)*(Petroleum!$B220*Petroleum!$D$218+Petroleum!$D220)+Vehicles!$C$27*(1-Vehicles!$C$9)*Fuel_Specs!$B$13/((1-Vehicles!$C$27)*(1-Vehicles!$C$9)*Fuel_Specs!$B$11+Vehicles!$C$27*(1-Vehicles!$C$9)*Fuel_Specs!$B$13+Vehicles!$C$9*Fuel_Specs!$B$26)*(Petroleum!B220*Petroleum!$F$218+Petroleum!$F220)+Vehicles!$C$9*Fuel_Specs!$B$26/((1-Vehicles!$C$27)*(1-Vehicles!$C$9)*Fuel_Specs!$B$11+Vehicles!$C$27*(1-Vehicles!$C$9)*Fuel_Specs!$B$13+Vehicles!$C$9*Fuel_Specs!$B$26)*(EtOH!BE403*EtOH!$BF$401+EtOH!$BF403))/1000000*HLOOKUP($G$10,$Y$3:$AC$4,2,FALSE)/HLOOKUP($I$11,$Y$7:$AC$8,2,FALSE) -> 904384.9043 | P16: =(EtOH!$BE403*EtOH!$BF$401+EtOH!$BF403)/1000000*HLOOKUP($G$10,$Y$3:$AC$4,2,FALSE)/HLOOKUP($I$11,$Y$7:$AC$8,2,FALSE) -> 1110675.197 | Q16: =((1-Vehicles!$C$29)*(1-Vehicles!$C$14)*Fuel_Specs!$B$11/((1-Vehicles!$C$29)*(1-Vehicles!$C$14)*Fuel_Specs!$B$11+Vehicles!$C$29*(1-Vehicles!$C$14)*Fuel_Specs!$B$13+Vehicles!$C$14*Fuel_Specs!$B$39)*(Petroleum!$B220*Petroleum!$D$218+Petroleum!$D220)+Vehicles!$C$29*(1-Vehicles!$C$14)*Fuel_Specs!$B$13/((1-Vehicles!$C$29)*(1-Vehicles!$C$14)*Fuel_Specs!$B$11+Vehicles!$C$29*(1-Vehicles!$C$14)*Fuel_Specs!$B$13+Vehicles!$C$14*Fuel_Specs!$B$39)*(Petroleum!B220*Petroleum!$F$218+Petroleum!$F220)+Vehicles!$C$14*Fuel_Specs!$B$39/((1-Vehicles!$C$29)*(1-Vehicles!$C$14)*Fuel_Specs!$B$11+Vehicles!$C$29*(1-Vehicles!$C$14)*Fuel_Specs!$B$13+Vehicles!$C$14*Fuel_Specs!$B$39)*(BioOil!$BQ316*BioOil!$BR$313+BioOil!$BR316))/1000000*HLOOKUP($G$10,$Y$3:$AC$4,2,FALSE)/HLOOKUP($I$11,$Y$7:$AC$8,2,FALSE) -> 265662.6506 | R16: =((1-Vehicles!$C$29)*(1-Vehicles!$C$14)*Fuel_Specs!$B$11/((1-Vehicles!$C$29)*(1-Vehicles!$C$14)*Fuel_Specs!$B$11+Vehicles!$C$29*(1-Vehicles!$C$14)*Fuel_Specs!$B$13+Vehicles!$C$14*Fuel_Specs!$B$39)*(Petroleum!$B220*Petroleum!$D$218+Petroleum!$D220)+Vehicles!$C$29*(1-Vehicles!$C$14)*Fuel_Specs!$B$13/((1-Vehicles!$C$29)*(1-Vehicles!$C$14)*Fuel_Specs!$B$11+Vehicles!$C$29*(1-Vehicles!$C$14)*Fuel_Specs!$B$13+Vehicles!$C$14*Fuel_Specs!$B$39)*(Petroleum!B220*Petroleum!$F$218+Petroleum!$F220)+Vehicles!$C$14*Fuel_Specs!$B$39/((1-Vehicles!$C$29)*(1-Vehicles!$C$14)*Fuel_Specs!$B$11+Vehicles!$C$29*(1-Vehicles!$C$14)*Fuel_Specs!$B$13+Vehicles!$C$14*Fuel_Specs!$B$39)*(Pyrolysis!$Z168*Pyrolysis!$AA$166+Pyrolysis!$AA168))/1000000*HLOOKUP($G$10,$Y$3:$AC$4,2,FALSE)/HLOOKUP($I$11,$Y$7:$AC$8,2,FALSE) -> 424333.94 | S16: =AN16*(Vehicles!$C$21/Vehicles!$AN$53)/(Vehicles!$C$21*(1/Vehicles!$AN$53+1/Vehicles!$AO$53)+Vehicles!$C$22/Vehicles!$AP$53)+B16*(Vehicles!$C$21/Vehicles!$AO$53+Vehicles!$C$22/Vehicles!$AP$53)/(Vehicles!$C$21*(1/Vehicles!$AN$53+1/Vehicles!$AO$53)+Vehicles!$C$22/Vehicles!$AP$53) -> 509571.0074 | T16: =AN16*(Vehicles!$D$21/Vehicles!$AR$53)/(Vehicles!$D$21*(1/Vehicles!$AR$53+1/Vehicles!$AS$53)+Vehicles!$D$22/Vehicles!$AT$53)+C16*(Vehicles!$D$21/Vehicles!$AS$53+Vehicles!$D$22/Vehicles!$AT$53)/(Vehicles!$D$21*(1/Vehicles!$AR$53+1/Vehicles!$AS$53)+Vehicles!$D$22/Vehicles!$AT$53) -> 550970.0615 | U16: =AN16*(Vehicles!$F$21/Vehicles!$AZ$53)/(Vehicles!$F$21*(1/Vehicles!$AZ$53+1/Vehicles!$BA$53)+Vehicles!$F$22/Vehicles!$BB$53)+D16*(Vehicles!$F$21/Vehicles!$BA$53+Vehicles!$F$22/Vehicles!$BB$53)/(Vehicles!$F$21*(1/Vehicles!$AZ$53+1/Vehicles!$BA$53)+Vehicles!$F$22/Vehicles!$BB$53) -> 509413.5089 | V16: =AN16*(Vehicles!$G$21/Vehicles!$BD$53)/(Vehicles!$G$21*(1/Vehicles!$BD$53+1/Vehicles!$BE$53)+Vehicles!$G$22/Vehicles!$BF$53)+F16*(Vehicles!$G$21/Vehicles!$BE$53+Vehicles!$G$22/Vehicles!$BF$53)/(Vehicles!$G$21*(1/Vehicles!$BD$53+1/Vehicles!$BE$53)+Vehicles!$G$22/Vehicles!$BF$53) -> 422731.8197 | W16: =AN16*(Vehicles!$H$21/Vehicles!$BH$53)/(Vehicles!$H$21*(1/Vehicles!$BH$53+1/Vehicles!$BI$53)+Vehicles!$H$22/Vehicles!$BJ$53)+G16*(Vehicles!$H$21/Vehicles!$BI$53+Vehicles!$H$22/Vehicles!$BJ$53)/(Vehicles!$H$21*(1/Vehicles!$BH$53+1/Vehicles!$BI$53)+Vehicles!$H$22/Vehicles!$BJ$53) -> 481872.0933 | X16: =AN16*(Vehicles!$I$21/Vehicles!$BL$53)/(Vehicles!$I$21*(1/Vehicles!$BL$53+1/Vehicles!$BM$53)+Vehicles!$I$22/Vehicles!$BN$53)+H16*(Vehicles!$I$21/Vehicles!$BM$53+Vehicles!$I$22/Vehicles!$BN$53)/(Vehicles!$I$21*(1/Vehicles!$BL$53+1/Vehicles!$BM$53)+Vehicles!$I$22/Vehicles!$BN$53) -> 414812.8469 | Y16: =AN16*(Vehicles!$J$21/Vehicles!$BP$53)/(Vehicles!$J$21*(1/Vehicles!$BP$53+1/Vehicles!$BQ$53)+Vehicles!$J$22/Vehicles!$BR$53)+K16*(Vehicles!$J$21/Vehicles!$BQ$53+Vehicles!$J$22/Vehicles!$BR$53)/(Vehicles!$J$21*(1/Vehicles!$BP$53+1/Vehicles!$BQ$53)+Vehicles!$J$22/Vehicles!$BR$53) -> 734278.5162 | Z16: =AN16*(Vehicles!$K$21/Vehicles!$BT$53)/(Vehicles!$K$21*(1/Vehicles!$BT$53+1/Vehicles!$BU$53)+Vehicles!$K$22/Vehicles!$BV$53)+O16*(Vehicles!$K$21/Vehicles!$BU$53+Vehicles!$K$22/Vehicles!$BV$53)/(Vehicles!$K$21*(1/Vehicles!$BT$53+1/Vehicles!$BU$53)+Vehicles!$K$22/Vehicles!$BV$53) -> 979946.7986 | AA16: =AN16*(Vehicles!$L$21/Vehicles!$BX$53)/(Vehicles!$L$21*(1/Vehicles!$BX$53+1/Vehicles!$BY$53)+Vehicles!$L$22/Vehicles!$BZ$53)+AO16*(Vehicles!$L$21/Vehicles!$BY$53+Vehicles!$L$22/Vehicles!$BZ$53)/(Vehicles!$L$21*(1/Vehicles!$BX$53+1/Vehicles!$BY$53)+Vehicles!$L$22/Vehicles!$BZ$53) -> 894123.9966 | AB16: =AN16*(Vehicles!$L$21/Vehicles!$BX$53)/(Vehicles!$L$21*(1/Vehicles!$BX$53+1/Vehicles!$BY$53)+Vehicles!$L$22/Vehicles!$CA$53)+AP16*(Vehicles!$L$21/Vehicles!$BY$53+Vehicles!$L$22/Vehicles!$CA$53)/(Vehicles!$L$21*(1/Vehicles!$BX$53+1/Vehicles!$BY$53)+Vehicles!$L$22/Vehicles!$CA$53) -> 1417479.196 | AC16: =('MeOH&FTD'!$X134*'MeOH&FTD'!$Y$132+'MeOH&FTD'!$Y134)/1000000*HLOOKUP($G$10,$Y$3:$AC$4,2,FALSE)/HLOOKUP($I$11,$Y$7:$AC$8,2,FALSE) -> 575498.3002 | AD16: =((1-Vehicles!$C$30)*(1-Vehicles!$C$11)*Fuel_Specs!$B$15/((1-Vehicles!$C$30)*(1-Vehicles!$C$11)*Fuel_Specs!$B$15+Vehicles!$C$30*(1-Vehicles!$C$11)*Fuel_Specs!$B$18+Vehicles!$C$11*Fuel_Specs!$B$35)*(Petroleum!B220*Petroleum!$J$218+Petroleum!$J220)+Vehicles!$C$30*(1-Vehicles!$C$11)*Fuel_Specs!$B$18/((1-Vehicles!$C$30)*(1-Vehicles!$C$11)*Fuel_Specs!$B$15+Vehicles!$C$30*(1-Vehicles!$C$11)*Fuel_Specs!$B$18+Vehicles!$C$11*Fuel_Specs!$B$35)*(Petroleum!B220*Petroleum!$K$218+Petroleum!$K220)+Vehicles!$C$11*Fuel_Specs!$B$35/((1-Vehicles!$C$30)*(1-Vehicles!$C$11)*Fuel_Specs!$B$15+Vehicles!$C$30*(1-Vehicles!$C$11)*Fuel_Specs!$B$18+Vehicles!$C$11*Fuel_Specs!$B$35)*('MeOH&FTD'!$AL134*'MeOH&FTD'!$AM$132+'MeOH&FTD'!$AM134))/1000000*HLOOKUP($G$10,$Y$3:$AC$4,2,FALSE)/HLOOKUP($I$11,$Y$7:$AC$8,2,FALSE) -> 851191.4614 | AE16: =((1-Vehicles!$C$31)*(1-Vehicles!$C$12)*Fuel_Specs!$B$15/((1-Vehicles!$C$31)*(1-Vehicles!$C$12)*Fuel_Specs!$B$15+Vehicles!$C$31*(1-Vehicles!$C$12)*Fuel_Specs!$B$18+Vehicles!$C$12*Fuel_Specs!$B$34)*(Petroleum!B220*Petroleum!$J$218+Petroleum!$J220)+Vehicles!$C$31*(1-Vehicles!$C$12)*Fuel_Specs!$B$18/((1-Vehicles!$C$31)*(1-Vehicles!$C$12)*Fuel_Specs!$B$15+Vehicles!$C$31*(1-Vehicles!$C$12)*Fuel_Specs!$B$18+Vehicles!$C$12*Fuel_Specs!$B$34)*(Petroleum!B220*Petroleum!$K$218+Petroleum!$K220)+Vehicles!$C$12*Fuel_Specs!$B$34/((1-Vehicles!$C$31)*(1-Vehicles!$C$12)*Fuel_Specs!$B$15+Vehicles!$C$31*(1-Vehicles!$C$12)*Fuel_Specs!$B$18+Vehicles!$C$12*Fuel_Specs!$B$34)*(BioOil!$Y316*BioOil!$Z$313+BioOil!$Z316))/1000000*HLOOKUP($G$10,$Y$3:$AC$4,2,FALSE)/HLOOKUP($I$11,$Y$7:$AC$8,2,FALSE) -> 259366.5413 | AF16: =((1-Vehicles!$C$32)*(1-Vehicles!$C$13)*Fuel_Specs!$B$15/((1-Vehicles!$C$32)*(1-Vehicles!$C$13)*Fuel_Specs!$B$15+Vehicles!$C$32*(1-Vehicles!$C$13)*Fuel_Specs!$B$18+Vehicles!$C$13*IF(Inputs!$E$499=1,IF(Inputs!$E$499=1,Fuel_Specs!$B$36,IF(Inputs!$E$499=3,Fuel_Specs!$B$38,Fuel_Specs!$B$37)),Fuel_Specs!$B$37))*(Petroleum!B220*Petroleum!$J$218+Petroleum!$J220)+Vehicles!$C$32*(1-Vehicles!$C$13)*Fuel_Specs!$B$18/((1-Vehicles!$C$32)*(1-Vehicles!$C$13)*Fuel_Specs!$B$15+Vehicles!$C$32*(1-Vehicles!$C$13)*Fuel_Specs!$B$18+Vehicles!$C$13*IF(Inputs!$E$499=1,IF(Inputs!$E$499=1,Fuel_Specs!$B$36,IF(Inputs!$E$499=3,Fuel_Specs!$B$38,Fuel_Specs!$B$37)),Fuel_Specs!$B$37))*(Petroleum!B220*Petroleum!$K$218+Petroleum!$K220)+Vehicles!$C$13*IF(Inputs!$E$499=1,IF(Inputs!$E$499=1,Fuel_Specs!$B$36,IF(Inputs!$E$499=3,Fuel_Specs!$B$38,Fuel_Specs!$B$37)),Fuel_Specs!$B$37)/((1-Vehicles!$C$32)*(1-Vehicles!$C$13)*Fuel_Specs!$B$15+Vehicles!$C$32*(1-Vehicles!$C$13)*Fuel_Specs!$B$18+Vehicles!$C$13*IF(Inputs!$E$499=1,IF(Inputs!$E$499=1,Fuel_Specs!$B$36,IF(Inputs!$E$499=3,Fuel_Specs!$B$38,Fuel_Specs!$B$37)),Fuel_Specs!$B$37))*(BioOil!$BE316*BioOil!$BF$313+BioOil!$BF316))/1000000*HLOOKUP($G$10,$Y$3:$AC$4,2,FALSE)/HLOOKUP($I$11,$Y$7:$AC$8,2,FALSE) -> 94825.5742 | AG16: =((1-Vehicles!$C$32)*(1-Vehicles!$C$13)*Fuel_Specs!$B$15/((1-Vehicles!$C$32)*(1-Vehicles!$C$13)*Fuel_Specs!$B$15+Vehicles!$C$32*(1-Vehicles!$C$13)*Fuel_Specs!$B$18+Vehicles!$C$13*IF(Inputs!$E$499=1,Fuel_Specs!$B$36,Fuel_Specs!$B$37))*(Petroleum!B220*Petroleum!$J$218+Petroleum!$J220)+Vehicles!$C$32*(1-Vehicles!$C$13)*Fuel_Specs!$B$18/((1-Vehicles!$C$32)*(1-Vehicles!$C$13)*Fuel_Specs!$B$15+Vehicles!$C$32*(1-Vehicles!$C$13)*Fuel_Specs!$B$18+Vehicles!$C$13*IF(Inputs!$E$499=1,Fuel_Specs!$B$36,Fuel_Specs!$B$37))*(Petroleum!B220*Petroleum!$K$218+Petroleum!$K220)+Vehicles!$C$13*IF(Inputs!$E$499=1,Fuel_Specs!$B$36,Fuel_Specs!$B$37)/((1-Vehicles!$C$32)*(1-Vehicles!$C$13)*Fuel_Specs!$B$15+Vehicles!$C$32*(1-Vehicles!$C$13)*Fuel_Specs!$B$18+Vehicles!$C$13*IF(Inputs!$E$499=1,Fuel_Specs!$B$36,Fuel_Specs!$B$37))*(Pyrolysis!$AB168*Pyrolysis!$AC$166+Pyrolysis!$AC168))/1000000*HLOOKUP($G$10,$Y$3:$AC$4,2,FALSE)/HLOOKUP($I$11,$Y$7:$AC$8,2,FALSE) -> 424603.9617 | AH16: =(((1-Vehicles!$C$33)*(1-Vehicles!$C$15-Vehicles!$C$16)*Fuel_Specs!$B$15*(Petroleum!B220*Petroleum!$J$218+Petroleum!$J220)+Vehicles!$C$33*(1-Vehicles!$C$15-Vehicles!$C$16)*Fuel_Specs!$B$18*(Petroleum!B220*Petroleum!$K$218+Petroleum!$K220)+Vehicles!$C$15*Fuel_Specs!$B$26*(EtOH!BE403*EtOH!$BF$401+EtOH!$BF403)+Vehicles!$C$16*Fuel_Specs!$B$29*('E-D Additives'!$B50*'E-D Additives'!$B$48))/((1-Vehicles!$C$33)*(1-Vehicles!$C$15-Vehicles!$C$16)*Fuel_Specs!$B$15+Vehicles!$C$33*(1-Vehicles!$C$15-Vehicles!$C$16)*Fuel_Specs!$B$18+Vehicles!$C$15*Fuel_Specs!$B$26+Vehicles!$C$16*Fuel_Specs!$B$29))/1000000*HLOOKUP($G$10,$Y$3:$AC$4,2,FALSE)/HLOOKUP($I$11,$Y$7:$AC$8,2,FALSE) -> 306566.0127 | AI16: =AN16*(Vehicles!$M$21/Vehicles!$CI$53)/(Vehicles!$M$21*(1/Vehicles!$CI$53+1/Vehicles!$CJ$53)+Vehicles!$M$22/Vehicles!$CK$53)+E16*(Vehicles!$M$21/Vehicles!$CJ$53+Vehicles!$M$22/Vehicles!$CK$53)/(Vehicles!$M$21*(1/Vehicles!$CI$53+1/Vehicles!$CJ$53)+Vehicles!$M$22/Vehicles!$CK$53) -> 490892.0937 | AJ16: =AN16*(Vehicles!$N$21/Vehicles!$CM$53)/(Vehicles!$N$21*(1/Vehicles!$CM$53+1/Vehicles!$CN$53)+Vehicles!$N$22/Vehicles!$CO$53)+AC16*(Vehicles!$N$21/Vehicles!$CN$53+Vehicles!$N$22/Vehicles!$CO$53)/(Vehicles!$N$21*(1/Vehicles!$CM$53+1/Vehicles!$CN$53)+Vehicles!$N$22/Vehicles!$CO$53) -> 737063.4988 | AK16: =AN16*(Vehicles!$O$21/Vehicles!$CQ$53)/(Vehicles!$O$21*(1/Vehicles!$CQ$53+1/Vehicles!$CR$53)+Vehicles!$O$22/Vehicles!$CS$53)+AD16*(Vehicles!$O$21/Vehicles!$CR$53+Vehicles!$O$22/Vehicles!$CS$53)/(Vehicles!$O$21*(1/Vehicles!$CQ$53+1/Vehicles!$CR$53)+Vehicles!$O$22/Vehicles!$CS$53) -> 946461.2783 | AL16: =AN16*(Vehicles!$P$21/Vehicles!$CU$53)/(Vehicles!$P$21*(1/Vehicles!$CU$53+1/Vehicles!$CV$53)+Vehicles!$P$22/Vehicles!$CW$53)+AE16*(Vehicles!$P$21/Vehicles!$CV$53+Vehicles!$P$22/Vehicles!$CW$53)/(Vehicles!$P$21*(1/Vehicles!$CU$53+1/Vehicles!$CV$53)+Vehicles!$P$22/Vehicles!$CW$53) -> 496951.3102 | AM16: =AN16*(Vehicles!$R$21/Vehicles!$DC$53)/(Vehicles!$R$21*(1/Vehicles!$DC$53+1/Vehicles!$DD$53)+Vehicles!$R$22/Vehicles!$DE$53)+AH16*(Vehicles!$R$21/Vehicles!$DD$53+Vehicles!$R$22/Vehicles!$DE$53)/(Vehicles!$R$21*(1/Vehicles!$DC$53+1/Vehicles!$DD$53)+Vehicles!$R$22/Vehicles!$DE$53) -> 532800.8194 | AN16: =(Electric!$G172+Electric!$F172-1000000*(Electric!$F172+Electric!$G172)/(Electric!$F$171+Electric!$G$171))/1000000*HLOOKUP($G$10,$Y$3:$AC$4,2,FALSE)/HLOOKUP($I$11,$Y$7:$AC$8,2,FALSE) -> 1247376.479 | AO16: =((Hydrogen!$Z149*Hydrogen!$AA$147+Hydrogen!$AA149)-1000000*(Hydrogen!$K$7+Hydrogen!$C$7+Hydrogen!$D$7+Hydrogen!$E$7))/1000000*HLOOKUP($G$10,$Y$3:$AC$4,2,FALSE)/HLOOKUP($I$11,$Y$7:$AC$8,2,FALSE) -> 778551.2146 | AP16: =((Hydrogen!$AX149*Hydrogen!$AY$147+Hydrogen!$AY149)-1000000*(Hydrogen!$K$8+Hydrogen!$C$8+Hydrogen!$D$8+Hydrogen!$E$8))/1000000*HLOOKUP($G$10,$Y$3:$AC$4,2,FALSE)/HLOOKUP($I$11,$Y$7:$AC$8,2,FALSE) -> 1473131.301 | AQ16: =AN16*(Vehicles!$S$21/Vehicles!$DS$53)/(Vehicles!$S$21*(1/Vehicles!$DS$53+1/Vehicles!$DT$53)+Vehicles!$S$22/Vehicles!$DU$53)+AO16*(Vehicles!$S$21/Vehicles!$DT$53+Vehicles!$S$22/Vehicles!$DU$53)/(Vehicles!$S$21*(1/Vehicles!$DS$53+1/Vehicles!$DT$53)+Vehicles!$S$22/Vehicles!$DU$53) -> 921669.8327 | AR16: =AN16*(Vehicles!$S$21/Vehicles!$DS$53)/(Vehicles!$S$21*(1/Vehicles!$DS$53+1/Vehicles!$DT$53)+Vehicles!$S$22/Vehicles!$DU$53)+AP16*(Vehicles!$S$21/Vehicles!$DT$53+Vehicles!$S$22/Vehicles!$DU$53)/(Vehicles!$S$21*(1/Vehicles!$DS$53+1/Vehicles!$DT$53)+Vehicles!$S$22/Vehicles!$DU$53) -> 1404214.968
A17: Coal | B17: =(Inputs!$E$1056*(Petroleum!$B221*Petroleum!$F$218+Petroleum!$F221)+(1-Inputs!$E$1056)*(Petroleum!$B221*Petroleum!$D$218+Petroleum!$D221))/1000000*HLOOKUP($G$10,$Y$3:$AC$4,2,FALSE)/HLOOKUP($I$11,$Y$7:$AC$8,2,FALSE) -> 55397.77356 | C17: =(Petroleum!$C221*Petroleum!$G$218+Petroleum!$G221)/1000000*HLOOKUP($G$10,$Y$3:$AC$4,2,FALSE)/HLOOKUP($I$11,$Y$7:$AC$8,2,FALSE) -> 52236.03677 | D17: =((1-Vehicles!$C$26)*(1-Vehicles!$C$7)*Fuel_Specs!$B$11/((1-Vehicles!$C$26)*(1-Vehicles!$C$7)*Fuel_Specs!$B$11+Vehicles!$C$26*(1-Vehicles!$C$7)*Fuel_Specs!$B$13+Vehicles!$C$7*Fuel_Specs!$B$26)*(Petroleum!$B221*Petroleum!$D$218+Petroleum!$D221)+Vehicles!$C$26*(1-Vehicles!$C$7)*Fuel_Specs!$B$13/((1-Vehicles!$C$26)*(1-Vehicles!$C$7)*Fuel_Specs!$B$11+Vehicles!$C$26*(1-Vehicles!$C$7)*Fuel_Specs!$B$13+Vehicles!$C$7*Fuel_Specs!$B$26)*(Petroleum!B221*Petroleum!$F$218+Petroleum!$F221)+Vehicles!$C$7*Fuel_Specs!$B$26/((1-Vehicles!$C$26)*(1-Vehicles!$C$7)*Fuel_Specs!$B$11+Vehicles!$C$26*(1-Vehicles!$C$7)*Fuel_Specs!$B$13+Vehicles!$C$7*Fuel_Specs!$B$26)*(EtOH!BE404*EtOH!$BF$401+EtOH!$BF404))/1000000*HLOOKUP($G$10,$Y$3:$AC$4,2,FALSE)/HLOOKUP($I$11,$Y$7:$AC$8,2,FALSE) -> 55393.84199 | E17: =(Inputs!$E$88*(IF(Inputs!F$92=1,Petroleum!$B221,Petroleum!$C221)*Petroleum!$K$218+Petroleum!$K221)+(1-Inputs!$E$88)*(IF(Inputs!F$91=1,Petroleum!$B221,Petroleum!$C221)*Petroleum!$J$218+Petroleum!$J221))/1000000*HLOOKUP($G$10,$Y$3:$AC$4,2,FALSE)/HLOOKUP($I$11,$Y$7:$AC$8,2,FALSE) -> 23118.03877 | F17: =(NG!$H83*NG!$I$80+NG!$I83)/1000000*HLOOKUP($G$10,$Y$3:$AC$4,2,FALSE)/HLOOKUP($I$11,$Y$7:$AC$8,2,FALSE) -> 34033.77591 | G17: =(NG!$P83*NG!$Q$80+NG!$Q83)/1000000*HLOOKUP($G$10,$Y$3:$AC$4,2,FALSE)/HLOOKUP($I$11,$Y$7:$AC$8,2,FALSE) -> 4232.511176 | H17: =(NG!$V83*NG!$W$80+NG!$W83)/1000000*HLOOKUP($G$10,$Y$3:$AC$4,2,FALSE)/HLOOKUP($I$11,$Y$7:$AC$8,2,FALSE) -> 14096.9201 | I17: =('MeOH&FTD'!AV135*'MeOH&FTD'!AW$132+'MeOH&FTD'!AW135)/1000000*HLOOKUP($G$10,$Y$3:$AC$4,2,FALSE)/HLOOKUP($I$11,$Y$7:$AC$8,2,FALSE) -> -73666.49361 | J17: =((1-Vehicles!$C$25)*(1-Vehicles!$C$5)*Fuel_Specs!$B$11/((1-Vehicles!$C$25)*(1-Vehicles!$C$5)*Fuel_Specs!$B$11+Vehicles!$C$25*(1-Vehicles!$C$5)*Fuel_Specs!$B$13+Vehicles!$C$5*Fuel_Specs!$B$25)*(Petroleum!$B221*Petroleum!$D$218+Petroleum!$D221)+Vehicles!$C$25*(1-Vehicles!$C$5)*Fuel_Specs!$B$13/((1-Vehicles!$C$25)*(1-Vehicles!$C$5)*Fuel_Specs!$B$11+Vehicles!$C$25*(1-Vehicles!$C$5)*Fuel_Specs!$B$13+Vehicles!$C$5*Fuel_Specs!$B$25)*(Petroleum!B221*Petroleum!$F$218+Petroleum!$F221)+Vehicles!$C$5*Fuel_Specs!$B$25/((1-Vehicles!$C$25)*(1-Vehicles!$C$5)*Fuel_Specs!$B$11+Vehicles!$C$25*(1-Vehicles!$C$5)*Fuel_Specs!$B$13+Vehicles!$C$5*Fuel_Specs!$B$25)*('MeOH&FTD'!$L135*'MeOH&FTD'!$M$132+'MeOH&FTD'!$M135))/1000000*HLOOKUP($G$10,$Y$3:$AC$4,2,FALSE)/HLOOKUP($I$11,$Y$7:$AC$8,2,FALSE) -> -9203.836888 | K17: =((1-Vehicles!$C$25)*(1-Vehicles!$C$6)*Fuel_Specs!$B$11/((1-Vehicles!$C$25)*(1-Vehicles!$C$6)*Fuel_Specs!$B$11+Vehicles!$C$25*(1-Vehicles!$C$6)*Fuel_Specs!$B$13+Vehicles!$C$6*Fuel_Specs!$B$25)*(Petroleum!$B221*Petroleum!$D$218+Petroleum!$D221)+Vehicles!$C$25*(1-Vehicles!$C$6)*Fuel_Specs!$B$13/((1-Vehicles!$C$25)*(1-Vehicles!$C$6)*Fuel_Specs!$B$11+Vehicles!$C$25*(1-Vehicles!$C$6)*Fuel_Specs!$B$13+Vehicles!$C$6*Fuel_Specs!$B$25)*(Petroleum!B221*Petroleum!$F$218+Petroleum!$F221)+Vehicles!$C$6*Fuel_Specs!$B$25/((1-Vehicles!$C$25)*(1-Vehicles!$C$6)*Fuel_Specs!$B$11+Vehicles!$C$25*(1-Vehicles!$C$6)*Fuel_Specs!$B$13+Vehicles!$C$6*Fuel_Specs!$B$25)*('MeOH&FTD'!$L135*'MeOH&FTD'!$M$132+'MeOH&FTD'!$M135))/1000000*HLOOKUP($G$10,$Y$3:$AC$4,2,FALSE)/HLOOKUP($I$11,$Y$7:$AC$8,2,FALSE) -> -12819.07145 | L17: =('MeOH&FTD'!$L135*'MeOH&FTD'!$M$132+'MeOH&FTD'!$M135)/1000000*HLOOKUP($G$10,$Y$3:$AC$4,2,FALSE)/HLOOKUP($I$11,$Y$7:$AC$8,2,FALSE) -> -21164.23262 | M17: =((1-Vehicles!$C$27)*(1-Vehicles!$C$8)*Fuel_Specs!$B$11/((1-Vehicles!$C$27)*(1-Vehicles!$C$8)*Fuel_Specs!$B$11+Vehicles!$C$27*(1-Vehicles!$C$8)*Fuel_Specs!$B$13+Vehicles!$C$8*Fuel_Specs!$B$26)*(Petroleum!$B221*Petroleum!$D$218+Petroleum!$D221)+Vehicles!$C$27*(1-Vehicles!$C$8)*Fuel_Specs!$B$13/((1-Vehicles!$C$27)*(1-Vehicles!$C$8)*Fuel_Specs!$B$11+Vehicles!$C$27*(1-Vehicles!$C$8)*Fuel_Specs!$B$13+Vehicles!$C$8*Fuel_Specs!$B$26)*(Petroleum!B221*Petroleum!$F$218+Petroleum!$F221)+Vehicles!$C$8*Fuel_Specs!$B$26/((1-Vehicles!$C$27)*(1-Vehicles!$C$8)*Fuel_Specs!$B$11+Vehicles!$C$27*(1-Vehicles!$C$8)*Fuel_Specs!$B$13+Vehicles!$C$8*Fuel_Specs!$B$26)*(EtOH!BE404*EtOH!$BF$401+EtOH!$BF404))/1000000*HLOOKUP($G$10,$Y$3:$AC$4,2,FALSE)/HLOOKUP($I$11,$Y$7:$AC$8,2,FALSE) -> 382529.8231 | N17: =((1-Vehicles!$C$28)*(1-Vehicles!$C$10)*Fuel_Specs!$B$11/((1-Vehicles!$C$28)*(1-Vehicles!$C$10)*Fuel_Specs!$B$11+Vehicles!$C$28*(1-Vehicles!$C$10)*Fuel_Specs!$B$13+Vehicles!$C$10*Fuel_Specs!$B$27)*(Petroleum!$B221*Petroleum!$D$218+Petroleum!$D221)+Vehicles!$C$28*(1-Vehicles!$C$10)*Fuel_Specs!$B$13/((1-Vehicles!$C$28)*(1-Vehicles!$C$10)*Fuel_Specs!$B$11+Vehicles!$C$28*(1-Vehicles!$C$10)*Fuel_Specs!$B$13+Vehicles!$C$10*Fuel_Specs!$B$27)*(Petroleum!B221*Petroleum!$F$218+Petroleum!$F221)+Vehicles!$C$10*Fuel_Specs!$B$27/((1-Vehicles!$C$28)*(1-Vehicles!$C$10)*Fuel_Specs!$B$11+Vehicles!$C$28*(1-Vehicles!$C$10)*Fuel_Specs!$B$13+Vehicles!$C$10*Fuel_Specs!$B$27)*(EtOH!$BI404*EtOH!$BJ$401+EtOH!$BJ404))/1000000*HLOOKUP($G$10,$Y$3:$AC$4,2,FALSE)/HLOOKUP($I$11,$Y$7:$AC$8,2,FALSE) -> 43959.73205 | O17: =((1-Vehicles!$C$27)*(1-Vehicles!$C$9)*Fuel_Specs!$B$11/((1-Vehicles!$C$27)*(1-Vehicles!$C$9)*Fuel_Specs!$B$11+Vehicles!$C$27*(1-Vehicles!$C$9)*Fuel_Specs!$B$13+Vehicles!$C$9*Fuel_Specs!$B$26)*(Petroleum!$B221*Petroleum!$D$218+Petroleum!$D221)+Vehicles!$C$27*(1-Vehicles!$C$9)*Fuel_Specs!$B$13/((1-Vehicles!$C$27)*(1-Vehicles!$C$9)*Fuel_Specs!$B$11+Vehicles!$C$27*(1-Vehicles!$C$9)*Fuel_Specs!$B$13+Vehicles!$C$9*Fuel_Specs!$B$26)*(Petroleum!B221*Petroleum!$F$218+Petroleum!$F221)+Vehicles!$C$9*Fuel_Specs!$B$26/((1-Vehicles!$C$27)*(1-Vehicles!$C$9)*Fuel_Specs!$B$11+Vehicles!$C$27*(1-Vehicles!$C$9)*Fuel_Specs!$B$13+Vehicles!$C$9*Fuel_Specs!$B$26)*(EtOH!BE404*EtOH!$BF$401+EtOH!$BF404))/1000000*HLOOKUP($G$10,$Y$3:$AC$4,2,FALSE)/HLOOKUP($I$11,$Y$7:$AC$8,2,FALSE) -> 382529.8231 | P17: =(EtOH!$BE404*EtOH!$BF$401+EtOH!$BF404)/1000000*HLOOKUP($G$10,$Y$3:$AC$4,2,FALSE)/HLOOKUP($I$11,$Y$7:$AC$8,2,FALSE) -> 491781.9644 | Q17: =((1-Vehicles!$C$29)*(1-Vehicles!$C$14)*Fuel_Specs!$B$11/((1-Vehicles!$C$29)*(1-Vehicles!$C$14)*Fuel_Specs!$B$11+Vehicles!$C$29*(1-Vehicles!$C$14)*Fuel_Specs!$B$13+Vehicles!$C$14*Fuel_Specs!$B$39)*(Petroleum!$B221*Petroleum!$D$218+Petroleum!$D221)+Vehicles!$C$29*(1-Vehicles!$C$14)*Fuel_Specs!$B$13/((1-Vehicles!$C$29)*(1-Vehicles!$C$14)*Fuel_Specs!$B$11+Vehicles!$C$29*(1-Vehicles!$C$14)*Fuel_Specs!$B$13+Vehicles!$C$14*Fuel_Specs!$B$39)*(Petroleum!B221*Petroleum!$F$218+Petroleum!$F221)+Vehicles!$C$14*Fuel_Specs!$B$39/((1-Vehicles!$C$29)*(1-Vehicles!$C$14)*Fuel_Specs!$B$11+Vehicles!$C$29*(1-Vehicles!$C$14)*Fuel_Specs!$B$13+Vehicles!$C$14*Fuel_Specs!$B$39)*(BioOil!$BQ317*BioOil!$BR$313+BioOil!$BR317))/1000000*HLOOKUP($G$10,$Y$3:$AC$4,2,FALSE)/HLOOKUP($I$11,$Y$7:$AC$8,2,FALSE) -> 130472.0746 | R17: =((1-Vehicles!$C$29)*(1-Vehicles!$C$14)*Fuel_Specs!$B$11/((1-Vehicles!$C$29)*(1-Vehicles!$C$14)*Fuel_Specs!$B$11+Vehicles!$C$29*(1-Vehicles!$C$14)*Fuel_Specs!$B$13+Vehicles!$C$14*Fuel_Specs!$B$39)*(Petroleum!$B221*Petroleum!$D$218+Petroleum!$D221)+Vehicles!$C$29*(1-Vehicles!$C$14)*Fuel_Specs!$B$13/((1-Vehicles!$C$29)*(1-Vehicles!$C$14)*Fuel_Specs!$B$11+Vehicles!$C$29*(1-Vehicles!$C$14)*Fuel_Specs!$B$13+Vehicles!$C$14*Fuel_Specs!$B$39)*(Petroleum!B221*Petroleum!$F$218+Petroleum!$F221)+Vehicles!$C$14*Fuel_Specs!$B$39/((1-Vehicles!$C$29)*(1-Vehicles!$C$14)*Fuel_Specs!$B$11+Vehicles!$C$29*(1-Vehicles!$C$14)*Fuel_Specs!$B$13+Vehicles!$C$14*Fuel_Specs!$B$39)*(Pyrolysis!$Z169*Pyrolysis!$AA$166+Pyrolysis!$AA169))/1000000*HLOOKUP($G$10,$Y$3:$AC$4,2,FALSE)/HLOOKUP($I$11,$Y$7:$AC$8,2,FALSE) -> 69392.87374 | S17: =AN17*(Vehicles!$C$21/Vehicles!$AN$53)/(Vehicles!$C$21*(1/Vehicles!$AN$53+1/Vehicles!$AO$53)+Vehicles!$C$22/Vehicles!$AP$53)+B17*(Vehicles!$C$21/Vehicles!$AO$53+Vehicles!$C$22/Vehicles!$AP$53)/(Vehicles!$C$21*(1/Vehicles!$AN$53+1/Vehicles!$AO$53)+Vehicles!$C$22/Vehicles!$AP$53) -> 234617.2326 | T17: =AN17*(Vehicles!$D$21/Vehicles!$AR$53)/(Vehicles!$D$21*(1/Vehicles!$AR$53+1/Vehicles!$AS$53)+Vehicles!$D$22/Vehicles!$AT$53)+C17*(Vehicles!$D$21/Vehicles!$AS$53+Vehicles!$D$22/Vehicles!$AT$53)/(Vehicles!$D$21*(1/Vehicles!$AR$53+1/Vehicles!$AS$53)+Vehicles!$D$22/Vehicles!$AT$53) -> 232188.5174 | U17: =AN17*(Vehicles!$F$21/Vehicles!$AZ$53)/(Vehicles!$F$21*(1/Vehicles!$AZ$53+1/Vehicles!$BA$53)+Vehicles!$F$22/Vehicles!$BB$53)+D17*(Vehicles!$F$21/Vehicles!$BA$53+Vehicles!$F$22/Vehicles!$BB$53)/(Vehicles!$F$21*(1/Vehicles!$AZ$53+1/Vehicles!$BA$53)+Vehicles!$F$22/Vehicles!$BB$53) -> 234614.2125 | V17: =AN17*(Vehicles!$G$21/Vehicles!$BD$53)/(Vehicles!$G$21*(1/Vehicles!$BD$53+1/Vehicles!$BE$53)+Vehicles!$G$22/Vehicles!$BF$53)+F17*(Vehicles!$G$21/Vehicles!$BE$53+Vehicles!$G$22/Vehicles!$BF$53)/(Vehicles!$G$21*(1/Vehicles!$BD$53+1/Vehicles!$BE$53)+Vehicles!$G$22/Vehicles!$BF$53) -> 218206.2947 | W17: =AN17*(Vehicles!$H$21/Vehicles!$BH$53)/(Vehicles!$H$21*(1/Vehicles!$BH$53+1/Vehicles!$BI$53)+Vehicles!$H$22/Vehicles!$BJ$53)+G17*(Vehicles!$H$21/Vehicles!$BI$53+Vehicles!$H$22/Vehicles!$BJ$53)/(Vehicles!$H$21*(1/Vehicles!$BH$53+1/Vehicles!$BI$53)+Vehicles!$H$22/Vehicles!$BJ$53) -> 195314.1978 | X17: =AN17*(Vehicles!$I$21/Vehicles!$BL$53)/(Vehicles!$I$21*(1/Vehicles!$BL$53+1/Vehicles!$BM$53)+Vehicles!$I$22/Vehicles!$BN$53)+H17*(Vehicles!$I$21/Vehicles!$BM$53+Vehicles!$I$22/Vehicles!$BN$53)/(Vehicles!$I$21*(1/Vehicles!$BL$53+1/Vehicles!$BM$53)+Vehicles!$I$22/Vehicles!$BN$53) -> 202891.6281 | Y17: =AN17*(Vehicles!$J$21/Vehicles!$BP$53)/(Vehicles!$J$21*(1/Vehicles!$BP$53+1/Vehicles!$BQ$53)+Vehicles!$J$22/Vehicles!$BR$53)+K17*(Vehicles!$J$21/Vehicles!$BQ$53+Vehicles!$J$22/Vehicles!$BR$53)/(Vehicles!$J$21*(1/Vehicles!$BP$53+1/Vehicles!$BQ$53)+Vehicles!$J$22/Vehicles!$BR$53) -> 182215.8785 | Z17: =AN17*(Vehicles!$K$21/Vehicles!$BT$53)/(Vehicles!$K$21*(1/Vehicles!$BT$53+1/Vehicles!$BU$53)+Vehicles!$K$22/Vehicles!$BV$53)+O17*(Vehicles!$K$21/Vehicles!$BU$53+Vehicles!$K$22/Vehicles!$BV$53)/(Vehicles!$K$21*(1/Vehicles!$BT$53+1/Vehicles!$BU$53)+Vehicles!$K$22/Vehicles!$BV$53) -> 480761.3712 | AA17: =AN17*(Vehicles!$L$21/Vehicles!$BX$53)/(Vehicles!$L$21*(1/Vehicles!$BX$53+1/Vehicles!$BY$53)+Vehicles!$L$22/Vehicles!$BZ$53)+AO17*(Vehicles!$L$21/Vehicles!$BY$53+Vehicles!$L$22/Vehicles!$BZ$53)/(Vehicles!$L$21*(1/Vehicles!$BX$53+1/Vehicles!$BY$53)+Vehicles!$L$22/Vehicles!$BZ$53) -> 326034.1462 | AB17: =AN17*(Vehicles!$L$21/Vehicles!$BX$53)/(Vehicles!$L$21*(1/Vehicles!$BX$53+1/Vehicles!$BY$53)+Vehicles!$L$22/Vehicles!$CA$53)+AP17*(Vehicles!$L$21/Vehicles!$BY$53+Vehicles!$L$22/Vehicles!$CA$53)/(Vehicles!$L$21*(1/Vehicles!$BX$53+1/Vehicles!$BY$53)+Vehicles!$L$22/Vehicles!$CA$53) -> 654526.4998 | AC17: =('MeOH&FTD'!$X135*'MeOH&FTD'!$Y$132+'MeOH&FTD'!$Y135)/1000000*HLOOKUP($G$10,$Y$3:$AC$4,2,FALSE)/HLOOKUP($I$11,$Y$7:$AC$8,2,FALSE) -> -5962.050193 | AD17: =((1-Vehicles!$C$30)*(1-Vehicles!$C$11)*Fuel_Specs!$B$15/((1-Vehicles!$C$30)*(1-Vehicles!$C$11)*Fuel_Specs!$B$15+Vehicles!$C$30*(1-Vehicles!$C$11)*Fuel_Specs!$B$18+Vehicles!$C$11*Fuel_Specs!$B$35)*(Petroleum!B221*Petroleum!$J$218+Petroleum!$J221)+Vehicles!$C$30*(1-Vehicles!$C$11)*Fuel_Specs!$B$18/((1-Vehicles!$C$30)*(1-Vehicles!$C$11)*Fuel_Specs!$B$15+Vehicles!$C$30*(1-Vehicles!$C$11)*Fuel_Specs!$B$18+Vehicles!$C$11*Fuel_Specs!$B$35)*(Petroleum!B221*Petroleum!$K$218+Petroleum!$K221)+Vehicles!$C$11*Fuel_Specs!$B$35/((1-Vehicles!$C$30)*(1-Vehicles!$C$11)*Fuel_Specs!$B$15+Vehicles!$C$30*(1-Vehicles!$C$11)*Fuel_Specs!$B$18+Vehicles!$C$11*Fuel_Specs!$B$35)*('MeOH&FTD'!$AL135*'MeOH&FTD'!$AM$132+'MeOH&FTD'!$AM135))/1000000*HLOOKUP($G$10,$Y$3:$AC$4,2,FALSE)/HLOOKUP($I$11,$Y$7:$AC$8,2,FALSE) -> -67549.79608 | AE17: =((1-Vehicles!$C$31)*(1-Vehicles!$C$12)*Fuel_Specs!$B$15/((1-Vehicles!$C$31)*(1-Vehicles!$C$12)*Fuel_Specs!$B$15+Vehicles!$C$31*(1-Vehicles!$C$12)*Fuel_Specs!$B$18+Vehicles!$C$12*Fuel_Specs!$B$34)*(Petroleum!B221*Petroleum!$J$218+Petroleum!$J221)+Vehicles!$C$31*(1-Vehicles!$C$12)*Fuel_Specs!$B$18/((1-Vehicles!$C$31)*(1-Vehicles!$C$12)*Fuel_Specs!$B$15+Vehicles!$C$31*(1-Vehicles!$C$12)*Fuel_Specs!$B$18+Vehicles!$C$12*Fuel_Specs!$B$34)*(Petroleum!B221*Petroleum!$K$218+Petroleum!$K221)+Vehicles!$C$12*Fuel_Specs!$B$34/((1-Vehicles!$C$31)*(1-Vehicles!$C$12)*Fuel_Specs!$B$15+Vehicles!$C$31*(1-Vehicles!$C$12)*Fuel_Specs!$B$18+Vehicles!$C$12*Fuel_Specs!$B$34)*(BioOil!$Y317*BioOil!$Z$313+BioOil!$Z317))/1000000*HLOOKUP($G$10,$Y$3:$AC$4,2,FALSE)/HLOOKUP($I$11,$Y$7:$AC$8,2,FALSE) -> 33280.97973 | AF17: =((1-Vehicles!$C$32)*(1-Vehicles!$C$13)*Fuel_Specs!$B$15/((1-Vehicles!$C$32)*(1-Vehicles!$C$13)*Fuel_Specs!$B$15+Vehicles!$C$32*(1-Vehicles!$C$13)*Fuel_Specs!$B$18+Vehicles!$C$13*IF(Inputs!$E$499=1,IF(Inputs!$E$499=1,Fuel_Specs!$B$36,IF(Inputs!$E$499=3,Fuel_Specs!$B$38,Fuel_Specs!$B$37)),Fuel_Specs!$B$37))*(Petroleum!B221*Petroleum!$J$218+Petroleum!$J221)+Vehicles!$C$32*(1-Vehicles!$C$13)*Fuel_Specs!$B$18/((1-Vehicles!$C$32)*(1-Vehicles!$C$13)*Fuel_Specs!$B$15+Vehicles!$C$32*(1-Vehicles!$C$13)*Fuel_Specs!$B$18+Vehicles!$C$13*IF(Inputs!$E$499=1,IF(Inputs!$E$499=1,Fuel_Specs!$B$36,IF(Inputs!$E$499=3,Fuel_Specs!$B$38,Fuel_Specs!$B$37)),Fuel_Specs!$B$37))*(Petroleum!B221*Petroleum!$K$218+Petroleum!$K221)+Vehicles!$C$13*IF(Inputs!$E$499=1,IF(Inputs!$E$499=1,Fuel_Specs!$B$36,IF(Inputs!$E$499=3,Fuel_Specs!$B$38,Fuel_Specs!$B$37)),Fuel_Specs!$B$37)/((1-Vehicles!$C$32)*(1-Vehicles!$C$13)*Fuel_Specs!$B$15+Vehicles!$C$32*(1-Vehicles!$C$13)*Fuel_Specs!$B$18+Vehicles!$C$13*IF(Inputs!$E$499=1,IF(Inputs!$E$499=1,Fuel_Specs!$B$36,IF(Inputs!$E$499=3,Fuel_Specs!$B$38,Fuel_Specs!$B$37)),Fuel_Specs!$B$37))*(BioOil!$BE317*BioOil!$BF$313+BioOil!$BF317))/1000000*HLOOKUP($G$10,$Y$3:$AC$4,2,FALSE)/HLOOKUP($I$11,$Y$7:$AC$8,2,FALSE) -> 16727.46891 | AG17: =((1-Vehicles!$C$32)*(1-Vehicles!$C$13)*Fuel_Specs!$B$15/((1-Vehicles!$C$32)*(1-Vehicles!$C$13)*Fuel_Specs!$B$15+Vehicles!$C$32*(1-Vehicles!$C$13)*Fuel_Specs!$B$18+Vehicles!$C$13*IF(Inputs!$E$499=1,Fuel_Specs!$B$36,Fuel_Specs!$B$37))*(Petroleum!B221*Petroleum!$J$218+Petroleum!$J221)+Vehicles!$C$32*(1-Vehicles!$C$13)*Fuel_Specs!$B$18/((1-Vehicles!$C$32)*(1-Vehicles!$C$13)*Fuel_Specs!$B$15+Vehicles!$C$32*(1-Vehicles!$C$13)*Fuel_Specs!$B$18+Vehicles!$C$13*IF(Inputs!$E$499=1,Fuel_Specs!$B$36,Fuel_Specs!$B$37))*(Petroleum!B221*Petroleum!$K$218+Petroleum!$K221)+Vehicles!$C$13*IF(Inputs!$E$499=1,Fuel_Specs!$B$36,Fuel_Specs!$B$37)/((1-Vehicles!$C$32)*(1-Vehicles!$C$13)*Fuel_Specs!$B$15+Vehicles!$C$32*(1-Vehicles!$C$13)*Fuel_Specs!$B$18+Vehicles!$C$13*IF(Inputs!$E$499=1,Fuel_Specs!$B$36,Fuel_Specs!$B$37))*(Pyrolysis!$AB169*Pyrolysis!$AC$166+Pyrolysis!$AC169))/1000000*HLOOKUP($G$10,$Y$3:$AC$4,2,FALSE)/HLOOKUP($I$11,$Y$7:$AC$8,2,FALSE) -> 64772.20888 | AH17: =(((1-Vehicles!$C$33)*(1-Vehicles!$C$15-Vehicles!$C$16)*Fuel_Specs!$B$15*(Petroleum!B221*Petroleum!$J$218+Petroleum!$J221)+Vehicles!$C$33*(1-Vehicles!$C$15-Vehicles!$C$16)*Fuel_Specs!$B$18*(Petroleum!B221*Petroleum!$K$218+Petroleum!$K221)+Vehicles!$C$15*Fuel_Specs!$B$26*(EtOH!BE404*EtOH!$BF$401+EtOH!$BF404)+Vehicles!$C$16*Fuel_Specs!$B$29*('E-D Additives'!$B51*'E-D Additives'!$B$48))/((1-Vehicles!$C$33)*(1-Vehicles!$C$15-Vehicles!$C$16)*Fuel_Specs!$B$15+Vehicles!$C$33*(1-Vehicles!$C$15-Vehicles!$C$16)*Fuel_Specs!$B$18+Vehicles!$C$15*Fuel_Specs!$B$26+Vehicles!$C$16*Fuel_Specs!$B$29))/1000000*HLOOKUP($G$10,$Y$3:$AC$4,2,FALSE)/HLOOKUP($I$11,$Y$7:$AC$8,2,FALSE) -> 52986.49492 | AI17: =AN17*(Vehicles!$M$21/Vehicles!$CI$53)/(Vehicles!$M$21*(1/Vehicles!$CI$53+1/Vehicles!$CJ$53)+Vehicles!$M$22/Vehicles!$CK$53)+E17*(Vehicles!$M$21/Vehicles!$CJ$53+Vehicles!$M$22/Vehicles!$CK$53)/(Vehicles!$M$21*(1/Vehicles!$CI$53+1/Vehicles!$CJ$53)+Vehicles!$M$22/Vehicles!$CK$53) -> 216768.3001 | AJ17: =AN17*(Vehicles!$N$21/Vehicles!$CM$53)/(Vehicles!$N$21*(1/Vehicles!$CM$53+1/Vehicles!$CN$53)+Vehicles!$N$22/Vehicles!$CO$53)+AC17*(Vehicles!$N$21/Vehicles!$CN$53+Vehicles!$N$22/Vehicles!$CO$53)/(Vehicles!$N$21*(1/Vehicles!$CM$53+1/Vehicles!$CN$53)+Vehicles!$N$22/Vehicles!$CO$53) -> 194681.0418 | AK17: =AN17*(Vehicles!$O$21/Vehicles!$CQ$53)/(Vehicles!$O$21*(1/Vehicles!$CQ$53+1/Vehicles!$CR$53)+Vehicles!$O$22/Vehicles!$CS$53)+AD17*(Vehicles!$O$21/Vehicles!$CR$53+Vehicles!$O$22/Vehicles!$CS$53)/(Vehicles!$O$21*(1/Vehicles!$CQ$53+1/Vehicles!$CR$53)+Vehicles!$O$22/Vehicles!$CS$53) -> 147903.1777 | AL17: =AN17*(Vehicles!$P$21/Vehicles!$CU$53)/(Vehicles!$P$21*(1/Vehicles!$CU$53+1/Vehicles!$CV$53)+Vehicles!$P$22/Vehicles!$CW$53)+AE17*(Vehicles!$P$21/Vehicles!$CV$53+Vehicles!$P$22/Vehicles!$CW$53)/(Vehicles!$P$21*(1/Vehicles!$CU$53+1/Vehicles!$CV$53)+Vehicles!$P$22/Vehicles!$CW$53) -> 224487.379 | AM17: =AN17*(Vehicles!$R$21/Vehicles!$DC$53)/(Vehicles!$R$21*(1/Vehicles!$DC$53+1/Vehicles!$DD$53)+Vehicles!$R$22/Vehicles!$DE$53)+AH17*(Vehicles!$R$21/Vehicles!$DD$53+Vehicles!$R$22/Vehicles!$DE$53)/(Vehicles!$R$21*(1/Vehicles!$DC$53+1/Vehicles!$DD$53)+Vehicles!$R$22/Vehicles!$DE$53) -> 239454.3484 | AN17: =(Electric!$G173+Electric!$F173-1000000*(Electric!$F173+Electric!$G173)/(Electric!$F$171+Electric!$G$171))/1000000*HLOOKUP($G$10,$Y$3:$AC$4,2,FALSE)/HLOOKUP($I$11,$Y$7:$AC$8,2,FALSE) -> 828423.7973 | AO17: =((Hydrogen!$Z150*Hydrogen!$AA$147+Hydrogen!$AA150)-1000000*(Hydrogen!$K$7+Hydrogen!$C$7+Hydrogen!$D$7+Hydrogen!$E$7))/1000000*HLOOKUP($G$10,$Y$3:$AC$4,2,FALSE)/HLOOKUP($I$11,$Y$7:$AC$8,2,FALSE) -> 161668.5082 | AP17: =((Hydrogen!$AX150*Hydrogen!$AY$147+Hydrogen!$AY150)-1000000*(Hydrogen!$K$8+Hydrogen!$C$8+Hydrogen!$D$8+Hydrogen!$E$8))/1000000*HLOOKUP($G$10,$Y$3:$AC$4,2,FALSE)/HLOOKUP($I$11,$Y$7:$AC$8,2,FALSE) -> 597632.9308 | AQ17: =AN17*(Vehicles!$S$21/Vehicles!$DS$53)/(Vehicles!$S$21*(1/Vehicles!$DS$53+1/Vehicles!$DT$53)+Vehicles!$S$22/Vehicles!$DU$53)+AO17*(Vehicles!$S$21/Vehicles!$DT$53+Vehicles!$S$22/Vehicles!$DU$53)/(Vehicles!$S$21*(1/Vehicles!$DS$53+1/Vehicles!$DT$53)+Vehicles!$S$22/Vehicles!$DU$53) -> 365209.3642 | AR17: =AN17*(Vehicles!$S$21/Vehicles!$DS$53)/(Vehicles!$S$21*(1/Vehicles!$DS$53+1/Vehicles!$DT$53)+Vehicles!$S$22/Vehicles!$DU$53)+AP17*(Vehicles!$S$21/Vehicles!$DT$53+Vehicles!$S$22/Vehicles!$DU$53)/(Vehicles!$S$21*(1/Vehicles!$DS$53+1/Vehicles!$DT$53)+Vehicles!$S$22/Vehicles!$DU$53) -> 668086.6209
A18: Natural Gas | B18: =B16-B17-B19 -> 146161.07 | C18: 227239.1741 | D18: 146140.8611 | E18: 159263.6212 | F18: 133720.3146 | G18: 233266.7399 | H18: 113586.9163 | I18: 909891.9665 | J18: 518445.2816 | K18: 561419.6523 | L18: 660618.7622 | M18: 408521.4772 | N18: 602070.6659 | O18: 408521.4772 | P18: 496147.5587 | Q18: 50159.65303 | R18: 262865.652 | S18: 198990.2818 | T18: 261271.1224 | U18: 198974.7582 | V18: 189433.809 | W18: 265901.2487 | X18: 173968.1666 | Y18: 517974.7205 | Z18: 400922.6848 | AA18: 546038.4391 | AB18: 713414.2973 | AC18: 568226.049 | AD18: 911280.9873 | AE18: 157069.7444 | AF18: 38484.20191 | AG18: =((1-Vehicles!$C$32)*(1-Vehicles!$C$13)*Fuel_Specs!$B$15/((1-Vehicles!$C$32)*(1-Vehicles!$C$13)*Fuel_Specs!$B$15+Vehicles!$C$32*(1-Vehicles!$C$13)*Fuel_Specs!$B$18+Vehicles!$C$13*IF(Inputs!$E$499=1,Fuel_Specs!$B$36,Fuel_Specs!$B$37))*(Petroleum!B222*Petroleum!$J$218+Petroleum!$J222)+Vehicles!$C$32*(1-Vehicles!$C$13)*Fuel_Specs!$B$18/((1-Vehicles!$C$32)*(1-Vehicles!$C$13)*Fuel_Specs!$B$15+Vehicles!$C$32*(1-Vehicles!$C$13)*Fuel_Specs!$B$18+Vehicles!$C$13*IF(Inputs!$E$499=1,Fuel_Specs!$B$36,Fuel_Specs!$B$37))*(Petroleum!B222*Petroleum!$K$218+Petroleum!$K222)+Vehicles!$C$13*IF(Inputs!$E$499=1,Fuel_Specs!$B$36,Fuel_Specs!$B$37)/((1-Vehicles!$C$32)*(1-Vehicles!$C$13)*Fuel_Specs!$B$15+Vehicles!$C$32*(1-Vehicles!$C$13)*Fuel_Specs!$B$18+Vehicles!$C$13*IF(Inputs!$E$499=1,Fuel_Specs!$B$36,Fuel_Specs!$B$37))*(Pyrolysis!$AB170*Pyrolysis!$AC$166+Pyrolysis!$AC170))/1000000*HLOOKUP($G$10,$Y$3:$AC$4,2,FALSE)/HLOOKUP($I$11,$Y$7:$AC$8,2,FALSE) -> 275743.6852 | AH18: 181732.7953 | AI18: 210907.8058 | AJ18: 521527.8585 | AK18: 782089.0635 | AL18: 209241.4861 | AM18: 227973.8626 | AN18: 374028.9355 | AO18: 602314.383 | AP18: 824450.2062 | AQ18: 532625.5239 | AR18: 686949.7882
A19: Petroleum | B19: =(Inputs!$E$1056*(Petroleum!$B223*Petroleum!$F$218+Petroleum!$F223)+(1-Inputs!$E$1056)*(Petroleum!$B223*Petroleum!$D$218+Petroleum!$D223))/1000000*HLOOKUP($G$10,$Y$3:$AC$4,2,FALSE)/HLOOKUP($I$11,$Y$7:$AC$8,2,FALSE) -> 85331.74007 | C19: =(Petroleum!$C223*Petroleum!$G$218+Petroleum!$G223)/1000000*HLOOKUP($G$10,$Y$3:$AC$4,2,FALSE)/HLOOKUP($I$11,$Y$7:$AC$8,2,FALSE) -> 61309.26351 | D19: =((1-Vehicles!$C$26)*(1-Vehicles!$C$7)*Fuel_Specs!$B$11/((1-Vehicles!$C$26)*(1-Vehicles!$C$7)*Fuel_Specs!$B$11+Vehicles!$C$26*(1-Vehicles!$C$7)*Fuel_Specs!$B$13+Vehicles!$C$7*Fuel_Specs!$B$26)*(Petroleum!$B223*Petroleum!$D$218+Petroleum!$D223)+Vehicles!$C$26*(1-Vehicles!$C$7)*Fuel_Specs!$B$13/((1-Vehicles!$C$26)*(1-Vehicles!$C$7)*Fuel_Specs!$B$11+Vehicles!$C$26*(1-Vehicles!$C$7)*Fuel_Specs!$B$13+Vehicles!$C$7*Fuel_Specs!$B$26)*(Petroleum!B223*Petroleum!$F$218+Petroleum!$F223)+Vehicles!$C$7*Fuel_Specs!$B$26/((1-Vehicles!$C$26)*(1-Vehicles!$C$7)*Fuel_Specs!$B$11+Vehicles!$C$26*(1-Vehicles!$C$7)*Fuel_Specs!$B$13+Vehicles!$C$7*Fuel_Specs!$B$26)*(EtOH!BE406*EtOH!$BF$401+EtOH!$BF406))/1000000*HLOOKUP($G$10,$Y$3:$AC$4,2,FALSE)/HLOOKUP($I$11,$Y$7:$AC$8,2,FALSE) -> 85150.84668 | E19: =(Inputs!$E$88*(IF(Inputs!F$92=1,Petroleum!$B223,Petroleum!$C223)*Petroleum!$K$218+Petroleum!$K223)+(1-Inputs!$E$88)*(IF(Inputs!F$91=1,Petroleum!$B223,Petroleum!$C223)*Petroleum!$J$218+Petroleum!$J223))/1000000*HLOOKUP($G$10,$Y$3:$AC$4,2,FALSE)/HLOOKUP($I$11,$Y$7:$AC$8,2,FALSE) -> 69007.31543 | F19: =(NG!$H85*NG!$I$80+NG!$I85)/1000000*HLOOKUP($G$10,$Y$3:$AC$4,2,FALSE)/HLOOKUP($I$11,$Y$7:$AC$8,2,FALSE) -> 6087.975266 | G19: =(NG!$P85*NG!$Q$80+NG!$Q85)/1000000*HLOOKUP($G$10,$Y$3:$AC$4,2,FALSE)/HLOOKUP($I$11,$Y$7:$AC$8,2,FALSE) -> 13332.48318 | H19: =(NG!$V85*NG!$W$80+NG!$W85)/1000000*HLOOKUP($G$10,$Y$3:$AC$4,2,FALSE)/HLOOKUP($I$11,$Y$7:$AC$8,2,FALSE) -> 35849.19538 | I19: =('MeOH&FTD'!AV137*'MeOH&FTD'!AW$132+'MeOH&FTD'!AW137)/1000000*HLOOKUP($G$10,$Y$3:$AC$4,2,FALSE)/HLOOKUP($I$11,$Y$7:$AC$8,2,FALSE) -> 7358.490149 | J19: =((1-Vehicles!$C$25)*(1-Vehicles!$C$5)*Fuel_Specs!$B$11/((1-Vehicles!$C$25)*(1-Vehicles!$C$5)*Fuel_Specs!$B$11+Vehicles!$C$25*(1-Vehicles!$C$5)*Fuel_Specs!$B$13+Vehicles!$C$5*Fuel_Specs!$B$25)*(Petroleum!$B223*Petroleum!$D$218+Petroleum!$D223)+Vehicles!$C$25*(1-Vehicles!$C$5)*Fuel_Specs!$B$13/((1-Vehicles!$C$25)*(1-Vehicles!$C$5)*Fuel_Specs!$B$11+Vehicles!$C$25*(1-Vehicles!$C$5)*Fuel_Specs!$B$13+Vehicles!$C$5*Fuel_Specs!$B$25)*(Petroleum!B223*Petroleum!$F$218+Petroleum!$F223)+Vehicles!$C$5*Fuel_Specs!$B$25/((1-Vehicles!$C$25)*(1-Vehicles!$C$5)*Fuel_Specs!$B$11+Vehicles!$C$25*(1-Vehicles!$C$5)*Fuel_Specs!$B$13+Vehicles!$C$5*Fuel_Specs!$B$25)*('MeOH&FTD'!$L137*'MeOH&FTD'!$M$132+'MeOH&FTD'!$M137))/1000000*HLOOKUP($G$10,$Y$3:$AC$4,2,FALSE)/HLOOKUP($I$11,$Y$7:$AC$8,2,FALSE) -> 35858.65542 | K19: =((1-Vehicles!$C$25)*(1-Vehicles!$C$6)*Fuel_Specs!$B$11/((1-Vehicles!$C$25)*(1-Vehicles!$C$6)*Fuel_Specs!$B$11+Vehicles!$C$25*(1-Vehicles!$C$6)*Fuel_Specs!$B$13+Vehicles!$C$6*Fuel_Specs!$B$25)*(Petroleum!$B223*Petroleum!$D$218+Petroleum!$D223)+Vehicles!$C$25*(1-Vehicles!$C$6)*Fuel_Specs!$B$13/((1-Vehicles!$C$25)*(1-Vehicles!$C$6)*Fuel_Specs!$B$11+Vehicles!$C$25*(1-Vehicles!$C$6)*Fuel_Specs!$B$13+Vehicles!$C$6*Fuel_Specs!$B$25)*(Petroleum!B223*Petroleum!$F$218+Petroleum!$F223)+Vehicles!$C$6*Fuel_Specs!$B$25/((1-Vehicles!$C$25)*(1-Vehicles!$C$6)*Fuel_Specs!$B$11+Vehicles!$C$25*(1-Vehicles!$C$6)*Fuel_Specs!$B$13+Vehicles!$C$6*Fuel_Specs!$B$25)*('MeOH&FTD'!$L137*'MeOH&FTD'!$M$132+'MeOH&FTD'!$M137))/1000000*HLOOKUP($G$10,$Y$3:$AC$4,2,FALSE)/HLOOKUP($I$11,$Y$7:$AC$8,2,FALSE) -> 30817.5064 | L19: =('MeOH&FTD'!$L137*'MeOH&FTD'!$M$132+'MeOH&FTD'!$M137)/1000000*HLOOKUP($G$10,$Y$3:$AC$4,2,FALSE)/HLOOKUP($I$11,$Y$7:$AC$8,2,FALSE) -> 19180.86142 | M19: =((1-Vehicles!$C$27)*(1-Vehicles!$C$8)*Fuel_Specs!$B$11/((1-Vehicles!$C$27)*(1-Vehicles!$C$8)*Fuel_Specs!$B$11+Vehicles!$C$27*(1-Vehicles!$C$8)*Fuel_Specs!$B$13+Vehicles!$C$8*Fuel_Specs!$B$26)*(Petroleum!$B223*Petroleum!$D$218+Petroleum!$D223)+Vehicles!$C$27*(1-Vehicles!$C$8)*Fuel_Specs!$B$13/((1-Vehicles!$C$27)*(1-Vehicles!$C$8)*Fuel_Specs!$B$11+Vehicles!$C$27*(1-Vehicles!$C$8)*Fuel_Specs!$B$13+Vehicles!$C$8*Fuel_Specs!$B$26)*(Petroleum!B223*Petroleum!$F$218+Petroleum!$F223)+Vehicles!$C$8*Fuel_Specs!$B$26/((1-Vehicles!$C$27)*(1-Vehicles!$C$8)*Fuel_Specs!$B$11+Vehicles!$C$27*(1-Vehicles!$C$8)*Fuel_Specs!$B$13+Vehicles!$C$8*Fuel_Specs!$B$26)*(EtOH!BE406*EtOH!$BF$401+EtOH!$BF406))/1000000*HLOOKUP($G$10,$Y$3:$AC$4,2,FALSE)/HLOOKUP($I$11,$Y$7:$AC$8,2,FALSE) -> 113333.604 | N19: =((1-Vehicles!$C$28)*(1-Vehicles!$C$10)*Fuel_Specs!$B$11/((1-Vehicles!$C$28)*(1-Vehicles!$C$10)*Fuel_Specs!$B$11+Vehicles!$C$28*(1-Vehicles!$C$10)*Fuel_Specs!$B$13+Vehicles!$C$10*Fuel_Specs!$B$27)*(Petroleum!$B223*Petroleum!$D$218+Petroleum!$D223)+Vehicles!$C$28*(1-Vehicles!$C$10)*Fuel_Specs!$B$13/((1-Vehicles!$C$28)*(1-Vehicles!$C$10)*Fuel_Specs!$B$11+Vehicles!$C$28*(1-Vehicles!$C$10)*Fuel_Specs!$B$13+Vehicles!$C$10*Fuel_Specs!$B$27)*(Petroleum!B223*Petroleum!$F$218+Petroleum!$F223)+Vehicles!$C$10*Fuel_Specs!$B$27/((1-Vehicles!$C$28)*(1-Vehicles!$C$10)*Fuel_Specs!$B$11+Vehicles!$C$28*(1-Vehicles!$C$10)*Fuel_Specs!$B$13+Vehicles!$C$10*Fuel_Specs!$B$27)*(EtOH!$BI406*EtOH!$BJ$401+EtOH!$BJ406))/1000000*HLOOKUP($G$10,$Y$3:$AC$4,2,FALSE)/HLOOKUP($I$11,$Y$7:$AC$8,2,FALSE) -> 61457.07235 | O19: =((1-Vehicles!$C$27)*(1-Vehicles!$C$9)*Fuel_Specs!$B$11/((1-Vehicles!$C$27)*(1-Vehicles!$C$9)*Fuel_Specs!$B$11+Vehicles!$C$27*(1-Vehicles!$C$9)*Fuel_Specs!$B$13+Vehicles!$C$9*Fuel_Specs!$B$26)*(Petroleum!$B223*Petroleum!$D$218+Petroleum!$D223)+Vehicles!$C$27*(1-Vehicles!$C$9)*Fuel_Specs!$B$13/((1-Vehicles!$C$27)*(1-Vehicles!$C$9)*Fuel_Specs!$B$11+Vehicles!$C$27*(1-Vehicles!$C$9)*Fuel_Specs!$B$13+Vehicles!$C$9*Fuel_Specs!$B$26)*(Petroleum!B223*Petroleum!$F$218+Petroleum!$F223)+Vehicles!$C$9*Fuel_Specs!$B$26/((1-Vehicles!$C$27)*(1-Vehicles!$C$9)*Fuel_Specs!$B$11+Vehicles!$C$27*(1-Vehicles!$C$9)*Fuel_Specs!$B$13+Vehicles!$C$9*Fuel_Specs!$B$26)*(EtOH!BE406*EtOH!$BF$401+EtOH!$BF406))/1000000*HLOOKUP($G$10,$Y$3:$AC$4,2,FALSE)/HLOOKUP($I$11,$Y$7:$AC$8,2,FALSE) -> 113333.604 | P19: =(EtOH!$BE406*EtOH!$BF$401+EtOH!$BF406)/1000000*HLOOKUP($G$10,$Y$3:$AC$4,2,FALSE)/HLOOKUP($I$11,$Y$7:$AC$8,2,FALSE) -> 122745.6735 | Q19: =((1-Vehicles!$C$29)*(1-Vehicles!$C$14)*Fuel_Specs!$B$11/((1-Vehicles!$C$29)*(1-Vehicles!$C$14)*Fuel_Specs!$B$11+Vehicles!$C$29*(1-Vehicles!$C$14)*Fuel_Specs!$B$13+Vehicles!$C$14*Fuel_Specs!$B$39)*(Petroleum!$B223*Petroleum!$D$218+Petroleum!$D223)+Vehicles!$C$29*(1-Vehicles!$C$14)*Fuel_Specs!$B$13/((1-Vehicles!$C$29)*(1-Vehicles!$C$14)*Fuel_Specs!$B$11+Vehicles!$C$29*(1-Vehicles!$C$14)*Fuel_Specs!$B$13+Vehicles!$C$14*Fuel_Specs!$B$39)*(Petroleum!B223*Petroleum!$F$218+Petroleum!$F223)+Vehicles!$C$14*Fuel_Specs!$B$39/((1-Vehicles!$C$29)*(1-Vehicles!$C$14)*Fuel_Specs!$B$11+Vehicles!$C$29*(1-Vehicles!$C$14)*Fuel_Specs!$B$13+Vehicles!$C$14*Fuel_Specs!$B$39)*(BioOil!$BQ319*BioOil!$BR$313+BioOil!$BR319))/1000000*HLOOKUP($G$10,$Y$3:$AC$4,2,FALSE)/HLOOKUP($I$11,$Y$7:$AC$8,2,FALSE) -> 85030.92293 | R19: =((1-Vehicles!$C$29)*(1-Vehicles!$C$14)*Fuel_Specs!$B$11/((1-Vehicles!$C$29)*(1-Vehicles!$C$14)*Fuel_Specs!$B$11+Vehicles!$C$29*(1-Vehicles!$C$14)*Fuel_Specs!$B$13+Vehicles!$C$14*Fuel_Specs!$B$39)*(Petroleum!$B223*Petroleum!$D$218+Petroleum!$D223)+Vehicles!$C$29*(1-Vehicles!$C$14)*Fuel_Specs!$B$13/((1-Vehicles!$C$29)*(1-Vehicles!$C$14)*Fuel_Specs!$B$11+Vehicles!$C$29*(1-Vehicles!$C$14)*Fuel_Specs!$B$13+Vehicles!$C$14*Fuel_Specs!$B$39)*(Petroleum!B223*Petroleum!$F$218+Petroleum!$F223)+Vehicles!$C$14*Fuel_Specs!$B$39/((1-Vehicles!$C$29)*(1-Vehicles!$C$14)*Fuel_Specs!$B$11+Vehicles!$C$29*(1-Vehicles!$C$14)*Fuel_Specs!$B$13+Vehicles!$C$14*Fuel_Specs!$B$39)*(Pyrolysis!$Z171*Pyrolysis!$AA$166+Pyrolysis!$AA171))/1000000*HLOOKUP($G$10,$Y$3:$AC$4,2,FALSE)/HLOOKUP($I$11,$Y$7:$AC$8,2,FALSE) -> 92075.41428 | S19: =AN19*(Vehicles!$C$21/Vehicles!$AN$53)/(Vehicles!$C$21*(1/Vehicles!$AN$53+1/Vehicles!$AO$53)+Vehicles!$C$22/Vehicles!$AP$53)+B19*(Vehicles!$C$21/Vehicles!$AO$53+Vehicles!$C$22/Vehicles!$AP$53)/(Vehicles!$C$21*(1/Vehicles!$AN$53+1/Vehicles!$AO$53)+Vehicles!$C$22/Vehicles!$AP$53) -> 75963.49295 | T19: =AN19*(Vehicles!$D$21/Vehicles!$AR$53)/(Vehicles!$D$21*(1/Vehicles!$AR$53+1/Vehicles!$AS$53)+Vehicles!$D$22/Vehicles!$AT$53)+C19*(Vehicles!$D$21/Vehicles!$AS$53+Vehicles!$D$22/Vehicles!$AT$53)/(Vehicles!$D$21*(1/Vehicles!$AR$53+1/Vehicles!$AS$53)+Vehicles!$D$22/Vehicles!$AT$53) -> 57510.42172 | U19: =AN19*(Vehicles!$F$21/Vehicles!$AZ$53)/(Vehicles!$F$21*(1/Vehicles!$AZ$53+1/Vehicles!$BA$53)+Vehicles!$F$22/Vehicles!$BB$53)+D19*(Vehicles!$F$21/Vehicles!$BA$53+Vehicles!$F$22/Vehicles!$BB$53)/(Vehicles!$F$21*(1/Vehicles!$AZ$53+1/Vehicles!$BA$53)+Vehicles!$F$22/Vehicles!$BB$53) -> 75824.53814 | V19: =AN19*(Vehicles!$G$21/Vehicles!$BD$53)/(Vehicles!$G$21*(1/Vehicles!$BD$53+1/Vehicles!$BE$53)+Vehicles!$G$22/Vehicles!$BF$53)+F19*(Vehicles!$G$21/Vehicles!$BE$53+Vehicles!$G$22/Vehicles!$BF$53)/(Vehicles!$G$21*(1/Vehicles!$BD$53+1/Vehicles!$BE$53)+Vehicles!$G$22/Vehicles!$BF$53) -> 15091.71593 | W19: =AN19*(Vehicles!$H$21/Vehicles!$BH$53)/(Vehicles!$H$21*(1/Vehicles!$BH$53+1/Vehicles!$BI$53)+Vehicles!$H$22/Vehicles!$BJ$53)+G19*(Vehicles!$H$21/Vehicles!$BI$53+Vehicles!$H$22/Vehicles!$BJ$53)/(Vehicles!$H$21*(1/Vehicles!$BH$53+1/Vehicles!$BI$53)+Vehicles!$H$22/Vehicles!$BJ$53) -> 20656.64676 | X19: =AN19*(Vehicles!$I$21/Vehicles!$BL$53)/(Vehicles!$I$21*(1/Vehicles!$BL$53+1/Vehicles!$BM$53)+Vehicles!$I$22/Vehicles!$BN$53)+H19*(Vehicles!$I$21/Vehicles!$BM$53+Vehicles!$I$22/Vehicles!$BN$53)/(Vehicles!$I$21*(1/Vehicles!$BL$53+1/Vehicles!$BM$53)+Vehicles!$I$22/Vehicles!$BN$53) -> 37953.0522 | Y19: =AN19*(Vehicles!$J$21/Vehicles!$BP$53)/(Vehicles!$J$21*(1/Vehicles!$BP$53+1/Vehicles!$BQ$53)+Vehicles!$J$22/Vehicles!$BR$53)+K19*(Vehicles!$J$21/Vehicles!$BQ$53+Vehicles!$J$22/Vehicles!$BR$53)/(Vehicles!$J$21*(1/Vehicles!$BP$53+1/Vehicles!$BQ$53)+Vehicles!$J$22/Vehicles!$BR$53) -> 34087.91719 | Z19: =AN19*(Vehicles!$K$21/Vehicles!$BT$53)/(Vehicles!$K$21*(1/Vehicles!$BT$53+1/Vehicles!$BU$53)+Vehicles!$K$22/Vehicles!$BV$53)+O19*(Vehicles!$K$21/Vehicles!$BU$53+Vehicles!$K$22/Vehicles!$BV$53)/(Vehicles!$K$21*(1/Vehicles!$BT$53+1/Vehicles!$BU$53)+Vehicles!$K$22/Vehicles!$BV$53) -> 98262.74269 | AA19: =AN19*(Vehicles!$L$21/Vehicles!$BX$53)/(Vehicles!$L$21*(1/Vehicles!$BX$53+1/Vehicles!$BY$53)+Vehicles!$L$22/Vehicles!$BZ$53)+AO19*(Vehicles!$L$21/Vehicles!$BY$53+Vehicles!$L$22/Vehicles!$BZ$53)/(Vehicles!$L$21*(1/Vehicles!$BX$53+1/Vehicles!$BY$53)+Vehicles!$L$22/Vehicles!$BZ$53) -> 22051.41129 | AB19: =AN19*(Vehicles!$L$21/Vehicles!$BX$53)/(Vehicles!$L$21*(1/Vehicles!$BX$53+1/Vehicles!$BY$53)+Vehicles!$L$22/Vehicles!$CA$53)+AP19*(Vehicles!$L$21/Vehicles!$BY$53+Vehicles!$L$22/Vehicles!$CA$53)/(Vehicles!$L$21*(1/Vehicles!$BX$53+1/Vehicles!$BY$53)+Vehicles!$L$22/Vehicles!$CA$53) -> 49538.39883 | AC19: =('MeOH&FTD'!$X137*'MeOH&FTD'!$Y$132+'MeOH&FTD'!$Y137)/1000000*HLOOKUP($G$10,$Y$3:$AC$4,2,FALSE)/HLOOKUP($I$11,$Y$7:$AC$8,2,FALSE) -> 13234.30131 | AD19: =((1-Vehicles!$C$30)*(1-Vehicles!$C$11)*Fuel_Specs!$B$15/((1-Vehicles!$C$30)*(1-Vehicles!$C$11)*Fuel_Specs!$B$15+Vehicles!$C$30*(1-Vehicles!$C$11)*Fuel_Specs!$B$18+Vehicles!$C$11*Fuel_Specs!$B$35)*(Petroleum!B223*Petroleum!$J$218+Petroleum!$J223)+Vehicles!$C$30*(1-Vehicles!$C$11)*Fuel_Specs!$B$18/((1-Vehicles!$C$30)*(1-Vehicles!$C$11)*Fuel_Specs!$B$15+Vehicles!$C$30*(1-Vehicles!$C$11)*Fuel_Specs!$B$18+Vehicles!$C$11*Fuel_Specs!$B$35)*(Petroleum!B223*Petroleum!$K$218+Petroleum!$K223)+Vehicles!$C$11*Fuel_Specs!$B$35/((1-Vehicles!$C$30)*(1-Vehicles!$C$11)*Fuel_Specs!$B$15+Vehicles!$C$30*(1-Vehicles!$C$11)*Fuel_Specs!$B$18+Vehicles!$C$11*Fuel_Specs!$B$35)*('MeOH&FTD'!$AL137*'MeOH&FTD'!$AM$132+'MeOH&FTD'!$AM137))/1000000*HLOOKUP($G$10,$Y$3:$AC$4,2,FALSE)/HLOOKUP($I$11,$Y$7:$AC$8,2,FALSE) -> 7460.27011 | AE19: =((1-Vehicles!$C$31)*(1-Vehicles!$C$12)*Fuel_Specs!$B$15/((1-Vehicles!$C$31)*(1-Vehicles!$C$12)*Fuel_Specs!$B$15+Vehicles!$C$31*(1-Vehicles!$C$12)*Fuel_Specs!$B$18+Vehicles!$C$12*Fuel_Specs!$B$34)*(Petroleum!B223*Petroleum!$J$218+Petroleum!$J223)+Vehicles!$C$31*(1-Vehicles!$C$12)*Fuel_Specs!$B$18/((1-Vehicles!$C$31)*(1-Vehicles!$C$12)*Fuel_Specs!$B$15+Vehicles!$C$31*(1-Vehicles!$C$12)*Fuel_Specs!$B$18+Vehicles!$C$12*Fuel_Specs!$B$34)*(Petroleum!B223*Petroleum!$K$218+Petroleum!$K223)+Vehicles!$C$12*Fuel_Specs!$B$34/((1-Vehicles!$C$31)*(1-Vehicles!$C$12)*Fuel_Specs!$B$15+Vehicles!$C$31*(1-Vehicles!$C$12)*Fuel_Specs!$B$18+Vehicles!$C$12*Fuel_Specs!$B$34)*(BioOil!$Y319*BioOil!$Z$313+BioOil!$Z319))/1000000*HLOOKUP($G$10,$Y$3:$AC$4,2,FALSE)/HLOOKUP($I$11,$Y$7:$AC$8,2,FALSE) -> 69015.81719 | AF19: =((1-Vehicles!$C$32)*(1-Vehicles!$C$13)*Fuel_Specs!$B$15/((1-Vehicles!$C$32)*(1-Vehicles!$C$13)*Fuel_Specs!$B$15+Vehicles!$C$32*(1-Vehicles!$C$13)*Fuel_Specs!$B$18+Vehicles!$C$13*IF(Inputs!$E$499=1,IF(Inputs!$E$499=1,Fuel_Specs!$B$36,IF(Inputs!$E$499=3,Fuel_Specs!$B$38,Fuel_Specs!$B$37)),Fuel_Specs!$B$37))*(Petroleum!B223*Petroleum!$J$218+Petroleum!$J223)+Vehicles!$C$32*(1-Vehicles!$C$13)*Fuel_Specs!$B$18/((1-Vehicles!$C$32)*(1-Vehicles!$C$13)*Fuel_Specs!$B$15+Vehicles!$C$32*(1-Vehicles!$C$13)*Fuel_Specs!$B$18+Vehicles!$C$13*IF(Inputs!$E$499=1,IF(Inputs!$E$499=1,Fuel_Specs!$B$36,IF(Inputs!$E$499=3,Fuel_Specs!$B$38,Fuel_Specs!$B$37)),Fuel_Specs!$B$37))*(Petroleum!B223*Petroleum!$K$218+Petroleum!$K223)+Vehicles!$C$13*IF(Inputs!$E$499=1,IF(Inputs!$E$499=1,Fuel_Specs!$B$36,IF(Inputs!$E$499=3,Fuel_Specs!$B$38,Fuel_Specs!$B$37)),Fuel_Specs!$B$37)/((1-Vehicles!$C$32)*(1-Vehicles!$C$13)*Fuel_Specs!$B$15+Vehicles!$C$32*(1-Vehicles!$C$13)*Fuel_Specs!$B$18+Vehicles!$C$13*IF(Inputs!$E$499=1,IF(Inputs!$E$499=1,Fuel_Specs!$B$36,IF(Inputs!$E$499=3,Fuel_Specs!$B$38,Fuel_Specs!$B$37)),Fuel_Specs!$B$37))*(BioOil!$BE319*BioOil!$BF$313+BioOil!$BF319))/1000000*HLOOKUP($G$10,$Y$3:$AC$4,2,FALSE)/HLOOKUP($I$11,$Y$7:$AC$8,2,FALSE) -> 39613.90338 | AG19: =((1-Vehicles!$C$32)*(1-Vehicles!$C$13)*Fuel_Specs!$B$15/((1-Vehicles!$C$32)*(1-Vehicles!$C$13)*Fuel_Specs!$B$15+Vehicles!$C$32*(1-Vehicles!$C$13)*Fuel_Specs!$B$18+Vehicles!$C$13*IF(Inputs!$E$499=1,Fuel_Specs!$B$36,Fuel_Specs!$B$37))*(Petroleum!B223*Petroleum!$J$218+Petroleum!$J223)+Vehicles!$C$32*(1-Vehicles!$C$13)*Fuel_Specs!$B$18/((1-Vehicles!$C$32)*(1-Vehicles!$C$13)*Fuel_Specs!$B$15+Vehicles!$C$32*(1-Vehicles!$C$13)*Fuel_Specs!$B$18+Vehicles!$C$13*IF(Inputs!$E$499=1,Fuel_Specs!$B$36,Fuel_Specs!$B$37))*(Petroleum!B223*Petroleum!$K$218+Petroleum!$K223)+Vehicles!$C$13*IF(Inputs!$E$499=1,Fuel_Specs!$B$36,Fuel_Specs!$B$37)/((1-Vehicles!$C$32)*(1-Vehicles!$C$13)*Fuel_Specs!$B$15+Vehicles!$C$32*(1-Vehicles!$C$13)*Fuel_Specs!$B$18+Vehicles!$C$13*IF(Inputs!$E$499=1,Fuel_Specs!$B$36,Fuel_Specs!$B$37))*(Pyrolysis!$AB171*Pyrolysis!$AC$166+Pyrolysis!$AC171))/1000000*HLOOKUP($G$10,$Y$3:$AC$4,2,FALSE)/HLOOKUP($I$11,$Y$7:$AC$8,2,FALSE) -> 84088.06771 | AH19: =(((1-Vehicles!$C$33)*(1-Vehicles!$C$15-Vehicles!$C$16)*Fuel_Specs!$B$15*(Petroleum!B223*Petroleum!$J$218+Petroleum!$J223)+Vehicles!$C$33*(1-Vehicles!$C$15-Vehicles!$C$16)*Fuel_Specs!$B$18*(Petroleum!B223*Petroleum!$K$218+Petroleum!$K223)+Vehicles!$C$15*Fuel_Specs!$B$26*(EtOH!BE406*EtOH!$BF$401+EtOH!$BF406)+Vehicles!$C$16*Fuel_Specs!$B$29*('E-D Additives'!$B53*'E-D Additives'!$B$48))/((1-Vehicles!$C$33)*(1-Vehicles!$C$15-Vehicles!$C$16)*Fuel_Specs!$B$15+Vehicles!$C$33*(1-Vehicles!$C$15-Vehicles!$C$16)*Fuel_Specs!$B$18+Vehicles!$C$15*Fuel_Specs!$B$26+Vehicles!$C$16*Fuel_Specs!$B$29))/1000000*HLOOKUP($G$10,$Y$3:$AC$4,2,FALSE)/HLOOKUP($I$11,$Y$7:$AC$8,2,FALSE) -> 71846.72252 | AI19: =AN19*(Vehicles!$M$21/Vehicles!$CI$53)/(Vehicles!$M$21*(1/Vehicles!$CI$53+1/Vehicles!$CJ$53)+Vehicles!$M$22/Vehicles!$CK$53)+E19*(Vehicles!$M$21/Vehicles!$CJ$53+Vehicles!$M$22/Vehicles!$CK$53)/(Vehicles!$M$21*(1/Vehicles!$CI$53+1/Vehicles!$CJ$53)+Vehicles!$M$22/Vehicles!$CK$53) -> 63215.9878 | AJ19: =AN19*(Vehicles!$N$21/Vehicles!$CM$53)/(Vehicles!$N$21*(1/Vehicles!$CM$53+1/Vehicles!$CN$53)+Vehicles!$N$22/Vehicles!$CO$53)+AC19*(Vehicles!$N$21/Vehicles!$CN$53+Vehicles!$N$22/Vehicles!$CO$53)/(Vehicles!$N$21*(1/Vehicles!$CM$53+1/Vehicles!$CN$53)+Vehicles!$N$22/Vehicles!$CO$53) -> 20854.59857 | AK19: =AN19*(Vehicles!$O$21/Vehicles!$CQ$53)/(Vehicles!$O$21*(1/Vehicles!$CQ$53+1/Vehicles!$CR$53)+Vehicles!$O$22/Vehicles!$CS$53)+AD19*(Vehicles!$O$21/Vehicles!$CR$53+Vehicles!$O$22/Vehicles!$CS$53)/(Vehicles!$O$21*(1/Vehicles!$CQ$53+1/Vehicles!$CR$53)+Vehicles!$O$22/Vehicles!$CS$53) -> 16469.03707 | AL19: =AN19*(Vehicles!$P$21/Vehicles!$CU$53)/(Vehicles!$P$21*(1/Vehicles!$CU$53+1/Vehicles!$CV$53)+Vehicles!$P$22/Vehicles!$CW$53)+AE19*(Vehicles!$P$21/Vehicles!$CV$53+Vehicles!$P$22/Vehicles!$CW$53)/(Vehicles!$P$21*(1/Vehicles!$CU$53+1/Vehicles!$CV$53)+Vehicles!$P$22/Vehicles!$CW$53) -> 63222.44515 | AM19: =AN19*(Vehicles!$R$21/Vehicles!$DC$53)/(Vehicles!$R$21*(1/Vehicles!$DC$53+1/Vehicles!$DD$53)+Vehicles!$R$22/Vehicles!$DE$53)+AH19*(Vehicles!$R$21/Vehicles!$DD$53+Vehicles!$R$22/Vehicles!$DE$53)/(Vehicles!$R$21*(1/Vehicles!$DC$53+1/Vehicles!$DD$53)+Vehicles!$R$22/Vehicles!$DE$53) -> 65372.60835 | AN19: =(Electric!$G175+Electric!$F175-1000000*(Electric!$F175+Electric!$G175)/(Electric!$F$171+Electric!$G$171))/1000000*HLOOKUP($G$10,$Y$3:$AC$4,2,FALSE)/HLOOKUP($I$11,$Y$7:$AC$8,2,FALSE) -> 44923.7461 | AO19: =((Hydrogen!$Z152*Hydrogen!$AA$147+Hydrogen!$AA152)-1000000*(Hydrogen!$K$7+Hydrogen!$C$7+Hydrogen!$D$7+Hydrogen!$E$7))/1000000*HLOOKUP($G$10,$Y$3:$AC$4,2,FALSE)/HLOOKUP($I$11,$Y$7:$AC$8,2,FALSE) -> 14568.32342 | AP19: =((Hydrogen!$AX152*Hydrogen!$AY$147+Hydrogen!$AY152)-1000000*(Hydrogen!$K$8+Hydrogen!$C$8+Hydrogen!$D$8+Hydrogen!$E$8))/1000000*HLOOKUP($G$10,$Y$3:$AC$4,2,FALSE)/HLOOKUP($I$11,$Y$7:$AC$8,2,FALSE) -> 51048.16389 | AQ19: =AN19*(Vehicles!$S$21/Vehicles!$DS$53)/(Vehicles!$S$21*(1/Vehicles!$DS$53+1/Vehicles!$DT$53)+Vehicles!$S$22/Vehicles!$DU$53)+AO19*(Vehicles!$S$21/Vehicles!$DT$53+Vehicles!$S$22/Vehicles!$DU$53)/(Vehicles!$S$21*(1/Vehicles!$DS$53+1/Vehicles!$DT$53)+Vehicles!$S$22/Vehicles!$DU$53) -> 23834.94465 | AR19: =AN19*(Vehicles!$S$21/Vehicles!$DS$53)/(Vehicles!$S$21*(1/Vehicles!$DS$53+1/Vehicles!$DT$53)+Vehicles!$S$22/Vehicles!$DU$53)+AP19*(Vehicles!$S$21/Vehicles!$DT$53+Vehicles!$S$22/Vehicles!$DU$53)/(Vehicles!$S$21*(1/Vehicles!$DS$53+1/Vehicles!$DT$53)+Vehicles!$S$22/Vehicles!$DU$53) -> 49178.55856
A20: CO2 (w/ C in VOC & CO) | B20: =(Inputs!$E$1056*(Petroleum!$B232*Petroleum!$F$218+Petroleum!$F232)+(1-Inputs!$E$1056)*(Petroleum!$B232*Petroleum!$D$218+Petroleum!$D232)+Vehicles!B74/Vehicles!B54*1000000)/1000000*HLOOKUP($I$10,$Y$5:$AC$6,2,FALSE)/HLOOKUP($I$11,$Y$7:$AC$8,2,FALSE)+B24*Fuel_Specs!$B$92/Fuel_Specs!$B$95+B25*Fuel_Specs!$B$93/Fuel_Specs!$B$95 -> 15642.11941 | C20: =((Petroleum!$C232*Petroleum!$G$218+Petroleum!$G232)+Vehicles!C74/Vehicles!C54*1000000)/1000000*HLOOKUP($I$10,$Y$5:$AC$6,2,FALSE)/HLOOKUP($I$11,$Y$7:$AC$8,2,FALSE)+C24*Fuel_Specs!$B$92/Fuel_Specs!$B$95+C25*Fuel_Specs!$B$93/Fuel_Specs!$B$95 -> 21307.21891 | D20: =((1-Vehicles!$C$26)*(1-Vehicles!$C$7)*Fuel_Specs!$B$11/((1-Vehicles!$C$26)*(1-Vehicles!$C$7)*Fuel_Specs!$B$11+Vehicles!$C$26*(1-Vehicles!$C$7)*Fuel_Specs!$B$13+Vehicles!$C$7*Fuel_Specs!$B$26)*(Petroleum!$B232*Petroleum!$D$218+Petroleum!$D232)+Vehicles!$C$26*(1-Vehicles!$C$7)*Fuel_Specs!$B$13/((1-Vehicles!$C$26)*(1-Vehicles!$C$7)*Fuel_Specs!$B$11+Vehicles!$C$26*(1-Vehicles!$C$7)*Fuel_Specs!$B$13+Vehicles!$C$7*Fuel_Specs!$B$26)*(Petroleum!B232*Petroleum!$F$218+Petroleum!$F232)+Vehicles!$C$7*Fuel_Specs!$B$26/((1-Vehicles!$C$26)*(1-Vehicles!$C$7)*Fuel_Specs!$B$11+Vehicles!$C$26*(1-Vehicles!$C$7)*Fuel_Specs!$B$13+Vehicles!$C$7*Fuel_Specs!$B$26)*(EtOH!BE415*EtOH!$BF$401+EtOH!$BF415)+Vehicles!D74/Vehicles!D54*1000000)/1000000*HLOOKUP($I$10,$Y$5:$AC$6,2,FALSE)/HLOOKUP($I$11,$Y$7:$AC$8,2,FALSE)+D24*Fuel_Specs!$B$92/Fuel_Specs!$B$95+D25*Fuel_Specs!$B$93/Fuel_Specs!$B$95 -> 15625.88223 | E20: =(Inputs!$E$88*(IF(Inputs!F$92=1,Petroleum!$B232,Petroleum!$C232)*Petroleum!$K$218+Petroleum!$K232)+(1-Inputs!$E$88)*(IF(Inputs!F$91=1,Petroleum!$B232,Petroleum!$C232)*Petroleum!$J$218+Petroleum!$J232))/1000000*HLOOKUP($I$10,$Y$5:$AC$6,2,FALSE)/HLOOKUP($I$11,$Y$7:$AC$8,2,FALSE)+E24*Fuel_Specs!$B$92/Fuel_Specs!$B$95+E25*Fuel_Specs!$B$93/Fuel_Specs!$B$95 -> 22042.81204 | F20: =(NG!$H94*NG!$I$80+NG!$I94)/1000000*HLOOKUP($I$10,$Y$5:$AC$6,2,FALSE)/HLOOKUP($I$11,$Y$7:$AC$8,2,FALSE)+F24*Fuel_Specs!$B$92/Fuel_Specs!$B$95+F25*Fuel_Specs!$B$93/Fuel_Specs!$B$95 -> 11883.39909 | G20: =(NG!$P94*NG!$Q$80+NG!$Q94)/1000000*HLOOKUP($I$10,$Y$5:$AC$6,2,FALSE)/HLOOKUP($I$11,$Y$7:$AC$8,2,FALSE)+G24*Fuel_Specs!$B$92/Fuel_Specs!$B$95+G25*Fuel_Specs!$B$93/Fuel_Specs!$B$95 -> 15437.19167 | H20: =(NG!$V94*NG!$W$80+NG!$W94)/1000000*HLOOKUP($I$10,$Y$5:$AC$6,2,FALSE)/HLOOKUP($I$11,$Y$7:$AC$8,2,FALSE)+H24*Fuel_Specs!$B$92/Fuel_Specs!$B$95+H25*Fuel_Specs!$B$93/Fuel_Specs!$B$95 -> 13491.19003 | I20: =('MeOH&FTD'!AV146*'MeOH&FTD'!AW$132+'MeOH&FTD'!AW146)/1000000*HLOOKUP($I$10,$Y$5:$AC$6,2,FALSE)/HLOOKUP($I$11,$Y$7:$AC$8,2,FALSE)+I24*Fuel_Specs!$B$92/Fuel_Specs!$B$95+I25*Fuel_Specs!$B$93/Fuel_Specs!$B$95 -> 34194.15673 | J20: =((1-Vehicles!$C$25)*(1-Vehicles!$C$5)*Fuel_Specs!$B$11/((1-Vehicles!$C$25)*(1-Vehicles!$C$5)*Fuel_Specs!$B$11+Vehicles!$C$25*(1-Vehicles!$C$5)*Fuel_Specs!$B$13+Vehicles!$C$5*Fuel_Specs!$B$25)*(Petroleum!$B232*Petroleum!$D$218+Petroleum!$D232)+Vehicles!$C$25*(1-Vehicles!$C$5)*Fuel_Specs!$B$13/((1-Vehicles!$C$25)*(1-Vehicles!$C$5)*Fuel_Specs!$B$11+Vehicles!$C$25*(1-Vehicles!$C$5)*Fuel_Specs!$B$13+Vehicles!$C$5*Fuel_Specs!$B$25)*(Petroleum!B232*Petroleum!$F$218+Petroleum!$F232)+Vehicles!$C$5*Fuel_Specs!$B$25/((1-Vehicles!$C$25)*(1-Vehicles!$C$5)*Fuel_Specs!$B$11+Vehicles!$C$25*(1-Vehicles!$C$5)*Fuel_Specs!$B$13+Vehicles!$C$5*Fuel_Specs!$B$25)*('MeOH&FTD'!$L146*'MeOH&FTD'!$M$132+'MeOH&FTD'!$M146)+Vehicles!I74/Vehicles!I54*1000000)/1000000*HLOOKUP($I$10,$Y$5:$AC$6,2,FALSE)/HLOOKUP($I$11,$Y$7:$AC$8,2,FALSE)+J24*Fuel_Specs!$B$92/Fuel_Specs!$B$95+J25*Fuel_Specs!$B$93/Fuel_Specs!$B$95 -> 24780.79505 | K20: =((1-Vehicles!$C$25)*(1-Vehicles!$C$6)*Fuel_Specs!$B$11/((1-Vehicles!$C$25)*(1-Vehicles!$C$6)*Fuel_Specs!$B$11+Vehicles!$C$25*(1-Vehicles!$C$6)*Fuel_Specs!$B$13+Vehicles!$C$6*Fuel_Specs!$B$25)*(Petroleum!$B232*Petroleum!$D$218+Petroleum!$D232)+Vehicles!$C$25*(1-Vehicles!$C$6)*Fuel_Specs!$B$13/((1-Vehicles!$C$25)*(1-Vehicles!$C$6)*Fuel_Specs!$B$11+Vehicles!$C$25*(1-Vehicles!$C$6)*Fuel_Specs!$B$13+Vehicles!$C$6*Fuel_Specs!$B$25)*(Petroleum!B232*Petroleum!$F$218+Petroleum!$F232)+Vehicles!$C$6*Fuel_Specs!$B$25/((1-Vehicles!$C$25)*(1-Vehicles!$C$6)*Fuel_Specs!$B$11+Vehicles!$C$25*(1-Vehicles!$C$6)*Fuel_Specs!$B$13+Vehicles!$C$6*Fuel_Specs!$B$25)*('MeOH&FTD'!$L146*'MeOH&FTD'!$M$132+'MeOH&FTD'!$M146)+Vehicles!J74/Vehicles!J54*1000000)/1000000*HLOOKUP($I$10,$Y$5:$AC$6,2,FALSE)/HLOOKUP($I$11,$Y$7:$AC$8,2,FALSE)+K24*Fuel_Specs!$B$92/Fuel_Specs!$B$95+K25*Fuel_Specs!$B$93/Fuel_Specs!$B$95 -> 25396.87584 | L20: =('MeOH&FTD'!$L146*'MeOH&FTD'!$M$132+'MeOH&FTD'!$M146)/1000000*HLOOKUP($I$10,$Y$5:$AC$6,2,FALSE)/HLOOKUP($I$11,$Y$7:$AC$8,2,FALSE)+L24*Fuel_Specs!$B$92/Fuel_Specs!$B$95+L25*Fuel_Specs!$B$93/Fuel_Specs!$B$95 -> 26818.99478 | M20: =((1-Vehicles!$C$27)*(1-Vehicles!$C$8)*Fuel_Specs!$B$11/((1-Vehicles!$C$27)*(1-Vehicles!$C$8)*Fuel_Specs!$B$11+Vehicles!$C$27*(1-Vehicles!$C$8)*Fuel_Specs!$B$13+Vehicles!$C$8*Fuel_Specs!$B$26)*(Petroleum!$B232*Petroleum!$D$218+Petroleum!$D232)+Vehicles!$C$27*(1-Vehicles!$C$8)*Fuel_Specs!$B$13/((1-Vehicles!$C$27)*(1-Vehicles!$C$8)*Fuel_Specs!$B$11+Vehicles!$C$27*(1-Vehicles!$C$8)*Fuel_Specs!$B$13+Vehicles!$C$8*Fuel_Specs!$B$26)*(Petroleum!B232*Petroleum!$F$218+Petroleum!$F232)+Vehicles!$C$8*Fuel_Specs!$B$26/((1-Vehicles!$C$27)*(1-Vehicles!$C$8)*Fuel_Specs!$B$11+Vehicles!$C$27*(1-Vehicles!$C$8)*Fuel_Specs!$B$13+Vehicles!$C$8*Fuel_Specs!$B$26)*(EtOH!BE415*EtOH!$BF$401+EtOH!$BF415)+Vehicles!K74/Vehicles!K54*1000000)/1000000*HLOOKUP($I$10,$Y$5:$AC$6,2,FALSE)/HLOOKUP($I$11,$Y$7:$AC$8,2,FALSE)+M24*Fuel_Specs!$B$92/Fuel_Specs!$B$95+M25*Fuel_Specs!$B$93/Fuel_Specs!$B$95 -> -20673.52595 | N20: =((1-Vehicles!$C$28)*(1-Vehicles!$C$10)*Fuel_Specs!$B$11/((1-Vehicles!$C$28)*(1-Vehicles!$C$10)*Fuel_Specs!$B$11+Vehicles!$C$28*(1-Vehicles!$C$10)*Fuel_Specs!$B$13+Vehicles!$C$10*Fuel_Specs!$B$27)*(Petroleum!$B232*Petroleum!$D$218+Petroleum!$D232)+Vehicles!$C$28*(1-Vehicles!$C$10)*Fuel_Specs!$B$13/((1-Vehicles!$C$28)*(1-Vehicles!$C$10)*Fuel_Specs!$B$11+Vehicles!$C$28*(1-Vehicles!$C$10)*Fuel_Specs!$B$13+Vehicles!$C$10*Fuel_Specs!$B$27)*(Petroleum!B232*Petroleum!$F$218+Petroleum!$F232)+Vehicles!$C$10*Fuel_Specs!$B$27/((1-Vehicles!$C$28)*(1-Vehicles!$C$10)*Fuel_Specs!$B$11+Vehicles!$C$28*(1-Vehicles!$C$10)*Fuel_Specs!$B$13+Vehicles!$C$10*Fuel_Specs!$B$27)*(EtOH!$BI415*EtOH!$BJ$401+EtOH!$BJ415)+Vehicles!L74/Vehicles!L54*1000000)/1000000*HLOOKUP($I$10,$Y$5:$AC$6,2,FALSE)/HLOOKUP($I$11,$Y$7:$AC$8,2,FALSE)+N24*Fuel_Specs!$B$92/Fuel_Specs!$B$95+N25*Fuel_Specs!$B$93/Fuel_Specs!$B$95 -> -26488.881 | O20: =((1-Vehicles!$C$27)*(1-Vehicles!$C$9)*Fuel_Specs!$B$11/((1-Vehicles!$C$27)*(1-Vehicles!$C$9)*Fuel_Specs!$B$11+Vehicles!$C$27*(1-Vehicles!$C$9)*Fuel_Specs!$B$13+Vehicles!$C$9*Fuel_Specs!$B$26)*(Petroleum!$B232*Petroleum!$D$218+Petroleum!$D232)+Vehicles!$C$27*(1-Vehicles!$C$9)*Fuel_Specs!$B$13/((1-Vehicles!$C$27)*(1-Vehicles!$C$9)*Fuel_Specs!$B$11+Vehicles!$C$27*(1-Vehicles!$C$9)*Fuel_Specs!$B$13+Vehicles!$C$9*Fuel_Specs!$B$26)*(Petroleum!B232*Petroleum!$F$218+Petroleum!$F232)+Vehicles!$C$9*Fuel_Specs!$B$26/((1-Vehicles!$C$27)*(1-Vehicles!$C$9)*Fuel_Specs!$B$11+Vehicles!$C$27*(1-Vehicles!$C$9)*Fuel_Specs!$B$13+Vehicles!$C$9*Fuel_Specs!$B$26)*(EtOH!BE415*EtOH!$BF$401+EtOH!$BF415)+Vehicles!M74/Vehicles!M54*1000000)/1000000*HLOOKUP($I$10,$Y$5:$AC$6,2,FALSE)/HLOOKUP($I$11,$Y$7:$AC$8,2,FALSE)+O24*Fuel_Specs!$B$92/Fuel_Specs!$B$95+O25*Fuel_Specs!$B$93/Fuel_Specs!$B$95 -> -20673.52595 | P20: =(EtOH!$BE415*EtOH!$BF$401+EtOH!$BF415+Vehicles!DM74/Vehicles!DM54*1000000)/1000000*HLOOKUP($I$10,$Y$5:$AC$6,2,FALSE)/HLOOKUP($I$11,$Y$7:$AC$8,2,FALSE)+P24*Fuel_Specs!$B$92/Fuel_Specs!$B$95+P25*Fuel_Specs!$B$93/Fuel_Specs!$B$95 -> -32796.27704 | Q20: =((1-Vehicles!$C$29)*(1-Vehicles!$C$14)*Fuel_Specs!$B$11/((1-Vehicles!$C$29)*(1-Vehicles!$C$14)*Fuel_Specs!$B$11+Vehicles!$C$29*(1-Vehicles!$C$14)*Fuel_Specs!$B$13+Vehicles!$C$14*Fuel_Specs!$B39)*(Petroleum!$B232*Petroleum!$D$218+Petroleum!$D232)+Vehicles!$C$29*(1-Vehicles!$C$14)*Fuel_Specs!$B$13/((1-Vehicles!$C$29)*(1-Vehicles!$C$14)*Fuel_Specs!$B$11+Vehicles!$C$29*(1-Vehicles!$C$14)*Fuel_Specs!$B$13+Vehicles!$C$14*Fuel_Specs!$B39)*(Petroleum!B232*Petroleum!$F$218+Petroleum!$F232)+Vehicles!$C$14*Fuel_Specs!$B39/((1-Vehicles!$C$29)*(1-Vehicles!$C$14)*Fuel_Specs!$B$11+Vehicles!$C$29*(1-Vehicles!$C$14)*Fuel_Specs!$B$13+Vehicles!$C$14*Fuel_Specs!$B39)*(BioOil!$BQ328*BioOil!$BR$313+BioOil!$BR328)+Vehicles!P74/Vehicles!P54*1000000)/1000000*HLOOKUP($I$10,$Y$5:$AC$6,2,FALSE)/HLOOKUP($I$11,$Y$7:$AC$8,2,FALSE)+Q24*Fuel_Specs!$B$92/Fuel_Specs!$B$95+Q25*Fuel_Specs!$B$93/Fuel_Specs!$B$95 -> -54586.20357 | R20: =((1-Vehicles!$C$29)*(1-Vehicles!$C$14)*Fuel_Specs!$B$11/((1-Vehicles!$C$29)*(1-Vehicles!$C$14)*Fuel_Specs!$B$11+Vehicles!$C$29*(1-Vehicles!$C$14)*Fuel_Specs!$B$13+Vehicles!$C$14*Fuel_Specs!$B39)*(Petroleum!$B232*Petroleum!$D$218+Petroleum!$D232)+Vehicles!$C$29*(1-Vehicles!$C$14)*Fuel_Specs!$B$13/((1-Vehicles!$C$29)*(1-Vehicles!$C$14)*Fuel_Specs!$B$11+Vehicles!$C$29*(1-Vehicles!$C$14)*Fuel_Specs!$B$13+Vehicles!$C$14*Fuel_Specs!$B39)*(Petroleum!B232*Petroleum!$F$218+Petroleum!$F232)+Vehicles!$C$14*Fuel_Specs!$B39/((1-Vehicles!$C$29)*(1-Vehicles!$C$14)*Fuel_Specs!$B$11+Vehicles!$C$29*(1-Vehicles!$C$14)*Fuel_Specs!$B$13+Vehicles!$C$14*Fuel_Specs!$B39)*(Pyrolysis!$Z180*Pyrolysis!$AA$166+Pyrolysis!$AA180)+Vehicles!P74/Vehicles!P54*1000000)/1000000*HLOOKUP($I$10,$Y$5:$AC$6,2,FALSE)/HLOOKUP($I$11,$Y$7:$AC$8,2,FALSE)+R24*Fuel_Specs!$B$92/Fuel_Specs!$B$95+R25*Fuel_Specs!$B$93/Fuel_Specs!$B$95 -> -45253.05474 | S20: =AN20*(Vehicles!$C$21/Vehicles!$AN$53)/(Vehicles!$C$21*(1/Vehicles!$AN$53+1/Vehicles!$AO$53)+Vehicles!$C$22/Vehicles!$AP$53)+B20*(Vehicles!$C$21/Vehicles!$AO$53+Vehicles!$C$22/Vehicles!$AP$53)/(Vehicles!$C$21*(1/Vehicles!$AN$53+1/Vehicles!$AO$53)+Vehicles!$C$22/Vehicles!$AP$53) -> 54515.67826 | T20: =AN20*(Vehicles!$D$21/Vehicles!$AR$53)/(Vehicles!$D$21*(1/Vehicles!$AR$53+1/Vehicles!$AS$53)+Vehicles!$D$22/Vehicles!$AT$53)+C20*(Vehicles!$D$21/Vehicles!$AS$53+Vehicles!$D$22/Vehicles!$AT$53)/(Vehicles!$D$21*(1/Vehicles!$AR$53+1/Vehicles!$AS$53)+Vehicles!$D$22/Vehicles!$AT$53) -> 58867.37299 | U20: =AN20*(Vehicles!$F$21/Vehicles!$AZ$53)/(Vehicles!$F$21*(1/Vehicles!$AZ$53+1/Vehicles!$BA$53)+Vehicles!$F$22/Vehicles!$BB$53)+D20*(Vehicles!$F$21/Vehicles!$BA$53+Vehicles!$F$22/Vehicles!$BB$53)/(Vehicles!$F$21*(1/Vehicles!$AZ$53+1/Vehicles!$BA$53)+Vehicles!$F$22/Vehicles!$BB$53) -> 54503.20553 | V20: =AN20*(Vehicles!$G$21/Vehicles!$BD$53)/(Vehicles!$G$21*(1/Vehicles!$BD$53+1/Vehicles!$BE$53)+Vehicles!$G$22/Vehicles!$BF$53)+F20*(Vehicles!$G$21/Vehicles!$BE$53+Vehicles!$G$22/Vehicles!$BF$53)/(Vehicles!$G$21*(1/Vehicles!$BD$53+1/Vehicles!$BE$53)+Vehicles!$G$22/Vehicles!$BF$53) -> 51628.38504 | W20: =AN20*(Vehicles!$H$21/Vehicles!$BH$53)/(Vehicles!$H$21*(1/Vehicles!$BH$53+1/Vehicles!$BI$53)+Vehicles!$H$22/Vehicles!$BJ$53)+G20*(Vehicles!$H$21/Vehicles!$BI$53+Vehicles!$H$22/Vehicles!$BJ$53)/(Vehicles!$H$21*(1/Vehicles!$BH$53+1/Vehicles!$BI$53)+Vehicles!$H$22/Vehicles!$BJ$53) -> 54358.26126 | X20: =AN20*(Vehicles!$I$21/Vehicles!$BL$53)/(Vehicles!$I$21*(1/Vehicles!$BL$53+1/Vehicles!$BM$53)+Vehicles!$I$22/Vehicles!$BN$53)+H20*(Vehicles!$I$21/Vehicles!$BM$53+Vehicles!$I$22/Vehicles!$BN$53)/(Vehicles!$I$21*(1/Vehicles!$BL$53+1/Vehicles!$BM$53)+Vehicles!$I$22/Vehicles!$BN$53) -> 52863.42343 | Y20: =AN20*(Vehicles!$J$21/Vehicles!$BP$53)/(Vehicles!$J$21*(1/Vehicles!$BP$53+1/Vehicles!$BQ$53)+Vehicles!$J$22/Vehicles!$BR$53)+K20*(Vehicles!$J$21/Vehicles!$BQ$53+Vehicles!$J$22/Vehicles!$BR$53)/(Vehicles!$J$21*(1/Vehicles!$BP$53+1/Vehicles!$BQ$53)+Vehicles!$J$22/Vehicles!$BR$53) -> 62008.87801 | Z20: =AN20*(Vehicles!$K$21/Vehicles!$BT$53)/(Vehicles!$K$21*(1/Vehicles!$BT$53+1/Vehicles!$BU$53)+Vehicles!$K$22/Vehicles!$BV$53)+O20*(Vehicles!$K$21/Vehicles!$BU$53+Vehicles!$K$22/Vehicles!$BV$53)/(Vehicles!$K$21*(1/Vehicles!$BT$53+1/Vehicles!$BU$53)+Vehicles!$K$22/Vehicles!$BV$53) -> 24265.68855 | AA20: =AN20*(Vehicles!$L$21/Vehicles!$BX$53)/(Vehicles!$L$21*(1/Vehicles!$BX$53+1/Vehicles!$BY$53)+Vehicles!$L$22/Vehicles!$BZ$53)+AO20*(Vehicles!$L$21/Vehicles!$BY$53+Vehicles!$L$22/Vehicles!$BZ$53)/(Vehicles!$L$21*(1/Vehicles!$BX$53+1/Vehicles!$BY$53)+Vehicles!$L$22/Vehicles!$BZ$53) -> 130085.1004 | AB20: =AN20*(Vehicles!$L$21/Vehicles!$BX$53)/(Vehicles!$L$21*(1/Vehicles!$BX$53+1/Vehicles!$BY$53)+Vehicles!$L$22/Vehicles!$CA$53)+AP20*(Vehicles!$L$21/Vehicles!$BY$53+Vehicles!$L$22/Vehicles!$CA$53)/(Vehicles!$L$21*(1/Vehicles!$BX$53+1/Vehicles!$BY$53)+Vehicles!$L$22/Vehicles!$CA$53) -> 176425.4829 | AC20: =('MeOH&FTD'!$X146*'MeOH&FTD'!$Y$132+'MeOH&FTD'!$Y146+Vehicles!W74/Vehicles!W54*1000000)/1000000*HLOOKUP($I$10,$Y$5:$AC$6,2,FALSE)/HLOOKUP($I$11,$Y$7:$AC$8,2,FALSE)+AC24*Fuel_Specs!$B$92/Fuel_Specs!$B$95+AC25*Fuel_Specs!$B$93/Fuel_Specs!$B$95 -> 24587.45647 | AD20: =((1-Vehicles!$C$30)*(1-Vehicles!$C$11)*Fuel_Specs!$B$15/((1-Vehicles!$C$30)*(1-Vehicles!$C$11)*Fuel_Specs!$B$15+Vehicles!$C$30*(1-Vehicles!$C$11)*Fuel_Specs!$B$18+Vehicles!$C$11*Fuel_Specs!$B$35)*(Petroleum!B232*Petroleum!$J$218+Petroleum!$J232)+Vehicles!$C$30*(1-Vehicles!$C$11)*Fuel_Specs!$B$18/((1-Vehicles!$C$30)*(1-Vehicles!$C$11)*Fuel_Specs!$B$15+Vehicles!$C$30*(1-Vehicles!$C$11)*Fuel_Specs!$B$18+Vehicles!$C$11*Fuel_Specs!$B$35)*(Petroleum!B232*Petroleum!$K$218+Petroleum!$K232)+Vehicles!$C$11*Fuel_Specs!$B$35/((1-Vehicles!$C$30)*(1-Vehicles!$C$11)*Fuel_Specs!$B$15+Vehicles!$C$30*(1-Vehicles!$C$11)*Fuel_Specs!$B$18+Vehicles!$C$11*Fuel_Specs!$B$35)*('MeOH&FTD'!$AL146*'MeOH&FTD'!$AM$132+'MeOH&FTD'!$AM146)+Vehicles!X74/Vehicles!X54*1000000)/1000000*HLOOKUP($I$10,$Y$5:$AC$6,2,FALSE)/HLOOKUP($I$11,$Y$7:$AC$8,2,FALSE)+AD24*Fuel_Specs!$B$92/Fuel_Specs!$B$95+AD25*Fuel_Specs!$B$93/Fuel_Specs!$B$95 -> 31987.90191 | AE20: =((1-Vehicles!$C$31)*(1-Vehicles!$C$12)*Fuel_Specs!$B$15/((1-Vehicles!$C$31)*(1-Vehicles!$C$12)*Fuel_Specs!$B$15+Vehicles!$C$31*(1-Vehicles!$C$12)*Fuel_Specs!$B$18+Vehicles!$C$12*Fuel_Specs!$B34)*(Petroleum!B232*Petroleum!$J$218+Petroleum!$J232)+Vehicles!$C$31*(1-Vehicles!$C$12)*Fuel_Specs!$B$18/((1-Vehicles!$C$31)*(1-Vehicles!$C$12)*Fuel_Specs!$B$15+Vehicles!$C$31*(1-Vehicles!$C$12)*Fuel_Specs!$B$18+Vehicles!$C$12*Fuel_Specs!$B34)*(Petroleum!B232*Petroleum!$K$218+Petroleum!$K232)+Vehicles!$C$12*Fuel_Specs!$B34/((1-Vehicles!$C$31)*(1-Vehicles!$C$12)*Fuel_Specs!$B$15+Vehicles!$C$31*(1-Vehicles!$C$12)*Fuel_Specs!$B$18+Vehicles!$C$12*Fuel_Specs!$B34)*(BioOil!$Y328*BioOil!$Z$313+BioOil!$Z328)+Vehicles!Y74/Vehicles!Y54*1000000)/1000000*HLOOKUP($I$10,$Y$5:$AC$6,2,FALSE)/HLOOKUP($I$11,$Y$7:$AC$8,2,FALSE)+AE24*Fuel_Specs!$B$92/Fuel_Specs!$B$95+AE25*Fuel_Specs!$B$93/Fuel_Specs!$B$95 -> 6802.910793 | AF20: =((1-Vehicles!$C$32)*(1-Vehicles!$C$13)*Fuel_Specs!$B$15/((1-Vehicles!$C$32)*(1-Vehicles!$C$13)*Fuel_Specs!$B$15+Vehicles!$C$32*(1-Vehicles!$C$13)*Fuel_Specs!$B$18+Vehicles!$C$13*IF(Inputs!$E$499=1,Fuel_Specs!$B$36,Fuel_Specs!$B$37))*(Petroleum!B232*Petroleum!$J$218+Petroleum!$J232)+Vehicles!$C$32*(1-Vehicles!$C$13)*Fuel_Specs!$B$18/((1-Vehicles!$C$32)*(1-Vehicles!$C$13)*Fuel_Specs!$B$15+Vehicles!$C$32*(1-Vehicles!$C$13)*Fuel_Specs!$B$18+Vehicles!$C$13*IF(Inputs!$E$499=1,Fuel_Specs!$B$36,Fuel_Specs!$B$37))*(Petroleum!B232*Petroleum!$K$218+Petroleum!$K232)+Vehicles!$C$13*IF(Inputs!$E$499=1,Fuel_Specs!$B$36,Fuel_Specs!$B$37)/((1-Vehicles!$C$32)*(1-Vehicles!$C$13)*Fuel_Specs!$B$15+Vehicles!$C$32*(1-Vehicles!$C$13)*Fuel_Specs!$B$18+Vehicles!$C$13*IF(Inputs!$E$499=1,Fuel_Specs!$B$36,Fuel_Specs!$B$37))*(BioOil!$BE328*BioOil!$BF$313+BioOil!$BF328)+Vehicles!Z74/Vehicles!Z54*1000000)/1000000*HLOOKUP($I$10,$Y$5:$AC$6,2,FALSE)/HLOOKUP($I$11,$Y$7:$AC$8,2,FALSE)+AF24*Fuel_Specs!$B$92/Fuel_Specs!$B$95+AF25*Fuel_Specs!$B$93/Fuel_Specs!$B$95 -> -66098.30799 | AG20: =((1-Vehicles!$C$32)*(1-Vehicles!$C$13)*Fuel_Specs!$B$15/((1-Vehicles!$C$32)*(1-Vehicles!$C$13)*Fuel_Specs!$B$15+Vehicles!$C$32*(1-Vehicles!$C$13)*Fuel_Specs!$B$18+Vehicles!$C$13*IF(Inputs!$E$499=1,Fuel_Specs!$B$36,Fuel_Specs!$B$37))*(Petroleum!B232*Petroleum!$J$218+Petroleum!$J232)+Vehicles!$C$32*(1-Vehicles!$C$13)*Fuel_Specs!$B$18/((1-Vehicles!$C$32)*(1-Vehicles!$C$13)*Fuel_Specs!$B$15+Vehicles!$C$32*(1-Vehicles!$C$13)*Fuel_Specs!$B$18+Vehicles!$C$13*IF(Inputs!$E$499=1,Fuel_Specs!$B$36,Fuel_Specs!$B$37))*(Petroleum!B232*Petroleum!$K$218+Petroleum!$K232)+Vehicles!$C$13*IF(Inputs!$E$499=1,Fuel_Specs!$B$36,Fuel_Specs!$B$37)/((1-Vehicles!$C$32)*(1-Vehicles!$C$13)*Fuel_Specs!$B$15+Vehicles!$C$32*(1-Vehicles!$C$13)*Fuel_Specs!$B$18+Vehicles!$C$13*IF(Inputs!$E$499=1,Fuel_Specs!$B$36,Fuel_Specs!$B$37))*(Pyrolysis!$AB180*Pyrolysis!$AC$166+Pyrolysis!$AC180)+Vehicles!Z74/Vehicles!Z54*1000000)/1000000*HLOOKUP($I$10,$Y$5:$AC$6,2,FALSE)/HLOOKUP($I$11,$Y$7:$AC$8,2,FALSE)+AG24*Fuel_Specs!$B$92/Fuel_Specs!$B$95+AG25*Fuel_Specs!$B$93/Fuel_Specs!$B$95 -> -46200.0792 | AH20: =(((1-Vehicles!$C$33)*(1-Vehicles!$C$15-Vehicles!$C$16)*Fuel_Specs!$B$15*(Petroleum!B232*Petroleum!$J$218+Petroleum!$J232)+Vehicles!$C$33*(1-Vehicles!$C$15-Vehicles!$C$16)*Fuel_Specs!$B$18*(Petroleum!B232*Petroleum!$K$218+Petroleum!$K232)+Vehicles!$C$15*Fuel_Specs!$B$26*(EtOH!BE415*EtOH!$BF$401+EtOH!$BF415)+Vehicles!$C$16*Fuel_Specs!$B$29*('E-D Additives'!$B62*'E-D Additives'!$B$48))/((1-Vehicles!$C$33)*(1-Vehicles!$C$15-Vehicles!$C$16)*Fuel_Specs!$B$15+Vehicles!$C$33*(1-Vehicles!$C$15-Vehicles!$C$16)*Fuel_Specs!$B$18+Vehicles!$C$15*Fuel_Specs!$B$26+Vehicles!$C$16*Fuel_Specs!$B$29)+Vehicles!AA74/Vehicles!AA54*1000000)/1000000*HLOOKUP($I$10,$Y$5:$AC$6,2,FALSE)/HLOOKUP($I$11,$Y$7:$AC$8,2,FALSE)+AH24*Fuel_Specs!$B$92/Fuel_Specs!$B$95+AH25*Fuel_Specs!$B$93/Fuel_Specs!$B$95 -> 18678.49862 | AI20: =AN20*(Vehicles!$M$21/Vehicles!$CI$53)/(Vehicles!$M$21*(1/Vehicles!$CI$53+1/Vehicles!$CJ$53)+Vehicles!$M$22/Vehicles!$CK$53)+E20*(Vehicles!$M$21/Vehicles!$CJ$53+Vehicles!$M$22/Vehicles!$CK$53)/(Vehicles!$M$21*(1/Vehicles!$CI$53+1/Vehicles!$CJ$53)+Vehicles!$M$22/Vehicles!$CK$53) -> 60823.65157 | AJ20: =AN20*(Vehicles!$N$21/Vehicles!$CM$53)/(Vehicles!$N$21*(1/Vehicles!$CM$53+1/Vehicles!$CN$53)+Vehicles!$N$22/Vehicles!$CO$53)+AC20*(Vehicles!$N$21/Vehicles!$CN$53+Vehicles!$N$22/Vehicles!$CO$53)/(Vehicles!$N$21*(1/Vehicles!$CM$53+1/Vehicles!$CN$53)+Vehicles!$N$22/Vehicles!$CO$53) -> 62756.39046 | AK20: =AN20*(Vehicles!$O$21/Vehicles!$CQ$53)/(Vehicles!$O$21*(1/Vehicles!$CQ$53+1/Vehicles!$CR$53)+Vehicles!$O$22/Vehicles!$CS$53)+AD20*(Vehicles!$O$21/Vehicles!$CR$53+Vehicles!$O$22/Vehicles!$CS$53)/(Vehicles!$O$21*(1/Vehicles!$CQ$53+1/Vehicles!$CR$53)+Vehicles!$O$22/Vehicles!$CS$53) -> 68377.26562 | AL20: =AN20*(Vehicles!$P$21/Vehicles!$CU$53)/(Vehicles!$P$21*(1/Vehicles!$CU$53+1/Vehicles!$CV$53)+Vehicles!$P$22/Vehicles!$CW$53)+AE20*(Vehicles!$P$21/Vehicles!$CV$53+Vehicles!$P$22/Vehicles!$CW$53)/(Vehicles!$P$21*(1/Vehicles!$CU$53+1/Vehicles!$CV$53)+Vehicles!$P$22/Vehicles!$CW$53) -> 49248.45883 | AM20: =AN20*(Vehicles!$R$21/Vehicles!$DC$53)/(Vehicles!$R$21*(1/Vehicles!$DC$53+1/Vehicles!$DD$53)+Vehicles!$R$22/Vehicles!$DE$53)+AH20*(Vehicles!$R$21/Vehicles!$DD$53+Vehicles!$R$22/Vehicles!$DE$53)/(Vehicles!$R$21*(1/Vehicles!$DC$53+1/Vehicles!$DD$53)+Vehicles!$R$22/Vehicles!$DE$53) -> 58268.34785 | AN20: =(Electric!$G184+Electric!$F184)/1000000*HLOOKUP($I$10,$Y$5:$AC$6,2,FALSE)/HLOOKUP($I$11,$Y$7:$AC$8,2,FALSE)+AN24*Fuel_Specs!$B$92/Fuel_Specs!$B$95+AN25*Fuel_Specs!$B$93/Fuel_Specs!$B$95 -> 183315.1656 | AO20: =(Hydrogen!$Z161*Hydrogen!$AA$147+Hydrogen!$AA161)/1000000*HLOOKUP($I$10,$Y$5:$AC$6,2,FALSE)/HLOOKUP($I$11,$Y$7:$AC$8,2,FALSE)+AO24*Fuel_Specs!$B$92/Fuel_Specs!$B$95+AO25*Fuel_Specs!$B$93/Fuel_Specs!$B$95 -> 112669.9455 | AP20: =(Hydrogen!$AX161*Hydrogen!$AY$147+Hydrogen!$AY161)/1000000*HLOOKUP($I$10,$Y$5:$AC$6,2,FALSE)/HLOOKUP($I$11,$Y$7:$AC$8,2,FALSE)+AP24*Fuel_Specs!$B$92/Fuel_Specs!$B$95+AP25*Fuel_Specs!$B$93/Fuel_Specs!$B$95 -> 174171.4017 | AQ20: =AN20*(Vehicles!$S$21/Vehicles!$DS$53)/(Vehicles!$S$21*(1/Vehicles!$DS$53+1/Vehicles!$DT$53)+Vehicles!$S$22/Vehicles!$DU$53)+AO20*(Vehicles!$S$21/Vehicles!$DT$53+Vehicles!$S$22/Vehicles!$DU$53)/(Vehicles!$S$21*(1/Vehicles!$DS$53+1/Vehicles!$DT$53)+Vehicles!$S$22/Vehicles!$DU$53) -> 134235.8615 | AR20: =AN20*(Vehicles!$S$21/Vehicles!$DS$53)/(Vehicles!$S$21*(1/Vehicles!$DS$53+1/Vehicles!$DT$53)+Vehicles!$S$22/Vehicles!$DU$53)+AP20*(Vehicles!$S$21/Vehicles!$DT$53+Vehicles!$S$22/Vehicles!$DU$53)/(Vehicles!$S$21*(1/Vehicles!$DS$53+1/Vehicles!$DT$53)+Vehicles!$S$22/Vehicles!$DU$53) -> 176962.7249
A21: CH4 | B21: =(Inputs!$E$1056*(Petroleum!$B230*Petroleum!$F$218+Petroleum!$F230)+(1-Inputs!$E$1056)*(Petroleum!$B230*Petroleum!$D$218+Petroleum!$D230))/1000000*HLOOKUP($I$10,$Y$5:$AC$6,2,FALSE)/HLOOKUP($I$11,$Y$7:$AC$8,2,FALSE) -> 118.1860494 | C21: =(Petroleum!$C230*Petroleum!$G$218+Petroleum!$G230)/1000000*HLOOKUP($I$10,$Y$5:$AC$6,2,FALSE)/HLOOKUP($I$11,$Y$7:$AC$8,2,FALSE) -> 133.2478015 | D21: =((1-Vehicles!$C$26)*(1-Vehicles!$C$7)*Fuel_Specs!$B$11/((1-Vehicles!$C$26)*(1-Vehicles!$C$7)*Fuel_Specs!$B$11+Vehicles!$C$26*(1-Vehicles!$C$7)*Fuel_Specs!$B$13+Vehicles!$C$7*Fuel_Specs!$B$26)*(Petroleum!$B230*Petroleum!$D$218+Petroleum!$D230)+Vehicles!$C$26*(1-Vehicles!$C$7)*Fuel_Specs!$B$13/((1-Vehicles!$C$26)*(1-Vehicles!$C$7)*Fuel_Specs!$B$11+Vehicles!$C$26*(1-Vehicles!$C$7)*Fuel_Specs!$B$13+Vehicles!$C$7*Fuel_Specs!$B$26)*(Petroleum!B230*Petroleum!$F$218+Petroleum!$F230)+Vehicles!$C$7*Fuel_Specs!$B$26/((1-Vehicles!$C$26)*(1-Vehicles!$C$7)*Fuel_Specs!$B$11+Vehicles!$C$26*(1-Vehicles!$C$7)*Fuel_Specs!$B$13+Vehicles!$C$7*Fuel_Specs!$B$26)*(EtOH!BE413*EtOH!$BF$401+EtOH!$BF413))/1000000*HLOOKUP($I$10,$Y$5:$AC$6,2,FALSE)/HLOOKUP($I$11,$Y$7:$AC$8,2,FALSE) -> 118.1644759 | E21: =(Inputs!$E$88*(IF(Inputs!F$92=1,Petroleum!$B230,Petroleum!$C230)*Petroleum!$K$218+Petroleum!$K230)+(1-Inputs!$E$88)*(IF(Inputs!F$91=1,Petroleum!$B230,Petroleum!$C230)*Petroleum!$J$218+Petroleum!$J230))/1000000*HLOOKUP($I$10,$Y$5:$AC$6,2,FALSE)/HLOOKUP($I$11,$Y$7:$AC$8,2,FALSE) -> 125.1757512 | F21: =(NG!$H92*NG!$I$80+NG!$I92)/1000000*HLOOKUP($I$10,$Y$5:$AC$6,2,FALSE)/HLOOKUP($I$11,$Y$7:$AC$8,2,FALSE) -> 322.141492 | G21: =(NG!$P92*NG!$Q$80+NG!$Q92)/1000000*HLOOKUP($I$10,$Y$5:$AC$6,2,FALSE)/HLOOKUP($I$11,$Y$7:$AC$8,2,FALSE) -> 336.8011385 | H21: =(NG!$V92*NG!$W$80+NG!$W92)/1000000*HLOOKUP($I$10,$Y$5:$AC$6,2,FALSE)/HLOOKUP($I$11,$Y$7:$AC$8,2,FALSE) -> 151.9851393 | I21: =('MeOH&FTD'!AV144*'MeOH&FTD'!AW$132+'MeOH&FTD'!AW144)/1000000*HLOOKUP($I$10,$Y$5:$AC$6,2,FALSE)/HLOOKUP($I$11,$Y$7:$AC$8,2,FALSE) -> 182.4071207 | J21: =((1-Vehicles!$C$25)*(1-Vehicles!$C$5)*Fuel_Specs!$B$11/((1-Vehicles!$C$25)*(1-Vehicles!$C$5)*Fuel_Specs!$B$11+Vehicles!$C$25*(1-Vehicles!$C$5)*Fuel_Specs!$B$13+Vehicles!$C$5*Fuel_Specs!$B$25)*(Petroleum!$B230*Petroleum!$D$218+Petroleum!$D230)+Vehicles!$C$25*(1-Vehicles!$C$5)*Fuel_Specs!$B$13/((1-Vehicles!$C$25)*(1-Vehicles!$C$5)*Fuel_Specs!$B$11+Vehicles!$C$25*(1-Vehicles!$C$5)*Fuel_Specs!$B$13+Vehicles!$C$5*Fuel_Specs!$B$25)*(Petroleum!B230*Petroleum!$F$218+Petroleum!$F230)+Vehicles!$C$5*Fuel_Specs!$B$25/((1-Vehicles!$C$25)*(1-Vehicles!$C$5)*Fuel_Specs!$B$11+Vehicles!$C$25*(1-Vehicles!$C$5)*Fuel_Specs!$B$13+Vehicles!$C$5*Fuel_Specs!$B$25)*('MeOH&FTD'!$L144*'MeOH&FTD'!$M$132+'MeOH&FTD'!$M144))/1000000*HLOOKUP($I$10,$Y$5:$AC$6,2,FALSE)/HLOOKUP($I$11,$Y$7:$AC$8,2,FALSE) -> 155.242253 | K21: =((1-Vehicles!$C$25)*(1-Vehicles!$C$6)*Fuel_Specs!$B$11/((1-Vehicles!$C$25)*(1-Vehicles!$C$6)*Fuel_Specs!$B$11+Vehicles!$C$25*(1-Vehicles!$C$6)*Fuel_Specs!$B$13+Vehicles!$C$6*Fuel_Specs!$B$25)*(Petroleum!$B230*Petroleum!$D$218+Petroleum!$D230)+Vehicles!$C$25*(1-Vehicles!$C$6)*Fuel_Specs!$B$13/((1-Vehicles!$C$25)*(1-Vehicles!$C$6)*Fuel_Specs!$B$11+Vehicles!$C$25*(1-Vehicles!$C$6)*Fuel_Specs!$B$13+Vehicles!$C$6*Fuel_Specs!$B$25)*(Petroleum!B230*Petroleum!$F$218+Petroleum!$F230)+Vehicles!$C$6*Fuel_Specs!$B$25/((1-Vehicles!$C$25)*(1-Vehicles!$C$6)*Fuel_Specs!$B$11+Vehicles!$C$25*(1-Vehicles!$C$6)*Fuel_Specs!$B$13+Vehicles!$C$6*Fuel_Specs!$B$25)*('MeOH&FTD'!$L144*'MeOH&FTD'!$M$132+'MeOH&FTD'!$M144))/1000000*HLOOKUP($I$10,$Y$5:$AC$6,2,FALSE)/HLOOKUP($I$11,$Y$7:$AC$8,2,FALSE) -> 159.1420466 | L21: =('MeOH&FTD'!$L144*'MeOH&FTD'!$M$132+'MeOH&FTD'!$M144)/1000000*HLOOKUP($I$10,$Y$5:$AC$6,2,FALSE)/HLOOKUP($I$11,$Y$7:$AC$8,2,FALSE) -> 168.1440645 | M21: =((1-Vehicles!$C$27)*(1-Vehicles!$C$8)*Fuel_Specs!$B$11/((1-Vehicles!$C$27)*(1-Vehicles!$C$8)*Fuel_Specs!$B$11+Vehicles!$C$27*(1-Vehicles!$C$8)*Fuel_Specs!$B$13+Vehicles!$C$8*Fuel_Specs!$B$26)*(Petroleum!$B230*Petroleum!$D$218+Petroleum!$D230)+Vehicles!$C$27*(1-Vehicles!$C$8)*Fuel_Specs!$B$13/((1-Vehicles!$C$27)*(1-Vehicles!$C$8)*Fuel_Specs!$B$11+Vehicles!$C$27*(1-Vehicles!$C$8)*Fuel_Specs!$B$13+Vehicles!$C$8*Fuel_Specs!$B$26)*(Petroleum!B230*Petroleum!$F$218+Petroleum!$F230)+Vehicles!$C$8*Fuel_Specs!$B$26/((1-Vehicles!$C$27)*(1-Vehicles!$C$8)*Fuel_Specs!$B$11+Vehicles!$C$27*(1-Vehicles!$C$8)*Fuel_Specs!$B$13+Vehicles!$C$8*Fuel_Specs!$B$26)*(EtOH!BE413*EtOH!$BF$401+EtOH!$BF413))/1000000*HLOOKUP($I$10,$Y$5:$AC$6,2,FALSE)/HLOOKUP($I$11,$Y$7:$AC$8,2,FALSE) -> 107.4259643 | N21: =((1-Vehicles!$C$28)*(1-Vehicles!$C$10)*Fuel_Specs!$B$11/((1-Vehicles!$C$28)*(1-Vehicles!$C$10)*Fuel_Specs!$B$11+Vehicles!$C$28*(1-Vehicles!$C$10)*Fuel_Specs!$B$13+Vehicles!$C$10*Fuel_Specs!$B$27)*(Petroleum!$B230*Petroleum!$D$218+Petroleum!$D230)+Vehicles!$C$28*(1-Vehicles!$C$10)*Fuel_Specs!$B$13/((1-Vehicles!$C$28)*(1-Vehicles!$C$10)*Fuel_Specs!$B$11+Vehicles!$C$28*(1-Vehicles!$C$10)*Fuel_Specs!$B$13+Vehicles!$C$10*Fuel_Specs!$B$27)*(Petroleum!B230*Petroleum!$F$218+Petroleum!$F230)+Vehicles!$C$10*Fuel_Specs!$B$27/((1-Vehicles!$C$28)*(1-Vehicles!$C$10)*Fuel_Specs!$B$11+Vehicles!$C$28*(1-Vehicles!$C$10)*Fuel_Specs!$B$13+Vehicles!$C$10*Fuel_Specs!$B$27)*(EtOH!$BI413*EtOH!$BJ$401+EtOH!$BJ413))/1000000*HLOOKUP($I$10,$Y$5:$AC$6,2,FALSE)/HLOOKUP($I$11,$Y$7:$AC$8,2,FALSE) -> 124.7885147 | O21: =((1-Vehicles!$C$27)*(1-Vehicles!$C$9)*Fuel_Specs!$B$11/((1-Vehicles!$C$27)*(1-Vehicles!$C$9)*Fuel_Specs!$B$11+Vehicles!$C$27*(1-Vehicles!$C$9)*Fuel_Specs!$B$13+Vehicles!$C$9*Fuel_Specs!$B$26)*(Petroleum!$B230*Petroleum!$D$218+Petroleum!$D230)+Vehicles!$C$27*(1-Vehicles!$C$9)*Fuel_Specs!$B$13/((1-Vehicles!$C$27)*(1-Vehicles!$C$9)*Fuel_Specs!$B$11+Vehicles!$C$27*(1-Vehicles!$C$9)*Fuel_Specs!$B$13+Vehicles!$C$9*Fuel_Specs!$B$26)*(Petroleum!B230*Petroleum!$F$218+Petroleum!$F230)+Vehicles!$C$9*Fuel_Specs!$B$26/((1-Vehicles!$C$27)*(1-Vehicles!$C$9)*Fuel_Specs!$B$11+Vehicles!$C$27*(1-Vehicles!$C$9)*Fuel_Specs!$B$13+Vehicles!$C$9*Fuel_Specs!$B$26)*(EtOH!BE413*EtOH!$BF$401+EtOH!$BF413))/1000000*HLOOKUP($I$10,$Y$5:$AC$6,2,FALSE)/HLOOKUP($I$11,$Y$7:$AC$8,2,FALSE) -> 107.4259643 | P21: =(EtOH!$BE413*EtOH!$BF$401+EtOH!$BF413)/1000000*HLOOKUP($I$10,$Y$5:$AC$6,2,FALSE)/HLOOKUP($I$11,$Y$7:$AC$8,2,FALSE) -> 103.8396716 | Q21: =((1-Vehicles!$C$29)*(1-Vehicles!$C$14)*Fuel_Specs!$B$11/((1-Vehicles!$C$29)*(1-Vehicles!$C$14)*Fuel_Specs!$B$11+Vehicles!$C$29*(1-Vehicles!$C$14)*Fuel_Specs!$B$13+Vehicles!$C$14*Fuel_Specs!$B$39)*(Petroleum!$B230*Petroleum!$D$218+Petroleum!$D230)+Vehicles!$C$29*(1-Vehicles!$C$14)*Fuel_Specs!$B$13/((1-Vehicles!$C$29)*(1-Vehicles!$C$14)*Fuel_Specs!$B$11+Vehicles!$C$29*(1-Vehicles!$C$14)*Fuel_Specs!$B$13+Vehicles!$C$14*Fuel_Specs!$B$39)*(Petroleum!B230*Petroleum!$F$218+Petroleum!$F230)+Vehicles!$C$14*Fuel_Specs!$B$39/((1-Vehicles!$C$29)*(1-Vehicles!$C$14)*Fuel_Specs!$B$11+Vehicles!$C$29*(1-Vehicles!$C$14)*Fuel_Specs!$B$13+Vehicles!$C$14*Fuel_Specs!$B$39)*(BioOil!$BQ326*BioOil!$BR$313+BioOil!$BR326))/1000000*HLOOKUP($I$10,$Y$5:$AC$6,2,FALSE)/HLOOKUP($I$11,$Y$7:$AC$8,2,FALSE) -> 39.68932824 | R21: =((1-Vehicles!$C$29)*(1-Vehicles!$C$14)*Fuel_Specs!$B$11/((1-Vehicles!$C$29)*(1-Vehicles!$C$14)*Fuel_Specs!$B$11+Vehicles!$C$29*(1-Vehicles!$C$14)*Fuel_Specs!$B$13+Vehicles!$C$14*Fuel_Specs!$B$39)*(Petroleum!$B230*Petroleum!$D$218+Petroleum!$D230)+Vehicles!$C$29*(1-Vehicles!$C$14)*Fuel_Specs!$B$13/((1-Vehicles!$C$29)*(1-Vehicles!$C$14)*Fuel_Specs!$B$11+Vehicles!$C$29*(1-Vehicles!$C$14)*Fuel_Specs!$B$13+Vehicles!$C$14*Fuel_Specs!$B$39)*(Petroleum!B230*Petroleum!$F$218+Petroleum!$F230)+Vehicles!$C$14*Fuel_Specs!$B$39/((1-Vehicles!$C$29)*(1-Vehicles!$C$14)*Fuel_Specs!$B$11+Vehicles!$C$29*(1-Vehicles!$C$14)*Fuel_Specs!$B$13+Vehicles!$C$14*Fuel_Specs!$B$39)*(Pyrolysis!$Z178*Pyrolysis!$AA$166+Pyrolysis!$AA178))/1000000*HLOOKUP($I$10,$Y$5:$AC$6,2,FALSE)/HLOOKUP($I$11,$Y$7:$AC$8,2,FALSE) -> 67.3496529 | S21: =AN21*(Vehicles!$C$21/Vehicles!$AN$53)/(Vehicles!$C$21*(1/Vehicles!$AN$53+1/Vehicles!$AO$53)+Vehicles!$C$22/Vehicles!$AP$53)+B21*(Vehicles!$C$21/Vehicles!$AO$53+Vehicles!$C$22/Vehicles!$AP$53)/(Vehicles!$C$21*(1/Vehicles!$AN$53+1/Vehicles!$AO$53)+Vehicles!$C$22/Vehicles!$AP$53) -> 167.5038171 | T21: =AN21*(Vehicles!$D$21/Vehicles!$AR$53)/(Vehicles!$D$21*(1/Vehicles!$AR$53+1/Vehicles!$AS$53)+Vehicles!$D$22/Vehicles!$AT$53)+C21*(Vehicles!$D$21/Vehicles!$AS$53+Vehicles!$D$22/Vehicles!$AT$53)/(Vehicles!$D$21*(1/Vehicles!$AR$53+1/Vehicles!$AS$53)+Vehicles!$D$22/Vehicles!$AT$53) -> 179.073631 | U21: =AN21*(Vehicles!$F$21/Vehicles!$AZ$53)/(Vehicles!$F$21*(1/Vehicles!$AZ$53+1/Vehicles!$BA$53)+Vehicles!$F$22/Vehicles!$BB$53)+D21*(Vehicles!$F$21/Vehicles!$BA$53+Vehicles!$F$22/Vehicles!$BB$53)/(Vehicles!$F$21*(1/Vehicles!$AZ$53+1/Vehicles!$BA$53)+Vehicles!$F$22/Vehicles!$BB$53) -> 167.4872452 | V21: =AN21*(Vehicles!$G$21/Vehicles!$BD$53)/(Vehicles!$G$21*(1/Vehicles!$BD$53+1/Vehicles!$BE$53)+Vehicles!$G$22/Vehicles!$BF$53)+F21*(Vehicles!$G$21/Vehicles!$BE$53+Vehicles!$G$22/Vehicles!$BF$53)/(Vehicles!$G$21*(1/Vehicles!$BD$53+1/Vehicles!$BE$53)+Vehicles!$G$22/Vehicles!$BF$53) -> 324.1739381 | W21: =AN21*(Vehicles!$H$21/Vehicles!$BH$53)/(Vehicles!$H$21*(1/Vehicles!$BH$53+1/Vehicles!$BI$53)+Vehicles!$H$22/Vehicles!$BJ$53)+G21*(Vehicles!$H$21/Vehicles!$BI$53+Vehicles!$H$22/Vehicles!$BJ$53)/(Vehicles!$H$21*(1/Vehicles!$BH$53+1/Vehicles!$BI$53)+Vehicles!$H$22/Vehicles!$BJ$53) -> 335.4348712 | X21: =AN21*(Vehicles!$I$21/Vehicles!$BL$53)/(Vehicles!$I$21*(1/Vehicles!$BL$53+1/Vehicles!$BM$53)+Vehicles!$I$22/Vehicles!$BN$53)+H21*(Vehicles!$I$21/Vehicles!$BM$53+Vehicles!$I$22/Vehicles!$BN$53)/(Vehicles!$I$21*(1/Vehicles!$BL$53+1/Vehicles!$BM$53)+Vehicles!$I$22/Vehicles!$BN$53) -> 193.4668776 | Y21: =AN21*(Vehicles!$J$21/Vehicles!$BP$53)/(Vehicles!$J$21*(1/Vehicles!$BP$53+1/Vehicles!$BQ$53)+Vehicles!$J$22/Vehicles!$BR$53)+K21*(Vehicles!$J$21/Vehicles!$BQ$53+Vehicles!$J$22/Vehicles!$BR$53)/(Vehicles!$J$21*(1/Vehicles!$BP$53+1/Vehicles!$BQ$53)+Vehicles!$J$22/Vehicles!$BR$53) -> 198.9645173 | Z21: =AN21*(Vehicles!$K$21/Vehicles!$BT$53)/(Vehicles!$K$21*(1/Vehicles!$BT$53+1/Vehicles!$BU$53)+Vehicles!$K$22/Vehicles!$BV$53)+O21*(Vehicles!$K$21/Vehicles!$BU$53+Vehicles!$K$22/Vehicles!$BV$53)/(Vehicles!$K$21*(1/Vehicles!$BT$53+1/Vehicles!$BU$53)+Vehicles!$K$22/Vehicles!$BV$53) -> 156.6596169 | AA21: =AN21*(Vehicles!$L$21/Vehicles!$BX$53)/(Vehicles!$L$21*(1/Vehicles!$BX$53+1/Vehicles!$BY$53)+Vehicles!$L$22/Vehicles!$BZ$53)+AO21*(Vehicles!$L$21/Vehicles!$BY$53+Vehicles!$L$22/Vehicles!$BZ$53)/(Vehicles!$L$21*(1/Vehicles!$BX$53+1/Vehicles!$BY$53)+Vehicles!$L$22/Vehicles!$BZ$53) -> 430.1390645 | AB21: =AN21*(Vehicles!$L$21/Vehicles!$BX$53)/(Vehicles!$L$21*(1/Vehicles!$BX$53+1/Vehicles!$BY$53)+Vehicles!$L$22/Vehicles!$CA$53)+AP21*(Vehicles!$L$21/Vehicles!$BY$53+Vehicles!$L$22/Vehicles!$CA$53)/(Vehicles!$L$21*(1/Vehicles!$BX$53+1/Vehicles!$BY$53)+Vehicles!$L$22/Vehicles!$CA$53) -> 420.9885754 | AC21: =('MeOH&FTD'!$X144*'MeOH&FTD'!$Y$132+'MeOH&FTD'!$Y144)/1000000*HLOOKUP($I$10,$Y$5:$AC$6,2,FALSE)/HLOOKUP($I$11,$Y$7:$AC$8,2,FALSE) -> 160.6444348 | AD21: =((1-Vehicles!$C$30)*(1-Vehicles!$C$11)*Fuel_Specs!$B$15/((1-Vehicles!$C$30)*(1-Vehicles!$C$11)*Fuel_Specs!$B$15+Vehicles!$C$30*(1-Vehicles!$C$11)*Fuel_Specs!$B$18+Vehicles!$C$11*Fuel_Specs!$B$35)*(Petroleum!B230*Petroleum!$J$218+Petroleum!$J230)+Vehicles!$C$30*(1-Vehicles!$C$11)*Fuel_Specs!$B$18/((1-Vehicles!$C$30)*(1-Vehicles!$C$11)*Fuel_Specs!$B$15+Vehicles!$C$30*(1-Vehicles!$C$11)*Fuel_Specs!$B$18+Vehicles!$C$11*Fuel_Specs!$B$35)*(Petroleum!B230*Petroleum!$K$218+Petroleum!$K230)+Vehicles!$C$11*Fuel_Specs!$B$35/((1-Vehicles!$C$30)*(1-Vehicles!$C$11)*Fuel_Specs!$B$15+Vehicles!$C$30*(1-Vehicles!$C$11)*Fuel_Specs!$B$18+Vehicles!$C$11*Fuel_Specs!$B$35)*('MeOH&FTD'!$AL144*'MeOH&FTD'!$AM$132+'MeOH&FTD'!$AM144))/1000000*HLOOKUP($I$10,$Y$5:$AC$6,2,FALSE)/HLOOKUP($I$11,$Y$7:$AC$8,2,FALSE) -> 183.6970801 | AE21: =((1-Vehicles!$C$31)*(1-Vehicles!$C$12)*Fuel_Specs!$B$15/((1-Vehicles!$C$31)*(1-Vehicles!$C$12)*Fuel_Specs!$B$15+Vehicles!$C$31*(1-Vehicles!$C$12)*Fuel_Specs!$B$18+Vehicles!$C$12*Fuel_Specs!$B$34)*(Petroleum!B230*Petroleum!$J$218+Petroleum!$J230)+Vehicles!$C$31*(1-Vehicles!$C$12)*Fuel_Specs!$B$18/((1-Vehicles!$C$31)*(1-Vehicles!$C$12)*Fuel_Specs!$B$15+Vehicles!$C$31*(1-Vehicles!$C$12)*Fuel_Specs!$B$18+Vehicles!$C$12*Fuel_Specs!$B$34)*(Petroleum!B230*Petroleum!$K$218+Petroleum!$K230)+Vehicles!$C$12*Fuel_Specs!$B$34/((1-Vehicles!$C$31)*(1-Vehicles!$C$12)*Fuel_Specs!$B$15+Vehicles!$C$31*(1-Vehicles!$C$12)*Fuel_Specs!$B$18+Vehicles!$C$12*Fuel_Specs!$B$34)*(BioOil!$Y326*BioOil!$Z$313+BioOil!$Z326))/1000000*HLOOKUP($I$10,$Y$5:$AC$6,2,FALSE)/HLOOKUP($I$11,$Y$7:$AC$8,2,FALSE) -> 109.3542165 | AF21: =((1-Vehicles!$C$32)*(1-Vehicles!$C$13)*Fuel_Specs!$B$15/((1-Vehicles!$C$32)*(1-Vehicles!$C$13)*Fuel_Specs!$B$15+Vehicles!$C$32*(1-Vehicles!$C$13)*Fuel_Specs!$B$18+Vehicles!$C$13*IF(Inputs!$E$499=1,IF(Inputs!$E$499=1,Fuel_Specs!$B$36,IF(Inputs!$E$499=3,Fuel_Specs!$B$38,Fuel_Specs!$B$37)),Fuel_Specs!$B$37))*(Petroleum!B230*Petroleum!$J$218+Petroleum!$J230)+Vehicles!$C$32*(1-Vehicles!$C$13)*Fuel_Specs!$B$18/((1-Vehicles!$C$32)*(1-Vehicles!$C$13)*Fuel_Specs!$B$15+Vehicles!$C$32*(1-Vehicles!$C$13)*Fuel_Specs!$B$18+Vehicles!$C$13*IF(Inputs!$E$499=1,IF(Inputs!$E$499=1,Fuel_Specs!$B$36,IF(Inputs!$E$499=3,Fuel_Specs!$B$38,Fuel_Specs!$B$37)),Fuel_Specs!$B$37))*(Petroleum!B230*Petroleum!$K$218+Petroleum!$K230)+Vehicles!$C$13*IF(Inputs!$E$499=1,IF(Inputs!$E$499=1,Fuel_Specs!$B$36,IF(Inputs!$E$499=3,Fuel_Specs!$B$38,Fuel_Specs!$B$37)),Fuel_Specs!$B$37)/((1-Vehicles!$C$32)*(1-Vehicles!$C$13)*Fuel_Specs!$B$15+Vehicles!$C$32*(1-Vehicles!$C$13)*Fuel_Specs!$B$18+Vehicles!$C$13*IF(Inputs!$E$499=1,IF(Inputs!$E$499=1,Fuel_Specs!$B$36,IF(Inputs!$E$499=3,Fuel_Specs!$B$38,Fuel_Specs!$B$37)),Fuel_Specs!$B$37))*(BioOil!$BE326*BioOil!$BF$313+BioOil!$BF326))/1000000*HLOOKUP($I$10,$Y$5:$AC$6,2,FALSE)/HLOOKUP($I$11,$Y$7:$AC$8,2,FALSE) -> 22.4837166 | AG21: =((1-Vehicles!$C$32)*(1-Vehicles!$C$13)*Fuel_Specs!$B$15/((1-Vehicles!$C$32)*(1-Vehicles!$C$13)*Fuel_Specs!$B$15+Vehicles!$C$32*(1-Vehicles!$C$13)*Fuel_Specs!$B$18+Vehicles!$C$13*IF(Inputs!$E$499=1,Fuel_Specs!$B$36,Fuel_Specs!$B$37))*(Petroleum!B230*Petroleum!$J$218+Petroleum!$J230)+Vehicles!$C$32*(1-Vehicles!$C$13)*Fuel_Specs!$B$18/((1-Vehicles!$C$32)*(1-Vehicles!$C$13)*Fuel_Specs!$B$15+Vehicles!$C$32*(1-Vehicles!$C$13)*Fuel_Specs!$B$18+Vehicles!$C$13*IF(Inputs!$E$499=1,Fuel_Specs!$B$36,Fuel_Specs!$B$37))*(Petroleum!B230*Petroleum!$K$218+Petroleum!$K230)+Vehicles!$C$13*IF(Inputs!$E$499=1,Fuel_Specs!$B$36,Fuel_Specs!$B$37)/((1-Vehicles!$C$32)*(1-Vehicles!$C$13)*Fuel_Specs!$B$15+Vehicles!$C$32*(1-Vehicles!$C$13)*Fuel_Specs!$B$18+Vehicles!$C$13*IF(Inputs!$E$499=1,Fuel_Specs!$B$36,Fuel_Specs!$B$37))*(Pyrolysis!$AB178*Pyrolysis!$AC$166+Pyrolysis!$AC178))/1000000*HLOOKUP($I$10,$Y$5:$AC$6,2,FALSE)/HLOOKUP($I$11,$Y$7:$AC$8,2,FALSE) -> 68.49850804 | AH21: =(((1-Vehicles!$C$33)*(1-Vehicles!$C$15-Vehicles!$C$16)*Fuel_Specs!$B$15*(Petroleum!B230*Petroleum!$J$218+Petroleum!$J230)+Vehicles!$C$33*(1-Vehicles!$C$15-Vehicles!$C$16)*Fuel_Specs!$B$18*(Petroleum!B230*Petroleum!$K$218+Petroleum!$K230)+Vehicles!$C$15*Fuel_Specs!$B$26*(EtOH!BE413*EtOH!$BF$401+EtOH!$BF413)+Vehicles!$C$16*Fuel_Specs!$B$29*('E-D Additives'!$B60*'E-D Additives'!$B$48))/((1-Vehicles!$C$33)*(1-Vehicles!$C$15-Vehicles!$C$16)*Fuel_Specs!$B$15+Vehicles!$C$33*(1-Vehicles!$C$15-Vehicles!$C$16)*Fuel_Specs!$B$18+Vehicles!$C$15*Fuel_Specs!$B$26+Vehicles!$C$16*Fuel_Specs!$B$29))/1000000*HLOOKUP($I$10,$Y$5:$AC$6,2,FALSE)/HLOOKUP($I$11,$Y$7:$AC$8,2,FALSE) -> 123.3352108 | AI21: =AN21*(Vehicles!$M$21/Vehicles!$CI$53)/(Vehicles!$M$21*(1/Vehicles!$CI$53+1/Vehicles!$CJ$53)+Vehicles!$M$22/Vehicles!$CK$53)+E21*(Vehicles!$M$21/Vehicles!$CJ$53+Vehicles!$M$22/Vehicles!$CK$53)/(Vehicles!$M$21*(1/Vehicles!$CI$53+1/Vehicles!$CJ$53)+Vehicles!$M$22/Vehicles!$CK$53) -> 174.6477792 | AJ21: =AN21*(Vehicles!$N$21/Vehicles!$CM$53)/(Vehicles!$N$21*(1/Vehicles!$CM$53+1/Vehicles!$CN$53)+Vehicles!$N$22/Vehicles!$CO$53)+AC21*(Vehicles!$N$21/Vehicles!$CN$53+Vehicles!$N$22/Vehicles!$CO$53)/(Vehicles!$N$21*(1/Vehicles!$CM$53+1/Vehicles!$CN$53)+Vehicles!$N$22/Vehicles!$CO$53) -> 201.5873796 | AK21: =AN21*(Vehicles!$O$21/Vehicles!$CQ$53)/(Vehicles!$O$21*(1/Vehicles!$CQ$53+1/Vehicles!$CR$53)+Vehicles!$O$22/Vehicles!$CS$53)+AD21*(Vehicles!$O$21/Vehicles!$CR$53+Vehicles!$O$22/Vehicles!$CS$53)/(Vehicles!$O$21*(1/Vehicles!$CQ$53+1/Vehicles!$CR$53)+Vehicles!$O$22/Vehicles!$CS$53) -> 219.0966015 | AL21: =AN21*(Vehicles!$P$21/Vehicles!$CU$53)/(Vehicles!$P$21*(1/Vehicles!$CU$53+1/Vehicles!$CV$53)+Vehicles!$P$22/Vehicles!$CW$53)+AE21*(Vehicles!$P$21/Vehicles!$CV$53+Vehicles!$P$22/Vehicles!$CW$53)/(Vehicles!$P$21*(1/Vehicles!$CU$53+1/Vehicles!$CV$53)+Vehicles!$P$22/Vehicles!$CW$53) -> 162.6308172 | AM21: =AN21*(Vehicles!$R$21/Vehicles!$DC$53)/(Vehicles!$R$21*(1/Vehicles!$DC$53+1/Vehicles!$DD$53)+Vehicles!$R$22/Vehicles!$DE$53)+AH21*(Vehicles!$R$21/Vehicles!$DD$53+Vehicles!$R$22/Vehicles!$DE$53)/(Vehicles!$R$21*(1/Vehicles!$DC$53+1/Vehicles!$DD$53)+Vehicles!$R$22/Vehicles!$DE$53) -> 173.2498299 | AN21: =(Electric!$G182+Electric!$F182)/1000000*HLOOKUP($I$10,$Y$5:$AC$6,2,FALSE)/HLOOKUP($I$11,$Y$7:$AC$8,2,FALSE) -> 330.9080274 | AO21: =(Hydrogen!$Z159*Hydrogen!$AA$147+Hydrogen!$AA159)/1000000*HLOOKUP($I$10,$Y$5:$AC$6,2,FALSE)/HLOOKUP($I$11,$Y$7:$AC$8,2,FALSE) -> 462.604249 | AP21: =(Hydrogen!$AX159*Hydrogen!$AY$147+Hydrogen!$AY159)/1000000*HLOOKUP($I$10,$Y$5:$AC$6,2,FALSE)/HLOOKUP($I$11,$Y$7:$AC$8,2,FALSE) -> 450.460016 | AQ21: =AN21*(Vehicles!$S$21/Vehicles!$DS$53)/(Vehicles!$S$21*(1/Vehicles!$DS$53+1/Vehicles!$DT$53)+Vehicles!$S$22/Vehicles!$DU$53)+AO21*(Vehicles!$S$21/Vehicles!$DT$53+Vehicles!$S$22/Vehicles!$DU$53)/(Vehicles!$S$21*(1/Vehicles!$DS$53+1/Vehicles!$DT$53)+Vehicles!$S$22/Vehicles!$DU$53) -> 422.4012508 | AR21: =AN21*(Vehicles!$S$21/Vehicles!$DS$53)/(Vehicles!$S$21*(1/Vehicles!$DS$53+1/Vehicles!$DT$53)+Vehicles!$S$22/Vehicles!$DU$53)+AP21*(Vehicles!$S$21/Vehicles!$DT$53+Vehicles!$S$22/Vehicles!$DU$53)/(Vehicles!$S$21*(1/Vehicles!$DS$53+1/Vehicles!$DT$53)+Vehicles!$S$22/Vehicles!$DU$53) -> 413.9642964
A22: N2O | B22: =(Inputs!$E$1056*(Petroleum!$B231*Petroleum!$F$218+Petroleum!$F231)+(1-Inputs!$E$1056)*(Petroleum!$B231*Petroleum!$D$218+Petroleum!$D231))/1000000*HLOOKUP($I$10,$Y$5:$AC$6,2,FALSE)/HLOOKUP($I$11,$Y$7:$AC$8,2,FALSE) -> 3.134400662 | C22: =(Petroleum!$C231*Petroleum!$G$218+Petroleum!$G231)/1000000*HLOOKUP($I$10,$Y$5:$AC$6,2,FALSE)/HLOOKUP($I$11,$Y$7:$AC$8,2,FALSE) -> 3.177775413 | D22: =((1-Vehicles!$C$26)*(1-Vehicles!$C$7)*Fuel_Specs!$B$11/((1-Vehicles!$C$26)*(1-Vehicles!$C$7)*Fuel_Specs!$B$11+Vehicles!$C$26*(1-Vehicles!$C$7)*Fuel_Specs!$B$13+Vehicles!$C$7*Fuel_Specs!$B$26)*(Petroleum!$B231*Petroleum!$D$218+Petroleum!$D231)+Vehicles!$C$26*(1-Vehicles!$C$7)*Fuel_Specs!$B$13/((1-Vehicles!$C$26)*(1-Vehicles!$C$7)*Fuel_Specs!$B$11+Vehicles!$C$26*(1-Vehicles!$C$7)*Fuel_Specs!$B$13+Vehicles!$C$7*Fuel_Specs!$B$26)*(Petroleum!B231*Petroleum!$F$218+Petroleum!$F231)+Vehicles!$C$7*Fuel_Specs!$B$26/((1-Vehicles!$C$26)*(1-Vehicles!$C$7)*Fuel_Specs!$B$11+Vehicles!$C$26*(1-Vehicles!$C$7)*Fuel_Specs!$B$13+Vehicles!$C$7*Fuel_Specs!$B$26)*(EtOH!BE414*EtOH!$BF$401+EtOH!$BF414))/1000000*HLOOKUP($I$10,$Y$5:$AC$6,2,FALSE)/HLOOKUP($I$11,$Y$7:$AC$8,2,FALSE) -> 3.134163862 | E22: =(Inputs!$E$88*(IF(Inputs!F$92=1,Petroleum!$B231,Petroleum!$C231)*Petroleum!$K$218+Petroleum!$K231)+(1-Inputs!$E$88)*(IF(Inputs!F$91=1,Petroleum!$B231,Petroleum!$C231)*Petroleum!$J$218+Petroleum!$J231))/1000000*HLOOKUP($I$10,$Y$5:$AC$6,2,FALSE)/HLOOKUP($I$11,$Y$7:$AC$8,2,FALSE) -> 0.3859484512 | F22: =(NG!$H93*NG!$I$80+NG!$I93)/1000000*HLOOKUP($I$10,$Y$5:$AC$6,2,FALSE)/HLOOKUP($I$11,$Y$7:$AC$8,2,FALSE) -> 2.155923005 | G22: =(NG!$P93*NG!$Q$80+NG!$Q93)/1000000*HLOOKUP($I$10,$Y$5:$AC$6,2,FALSE)/HLOOKUP($I$11,$Y$7:$AC$8,2,FALSE) -> 2.325145332 | H22: =(NG!$V93*NG!$W$80+NG!$W93)/1000000*HLOOKUP($I$10,$Y$5:$AC$6,2,FALSE)/HLOOKUP($I$11,$Y$7:$AC$8,2,FALSE) -> 0.2303090469 | I22: =('MeOH&FTD'!AV145*'MeOH&FTD'!AW$132+'MeOH&FTD'!AW145)/1000000*HLOOKUP($I$10,$Y$5:$AC$6,2,FALSE)/HLOOKUP($I$11,$Y$7:$AC$8,2,FALSE) -> 0.05078348128 | J22: =((1-Vehicles!$C$25)*(1-Vehicles!$C$5)*Fuel_Specs!$B$11/((1-Vehicles!$C$25)*(1-Vehicles!$C$5)*Fuel_Specs!$B$11+Vehicles!$C$25*(1-Vehicles!$C$5)*Fuel_Specs!$B$13+Vehicles!$C$5*Fuel_Specs!$B$25)*(Petroleum!$B231*Petroleum!$D$218+Petroleum!$D231)+Vehicles!$C$25*(1-Vehicles!$C$5)*Fuel_Specs!$B$13/((1-Vehicles!$C$25)*(1-Vehicles!$C$5)*Fuel_Specs!$B$11+Vehicles!$C$25*(1-Vehicles!$C$5)*Fuel_Specs!$B$13+Vehicles!$C$5*Fuel_Specs!$B$25)*(Petroleum!B231*Petroleum!$F$218+Petroleum!$F231)+Vehicles!$C$5*Fuel_Specs!$B$25/((1-Vehicles!$C$25)*(1-Vehicles!$C$5)*Fuel_Specs!$B$11+Vehicles!$C$25*(1-Vehicles!$C$5)*Fuel_Specs!$B$13+Vehicles!$C$5*Fuel_Specs!$B$25)*('MeOH&FTD'!$L145*'MeOH&FTD'!$M$132+'MeOH&FTD'!$M145))/1000000*HLOOKUP($I$10,$Y$5:$AC$6,2,FALSE)/HLOOKUP($I$11,$Y$7:$AC$8,2,FALSE) -> 0.3556925358 | K22: =((1-Vehicles!$C$25)*(1-Vehicles!$C$6)*Fuel_Specs!$B$11/((1-Vehicles!$C$25)*(1-Vehicles!$C$6)*Fuel_Specs!$B$11+Vehicles!$C$25*(1-Vehicles!$C$6)*Fuel_Specs!$B$13+Vehicles!$C$6*Fuel_Specs!$B$25)*(Petroleum!$B231*Petroleum!$D$218+Petroleum!$D231)+Vehicles!$C$25*(1-Vehicles!$C$6)*Fuel_Specs!$B$13/((1-Vehicles!$C$25)*(1-Vehicles!$C$6)*Fuel_Specs!$B$11+Vehicles!$C$25*(1-Vehicles!$C$6)*Fuel_Specs!$B$13+Vehicles!$C$6*Fuel_Specs!$B$25)*(Petroleum!B231*Petroleum!$F$218+Petroleum!$F231)+Vehicles!$C$6*Fuel_Specs!$B$25/((1-Vehicles!$C$25)*(1-Vehicles!$C$6)*Fuel_Specs!$B$11+Vehicles!$C$25*(1-Vehicles!$C$6)*Fuel_Specs!$B$13+Vehicles!$C$6*Fuel_Specs!$B$25)*('MeOH&FTD'!$L145*'MeOH&FTD'!$M$132+'MeOH&FTD'!$M145))/1000000*HLOOKUP($I$10,$Y$5:$AC$6,2,FALSE)/HLOOKUP($I$11,$Y$7:$AC$8,2,FALSE) -> 0.3597541545 | L22: =('MeOH&FTD'!$L145*'MeOH&FTD'!$M$132+'MeOH&FTD'!$M145)/1000000*HLOOKUP($I$10,$Y$5:$AC$6,2,FALSE)/HLOOKUP($I$11,$Y$7:$AC$8,2,FALSE) -> 0.3691297186 | M22: =((1-Vehicles!$C$27)*(1-Vehicles!$C$8)*Fuel_Specs!$B$11/((1-Vehicles!$C$27)*(1-Vehicles!$C$8)*Fuel_Specs!$B$11+Vehicles!$C$27*(1-Vehicles!$C$8)*Fuel_Specs!$B$13+Vehicles!$C$8*Fuel_Specs!$B$26)*(Petroleum!$B231*Petroleum!$D$218+Petroleum!$D231)+Vehicles!$C$27*(1-Vehicles!$C$8)*Fuel_Specs!$B$13/((1-Vehicles!$C$27)*(1-Vehicles!$C$8)*Fuel_Specs!$B$11+Vehicles!$C$27*(1-Vehicles!$C$8)*Fuel_Specs!$B$13+Vehicles!$C$8*Fuel_Specs!$B$26)*(Petroleum!B231*Petroleum!$F$218+Petroleum!$F231)+Vehicles!$C$8*Fuel_Specs!$B$26/((1-Vehicles!$C$27)*(1-Vehicles!$C$8)*Fuel_Specs!$B$11+Vehicles!$C$27*(1-Vehicles!$C$8)*Fuel_Specs!$B$13+Vehicles!$C$8*Fuel_Specs!$B$26)*(EtOH!BE414*EtOH!$BF$401+EtOH!$BF414))/1000000*HLOOKUP($I$10,$Y$5:$AC$6,2,FALSE)/HLOOKUP($I$11,$Y$7:$AC$8,2,FALSE) -> 32.68511277 | N22: =((1-Vehicles!$C$28)*(1-Vehicles!$C$10)*Fuel_Specs!$B$11/((1-Vehicles!$C$28)*(1-Vehicles!$C$10)*Fuel_Specs!$B$11+Vehicles!$C$28*(1-Vehicles!$C$10)*Fuel_Specs!$B$13+Vehicles!$C$10*Fuel_Specs!$B$27)*(Petroleum!$B231*Petroleum!$D$218+Petroleum!$D231)+Vehicles!$C$28*(1-Vehicles!$C$10)*Fuel_Specs!$B$13/((1-Vehicles!$C$28)*(1-Vehicles!$C$10)*Fuel_Specs!$B$11+Vehicles!$C$28*(1-Vehicles!$C$10)*Fuel_Specs!$B$13+Vehicles!$C$10*Fuel_Specs!$B$27)*(Petroleum!B231*Petroleum!$F$218+Petroleum!$F231)+Vehicles!$C$10*Fuel_Specs!$B$27/((1-Vehicles!$C$28)*(1-Vehicles!$C$10)*Fuel_Specs!$B$11+Vehicles!$C$28*(1-Vehicles!$C$10)*Fuel_Specs!$B$13+Vehicles!$C$10*Fuel_Specs!$B$27)*(EtOH!$BI414*EtOH!$BJ$401+EtOH!$BJ414))/1000000*HLOOKUP($I$10,$Y$5:$AC$6,2,FALSE)/HLOOKUP($I$11,$Y$7:$AC$8,2,FALSE) -> 36.60787557 | O22: =((1-Vehicles!$C$27)*(1-Vehicles!$C$9)*Fuel_Specs!$B$11/((1-Vehicles!$C$27)*(1-Vehicles!$C$9)*Fuel_Specs!$B$11+Vehicles!$C$27*(1-Vehicles!$C$9)*Fuel_Specs!$B$13+Vehicles!$C$9*Fuel_Specs!$B$26)*(Petroleum!$B231*Petroleum!$D$218+Petroleum!$D231)+Vehicles!$C$27*(1-Vehicles!$C$9)*Fuel_Specs!$B$13/((1-Vehicles!$C$27)*(1-Vehicles!$C$9)*Fuel_Specs!$B$11+Vehicles!$C$27*(1-Vehicles!$C$9)*Fuel_Specs!$B$13+Vehicles!$C$9*Fuel_Specs!$B$26)*(Petroleum!B231*Petroleum!$F$218+Petroleum!$F231)+Vehicles!$C$9*Fuel_Specs!$B$26/((1-Vehicles!$C$27)*(1-Vehicles!$C$9)*Fuel_Specs!$B$11+Vehicles!$C$27*(1-Vehicles!$C$9)*Fuel_Specs!$B$13+Vehicles!$C$9*Fuel_Specs!$B$26)*(EtOH!BE414*EtOH!$BF$401+EtOH!$BF414))/1000000*HLOOKUP($I$10,$Y$5:$AC$6,2,FALSE)/HLOOKUP($I$11,$Y$7:$AC$8,2,FALSE) -> 32.68511277 | P22: =(EtOH!$BE414*EtOH!$BF$401+EtOH!$BF414)/1000000*HLOOKUP($I$10,$Y$5:$AC$6,2,FALSE)/HLOOKUP($I$11,$Y$7:$AC$8,2,FALSE) -> 42.55411109 | Q22: =((1-Vehicles!$C$29)*(1-Vehicles!$C$14)*Fuel_Specs!$B$11/((1-Vehicles!$C$29)*(1-Vehicles!$C$14)*Fuel_Specs!$B$11+Vehicles!$C$29*(1-Vehicles!$C$14)*Fuel_Specs!$B$13+Vehicles!$C$14*Fuel_Specs!$B$39)*(Petroleum!$B231*Petroleum!$D$218+Petroleum!$D231)+Vehicles!$C$29*(1-Vehicles!$C$14)*Fuel_Specs!$B$13/((1-Vehicles!$C$29)*(1-Vehicles!$C$14)*Fuel_Specs!$B$11+Vehicles!$C$29*(1-Vehicles!$C$14)*Fuel_Specs!$B$13+Vehicles!$C$14*Fuel_Specs!$B$39)*(Petroleum!B231*Petroleum!$F$218+Petroleum!$F231)+Vehicles!$C$14*Fuel_Specs!$B$39/((1-Vehicles!$C$29)*(1-Vehicles!$C$14)*Fuel_Specs!$B$11+Vehicles!$C$29*(1-Vehicles!$C$14)*Fuel_Specs!$B$13+Vehicles!$C$14*Fuel_Specs!$B$39)*(BioOil!$BQ327*BioOil!$BR$313+BioOil!$BR327))/1000000*HLOOKUP($I$10,$Y$5:$AC$6,2,FALSE)/HLOOKUP($I$11,$Y$7:$AC$8,2,FALSE) -> 12.81643645 | R22: =((1-Vehicles!$C$29)*(1-Vehicles!$C$14)*Fuel_Specs!$B$11/((1-Vehicles!$C$29)*(1-Vehicles!$C$14)*Fuel_Specs!$B$11+Vehicles!$C$29*(1-Vehicles!$C$14)*Fuel_Specs!$B$13+Vehicles!$C$14*Fuel_Specs!$B$39)*(Petroleum!$B231*Petroleum!$D$218+Petroleum!$D231)+Vehicles!$C$29*(1-Vehicles!$C$14)*Fuel_Specs!$B$13/((1-Vehicles!$C$29)*(1-Vehicles!$C$14)*Fuel_Specs!$B$11+Vehicles!$C$29*(1-Vehicles!$C$14)*Fuel_Specs!$B$13+Vehicles!$C$14*Fuel_Specs!$B$39)*(Petroleum!B231*Petroleum!$F$218+Petroleum!$F231)+Vehicles!$C$14*Fuel_Specs!$B$39/((1-Vehicles!$C$29)*(1-Vehicles!$C$14)*Fuel_Specs!$B$11+Vehicles!$C$29*(1-Vehicles!$C$14)*Fuel_Specs!$B$13+Vehicles!$C$14*Fuel_Specs!$B$39)*(Pyrolysis!$Z179*Pyrolysis!$AA$166+Pyrolysis!$AA179))/1000000*HLOOKUP($I$10,$Y$5:$AC$6,2,FALSE)/HLOOKUP($I$11,$Y$7:$AC$8,2,FALSE) -> 0.5853928105 | S22: =AN22*(Vehicles!$C$21/Vehicles!$AN$53)/(Vehicles!$C$21*(1/Vehicles!$AN$53+1/Vehicles!$AO$53)+Vehicles!$C$22/Vehicles!$AP$53)+B22*(Vehicles!$C$21/Vehicles!$AO$53+Vehicles!$C$22/Vehicles!$AP$53)/(Vehicles!$C$21*(1/Vehicles!$AN$53+1/Vehicles!$AO$53)+Vehicles!$C$22/Vehicles!$AP$53) -> 3.24737998 | T22: =AN22*(Vehicles!$D$21/Vehicles!$AR$53)/(Vehicles!$D$21*(1/Vehicles!$AR$53+1/Vehicles!$AS$53)+Vehicles!$D$22/Vehicles!$AT$53)+C22*(Vehicles!$D$21/Vehicles!$AS$53+Vehicles!$D$22/Vehicles!$AT$53)/(Vehicles!$D$21*(1/Vehicles!$AR$53+1/Vehicles!$AS$53)+Vehicles!$D$22/Vehicles!$AT$53) -> 3.280698667 | U22: =AN22*(Vehicles!$F$21/Vehicles!$AZ$53)/(Vehicles!$F$21*(1/Vehicles!$AZ$53+1/Vehicles!$BA$53)+Vehicles!$F$22/Vehicles!$BB$53)+D22*(Vehicles!$F$21/Vehicles!$BA$53+Vehicles!$F$22/Vehicles!$BB$53)/(Vehicles!$F$21*(1/Vehicles!$AZ$53+1/Vehicles!$BA$53)+Vehicles!$F$22/Vehicles!$BB$53) -> 3.24719808 | V22: =AN22*(Vehicles!$G$21/Vehicles!$BD$53)/(Vehicles!$G$21*(1/Vehicles!$BD$53+1/Vehicles!$BE$53)+Vehicles!$G$22/Vehicles!$BF$53)+F22*(Vehicles!$G$21/Vehicles!$BE$53+Vehicles!$G$22/Vehicles!$BF$53)/(Vehicles!$G$21*(1/Vehicles!$BD$53+1/Vehicles!$BE$53)+Vehicles!$G$22/Vehicles!$BF$53) -> 2.495753983 | W22: =AN22*(Vehicles!$H$21/Vehicles!$BH$53)/(Vehicles!$H$21*(1/Vehicles!$BH$53+1/Vehicles!$BI$53)+Vehicles!$H$22/Vehicles!$BJ$53)+G22*(Vehicles!$H$21/Vehicles!$BI$53+Vehicles!$H$22/Vehicles!$BJ$53)/(Vehicles!$H$21*(1/Vehicles!$BH$53+1/Vehicles!$BI$53)+Vehicles!$H$22/Vehicles!$BJ$53) -> 2.625743563 | X22: =AN22*(Vehicles!$I$21/Vehicles!$BL$53)/(Vehicles!$I$21*(1/Vehicles!$BL$53+1/Vehicles!$BM$53)+Vehicles!$I$22/Vehicles!$BN$53)+H22*(Vehicles!$I$21/Vehicles!$BM$53+Vehicles!$I$22/Vehicles!$BN$53)/(Vehicles!$I$21*(1/Vehicles!$BL$53+1/Vehicles!$BM$53)+Vehicles!$I$22/Vehicles!$BN$53) -> 1.016577119 | Y22: =AN22*(Vehicles!$J$21/Vehicles!$BP$53)/(Vehicles!$J$21*(1/Vehicles!$BP$53+1/Vehicles!$BQ$53)+Vehicles!$J$22/Vehicles!$BR$53)+K22*(Vehicles!$J$21/Vehicles!$BQ$53+Vehicles!$J$22/Vehicles!$BR$53)/(Vehicles!$J$21*(1/Vehicles!$BP$53+1/Vehicles!$BQ$53)+Vehicles!$J$22/Vehicles!$BR$53) -> 1.116011488 | Z22: =AN22*(Vehicles!$K$21/Vehicles!$BT$53)/(Vehicles!$K$21*(1/Vehicles!$BT$53+1/Vehicles!$BU$53)+Vehicles!$K$22/Vehicles!$BV$53)+O22*(Vehicles!$K$21/Vehicles!$BU$53+Vehicles!$K$22/Vehicles!$BV$53)/(Vehicles!$K$21*(1/Vehicles!$BT$53+1/Vehicles!$BU$53)+Vehicles!$K$22/Vehicles!$BV$53) -> 26.28237387 | AA22: =AN22*(Vehicles!$L$21/Vehicles!$BX$53)/(Vehicles!$L$21*(1/Vehicles!$BX$53+1/Vehicles!$BY$53)+Vehicles!$L$22/Vehicles!$BZ$53)+AO22*(Vehicles!$L$21/Vehicles!$BY$53+Vehicles!$L$22/Vehicles!$BZ$53)/(Vehicles!$L$21*(1/Vehicles!$BX$53+1/Vehicles!$BY$53)+Vehicles!$L$22/Vehicles!$BZ$53) -> 2.859066188 | AB22: =AN22*(Vehicles!$L$21/Vehicles!$BX$53)/(Vehicles!$L$21*(1/Vehicles!$BX$53+1/Vehicles!$BY$53)+Vehicles!$L$22/Vehicles!$CA$53)+AP22*(Vehicles!$L$21/Vehicles!$BY$53+Vehicles!$L$22/Vehicles!$CA$53)/(Vehicles!$L$21*(1/Vehicles!$BX$53+1/Vehicles!$BY$53)+Vehicles!$L$22/Vehicles!$CA$53) -> 3.887388689 | AC22: =('MeOH&FTD'!$X145*'MeOH&FTD'!$Y$132+'MeOH&FTD'!$Y145)/1000000*HLOOKUP($I$10,$Y$5:$AC$6,2,FALSE)/HLOOKUP($I$11,$Y$7:$AC$8,2,FALSE) -> 0.188515669 | AD22: =((1-Vehicles!$C$30)*(1-Vehicles!$C$11)*Fuel_Specs!$B$15/((1-Vehicles!$C$30)*(1-Vehicles!$C$11)*Fuel_Specs!$B$15+Vehicles!$C$30*(1-Vehicles!$C$11)*Fuel_Specs!$B$18+Vehicles!$C$11*Fuel_Specs!$B$35)*(Petroleum!B231*Petroleum!$J$218+Petroleum!$J231)+Vehicles!$C$30*(1-Vehicles!$C$11)*Fuel_Specs!$B$18/((1-Vehicles!$C$30)*(1-Vehicles!$C$11)*Fuel_Specs!$B$15+Vehicles!$C$30*(1-Vehicles!$C$11)*Fuel_Specs!$B$18+Vehicles!$C$11*Fuel_Specs!$B$35)*(Petroleum!B231*Petroleum!$K$218+Petroleum!$K231)+Vehicles!$C$11*Fuel_Specs!$B$35/((1-Vehicles!$C$30)*(1-Vehicles!$C$11)*Fuel_Specs!$B$15+Vehicles!$C$30*(1-Vehicles!$C$11)*Fuel_Specs!$B$18+Vehicles!$C$11*Fuel_Specs!$B$35)*('MeOH&FTD'!$AL145*'MeOH&FTD'!$AM$132+'MeOH&FTD'!$AM145))/1000000*HLOOKUP($I$10,$Y$5:$AC$6,2,FALSE)/HLOOKUP($I$11,$Y$7:$AC$8,2,FALSE) -> 0.06639791261 | AE22: =((1-Vehicles!$C$31)*(1-Vehicles!$C$12)*Fuel_Specs!$B$15/((1-Vehicles!$C$31)*(1-Vehicles!$C$12)*Fuel_Specs!$B$15+Vehicles!$C$31*(1-Vehicles!$C$12)*Fuel_Specs!$B$18+Vehicles!$C$12*Fuel_Specs!$B$34)*(Petroleum!B231*Petroleum!$J$218+Petroleum!$J231)+Vehicles!$C$31*(1-Vehicles!$C$12)*Fuel_Specs!$B$18/((1-Vehicles!$C$31)*(1-Vehicles!$C$12)*Fuel_Specs!$B$15+Vehicles!$C$31*(1-Vehicles!$C$12)*Fuel_Specs!$B$18+Vehicles!$C$12*Fuel_Specs!$B$34)*(Petroleum!B231*Petroleum!$K$218+Petroleum!$K231)+Vehicles!$C$12*Fuel_Specs!$B$34/((1-Vehicles!$C$31)*(1-Vehicles!$C$12)*Fuel_Specs!$B$15+Vehicles!$C$31*(1-Vehicles!$C$12)*Fuel_Specs!$B$18+Vehicles!$C$12*Fuel_Specs!$B$34)*(BioOil!$Y327*BioOil!$Z$313+BioOil!$Z327))/1000000*HLOOKUP($I$10,$Y$5:$AC$6,2,FALSE)/HLOOKUP($I$11,$Y$7:$AC$8,2,FALSE) -> 1.519760499 | AF22: =((1-Vehicles!$C$32)*(1-Vehicles!$C$13)*Fuel_Specs!$B$15/((1-Vehicles!$C$32)*(1-Vehicles!$C$13)*Fuel_Specs!$B$15+Vehicles!$C$32*(1-Vehicles!$C$13)*Fuel_Specs!$B$18+Vehicles!$C$13*IF(Inputs!$E$499=1,IF(Inputs!$E$499=1,Fuel_Specs!$B$36,IF(Inputs!$E$499=3,Fuel_Specs!$B$38,Fuel_Specs!$B$37)),Fuel_Specs!$B$37))*(Petroleum!B231*Petroleum!$J$218+Petroleum!$J231)+Vehicles!$C$32*(1-Vehicles!$C$13)*Fuel_Specs!$B$18/((1-Vehicles!$C$32)*(1-Vehicles!$C$13)*Fuel_Specs!$B$15+Vehicles!$C$32*(1-Vehicles!$C$13)*Fuel_Specs!$B$18+Vehicles!$C$13*IF(Inputs!$E$499=1,IF(Inputs!$E$499=1,Fuel_Specs!$B$36,IF(Inputs!$E$499=3,Fuel_Specs!$B$38,Fuel_Specs!$B$37)),Fuel_Specs!$B$37))*(Petroleum!B231*Petroleum!$K$218+Petroleum!$K231)+Vehicles!$C$13*IF(Inputs!$E$499=1,IF(Inputs!$E$499=1,Fuel_Specs!$B$36,IF(Inputs!$E$499=3,Fuel_Specs!$B$38,Fuel_Specs!$B$37)),Fuel_Specs!$B$37)/((1-Vehicles!$C$32)*(1-Vehicles!$C$13)*Fuel_Specs!$B$15+Vehicles!$C$32*(1-Vehicles!$C$13)*Fuel_Specs!$B$18+Vehicles!$C$13*IF(Inputs!$E$499=1,IF(Inputs!$E$499=1,Fuel_Specs!$B$36,IF(Inputs!$E$499=3,Fuel_Specs!$B$38,Fuel_Specs!$B$37)),Fuel_Specs!$B$37))*(BioOil!$BE327*BioOil!$BF$313+BioOil!$BF327))/1000000*HLOOKUP($I$10,$Y$5:$AC$6,2,FALSE)/HLOOKUP($I$11,$Y$7:$AC$8,2,FALSE) -> 5.308790508 | AG22: =((1-Vehicles!$C$32)*(1-Vehicles!$C$13)*Fuel_Specs!$B$15/((1-Vehicles!$C$32)*(1-Vehicles!$C$13)*Fuel_Specs!$B$15+Vehicles!$C$32*(1-Vehicles!$C$13)*Fuel_Specs!$B$18+Vehicles!$C$13*IF(Inputs!$E$499=1,Fuel_Specs!$B$36,Fuel_Specs!$B$37))*(Petroleum!B231*Petroleum!$J$218+Petroleum!$J231)+Vehicles!$C$32*(1-Vehicles!$C$13)*Fuel_Specs!$B$18/((1-Vehicles!$C$32)*(1-Vehicles!$C$13)*Fuel_Specs!$B$15+Vehicles!$C$32*(1-Vehicles!$C$13)*Fuel_Specs!$B$18+Vehicles!$C$13*IF(Inputs!$E$499=1,Fuel_Specs!$B$36,Fuel_Specs!$B$37))*(Petroleum!B231*Petroleum!$K$218+Petroleum!$K231)+Vehicles!$C$13*IF(Inputs!$E$499=1,Fuel_Specs!$B$36,Fuel_Specs!$B$37)/((1-Vehicles!$C$32)*(1-Vehicles!$C$13)*Fuel_Specs!$B$15+Vehicles!$C$32*(1-Vehicles!$C$13)*Fuel_Specs!$B$18+Vehicles!$C$13*IF(Inputs!$E$499=1,Fuel_Specs!$B$36,Fuel_Specs!$B$37))*(Pyrolysis!$AB179*Pyrolysis!$AC$166+Pyrolysis!$AC179))/1000000*HLOOKUP($I$10,$Y$5:$AC$6,2,FALSE)/HLOOKUP($I$11,$Y$7:$AC$8,2,FALSE) -> 0.5988673482 | AH22: =(((1-Vehicles!$C$33)*(1-Vehicles!$C$15-Vehicles!$C$16)*Fuel_Specs!$B$15*(Petroleum!B231*Petroleum!$J$218+Petroleum!$J231)+Vehicles!$C$33*(1-Vehicles!$C$15-Vehicles!$C$16)*Fuel_Specs!$B$18*(Petroleum!B231*Petroleum!$K$218+Petroleum!$K231)+Vehicles!$C$15*Fuel_Specs!$B$26*(EtOH!BE414*EtOH!$BF$401+EtOH!$BF414)+Vehicles!$C$16*Fuel_Specs!$B$29*('E-D Additives'!$B61*'E-D Additives'!$B$48))/((1-Vehicles!$C$33)*(1-Vehicles!$C$15-Vehicles!$C$16)*Fuel_Specs!$B$15+Vehicles!$C$33*(1-Vehicles!$C$15-Vehicles!$C$16)*Fuel_Specs!$B$18+Vehicles!$C$15*Fuel_Specs!$B$26+Vehicles!$C$16*Fuel_Specs!$B$29))/1000000*HLOOKUP($I$10,$Y$5:$AC$6,2,FALSE)/HLOOKUP($I$11,$Y$7:$AC$8,2,FALSE) -> 3.022352182 | AI22: =AN22*(Vehicles!$M$21/Vehicles!$CI$53)/(Vehicles!$M$21*(1/Vehicles!$CI$53+1/Vehicles!$CJ$53)+Vehicles!$M$22/Vehicles!$CK$53)+E22*(Vehicles!$M$21/Vehicles!$CJ$53+Vehicles!$M$22/Vehicles!$CK$53)/(Vehicles!$M$21*(1/Vehicles!$CI$53+1/Vehicles!$CJ$53)+Vehicles!$M$22/Vehicles!$CK$53) -> 1.164046399 | AJ22: =AN22*(Vehicles!$N$21/Vehicles!$CM$53)/(Vehicles!$N$21*(1/Vehicles!$CM$53+1/Vehicles!$CN$53)+Vehicles!$N$22/Vehicles!$CO$53)+AC22*(Vehicles!$N$21/Vehicles!$CN$53+Vehicles!$N$22/Vehicles!$CO$53)/(Vehicles!$N$21*(1/Vehicles!$CM$53+1/Vehicles!$CN$53)+Vehicles!$N$22/Vehicles!$CO$53) -> 1.014089882 | AK22: =AN22*(Vehicles!$O$21/Vehicles!$CQ$53)/(Vehicles!$O$21*(1/Vehicles!$CQ$53+1/Vehicles!$CR$53)+Vehicles!$O$22/Vehicles!$CS$53)+AD22*(Vehicles!$O$21/Vehicles!$CR$53+Vehicles!$O$22/Vehicles!$CS$53)/(Vehicles!$O$21*(1/Vehicles!$CQ$53+1/Vehicles!$CR$53)+Vehicles!$O$22/Vehicles!$CS$53) -> 0.9213375377 | AL22: =AN22*(Vehicles!$P$21/Vehicles!$CU$53)/(Vehicles!$P$21*(1/Vehicles!$CU$53+1/Vehicles!$CV$53)+Vehicles!$P$22/Vehicles!$CW$53)+AE22*(Vehicles!$P$21/Vehicles!$CV$53+Vehicles!$P$22/Vehicles!$CW$53)/(Vehicles!$P$21*(1/Vehicles!$CU$53+1/Vehicles!$CV$53)+Vehicles!$P$22/Vehicles!$CW$53) -> 2.025212937 | AM22: =AN22*(Vehicles!$R$21/Vehicles!$DC$53)/(Vehicles!$R$21*(1/Vehicles!$DC$53+1/Vehicles!$DD$53)+Vehicles!$R$22/Vehicles!$DE$53)+AH22*(Vehicles!$R$21/Vehicles!$DD$53+Vehicles!$R$22/Vehicles!$DE$53)/(Vehicles!$R$21*(1/Vehicles!$DC$53+1/Vehicles!$DD$53)+Vehicles!$R$22/Vehicles!$DE$53) -> 3.16647941 | AN22: =(Electric!$G183+Electric!$F183)/1000000*HLOOKUP($I$10,$Y$5:$AC$6,2,FALSE)/HLOOKUP($I$11,$Y$7:$AC$8,2,FALSE) -> 3.621713556 | AO22: =(Hydrogen!$Z160*Hydrogen!$AA$147+Hydrogen!$AA160)/1000000*HLOOKUP($I$10,$Y$5:$AC$6,2,FALSE)/HLOOKUP($I$11,$Y$7:$AC$8,2,FALSE) -> 2.609552646 | AP22: =(Hydrogen!$AX160*Hydrogen!$AY$147+Hydrogen!$AY160)/1000000*HLOOKUP($I$10,$Y$5:$AC$6,2,FALSE)/HLOOKUP($I$11,$Y$7:$AC$8,2,FALSE) -> 3.974308996 | AQ22: =AN22*(Vehicles!$S$21/Vehicles!$DS$53)/(Vehicles!$S$21*(1/Vehicles!$DS$53+1/Vehicles!$DT$53)+Vehicles!$S$22/Vehicles!$DU$53)+AO22*(Vehicles!$S$21/Vehicles!$DT$53+Vehicles!$S$22/Vehicles!$DU$53)/(Vehicles!$S$21*(1/Vehicles!$DS$53+1/Vehicles!$DT$53)+Vehicles!$S$22/Vehicles!$DU$53) -> 2.918535719 | AR22: =AN22*(Vehicles!$S$21/Vehicles!$DS$53)/(Vehicles!$S$21*(1/Vehicles!$DS$53+1/Vehicles!$DT$53)+Vehicles!$S$22/Vehicles!$DU$53)+AP22*(Vehicles!$S$21/Vehicles!$DT$53+Vehicles!$S$22/Vehicles!$DU$53)/(Vehicles!$S$21*(1/Vehicles!$DS$53+1/Vehicles!$DT$53)+Vehicles!$S$22/Vehicles!$DU$53) -> 3.866671938
A23: GHGs | B23: =(B21*Fuel_Specs!$B$85+B22*Fuel_Specs!$B$86+B20*Fuel_Specs!$B$84) -> 19530.82204 | C23: =(C21*Fuel_Specs!$B$85+C22*Fuel_Specs!$B$86+C20*Fuel_Specs!$B$84) -> 25585.39102 | D23: =(D21*Fuel_Specs!$B$85+D22*Fuel_Specs!$B$86+D20*Fuel_Specs!$B$84) -> 19513.97496 | E23: =(E21*Fuel_Specs!$B$85+E22*Fuel_Specs!$B$86+E20*Fuel_Specs!$B$84) -> 25287.21846 | F23: =(F21*Fuel_Specs!$B$85+F22*Fuel_Specs!$B$86+F20*Fuel_Specs!$B$84) -> 20579.40145 | G23: =(G21*Fuel_Specs!$B$85+G22*Fuel_Specs!$B$86+G20*Fuel_Specs!$B$84) -> 24550.11344 | H23: =(H21*Fuel_Specs!$B$85+H22*Fuel_Specs!$B$86+H20*Fuel_Specs!$B$84) -> 17359.45061 | I23: =(I21*Fuel_Specs!$B$85+I22*Fuel_Specs!$B$86+I20*Fuel_Specs!$B$84) -> 38769.46822 | J23: =(J21*Fuel_Specs!$B$85+J22*Fuel_Specs!$B$86+J20*Fuel_Specs!$B$84) -> 28767.84775 | K23: =(K21*Fuel_Specs!$B$85+K22*Fuel_Specs!$B$86+K20*Fuel_Specs!$B$84) -> 29482.63375 | L23: =(L21*Fuel_Specs!$B$85+L22*Fuel_Specs!$B$86+L20*Fuel_Specs!$B$84) -> 31132.59705 | M23: =(M21*Fuel_Specs!$B$85+M22*Fuel_Specs!$B$86+M20*Fuel_Specs!$B$84) -> -8247.713233 | N23: =(N21*Fuel_Specs!$B$85+N22*Fuel_Specs!$B$86+N20*Fuel_Specs!$B$84) -> -12460.02121 | O23: =(O21*Fuel_Specs!$B$85+O22*Fuel_Specs!$B$86+O20*Fuel_Specs!$B$84) -> -8247.713233 | P23: =(P21*Fuel_Specs!$B$85+P22*Fuel_Specs!$B$86+P20*Fuel_Specs!$B$84) -> -17519.16014 | Q23: =(Q21*Fuel_Specs!$B$85+Q22*Fuel_Specs!$B$86+Q20*Fuel_Specs!$B$84) -> -49774.6723 | R23: =(R21*Fuel_Specs!$B$85+R22*Fuel_Specs!$B$86+R20*Fuel_Specs!$B$84) -> -43394.86636 | S23: =(S21*Fuel_Specs!$B$85+S22*Fuel_Specs!$B$86+S20*Fuel_Specs!$B$84) -> 59670.99292 | T23: =(T21*Fuel_Specs!$B$85+T22*Fuel_Specs!$B$86+T20*Fuel_Specs!$B$84) -> 64321.86197 | U23: =AN23*(Vehicles!$F$21/Vehicles!$AZ$53)/(Vehicles!$F$21*(1/Vehicles!$AZ$53+1/Vehicles!$BA$53)+Vehicles!$F$22/Vehicles!$BB$53)+D23*(Vehicles!$F$21/Vehicles!$BA$53+Vehicles!$F$22/Vehicles!$BB$53)/(Vehicles!$F$21*(1/Vehicles!$AZ$53+1/Vehicles!$BA$53)+Vehicles!$F$22/Vehicles!$BB$53) -> 59658.05169 | V23: =AN23*(Vehicles!$G$21/Vehicles!$BD$53)/(Vehicles!$G$21*(1/Vehicles!$BD$53+1/Vehicles!$BE$53)+Vehicles!$G$22/Vehicles!$BF$53)+F23*(Vehicles!$G$21/Vehicles!$BE$53+Vehicles!$G$22/Vehicles!$BF$53)/(Vehicles!$G$21*(1/Vehicles!$BD$53+1/Vehicles!$BE$53)+Vehicles!$G$22/Vehicles!$BF$53) -> 60476.46818 | W23: =AN23*(Vehicles!$H$21/Vehicles!$BH$53)/(Vehicles!$H$21*(1/Vehicles!$BH$53+1/Vehicles!$BI$53)+Vehicles!$H$22/Vehicles!$BJ$53)+G23*(Vehicles!$H$21/Vehicles!$BI$53+Vehicles!$H$22/Vehicles!$BJ$53)/(Vehicles!$H$21*(1/Vehicles!$BH$53+1/Vehicles!$BI$53)+Vehicles!$H$22/Vehicles!$BJ$53) -> 63526.60463 | X23: =AN23*(Vehicles!$I$21/Vehicles!$BL$53)/(Vehicles!$I$21*(1/Vehicles!$BL$53+1/Vehicles!$BM$53)+Vehicles!$I$22/Vehicles!$BN$53)+H23*(Vehicles!$I$21/Vehicles!$BM$53+Vehicles!$I$22/Vehicles!$BN$53)/(Vehicles!$I$21*(1/Vehicles!$BL$53+1/Vehicles!$BM$53)+Vehicles!$I$22/Vehicles!$BN$53) -> 58003.03535 | Y23: =AN23*(Vehicles!$J$21/Vehicles!$BP$53)/(Vehicles!$J$21*(1/Vehicles!$BP$53+1/Vehicles!$BQ$53)+Vehicles!$J$22/Vehicles!$BR$53)+K23*(Vehicles!$J$21/Vehicles!$BQ$53+Vehicles!$J$22/Vehicles!$BR$53)/(Vehicles!$J$21*(1/Vehicles!$BP$53+1/Vehicles!$BQ$53)+Vehicles!$J$22/Vehicles!$BR$53) -> 67315.56237 | Z23: =(Z21*Fuel_Specs!$B$85+Z22*Fuel_Specs!$B$86+Z20*Fuel_Specs!$B$84) -> 36014.32639 | AA23: =(AA21*Fuel_Specs!$B$85+AA22*Fuel_Specs!$B$86+AA20*Fuel_Specs!$B$84) -> 141690.5788 | AB23: =(AB21*Fuel_Specs!$B$85+AB22*Fuel_Specs!$B$86+AB20*Fuel_Specs!$B$84) -> 188108.6392 | AC23: =(AC21*Fuel_Specs!$B$85+AC22*Fuel_Specs!$B$86+AC20*Fuel_Specs!$B$84) -> 28659.74501 | AD23: =(AD21*Fuel_Specs!$B$85+AD22*Fuel_Specs!$B$86+AD20*Fuel_Specs!$B$84) -> 36600.11549 | AE23: =(AE21*Fuel_Specs!$B$85+AE22*Fuel_Specs!$B$86+AE20*Fuel_Specs!$B$84) -> 9989.654834 | AF23: =(AF21*Fuel_Specs!$B$85+AF22*Fuel_Specs!$B$86+AF20*Fuel_Specs!$B$84) -> -63954.1955 | AG23: =(AG21*Fuel_Specs!$B$85+AG22*Fuel_Specs!$B$86+AG20*Fuel_Specs!$B$84) -> -44309.15403 | AH23: =(AH21*Fuel_Specs!$B$85+AH22*Fuel_Specs!$B$86+AH20*Fuel_Specs!$B$84) -> 22662.53984 | AI23: =(AI21*Fuel_Specs!$B$85+AI22*Fuel_Specs!$B$86+AI20*Fuel_Specs!$B$84) -> 65536.73188 | AJ23: =(AJ21*Fuel_Specs!$B$85+AJ22*Fuel_Specs!$B$86+AJ20*Fuel_Specs!$B$84) -> 68098.27373 | AK23: =(AK21*Fuel_Specs!$B$85+AK22*Fuel_Specs!$B$86+AK20*Fuel_Specs!$B$84) -> 74129.23925 | AL23: =(AL21*Fuel_Specs!$B$85+AL22*Fuel_Specs!$B$86+AL20*Fuel_Specs!$B$84) -> 53917.74271 | AM23: =(AM21*Fuel_Specs!$B$85+AM22*Fuel_Specs!$B$86+AM20*Fuel_Specs!$B$84) -> 63543.20447 | AN23: =(AN21*Fuel_Specs!$B$85+AN22*Fuel_Specs!$B$86+AN20*Fuel_Specs!$B$84) -> 192667.1369 | AO23: =(AO21*Fuel_Specs!$B$85+AO22*Fuel_Specs!$B$86+AO20*Fuel_Specs!$B$84) -> 125012.6984 | AP23: =(AP21*Fuel_Specs!$B$85+AP22*Fuel_Specs!$B$86+AP20*Fuel_Specs!$B$84) -> 186617.2462 | AQ23: =(AQ21*Fuel_Specs!$B$85+AQ22*Fuel_Specs!$B$86+AQ20*Fuel_Specs!$B$84) -> 145665.6164 | AR23: =(AR21*Fuel_Specs!$B$85+AR22*Fuel_Specs!$B$86+AR20*Fuel_Specs!$B$84) -> 188464.1006
A24: VOC: Total | B24: =(Inputs!$E$1056*(Petroleum!$B224*Petroleum!$F$218+Petroleum!$F224)+(1-Inputs!$E$1056)*(Petroleum!$B224*Petroleum!$D$218+Petroleum!$D224))/1000000*HLOOKUP($I$10,$Y$5:$AC$6,2,FALSE)/HLOOKUP($I$11,$Y$7:$AC$8,2,FALSE) -> 30.04399459 | C24: =(Petroleum!$C224*Petroleum!$G$218+Petroleum!$G224)/1000000*HLOOKUP($I$10,$Y$5:$AC$6,2,FALSE)/HLOOKUP($I$11,$Y$7:$AC$8,2,FALSE) -> 29.79737016 | D24: =((1-Vehicles!$C$26)*(1-Vehicles!$C$7)*Fuel_Specs!$B$11/((1-Vehicles!$C$26)*(1-Vehicles!$C$7)*Fuel_Specs!$B$11+Vehicles!$C$26*(1-Vehicles!$C$7)*Fuel_Specs!$B$13+Vehicles!$C$7*Fuel_Specs!$B$26)*(Petroleum!$B224*Petroleum!$D$218+Petroleum!$D224)+Vehicles!$C$26*(1-Vehicles!$C$7)*Fuel_Specs!$B$13/((1-Vehicles!$C$26)*(1-Vehicles!$C$7)*Fuel_Specs!$B$11+Vehicles!$C$26*(1-Vehicles!$C$7)*Fuel_Specs!$B$13+Vehicles!$C$7*Fuel_Specs!$B$26)*(Petroleum!B224*Petroleum!$F$218+Petroleum!$F224)+Vehicles!$C$7*Fuel_Specs!$B$26/((1-Vehicles!$C$26)*(1-Vehicles!$C$7)*Fuel_Specs!$B$11+Vehicles!$C$26*(1-Vehicles!$C$7)*Fuel_Specs!$B$13+Vehicles!$C$7*Fuel_Specs!$B$26)*(EtOH!BE407*EtOH!$BF$401+EtOH!$BF407))/1000000*HLOOKUP($I$10,$Y$5:$AC$6,2,FALSE)/HLOOKUP($I$11,$Y$7:$AC$8,2,FALSE) -> 30.0396023 | E24: =(Inputs!$E$88*(IF(Inputs!F$92=1,Petroleum!$B224,Petroleum!$C224)*Petroleum!$K$218+Petroleum!$K224)+(1-Inputs!$E$88)*(IF(Inputs!F$91=1,Petroleum!$B224,Petroleum!$C224)*Petroleum!$J$218+Petroleum!$J224))/1000000*HLOOKUP($I$10,$Y$5:$AC$6,2,FALSE)/HLOOKUP($I$11,$Y$7:$AC$8,2,FALSE) -> 10.17130412 | F24: =(NG!$H86*NG!$I$80+NG!$I86)/1000000*HLOOKUP($I$10,$Y$5:$AC$6,2,FALSE)/HLOOKUP($I$11,$Y$7:$AC$8,2,FALSE) -> 12.80234099 | G24: =(NG!$P86*NG!$Q$80+NG!$Q86)/1000000*HLOOKUP($I$10,$Y$5:$AC$6,2,FALSE)/HLOOKUP($I$11,$Y$7:$AC$8,2,FALSE) -> 13.97999882 | H24: =(NG!$V86*NG!$W$80+NG!$W86)/1000000*HLOOKUP($I$10,$Y$5:$AC$6,2,FALSE)/HLOOKUP($I$11,$Y$7:$AC$8,2,FALSE) -> 12.06642437 | I24: =('MeOH&FTD'!AV138*'MeOH&FTD'!AW$132+'MeOH&FTD'!AW138)/1000000*HLOOKUP($I$10,$Y$5:$AC$6,2,FALSE)/HLOOKUP($I$11,$Y$7:$AC$8,2,FALSE) -> 33.5618276 | J24: =((1-Vehicles!$C$25)*(1-Vehicles!$C$5)*Fuel_Specs!$B$11/((1-Vehicles!$C$25)*(1-Vehicles!$C$5)*Fuel_Specs!$B$11+Vehicles!$C$25*(1-Vehicles!$C$5)*Fuel_Specs!$B$13+Vehicles!$C$5*Fuel_Specs!$B$25)*(Petroleum!$B224*Petroleum!$D$218+Petroleum!$D224)+Vehicles!$C$25*(1-Vehicles!$C$5)*Fuel_Specs!$B$13/((1-Vehicles!$C$25)*(1-Vehicles!$C$5)*Fuel_Specs!$B$11+Vehicles!$C$25*(1-Vehicles!$C$5)*Fuel_Specs!$B$13+Vehicles!$C$5*Fuel_Specs!$B$25)*(Petroleum!B224*Petroleum!$F$218+Petroleum!$F224)+Vehicles!$C$5*Fuel_Specs!$B$25/((1-Vehicles!$C$25)*(1-Vehicles!$C$5)*Fuel_Specs!$B$11+Vehicles!$C$25*(1-Vehicles!$C$5)*Fuel_Specs!$B$13+Vehicles!$C$5*Fuel_Specs!$B$25)*('MeOH&FTD'!$L138*'MeOH&FTD'!$M$132+'MeOH&FTD'!$M138))/1000000*HLOOKUP($I$10,$Y$5:$AC$6,2,FALSE)/HLOOKUP($I$11,$Y$7:$AC$8,2,FALSE) -> 27.04085762 | K24: =((1-Vehicles!$C$25)*(1-Vehicles!$C$6)*Fuel_Specs!$B$11/((1-Vehicles!$C$25)*(1-Vehicles!$C$6)*Fuel_Specs!$B$11+Vehicles!$C$25*(1-Vehicles!$C$6)*Fuel_Specs!$B$13+Vehicles!$C$6*Fuel_Specs!$B$25)*(Petroleum!$B224*Petroleum!$D$218+Petroleum!$D224)+Vehicles!$C$25*(1-Vehicles!$C$6)*Fuel_Specs!$B$13/((1-Vehicles!$C$25)*(1-Vehicles!$C$6)*Fuel_Specs!$B$11+Vehicles!$C$25*(1-Vehicles!$C$6)*Fuel_Specs!$B$13+Vehicles!$C$6*Fuel_Specs!$B$25)*(Petroleum!B224*Petroleum!$F$218+Petroleum!$F224)+Vehicles!$C$6*Fuel_Specs!$B$25/((1-Vehicles!$C$25)*(1-Vehicles!$C$6)*Fuel_Specs!$B$11+Vehicles!$C$25*(1-Vehicles!$C$6)*Fuel_Specs!$B$13+Vehicles!$C$6*Fuel_Specs!$B$25)*('MeOH&FTD'!$L138*'MeOH&FTD'!$M$132+'MeOH&FTD'!$M138))/1000000*HLOOKUP($I$10,$Y$5:$AC$6,2,FALSE)/HLOOKUP($I$11,$Y$7:$AC$8,2,FALSE) -> 26.91770427 | L24: =('MeOH&FTD'!$L138*'MeOH&FTD'!$M$132+'MeOH&FTD'!$M138)/1000000*HLOOKUP($I$10,$Y$5:$AC$6,2,FALSE)/HLOOKUP($I$11,$Y$7:$AC$8,2,FALSE) -> 26.63342546 | M24: =((1-Vehicles!$C$27)*(1-Vehicles!$C$8)*Fuel_Specs!$B$11/((1-Vehicles!$C$27)*(1-Vehicles!$C$8)*Fuel_Specs!$B$11+Vehicles!$C$27*(1-Vehicles!$C$8)*Fuel_Specs!$B$13+Vehicles!$C$8*Fuel_Specs!$B$26)*(Petroleum!$B224*Petroleum!$D$218+Petroleum!$D224)+Vehicles!$C$27*(1-Vehicles!$C$8)*Fuel_Specs!$B$13/((1-Vehicles!$C$27)*(1-Vehicles!$C$8)*Fuel_Specs!$B$11+Vehicles!$C$27*(1-Vehicles!$C$8)*Fuel_Specs!$B$13+Vehicles!$C$8*Fuel_Specs!$B$26)*(Petroleum!B224*Petroleum!$F$218+Petroleum!$F224)+Vehicles!$C$8*Fuel_Specs!$B$26/((1-Vehicles!$C$27)*(1-Vehicles!$C$8)*Fuel_Specs!$B$11+Vehicles!$C$27*(1-Vehicles!$C$8)*Fuel_Specs!$B$13+Vehicles!$C$8*Fuel_Specs!$B$26)*(EtOH!BE407*EtOH!$BF$401+EtOH!$BF407))/1000000*HLOOKUP($I$10,$Y$5:$AC$6,2,FALSE)/HLOOKUP($I$11,$Y$7:$AC$8,2,FALSE) -> 49.55991322 | N24: =((1-Vehicles!$C$28)*(1-Vehicles!$C$10)*Fuel_Specs!$B$11/((1-Vehicles!$C$28)*(1-Vehicles!$C$10)*Fuel_Specs!$B$11+Vehicles!$C$28*(1-Vehicles!$C$10)*Fuel_Specs!$B$13+Vehicles!$C$10*Fuel_Specs!$B$27)*(Petroleum!$B224*Petroleum!$D$218+Petroleum!$D224)+Vehicles!$C$28*(1-Vehicles!$C$10)*Fuel_Specs!$B$13/((1-Vehicles!$C$28)*(1-Vehicles!$C$10)*Fuel_Specs!$B$11+Vehicles!$C$28*(1-Vehicles!$C$10)*Fuel_Specs!$B$13+Vehicles!$C$10*Fuel_Specs!$B$27)*(Petroleum!B224*Petroleum!$F$218+Petroleum!$F224)+Vehicles!$C$10*Fuel_Specs!$B$27/((1-Vehicles!$C$28)*(1-Vehicles!$C$10)*Fuel_Specs!$B$11+Vehicles!$C$28*(1-Vehicles!$C$10)*Fuel_Specs!$B$13+Vehicles!$C$10*Fuel_Specs!$B$27)*(EtOH!$BI407*EtOH!$BJ$401+EtOH!$BJ407))/1000000*HLOOKUP($I$10,$Y$5:$AC$6,2,FALSE)/HLOOKUP($I$11,$Y$7:$AC$8,2,FALSE) -> 60.157974 | O24: =((1-Vehicles!$C$27)*(1-Vehicles!$C$9)*Fuel_Specs!$B$11/((1-Vehicles!$C$27)*(1-Vehicles!$C$9)*Fuel_Specs!$B$11+Vehicles!$C$27*(1-Vehicles!$C$9)*Fuel_Specs!$B$13+Vehicles!$C$9*Fuel_Specs!$B$26)*(Petroleum!$B224*Petroleum!$D$218+Petroleum!$D224)+Vehicles!$C$27*(1-Vehicles!$C$9)*Fuel_Specs!$B$13/((1-Vehicles!$C$27)*(1-Vehicles!$C$9)*Fuel_Specs!$B$11+Vehicles!$C$27*(1-Vehicles!$C$9)*Fuel_Specs!$B$13+Vehicles!$C$9*Fuel_Specs!$B$26)*(Petroleum!B224*Petroleum!$F$218+Petroleum!$F224)+Vehicles!$C$9*Fuel_Specs!$B$26/((1-Vehicles!$C$27)*(1-Vehicles!$C$9)*Fuel_Specs!$B$11+Vehicles!$C$27*(1-Vehicles!$C$9)*Fuel_Specs!$B$13+Vehicles!$C$9*Fuel_Specs!$B$26)*(EtOH!BE407*EtOH!$BF$401+EtOH!$BF407))/1000000*HLOOKUP($I$10,$Y$5:$AC$6,2,FALSE)/HLOOKUP($I$11,$Y$7:$AC$8,2,FALSE) -> 49.55991322 | P24: =(EtOH!$BE407*EtOH!$BF$401+EtOH!$BF407)/1000000*HLOOKUP($I$10,$Y$5:$AC$6,2,FALSE)/HLOOKUP($I$11,$Y$7:$AC$8,2,FALSE) -> 56.0790242 | Q24: =((1-Vehicles!$C$29)*(1-Vehicles!$C$14)*Fuel_Specs!$B$11/((1-Vehicles!$C$29)*(1-Vehicles!$C$14)*Fuel_Specs!$B$11+Vehicles!$C$29*(1-Vehicles!$C$14)*Fuel_Specs!$B$13+Vehicles!$C$14*Fuel_Specs!$B$39)*(Petroleum!$B224*Petroleum!$D$218+Petroleum!$D224)+Vehicles!$C$29*(1-Vehicles!$C$14)*Fuel_Specs!$B$13/((1-Vehicles!$C$29)*(1-Vehicles!$C$14)*Fuel_Specs!$B$11+Vehicles!$C$29*(1-Vehicles!$C$14)*Fuel_Specs!$B$13+Vehicles!$C$14*Fuel_Specs!$B$39)*(Petroleum!B224*Petroleum!$F$218+Petroleum!$F224)+Vehicles!$C$14*Fuel_Specs!$B$39/((1-Vehicles!$C$29)*(1-Vehicles!$C$14)*Fuel_Specs!$B$11+Vehicles!$C$29*(1-Vehicles!$C$14)*Fuel_Specs!$B$13+Vehicles!$C$14*Fuel_Specs!$B$39)*(BioOil!$BQ320*BioOil!$BR$313+BioOil!$BR320))/1000000*HLOOKUP($I$10,$Y$5:$AC$6,2,FALSE)/HLOOKUP($I$11,$Y$7:$AC$8,2,FALSE) -> 49.79934651 | R24: =((1-Vehicles!$C$29)*(1-Vehicles!$C$14)*Fuel_Specs!$B$11/((1-Vehicles!$C$29)*(1-Vehicles!$C$14)*Fuel_Specs!$B$11+Vehicles!$C$29*(1-Vehicles!$C$14)*Fuel_Specs!$B$13+Vehicles!$C$14*Fuel_Specs!$B$39)*(Petroleum!$B224*Petroleum!$D$218+Petroleum!$D224)+Vehicles!$C$29*(1-Vehicles!$C$14)*Fuel_Specs!$B$13/((1-Vehicles!$C$29)*(1-Vehicles!$C$14)*Fuel_Specs!$B$11+Vehicles!$C$29*(1-Vehicles!$C$14)*Fuel_Specs!$B$13+Vehicles!$C$14*Fuel_Specs!$B$39)*(Petroleum!B224*Petroleum!$F$218+Petroleum!$F224)+Vehicles!$C$14*Fuel_Specs!$B$39/((1-Vehicles!$C$29)*(1-Vehicles!$C$14)*Fuel_Specs!$B$11+Vehicles!$C$29*(1-Vehicles!$C$14)*Fuel_Specs!$B$13+Vehicles!$C$14*Fuel_Specs!$B$39)*(Pyrolysis!$Z172*Pyrolysis!$AA$166+Pyrolysis!$AA172))/1000000*HLOOKUP($I$10,$Y$5:$AC$6,2,FALSE)/HLOOKUP($I$11,$Y$7:$AC$8,2,FALSE) -> 8.715521394 | S24: =AN24*(Vehicles!$C$21/Vehicles!$AN$53)/(Vehicles!$C$21*(1/Vehicles!$AN$53+1/Vehicles!$AO$53)+Vehicles!$C$22/Vehicles!$AP$53)+B24*(Vehicles!$C$21/Vehicles!$AO$53+Vehicles!$C$22/Vehicles!$AP$53)/(Vehicles!$C$21*(1/Vehicles!$AN$53+1/Vehicles!$AO$53)+Vehicles!$C$22/Vehicles!$AP$53) -> 27.96473129 | T24: =AN24*(Vehicles!$D$21/Vehicles!$AR$53)/(Vehicles!$D$21*(1/Vehicles!$AR$53+1/Vehicles!$AS$53)+Vehicles!$D$22/Vehicles!$AT$53)+C24*(Vehicles!$D$21/Vehicles!$AS$53+Vehicles!$D$22/Vehicles!$AT$53)/(Vehicles!$D$21*(1/Vehicles!$AR$53+1/Vehicles!$AS$53)+Vehicles!$D$22/Vehicles!$AT$53) -> 27.77528462 | U24: =AN24*(Vehicles!$F$21/Vehicles!$AZ$53)/(Vehicles!$F$21*(1/Vehicles!$AZ$53+1/Vehicles!$BA$53)+Vehicles!$F$22/Vehicles!$BB$53)+D24*(Vehicles!$F$21/Vehicles!$BA$53+Vehicles!$F$22/Vehicles!$BB$53)/(Vehicles!$F$21*(1/Vehicles!$AZ$53+1/Vehicles!$BA$53)+Vehicles!$F$22/Vehicles!$BB$53) -> 27.96135731 | V24: =AN24*(Vehicles!$G$21/Vehicles!$BD$53)/(Vehicles!$G$21*(1/Vehicles!$BD$53+1/Vehicles!$BE$53)+Vehicles!$G$22/Vehicles!$BF$53)+F24*(Vehicles!$G$21/Vehicles!$BE$53+Vehicles!$G$22/Vehicles!$BF$53)/(Vehicles!$G$21*(1/Vehicles!$BD$53+1/Vehicles!$BE$53)+Vehicles!$G$22/Vehicles!$BF$53) -> 14.72040733 | W24: =AN24*(Vehicles!$H$21/Vehicles!$BH$53)/(Vehicles!$H$21*(1/Vehicles!$BH$53+1/Vehicles!$BI$53)+Vehicles!$H$22/Vehicles!$BJ$53)+G24*(Vehicles!$H$21/Vehicles!$BI$53+Vehicles!$H$22/Vehicles!$BJ$53)/(Vehicles!$H$21*(1/Vehicles!$BH$53+1/Vehicles!$BI$53)+Vehicles!$H$22/Vehicles!$BJ$53) -> 15.62503528 | X24: =AN24*(Vehicles!$I$21/Vehicles!$BL$53)/(Vehicles!$I$21*(1/Vehicles!$BL$53+1/Vehicles!$BM$53)+Vehicles!$I$22/Vehicles!$BN$53)+H24*(Vehicles!$I$21/Vehicles!$BM$53+Vehicles!$I$22/Vehicles!$BN$53)/(Vehicles!$I$21*(1/Vehicles!$BL$53+1/Vehicles!$BM$53)+Vehicles!$I$22/Vehicles!$BN$53) -> 14.15510666 | Y24: =AN24*(Vehicles!$J$21/Vehicles!$BP$53)/(Vehicles!$J$21*(1/Vehicles!$BP$53+1/Vehicles!$BQ$53)+Vehicles!$J$22/Vehicles!$BR$53)+K24*(Vehicles!$J$21/Vehicles!$BQ$53+Vehicles!$J$22/Vehicles!$BR$53)/(Vehicles!$J$21*(1/Vehicles!$BP$53+1/Vehicles!$BQ$53)+Vehicles!$J$22/Vehicles!$BR$53) -> 25.56324459 | Z24: =AN24*(Vehicles!$K$21/Vehicles!$BT$53)/(Vehicles!$K$21*(1/Vehicles!$BT$53+1/Vehicles!$BU$53)+Vehicles!$K$22/Vehicles!$BV$53)+O24*(Vehicles!$K$21/Vehicles!$BU$53+Vehicles!$K$22/Vehicles!$BV$53)/(Vehicles!$K$21*(1/Vehicles!$BT$53+1/Vehicles!$BU$53)+Vehicles!$K$22/Vehicles!$BV$53) -> 43.28473141 | AA24: =AN24*(Vehicles!$L$21/Vehicles!$BX$53)/(Vehicles!$L$21*(1/Vehicles!$BX$53+1/Vehicles!$BY$53)+Vehicles!$L$22/Vehicles!$BZ$53)+AO24*(Vehicles!$L$21/Vehicles!$BY$53+Vehicles!$L$22/Vehicles!$BZ$53)/(Vehicles!$L$21*(1/Vehicles!$BX$53+1/Vehicles!$BY$53)+Vehicles!$L$22/Vehicles!$BZ$53) -> 19.95041005 | AB24: =AN24*(Vehicles!$L$21/Vehicles!$BX$53)/(Vehicles!$L$21*(1/Vehicles!$BX$53+1/Vehicles!$BY$53)+Vehicles!$L$22/Vehicles!$CA$53)+AP24*(Vehicles!$L$21/Vehicles!$BY$53+Vehicles!$L$22/Vehicles!$CA$53)/(Vehicles!$L$21*(1/Vehicles!$BX$53+1/Vehicles!$BY$53)+Vehicles!$L$22/Vehicles!$CA$53) -> 25.77670802 | AC24: =('MeOH&FTD'!$X138*'MeOH&FTD'!$Y$132+'MeOH&FTD'!$Y138)/1000000*HLOOKUP($I$10,$Y$5:$AC$6,2,FALSE)/HLOOKUP($I$11,$Y$7:$AC$8,2,FALSE) -> 13.49189488 | AD24: =((1-Vehicles!$C$30)*(1-Vehicles!$C$11)*Fuel_Specs!$B$15/((1-Vehicles!$C$30)*(1-Vehicles!$C$11)*Fuel_Specs!$B$15+Vehicles!$C$30*(1-Vehicles!$C$11)*Fuel_Specs!$B$18+Vehicles!$C$11*Fuel_Specs!$B$35)*(Petroleum!B224*Petroleum!$J$218+Petroleum!$J224)+Vehicles!$C$30*(1-Vehicles!$C$11)*Fuel_Specs!$B$18/((1-Vehicles!$C$30)*(1-Vehicles!$C$11)*Fuel_Specs!$B$15+Vehicles!$C$30*(1-Vehicles!$C$11)*Fuel_Specs!$B$18+Vehicles!$C$11*Fuel_Specs!$B$35)*(Petroleum!B224*Petroleum!$K$218+Petroleum!$K224)+Vehicles!$C$11*Fuel_Specs!$B$35/((1-Vehicles!$C$30)*(1-Vehicles!$C$11)*Fuel_Specs!$B$15+Vehicles!$C$30*(1-Vehicles!$C$11)*Fuel_Specs!$B$18+Vehicles!$C$11*Fuel_Specs!$B$35)*('MeOH&FTD'!$AL138*'MeOH&FTD'!$AM$132+'MeOH&FTD'!$AM138))/1000000*HLOOKUP($I$10,$Y$5:$AC$6,2,FALSE)/HLOOKUP($I$11,$Y$7:$AC$8,2,FALSE) -> 14.97887651 | AE24: =((1-Vehicles!$C$31)*(1-Vehicles!$C$12)*Fuel_Specs!$B$15/((1-Vehicles!$C$31)*(1-Vehicles!$C$12)*Fuel_Specs!$B$15+Vehicles!$C$31*(1-Vehicles!$C$12)*Fuel_Specs!$B$18+Vehicles!$C$12*Fuel_Specs!$B$34)*(Petroleum!B224*Petroleum!$J$218+Petroleum!$J224)+Vehicles!$C$31*(1-Vehicles!$C$12)*Fuel_Specs!$B$18/((1-Vehicles!$C$31)*(1-Vehicles!$C$12)*Fuel_Specs!$B$15+Vehicles!$C$31*(1-Vehicles!$C$12)*Fuel_Specs!$B$18+Vehicles!$C$12*Fuel_Specs!$B$34)*(Petroleum!B224*Petroleum!$K$218+Petroleum!$K224)+Vehicles!$C$12*Fuel_Specs!$B$34/((1-Vehicles!$C$31)*(1-Vehicles!$C$12)*Fuel_Specs!$B$15+Vehicles!$C$31*(1-Vehicles!$C$12)*Fuel_Specs!$B$18+Vehicles!$C$12*Fuel_Specs!$B$34)*(BioOil!$Y320*BioOil!$Z$313+BioOil!$Z320))/1000000*HLOOKUP($I$10,$Y$5:$AC$6,2,FALSE)/HLOOKUP($I$11,$Y$7:$AC$8,2,FALSE) -> 13.75017507 | AF24: =((1-Vehicles!$C$32)*(1-Vehicles!$C$13)*Fuel_Specs!$B$15/((1-Vehicles!$C$32)*(1-Vehicles!$C$13)*Fuel_Specs!$B$15+Vehicles!$C$32*(1-Vehicles!$C$13)*Fuel_Specs!$B$18+Vehicles!$C$13*IF(Inputs!$E$499=1,IF(Inputs!$E$499=1,Fuel_Specs!$B$36,IF(Inputs!$E$499=3,Fuel_Specs!$B$38,Fuel_Specs!$B$37)),Fuel_Specs!$B$37))*(Petroleum!B224*Petroleum!$J$218+Petroleum!$J224)+Vehicles!$C$32*(1-Vehicles!$C$13)*Fuel_Specs!$B$18/((1-Vehicles!$C$32)*(1-Vehicles!$C$13)*Fuel_Specs!$B$15+Vehicles!$C$32*(1-Vehicles!$C$13)*Fuel_Specs!$B$18+Vehicles!$C$13*IF(Inputs!$E$499=1,IF(Inputs!$E$499=1,Fuel_Specs!$B$36,IF(Inputs!$E$499=3,Fuel_Specs!$B$38,Fuel_Specs!$B$37)),Fuel_Specs!$B$37))*(Petroleum!B224*Petroleum!$K$218+Petroleum!$K224)+Vehicles!$C$13*IF(Inputs!$E$499=1,IF(Inputs!$E$499=1,Fuel_Specs!$B$36,IF(Inputs!$E$499=3,Fuel_Specs!$B$38,Fuel_Specs!$B$37)),Fuel_Specs!$B$37)/((1-Vehicles!$C$32)*(1-Vehicles!$C$13)*Fuel_Specs!$B$15+Vehicles!$C$32*(1-Vehicles!$C$13)*Fuel_Specs!$B$18+Vehicles!$C$13*IF(Inputs!$E$499=1,IF(Inputs!$E$499=1,Fuel_Specs!$B$36,IF(Inputs!$E$499=3,Fuel_Specs!$B$38,Fuel_Specs!$B$37)),Fuel_Specs!$B$37))*(BioOil!$BE320*BioOil!$BF$313+BioOil!$BF320))/1000000*HLOOKUP($I$10,$Y$5:$AC$6,2,FALSE)/HLOOKUP($I$11,$Y$7:$AC$8,2,FALSE) -> 13.94275266 | AG24: =((1-Vehicles!$C$32)*(1-Vehicles!$C$13)*Fuel_Specs!$B$15/((1-Vehicles!$C$32)*(1-Vehicles!$C$13)*Fuel_Specs!$B$15+Vehicles!$C$32*(1-Vehicles!$C$13)*Fuel_Specs!$B$18+Vehicles!$C$13*IF(Inputs!$E$499=1,Fuel_Specs!$B$36,Fuel_Specs!$B$37))*(Petroleum!B224*Petroleum!$J$218+Petroleum!$J224)+Vehicles!$C$32*(1-Vehicles!$C$13)*Fuel_Specs!$B$18/((1-Vehicles!$C$32)*(1-Vehicles!$C$13)*Fuel_Specs!$B$15+Vehicles!$C$32*(1-Vehicles!$C$13)*Fuel_Specs!$B$18+Vehicles!$C$13*IF(Inputs!$E$499=1,Fuel_Specs!$B$36,Fuel_Specs!$B$37))*(Petroleum!B224*Petroleum!$K$218+Petroleum!$K224)+Vehicles!$C$13*IF(Inputs!$E$499=1,Fuel_Specs!$B$36,Fuel_Specs!$B$37)/((1-Vehicles!$C$32)*(1-Vehicles!$C$13)*Fuel_Specs!$B$15+Vehicles!$C$32*(1-Vehicles!$C$13)*Fuel_Specs!$B$18+Vehicles!$C$13*IF(Inputs!$E$499=1,Fuel_Specs!$B$36,Fuel_Specs!$B$37))*(Pyrolysis!$AB172*Pyrolysis!$AC$166+Pyrolysis!$AC172))/1000000*HLOOKUP($I$10,$Y$5:$AC$6,2,FALSE)/HLOOKUP($I$11,$Y$7:$AC$8,2,FALSE) -> 8.738024816 | AH24: =(((1-Vehicles!$C$33)*(1-Vehicles!$C$15-Vehicles!$C$16)*Fuel_Specs!$B$15*(Petroleum!B224*Petroleum!$J$218+Petroleum!$J224)+Vehicles!$C$33*(1-Vehicles!$C$15-Vehicles!$C$16)*Fuel_Specs!$B$18*(Petroleum!B224*Petroleum!$K$218+Petroleum!$K224)+Vehicles!$C$15*Fuel_Specs!$B$26*(EtOH!BE407*EtOH!$BF$401+EtOH!$BF407)+Vehicles!$C$16*Fuel_Specs!$B$29*('E-D Additives'!$B54*'E-D Additives'!$B$48))/((1-Vehicles!$C$33)*(1-Vehicles!$C$15-Vehicles!$C$16)*Fuel_Specs!$B$15+Vehicles!$C$33*(1-Vehicles!$C$15-Vehicles!$C$16)*Fuel_Specs!$B$18+Vehicles!$C$15*Fuel_Specs!$B$26+Vehicles!$C$16*Fuel_Specs!$B$29))/1000000*HLOOKUP($I$10,$Y$5:$AC$6,2,FALSE)/HLOOKUP($I$11,$Y$7:$AC$8,2,FALSE) -> 12.98617546 | AI24: =AN24*(Vehicles!$M$21/Vehicles!$CI$53)/(Vehicles!$M$21*(1/Vehicles!$CI$53+1/Vehicles!$CJ$53)+Vehicles!$M$22/Vehicles!$CK$53)+E24*(Vehicles!$M$21/Vehicles!$CJ$53+Vehicles!$M$22/Vehicles!$CK$53)/(Vehicles!$M$21*(1/Vehicles!$CI$53+1/Vehicles!$CJ$53)+Vehicles!$M$22/Vehicles!$CK$53) -> 12.79341975 | AJ24: =AN24*(Vehicles!$N$21/Vehicles!$CM$53)/(Vehicles!$N$21*(1/Vehicles!$CM$53+1/Vehicles!$CN$53)+Vehicles!$N$22/Vehicles!$CO$53)+AC24*(Vehicles!$N$21/Vehicles!$CN$53+Vehicles!$N$22/Vehicles!$CO$53)/(Vehicles!$N$21*(1/Vehicles!$CM$53+1/Vehicles!$CN$53)+Vehicles!$N$22/Vehicles!$CO$53) -> 15.31551471 | AK24: =AN24*(Vehicles!$O$21/Vehicles!$CQ$53)/(Vehicles!$O$21*(1/Vehicles!$CQ$53+1/Vehicles!$CR$53)+Vehicles!$O$22/Vehicles!$CS$53)+AD24*(Vehicles!$O$21/Vehicles!$CR$53+Vehicles!$O$22/Vehicles!$CS$53)/(Vehicles!$O$21*(1/Vehicles!$CQ$53+1/Vehicles!$CR$53)+Vehicles!$O$22/Vehicles!$CS$53) -> 16.44492485 | AL24: =AN24*(Vehicles!$P$21/Vehicles!$CU$53)/(Vehicles!$P$21*(1/Vehicles!$CU$53+1/Vehicles!$CV$53)+Vehicles!$P$22/Vehicles!$CW$53)+AE24*(Vehicles!$P$21/Vehicles!$CV$53+Vehicles!$P$22/Vehicles!$CW$53)/(Vehicles!$P$21*(1/Vehicles!$CU$53+1/Vehicles!$CV$53)+Vehicles!$P$22/Vehicles!$CW$53) -> 15.51168678 | AM24: =AN24*(Vehicles!$R$21/Vehicles!$DC$53)/(Vehicles!$R$21*(1/Vehicles!$DC$53+1/Vehicles!$DD$53)+Vehicles!$R$22/Vehicles!$DE$53)+AH24*(Vehicles!$R$21/Vehicles!$DD$53+Vehicles!$R$22/Vehicles!$DE$53)/(Vehicles!$R$21*(1/Vehicles!$DC$53+1/Vehicles!$DD$53)+Vehicles!$R$22/Vehicles!$DE$53) -> 14.93140463 | AN24: =(Electric!$G176+Electric!$F176)/1000000*HLOOKUP($I$10,$Y$5:$AC$6,2,FALSE)/HLOOKUP($I$11,$Y$7:$AC$8,2,FALSE) -> 21.07552292 | AO24: =(Hydrogen!$Z153*Hydrogen!$AA$147+Hydrogen!$AA153)/1000000*HLOOKUP($I$10,$Y$5:$AC$6,2,FALSE)/HLOOKUP($I$11,$Y$7:$AC$8,2,FALSE) -> 19.58230952 | AP24: =(Hydrogen!$AX153*Hydrogen!$AY$147+Hydrogen!$AY153)/1000000*HLOOKUP($I$10,$Y$5:$AC$6,2,FALSE)/HLOOKUP($I$11,$Y$7:$AC$8,2,FALSE) -> 27.31478366 | AQ24: =AN24*(Vehicles!$S$21/Vehicles!$DS$53)/(Vehicles!$S$21*(1/Vehicles!$DS$53+1/Vehicles!$DT$53)+Vehicles!$S$22/Vehicles!$DU$53)+AO24*(Vehicles!$S$21/Vehicles!$DT$53+Vehicles!$S$22/Vehicles!$DU$53)/(Vehicles!$S$21*(1/Vehicles!$DS$53+1/Vehicles!$DT$53)+Vehicles!$S$22/Vehicles!$DU$53) -> 20.03814382 | AR24: =AN24*(Vehicles!$S$21/Vehicles!$DS$53)/(Vehicles!$S$21*(1/Vehicles!$DS$53+1/Vehicles!$DT$53)+Vehicles!$S$22/Vehicles!$DU$53)+AP24*(Vehicles!$S$21/Vehicles!$DT$53+Vehicles!$S$22/Vehicles!$DU$53)/(Vehicles!$S$21*(1/Vehicles!$DS$53+1/Vehicles!$DT$53)+Vehicles!$S$22/Vehicles!$DU$53) -> 25.41012015
A25: CO: Total | B25: =(Inputs!$E$1056*(Petroleum!$B225*Petroleum!$F$218+Petroleum!$F225)+(1-Inputs!$E$1056)*(Petroleum!$B225*Petroleum!$D$218+Petroleum!$D225))/1000000*HLOOKUP($I$10,$Y$5:$AC$6,2,FALSE)/HLOOKUP($I$11,$Y$7:$AC$8,2,FALSE) -> 24.13028349 | C25: =(Petroleum!$C225*Petroleum!$G$218+Petroleum!$G225)/1000000*HLOOKUP($I$10,$Y$5:$AC$6,2,FALSE)/HLOOKUP($I$11,$Y$7:$AC$8,2,FALSE) -> 21.81791533 | D25: =((1-Vehicles!$C$26)*(1-Vehicles!$C$7)*Fuel_Specs!$B$11/((1-Vehicles!$C$26)*(1-Vehicles!$C$7)*Fuel_Specs!$B$11+Vehicles!$C$26*(1-Vehicles!$C$7)*Fuel_Specs!$B$13+Vehicles!$C$7*Fuel_Specs!$B$26)*(Petroleum!$B225*Petroleum!$D$218+Petroleum!$D225)+Vehicles!$C$26*(1-Vehicles!$C$7)*Fuel_Specs!$B$13/((1-Vehicles!$C$26)*(1-Vehicles!$C$7)*Fuel_Specs!$B$11+Vehicles!$C$26*(1-Vehicles!$C$7)*Fuel_Specs!$B$13+Vehicles!$C$7*Fuel_Specs!$B$26)*(Petroleum!B225*Petroleum!$F$218+Petroleum!$F225)+Vehicles!$C$7*Fuel_Specs!$B$26/((1-Vehicles!$C$26)*(1-Vehicles!$C$7)*Fuel_Specs!$B$11+Vehicles!$C$26*(1-Vehicles!$C$7)*Fuel_Specs!$B$13+Vehicles!$C$7*Fuel_Specs!$B$26)*(EtOH!BE408*EtOH!$BF$401+EtOH!$BF408))/1000000*HLOOKUP($I$10,$Y$5:$AC$6,2,FALSE)/HLOOKUP($I$11,$Y$7:$AC$8,2,FALSE) -> 24.11529057 | E25: =(Inputs!$E$88*(IF(Inputs!F$92=1,Petroleum!$B225,Petroleum!$C225)*Petroleum!$K$218+Petroleum!$K225)+(1-Inputs!$E$88)*(IF(Inputs!F$91=1,Petroleum!$B225,Petroleum!$C225)*Petroleum!$J$218+Petroleum!$J225))/1000000*HLOOKUP($I$10,$Y$5:$AC$6,2,FALSE)/HLOOKUP($I$11,$Y$7:$AC$8,2,FALSE) -> 22.79857192 | F25: =(NG!$H87*NG!$I$80+NG!$I87)/1000000*HLOOKUP($I$10,$Y$5:$AC$6,2,FALSE)/HLOOKUP($I$11,$Y$7:$AC$8,2,FALSE) -> 43.92493959 | G25: =(NG!$P87*NG!$Q$80+NG!$Q87)/1000000*HLOOKUP($I$10,$Y$5:$AC$6,2,FALSE)/HLOOKUP($I$11,$Y$7:$AC$8,2,FALSE) -> 51.62748292 | H25: =(NG!$V87*NG!$W$80+NG!$W87)/1000000*HLOOKUP($I$10,$Y$5:$AC$6,2,FALSE)/HLOOKUP($I$11,$Y$7:$AC$8,2,FALSE) -> 19.20996343 | I25: =('MeOH&FTD'!AV139*'MeOH&FTD'!AW$132+'MeOH&FTD'!AW139)/1000000*HLOOKUP($I$10,$Y$5:$AC$6,2,FALSE)/HLOOKUP($I$11,$Y$7:$AC$8,2,FALSE) -> 34.14258121 | J25: =((1-Vehicles!$C$25)*(1-Vehicles!$C$5)*Fuel_Specs!$B$11/((1-Vehicles!$C$25)*(1-Vehicles!$C$5)*Fuel_Specs!$B$11+Vehicles!$C$25*(1-Vehicles!$C$5)*Fuel_Specs!$B$13+Vehicles!$C$5*Fuel_Specs!$B$25)*(Petroleum!$B225*Petroleum!$D$218+Petroleum!$D225)+Vehicles!$C$25*(1-Vehicles!$C$5)*Fuel_Specs!$B$13/((1-Vehicles!$C$25)*(1-Vehicles!$C$5)*Fuel_Specs!$B$11+Vehicles!$C$25*(1-Vehicles!$C$5)*Fuel_Specs!$B$13+Vehicles!$C$5*Fuel_Specs!$B$25)*(Petroleum!B225*Petroleum!$F$218+Petroleum!$F225)+Vehicles!$C$5*Fuel_Specs!$B$25/((1-Vehicles!$C$25)*(1-Vehicles!$C$5)*Fuel_Specs!$B$11+Vehicles!$C$25*(1-Vehicles!$C$5)*Fuel_Specs!$B$13+Vehicles!$C$5*Fuel_Specs!$B$25)*('MeOH&FTD'!$L139*'MeOH&FTD'!$M$132+'MeOH&FTD'!$M139))/1000000*HLOOKUP($I$10,$Y$5:$AC$6,2,FALSE)/HLOOKUP($I$11,$Y$7:$AC$8,2,FALSE) -> 34.11826425 | K25: =((1-Vehicles!$C$25)*(1-Vehicles!$C$6)*Fuel_Specs!$B$11/((1-Vehicles!$C$25)*(1-Vehicles!$C$6)*Fuel_Specs!$B$11+Vehicles!$C$25*(1-Vehicles!$C$6)*Fuel_Specs!$B$13+Vehicles!$C$6*Fuel_Specs!$B$25)*(Petroleum!$B225*Petroleum!$D$218+Petroleum!$D225)+Vehicles!$C$25*(1-Vehicles!$C$6)*Fuel_Specs!$B$13/((1-Vehicles!$C$25)*(1-Vehicles!$C$6)*Fuel_Specs!$B$11+Vehicles!$C$25*(1-Vehicles!$C$6)*Fuel_Specs!$B$13+Vehicles!$C$6*Fuel_Specs!$B$25)*(Petroleum!B225*Petroleum!$F$218+Petroleum!$F225)+Vehicles!$C$6*Fuel_Specs!$B$25/((1-Vehicles!$C$25)*(1-Vehicles!$C$6)*Fuel_Specs!$B$11+Vehicles!$C$25*(1-Vehicles!$C$6)*Fuel_Specs!$B$13+Vehicles!$C$6*Fuel_Specs!$B$25)*('MeOH&FTD'!$L139*'MeOH&FTD'!$M$132+'MeOH&FTD'!$M139))/1000000*HLOOKUP($I$10,$Y$5:$AC$6,2,FALSE)/HLOOKUP($I$11,$Y$7:$AC$8,2,FALSE) -> 35.57402129 | L25: =('MeOH&FTD'!$L139*'MeOH&FTD'!$M$132+'MeOH&FTD'!$M139)/1000000*HLOOKUP($I$10,$Y$5:$AC$6,2,FALSE)/HLOOKUP($I$11,$Y$7:$AC$8,2,FALSE) -> 38.93439167 | M25: =((1-Vehicles!$C$27)*(1-Vehicles!$C$8)*Fuel_Specs!$B$11/((1-Vehicles!$C$27)*(1-Vehicles!$C$8)*Fuel_Specs!$B$11+Vehicles!$C$27*(1-Vehicles!$C$8)*Fuel_Specs!$B$13+Vehicles!$C$8*Fuel_Specs!$B$26)*(Petroleum!$B225*Petroleum!$D$218+Petroleum!$D225)+Vehicles!$C$27*(1-Vehicles!$C$8)*Fuel_Specs!$B$13/((1-Vehicles!$C$27)*(1-Vehicles!$C$8)*Fuel_Specs!$B$11+Vehicles!$C$27*(1-Vehicles!$C$8)*Fuel_Specs!$B$13+Vehicles!$C$8*Fuel_Specs!$B$26)*(Petroleum!B225*Petroleum!$F$218+Petroleum!$F225)+Vehicles!$C$8*Fuel_Specs!$B$26/((1-Vehicles!$C$27)*(1-Vehicles!$C$8)*Fuel_Specs!$B$11+Vehicles!$C$27*(1-Vehicles!$C$8)*Fuel_Specs!$B$13+Vehicles!$C$8*Fuel_Specs!$B$26)*(EtOH!BE408*EtOH!$BF$401+EtOH!$BF408))/1000000*HLOOKUP($I$10,$Y$5:$AC$6,2,FALSE)/HLOOKUP($I$11,$Y$7:$AC$8,2,FALSE) -> 60.38025167 | N25: =((1-Vehicles!$C$28)*(1-Vehicles!$C$10)*Fuel_Specs!$B$11/((1-Vehicles!$C$28)*(1-Vehicles!$C$10)*Fuel_Specs!$B$11+Vehicles!$C$28*(1-Vehicles!$C$10)*Fuel_Specs!$B$13+Vehicles!$C$10*Fuel_Specs!$B$27)*(Petroleum!$B225*Petroleum!$D$218+Petroleum!$D225)+Vehicles!$C$28*(1-Vehicles!$C$10)*Fuel_Specs!$B$13/((1-Vehicles!$C$28)*(1-Vehicles!$C$10)*Fuel_Specs!$B$11+Vehicles!$C$28*(1-Vehicles!$C$10)*Fuel_Specs!$B$13+Vehicles!$C$10*Fuel_Specs!$B$27)*(Petroleum!B225*Petroleum!$F$218+Petroleum!$F225)+Vehicles!$C$10*Fuel_Specs!$B$27/((1-Vehicles!$C$28)*(1-Vehicles!$C$10)*Fuel_Specs!$B$11+Vehicles!$C$28*(1-Vehicles!$C$10)*Fuel_Specs!$B$13+Vehicles!$C$10*Fuel_Specs!$B$27)*(EtOH!$BI408*EtOH!$BJ$401+EtOH!$BJ408))/1000000*HLOOKUP($I$10,$Y$5:$AC$6,2,FALSE)/HLOOKUP($I$11,$Y$7:$AC$8,2,FALSE) -> 84.82080647 | O25: =((1-Vehicles!$C$27)*(1-Vehicles!$C$9)*Fuel_Specs!$B$11/((1-Vehicles!$C$27)*(1-Vehicles!$C$9)*Fuel_Specs!$B$11+Vehicles!$C$27*(1-Vehicles!$C$9)*Fuel_Specs!$B$13+Vehicles!$C$9*Fuel_Specs!$B$26)*(Petroleum!$B225*Petroleum!$D$218+Petroleum!$D225)+Vehicles!$C$27*(1-Vehicles!$C$9)*Fuel_Specs!$B$13/((1-Vehicles!$C$27)*(1-Vehicles!$C$9)*Fuel_Specs!$B$11+Vehicles!$C$27*(1-Vehicles!$C$9)*Fuel_Specs!$B$13+Vehicles!$C$9*Fuel_Specs!$B$26)*(Petroleum!B225*Petroleum!$F$218+Petroleum!$F225)+Vehicles!$C$9*Fuel_Specs!$B$26/((1-Vehicles!$C$27)*(1-Vehicles!$C$9)*Fuel_Specs!$B$11+Vehicles!$C$27*(1-Vehicles!$C$9)*Fuel_Specs!$B$13+Vehicles!$C$9*Fuel_Specs!$B$26)*(EtOH!BE408*EtOH!$BF$401+EtOH!$BF408))/1000000*HLOOKUP($I$10,$Y$5:$AC$6,2,FALSE)/HLOOKUP($I$11,$Y$7:$AC$8,2,FALSE) -> 60.38025167 | P25: =(EtOH!$BE408*EtOH!$BF$401+EtOH!$BF408)/1000000*HLOOKUP($I$10,$Y$5:$AC$6,2,FALSE)/HLOOKUP($I$11,$Y$7:$AC$8,2,FALSE) -> 72.49149862 | Q25: =((1-Vehicles!$C$29)*(1-Vehicles!$C$14)*Fuel_Specs!$B$11/((1-Vehicles!$C$29)*(1-Vehicles!$C$14)*Fuel_Specs!$B$11+Vehicles!$C$29*(1-Vehicles!$C$14)*Fuel_Specs!$B$13+Vehicles!$C$14*Fuel_Specs!$B$39)*(Petroleum!$B225*Petroleum!$D$218+Petroleum!$D225)+Vehicles!$C$29*(1-Vehicles!$C$14)*Fuel_Specs!$B$13/((1-Vehicles!$C$29)*(1-Vehicles!$C$14)*Fuel_Specs!$B$11+Vehicles!$C$29*(1-Vehicles!$C$14)*Fuel_Specs!$B$13+Vehicles!$C$14*Fuel_Specs!$B$39)*(Petroleum!B225*Petroleum!$F$218+Petroleum!$F225)+Vehicles!$C$14*Fuel_Specs!$B$39/((1-Vehicles!$C$29)*(1-Vehicles!$C$14)*Fuel_Specs!$B$11+Vehicles!$C$29*(1-Vehicles!$C$14)*Fuel_Specs!$B$13+Vehicles!$C$14*Fuel_Specs!$B$39)*(BioOil!$BQ321*BioOil!$BR$313+BioOil!$BR321))/1000000*HLOOKUP($I$10,$Y$5:$AC$6,2,FALSE)/HLOOKUP($I$11,$Y$7:$AC$8,2,FALSE) -> 169.3449955 | R25: =((1-Vehicles!$C$29)*(1-Vehicles!$C$14)*Fuel_Specs!$B$11/((1-Vehicles!$C$29)*(1-Vehicles!$C$14)*Fuel_Specs!$B$11+Vehicles!$C$29*(1-Vehicles!$C$14)*Fuel_Specs!$B$13+Vehicles!$C$14*Fuel_Specs!$B$39)*(Petroleum!$B225*Petroleum!$D$218+Petroleum!$D225)+Vehicles!$C$29*(1-Vehicles!$C$14)*Fuel_Specs!$B$13/((1-Vehicles!$C$29)*(1-Vehicles!$C$14)*Fuel_Specs!$B$11+Vehicles!$C$29*(1-Vehicles!$C$14)*Fuel_Specs!$B$13+Vehicles!$C$14*Fuel_Specs!$B$39)*(Petroleum!B225*Petroleum!$F$218+Petroleum!$F225)+Vehicles!$C$14*Fuel_Specs!$B$39/((1-Vehicles!$C$29)*(1-Vehicles!$C$14)*Fuel_Specs!$B$11+Vehicles!$C$29*(1-Vehicles!$C$14)*Fuel_Specs!$B$13+Vehicles!$C$14*Fuel_Specs!$B$39)*(Pyrolysis!$Z173*Pyrolysis!$AA$166+Pyrolysis!$AA173))/1000000*HLOOKUP($I$10,$Y$5:$AC$6,2,FALSE)/HLOOKUP($I$11,$Y$7:$AC$8,2,FALSE) -> 26.86382384 | S25: =AN25*(Vehicles!$C$21/Vehicles!$AN$53)/(Vehicles!$C$21*(1/Vehicles!$AN$53+1/Vehicles!$AO$53)+Vehicles!$C$22/Vehicles!$AP$53)+B25*(Vehicles!$C$21/Vehicles!$AO$53+Vehicles!$C$22/Vehicles!$AP$53)/(Vehicles!$C$21*(1/Vehicles!$AN$53+1/Vehicles!$AO$53)+Vehicles!$C$22/Vehicles!$AP$53) -> 36.6601183 | T25: =AN25*(Vehicles!$D$21/Vehicles!$AR$53)/(Vehicles!$D$21*(1/Vehicles!$AR$53+1/Vehicles!$AS$53)+Vehicles!$D$22/Vehicles!$AT$53)+C25*(Vehicles!$D$21/Vehicles!$AS$53+Vehicles!$D$22/Vehicles!$AT$53)/(Vehicles!$D$21*(1/Vehicles!$AR$53+1/Vehicles!$AS$53)+Vehicles!$D$22/Vehicles!$AT$53) -> 34.88385289 | U25: =AN25*(Vehicles!$F$21/Vehicles!$AZ$53)/(Vehicles!$F$21*(1/Vehicles!$AZ$53+1/Vehicles!$BA$53)+Vehicles!$F$22/Vehicles!$BB$53)+D25*(Vehicles!$F$21/Vehicles!$BA$53+Vehicles!$F$22/Vehicles!$BB$53)/(Vehicles!$F$21*(1/Vehicles!$AZ$53+1/Vehicles!$BA$53)+Vehicles!$F$22/Vehicles!$BB$53) -> 36.64860137 | V25: =AN25*(Vehicles!$G$21/Vehicles!$BD$53)/(Vehicles!$G$21*(1/Vehicles!$BD$53+1/Vehicles!$BE$53)+Vehicles!$G$22/Vehicles!$BF$53)+F25*(Vehicles!$G$21/Vehicles!$BE$53+Vehicles!$G$22/Vehicles!$BF$53)/(Vehicles!$G$21*(1/Vehicles!$BD$53+1/Vehicles!$BE$53)+Vehicles!$G$22/Vehicles!$BF$53) -> 51.86555302 | W25: =AN25*(Vehicles!$H$21/Vehicles!$BH$53)/(Vehicles!$H$21*(1/Vehicles!$BH$53+1/Vehicles!$BI$53)+Vehicles!$H$22/Vehicles!$BJ$53)+G25*(Vehicles!$H$21/Vehicles!$BI$53+Vehicles!$H$22/Vehicles!$BJ$53)/(Vehicles!$H$21*(1/Vehicles!$BH$53+1/Vehicles!$BI$53)+Vehicles!$H$22/Vehicles!$BJ$53) -> 57.78232769 | X25: =AN25*(Vehicles!$I$21/Vehicles!$BL$53)/(Vehicles!$I$21*(1/Vehicles!$BL$53+1/Vehicles!$BM$53)+Vehicles!$I$22/Vehicles!$BN$53)+H25*(Vehicles!$I$21/Vehicles!$BM$53+Vehicles!$I$22/Vehicles!$BN$53)/(Vehicles!$I$21*(1/Vehicles!$BL$53+1/Vehicles!$BM$53)+Vehicles!$I$22/Vehicles!$BN$53) -> 32.88053229 | Y25: =AN25*(Vehicles!$J$21/Vehicles!$BP$53)/(Vehicles!$J$21*(1/Vehicles!$BP$53+1/Vehicles!$BQ$53)+Vehicles!$J$22/Vehicles!$BR$53)+K25*(Vehicles!$J$21/Vehicles!$BQ$53+Vehicles!$J$22/Vehicles!$BR$53)/(Vehicles!$J$21*(1/Vehicles!$BP$53+1/Vehicles!$BQ$53)+Vehicles!$J$22/Vehicles!$BR$53) -> 45.45072357 | Z25: =AN25*(Vehicles!$K$21/Vehicles!$BT$53)/(Vehicles!$K$21*(1/Vehicles!$BT$53+1/Vehicles!$BU$53)+Vehicles!$K$22/Vehicles!$BV$53)+O25*(Vehicles!$K$21/Vehicles!$BU$53+Vehicles!$K$22/Vehicles!$BV$53)/(Vehicles!$K$21*(1/Vehicles!$BT$53+1/Vehicles!$BU$53)+Vehicles!$K$22/Vehicles!$BV$53) -> 64.30050777 | AA25: =AN25*(Vehicles!$L$21/Vehicles!$BX$53)/(Vehicles!$L$21*(1/Vehicles!$BX$53+1/Vehicles!$BY$53)+Vehicles!$L$22/Vehicles!$BZ$53)+AO25*(Vehicles!$L$21/Vehicles!$BY$53+Vehicles!$L$22/Vehicles!$BZ$53)/(Vehicles!$L$21*(1/Vehicles!$BX$53+1/Vehicles!$BY$53)+Vehicles!$L$22/Vehicles!$BZ$53) -> 71.24458057 | AB25: =AN25*(Vehicles!$L$21/Vehicles!$BX$53)/(Vehicles!$L$21*(1/Vehicles!$BX$53+1/Vehicles!$BY$53)+Vehicles!$L$22/Vehicles!$CA$53)+AP25*(Vehicles!$L$21/Vehicles!$BY$53+Vehicles!$L$22/Vehicles!$CA$53)/(Vehicles!$L$21*(1/Vehicles!$BX$53+1/Vehicles!$BY$53)+Vehicles!$L$22/Vehicles!$CA$53) -> 93.74431458 | AC25: =('MeOH&FTD'!$X139*'MeOH&FTD'!$Y$132+'MeOH&FTD'!$Y139)/1000000*HLOOKUP($I$10,$Y$5:$AC$6,2,FALSE)/HLOOKUP($I$11,$Y$7:$AC$8,2,FALSE) -> 32.94588587 | AD25: =((1-Vehicles!$C$30)*(1-Vehicles!$C$11)*Fuel_Specs!$B$15/((1-Vehicles!$C$30)*(1-Vehicles!$C$11)*Fuel_Specs!$B$15+Vehicles!$C$30*(1-Vehicles!$C$11)*Fuel_Specs!$B$18+Vehicles!$C$11*Fuel_Specs!$B$35)*(Petroleum!B225*Petroleum!$J$218+Petroleum!$J225)+Vehicles!$C$30*(1-Vehicles!$C$11)*Fuel_Specs!$B$18/((1-Vehicles!$C$30)*(1-Vehicles!$C$11)*Fuel_Specs!$B$15+Vehicles!$C$30*(1-Vehicles!$C$11)*Fuel_Specs!$B$18+Vehicles!$C$11*Fuel_Specs!$B$35)*(Petroleum!B225*Petroleum!$K$218+Petroleum!$K225)+Vehicles!$C$11*Fuel_Specs!$B$35/((1-Vehicles!$C$30)*(1-Vehicles!$C$11)*Fuel_Specs!$B$15+Vehicles!$C$30*(1-Vehicles!$C$11)*Fuel_Specs!$B$18+Vehicles!$C$11*Fuel_Specs!$B$35)*('MeOH&FTD'!$AL139*'MeOH&FTD'!$AM$132+'MeOH&FTD'!$AM139))/1000000*HLOOKUP($I$10,$Y$5:$AC$6,2,FALSE)/HLOOKUP($I$11,$Y$7:$AC$8,2,FALSE) -> 34.45579831 | AE25: =((1-Vehicles!$C$31)*(1-Vehicles!$C$12)*Fuel_Specs!$B$15/((1-Vehicles!$C$31)*(1-Vehicles!$C$12)*Fuel_Specs!$B$15+Vehicles!$C$31*(1-Vehicles!$C$12)*Fuel_Specs!$B$18+Vehicles!$C$12*Fuel_Specs!$B$34)*(Petroleum!B225*Petroleum!$J$218+Petroleum!$J225)+Vehicles!$C$31*(1-Vehicles!$C$12)*Fuel_Specs!$B$18/((1-Vehicles!$C$31)*(1-Vehicles!$C$12)*Fuel_Specs!$B$15+Vehicles!$C$31*(1-Vehicles!$C$12)*Fuel_Specs!$B$18+Vehicles!$C$12*Fuel_Specs!$B$34)*(Petroleum!B225*Petroleum!$K$218+Petroleum!$K225)+Vehicles!$C$12*Fuel_Specs!$B$34/((1-Vehicles!$C$31)*(1-Vehicles!$C$12)*Fuel_Specs!$B$15+Vehicles!$C$31*(1-Vehicles!$C$12)*Fuel_Specs!$B$18+Vehicles!$C$12*Fuel_Specs!$B$34)*(BioOil!$Y321*BioOil!$Z$313+BioOil!$Z321))/1000000*HLOOKUP($I$10,$Y$5:$AC$6,2,FALSE)/HLOOKUP($I$11,$Y$7:$AC$8,2,FALSE) -> 29.21940939 | AF25: =((1-Vehicles!$C$32)*(1-Vehicles!$C$13)*Fuel_Specs!$B$15/((1-Vehicles!$C$32)*(1-Vehicles!$C$13)*Fuel_Specs!$B$15+Vehicles!$C$32*(1-Vehicles!$C$13)*Fuel_Specs!$B$18+Vehicles!$C$13*IF(Inputs!$E$499=1,IF(Inputs!$E$499=1,Fuel_Specs!$B$36,IF(Inputs!$E$499=3,Fuel_Specs!$B$38,Fuel_Specs!$B$37)),Fuel_Specs!$B$37))*(Petroleum!B225*Petroleum!$J$218+Petroleum!$J225)+Vehicles!$C$32*(1-Vehicles!$C$13)*Fuel_Specs!$B$18/((1-Vehicles!$C$32)*(1-Vehicles!$C$13)*Fuel_Specs!$B$15+Vehicles!$C$32*(1-Vehicles!$C$13)*Fuel_Specs!$B$18+Vehicles!$C$13*IF(Inputs!$E$499=1,IF(Inputs!$E$499=1,Fuel_Specs!$B$36,IF(Inputs!$E$499=3,Fuel_Specs!$B$38,Fuel_Specs!$B$37)),Fuel_Specs!$B$37))*(Petroleum!B225*Petroleum!$K$218+Petroleum!$K225)+Vehicles!$C$13*IF(Inputs!$E$499=1,IF(Inputs!$E$499=1,Fuel_Specs!$B$36,IF(Inputs!$E$499=3,Fuel_Specs!$B$38,Fuel_Specs!$B$37)),Fuel_Specs!$B$37)/((1-Vehicles!$C$32)*(1-Vehicles!$C$13)*Fuel_Specs!$B$15+Vehicles!$C$32*(1-Vehicles!$C$13)*Fuel_Specs!$B$18+Vehicles!$C$13*IF(Inputs!$E$499=1,IF(Inputs!$E$499=1,Fuel_Specs!$B$36,IF(Inputs!$E$499=3,Fuel_Specs!$B$38,Fuel_Specs!$B$37)),Fuel_Specs!$B$37))*(BioOil!$BE321*BioOil!$BF$313+BioOil!$BF321))/1000000*HLOOKUP($I$10,$Y$5:$AC$6,2,FALSE)/HLOOKUP($I$11,$Y$7:$AC$8,2,FALSE) -> 42.44543054 | AG25: =((1-Vehicles!$C$32)*(1-Vehicles!$C$13)*Fuel_Specs!$B$15/((1-Vehicles!$C$32)*(1-Vehicles!$C$13)*Fuel_Specs!$B$15+Vehicles!$C$32*(1-Vehicles!$C$13)*Fuel_Specs!$B$18+Vehicles!$C$13*IF(Inputs!$E$499=1,Fuel_Specs!$B$36,Fuel_Specs!$B$37))*(Petroleum!B225*Petroleum!$J$218+Petroleum!$J225)+Vehicles!$C$32*(1-Vehicles!$C$13)*Fuel_Specs!$B$18/((1-Vehicles!$C$32)*(1-Vehicles!$C$13)*Fuel_Specs!$B$15+Vehicles!$C$32*(1-Vehicles!$C$13)*Fuel_Specs!$B$18+Vehicles!$C$13*IF(Inputs!$E$499=1,Fuel_Specs!$B$36,Fuel_Specs!$B$37))*(Petroleum!B225*Petroleum!$K$218+Petroleum!$K225)+Vehicles!$C$13*IF(Inputs!$E$499=1,Fuel_Specs!$B$36,Fuel_Specs!$B$37)/((1-Vehicles!$C$32)*(1-Vehicles!$C$13)*Fuel_Specs!$B$15+Vehicles!$C$32*(1-Vehicles!$C$13)*Fuel_Specs!$B$18+Vehicles!$C$13*IF(Inputs!$E$499=1,Fuel_Specs!$B$36,Fuel_Specs!$B$37))*(Pyrolysis!$AB173*Pyrolysis!$AC$166+Pyrolysis!$AC173))/1000000*HLOOKUP($I$10,$Y$5:$AC$6,2,FALSE)/HLOOKUP($I$11,$Y$7:$AC$8,2,FALSE) -> 26.9876667 | AH25: =(((1-Vehicles!$C$33)*(1-Vehicles!$C$15-Vehicles!$C$16)*Fuel_Specs!$B$15*(Petroleum!B225*Petroleum!$J$218+Petroleum!$J225)+Vehicles!$C$33*(1-Vehicles!$C$15-Vehicles!$C$16)*Fuel_Specs!$B$18*(Petroleum!B225*Petroleum!$K$218+Petroleum!$K225)+Vehicles!$C$15*Fuel_Specs!$B$26*(EtOH!BE408*EtOH!$BF$401+EtOH!$BF408)+Vehicles!$C$16*Fuel_Specs!$B$29*('E-D Additives'!$B55*'E-D Additives'!$B$48))/((1-Vehicles!$C$33)*(1-Vehicles!$C$15-Vehicles!$C$16)*Fuel_Specs!$B$15+Vehicles!$C$33*(1-Vehicles!$C$15-Vehicles!$C$16)*Fuel_Specs!$B$18+Vehicles!$C$15*Fuel_Specs!$B$26+Vehicles!$C$16*Fuel_Specs!$B$29))/1000000*HLOOKUP($I$10,$Y$5:$AC$6,2,FALSE)/HLOOKUP($I$11,$Y$7:$AC$8,2,FALSE) -> 25.86917182 | AI25: =AN25*(Vehicles!$M$21/Vehicles!$CI$53)/(Vehicles!$M$21*(1/Vehicles!$CI$53+1/Vehicles!$CJ$53)+Vehicles!$M$22/Vehicles!$CK$53)+E25*(Vehicles!$M$21/Vehicles!$CJ$53+Vehicles!$M$22/Vehicles!$CK$53)/(Vehicles!$M$21*(1/Vehicles!$CI$53+1/Vehicles!$CJ$53)+Vehicles!$M$22/Vehicles!$CK$53) -> 36.11486214 | AJ25: =AN25*(Vehicles!$N$21/Vehicles!$CM$53)/(Vehicles!$N$21*(1/Vehicles!$CM$53+1/Vehicles!$CN$53)+Vehicles!$N$22/Vehicles!$CO$53)+AC25*(Vehicles!$N$21/Vehicles!$CN$53+Vehicles!$N$22/Vehicles!$CO$53)/(Vehicles!$N$21*(1/Vehicles!$CM$53+1/Vehicles!$CN$53)+Vehicles!$N$22/Vehicles!$CO$53) -> 43.82207184 | AK25: =AN25*(Vehicles!$O$21/Vehicles!$CQ$53)/(Vehicles!$O$21*(1/Vehicles!$CQ$53+1/Vehicles!$CR$53)+Vehicles!$O$22/Vehicles!$CS$53)+AD25*(Vehicles!$O$21/Vehicles!$CR$53+Vehicles!$O$22/Vehicles!$CS$53)/(Vehicles!$O$21*(1/Vehicles!$CQ$53+1/Vehicles!$CR$53)+Vehicles!$O$22/Vehicles!$CS$53) -> 44.96889866 | AL25: =AN25*(Vehicles!$P$21/Vehicles!$CU$53)/(Vehicles!$P$21*(1/Vehicles!$CU$53+1/Vehicles!$CV$53)+Vehicles!$P$22/Vehicles!$CW$53)+AE25*(Vehicles!$P$21/Vehicles!$CV$53+Vehicles!$P$22/Vehicles!$CW$53)/(Vehicles!$P$21*(1/Vehicles!$CU$53+1/Vehicles!$CV$53)+Vehicles!$P$22/Vehicles!$CW$53) -> 40.99169369 | AM25: =AN25*(Vehicles!$R$21/Vehicles!$DC$53)/(Vehicles!$R$21*(1/Vehicles!$DC$53+1/Vehicles!$DD$53)+Vehicles!$R$22/Vehicles!$DE$53)+AH25*(Vehicles!$R$21/Vehicles!$DD$53+Vehicles!$R$22/Vehicles!$DE$53)/(Vehicles!$R$21*(1/Vehicles!$DC$53+1/Vehicles!$DD$53)+Vehicles!$R$22/Vehicles!$DE$53) -> 38.44708103 | AN25: =(Electric!$G177+Electric!$F177)/1000000*HLOOKUP($I$10,$Y$5:$AC$6,2,FALSE)/HLOOKUP($I$11,$Y$7:$AC$8,2,FALSE) -> 78.17513129 | AO25: =(Hydrogen!$Z154*Hydrogen!$AA$147+Hydrogen!$AA154)/1000000*HLOOKUP($I$10,$Y$5:$AC$6,2,FALSE)/HLOOKUP($I$11,$Y$7:$AC$8,2,FALSE) -> 68.97712862 | AP25: =(Hydrogen!$AX154*Hydrogen!$AY$147+Hydrogen!$AY154)/1000000*HLOOKUP($I$10,$Y$5:$AC$6,2,FALSE)/HLOOKUP($I$11,$Y$7:$AC$8,2,FALSE) -> 98.83804758 | AQ25: =AN25*(Vehicles!$S$21/Vehicles!$DS$53)/(Vehicles!$S$21*(1/Vehicles!$DS$53+1/Vehicles!$DT$53)+Vehicles!$S$22/Vehicles!$DU$53)+AO25*(Vehicles!$S$21/Vehicles!$DT$53+Vehicles!$S$22/Vehicles!$DU$53)/(Vehicles!$S$21*(1/Vehicles!$DS$53+1/Vehicles!$DT$53)+Vehicles!$S$22/Vehicles!$DU$53) -> 71.78500936 | AR25: =AN25*(Vehicles!$S$21/Vehicles!$DS$53)/(Vehicles!$S$21*(1/Vehicles!$DS$53+1/Vehicles!$DT$53)+Vehicles!$S$22/Vehicles!$DU$53)+AP25*(Vehicles!$S$21/Vehicles!$DT$53+Vehicles!$S$22/Vehicles!$DU$53)/(Vehicles!$S$21*(1/Vehicles!$DS$53+1/Vehicles!$DT$53)+Vehicles!$S$22/Vehicles!$DU$53) -> 92.53026459
A26: NOx: Total | B26: =(Inputs!$E$1056*(Petroleum!$B226*Petroleum!$F$218+Petroleum!$F226)+(1-Inputs!$E$1056)*(Petroleum!$B226*Petroleum!$D$218+Petroleum!$D226))/1000000*HLOOKUP($I$10,$Y$5:$AC$6,2,FALSE)/HLOOKUP($I$11,$Y$7:$AC$8,2,FALSE) -> 56.25955009 | C26: =(Petroleum!$C226*Petroleum!$G$218+Petroleum!$G226)/1000000*HLOOKUP($I$10,$Y$5:$AC$6,2,FALSE)/HLOOKUP($I$11,$Y$7:$AC$8,2,FALSE) -> 48.08869286 | D26: =((1-Vehicles!$C$26)*(1-Vehicles!$C$7)*Fuel_Specs!$B$11/((1-Vehicles!$C$26)*(1-Vehicles!$C$7)*Fuel_Specs!$B$11+Vehicles!$C$26*(1-Vehicles!$C$7)*Fuel_Specs!$B$13+Vehicles!$C$7*Fuel_Specs!$B$26)*(Petroleum!$B226*Petroleum!$D$218+Petroleum!$D226)+Vehicles!$C$26*(1-Vehicles!$C$7)*Fuel_Specs!$B$13/((1-Vehicles!$C$26)*(1-Vehicles!$C$7)*Fuel_Specs!$B$11+Vehicles!$C$26*(1-Vehicles!$C$7)*Fuel_Specs!$B$13+Vehicles!$C$7*Fuel_Specs!$B$26)*(Petroleum!B226*Petroleum!$F$218+Petroleum!$F226)+Vehicles!$C$7*Fuel_Specs!$B$26/((1-Vehicles!$C$26)*(1-Vehicles!$C$7)*Fuel_Specs!$B$11+Vehicles!$C$26*(1-Vehicles!$C$7)*Fuel_Specs!$B$13+Vehicles!$C$7*Fuel_Specs!$B$26)*(EtOH!BE409*EtOH!$BF$401+EtOH!$BF409))/1000000*HLOOKUP($I$10,$Y$5:$AC$6,2,FALSE)/HLOOKUP($I$11,$Y$7:$AC$8,2,FALSE) -> 56.21861098 | E26: =(Inputs!$E$88*(IF(Inputs!F$92=1,Petroleum!$B226,Petroleum!$C226)*Petroleum!$K$218+Petroleum!$K226)+(1-Inputs!$E$88)*(IF(Inputs!F$91=1,Petroleum!$B226,Petroleum!$C226)*Petroleum!$J$218+Petroleum!$J226))/1000000*HLOOKUP($I$10,$Y$5:$AC$6,2,FALSE)/HLOOKUP($I$11,$Y$7:$AC$8,2,FALSE) -> 53.43175985 | F26: =(NG!$H88*NG!$I$80+NG!$I88)/1000000*HLOOKUP($I$10,$Y$5:$AC$6,2,FALSE)/HLOOKUP($I$11,$Y$7:$AC$8,2,FALSE) -> 58.15028228 | G26: =(NG!$P88*NG!$Q$80+NG!$Q88)/1000000*HLOOKUP($I$10,$Y$5:$AC$6,2,FALSE)/HLOOKUP($I$11,$Y$7:$AC$8,2,FALSE) -> 63.37275777 | H26: =(NG!$V88*NG!$W$80+NG!$W88)/1000000*HLOOKUP($I$10,$Y$5:$AC$6,2,FALSE)/HLOOKUP($I$11,$Y$7:$AC$8,2,FALSE) -> 37.50640839 | I26: =('MeOH&FTD'!AV140*'MeOH&FTD'!AW$132+'MeOH&FTD'!AW140)/1000000*HLOOKUP($I$10,$Y$5:$AC$6,2,FALSE)/HLOOKUP($I$11,$Y$7:$AC$8,2,FALSE) -> 42.94502663 | J26: =((1-Vehicles!$C$25)*(1-Vehicles!$C$5)*Fuel_Specs!$B$11/((1-Vehicles!$C$25)*(1-Vehicles!$C$5)*Fuel_Specs!$B$11+Vehicles!$C$25*(1-Vehicles!$C$5)*Fuel_Specs!$B$13+Vehicles!$C$5*Fuel_Specs!$B$25)*(Petroleum!$B226*Petroleum!$D$218+Petroleum!$D226)+Vehicles!$C$25*(1-Vehicles!$C$5)*Fuel_Specs!$B$13/((1-Vehicles!$C$25)*(1-Vehicles!$C$5)*Fuel_Specs!$B$11+Vehicles!$C$25*(1-Vehicles!$C$5)*Fuel_Specs!$B$13+Vehicles!$C$5*Fuel_Specs!$B$25)*(Petroleum!B226*Petroleum!$F$218+Petroleum!$F226)+Vehicles!$C$5*Fuel_Specs!$B$25/((1-Vehicles!$C$25)*(1-Vehicles!$C$5)*Fuel_Specs!$B$11+Vehicles!$C$25*(1-Vehicles!$C$5)*Fuel_Specs!$B$13+Vehicles!$C$5*Fuel_Specs!$B$25)*('MeOH&FTD'!$L140*'MeOH&FTD'!$M$132+'MeOH&FTD'!$M140))/1000000*HLOOKUP($I$10,$Y$5:$AC$6,2,FALSE)/HLOOKUP($I$11,$Y$7:$AC$8,2,FALSE) -> 57.56899221 | K26: =((1-Vehicles!$C$25)*(1-Vehicles!$C$6)*Fuel_Specs!$B$11/((1-Vehicles!$C$25)*(1-Vehicles!$C$6)*Fuel_Specs!$B$11+Vehicles!$C$25*(1-Vehicles!$C$6)*Fuel_Specs!$B$13+Vehicles!$C$6*Fuel_Specs!$B$25)*(Petroleum!$B226*Petroleum!$D$218+Petroleum!$D226)+Vehicles!$C$25*(1-Vehicles!$C$6)*Fuel_Specs!$B$13/((1-Vehicles!$C$25)*(1-Vehicles!$C$6)*Fuel_Specs!$B$11+Vehicles!$C$25*(1-Vehicles!$C$6)*Fuel_Specs!$B$13+Vehicles!$C$6*Fuel_Specs!$B$25)*(Petroleum!B226*Petroleum!$F$218+Petroleum!$F226)+Vehicles!$C$6*Fuel_Specs!$B$25/((1-Vehicles!$C$25)*(1-Vehicles!$C$6)*Fuel_Specs!$B$11+Vehicles!$C$25*(1-Vehicles!$C$6)*Fuel_Specs!$B$13+Vehicles!$C$6*Fuel_Specs!$B$25)*('MeOH&FTD'!$L140*'MeOH&FTD'!$M$132+'MeOH&FTD'!$M140))/1000000*HLOOKUP($I$10,$Y$5:$AC$6,2,FALSE)/HLOOKUP($I$11,$Y$7:$AC$8,2,FALSE) -> 58.26605434 | L26: =('MeOH&FTD'!$L140*'MeOH&FTD'!$M$132+'MeOH&FTD'!$M140)/1000000*HLOOKUP($I$10,$Y$5:$AC$6,2,FALSE)/HLOOKUP($I$11,$Y$7:$AC$8,2,FALSE) -> 59.87510507 | M26: =((1-Vehicles!$C$27)*(1-Vehicles!$C$8)*Fuel_Specs!$B$11/((1-Vehicles!$C$27)*(1-Vehicles!$C$8)*Fuel_Specs!$B$11+Vehicles!$C$27*(1-Vehicles!$C$8)*Fuel_Specs!$B$13+Vehicles!$C$8*Fuel_Specs!$B$26)*(Petroleum!$B226*Petroleum!$D$218+Petroleum!$D226)+Vehicles!$C$27*(1-Vehicles!$C$8)*Fuel_Specs!$B$13/((1-Vehicles!$C$27)*(1-Vehicles!$C$8)*Fuel_Specs!$B$11+Vehicles!$C$27*(1-Vehicles!$C$8)*Fuel_Specs!$B$13+Vehicles!$C$8*Fuel_Specs!$B$26)*(Petroleum!B226*Petroleum!$F$218+Petroleum!$F226)+Vehicles!$C$8*Fuel_Specs!$B$26/((1-Vehicles!$C$27)*(1-Vehicles!$C$8)*Fuel_Specs!$B$11+Vehicles!$C$27*(1-Vehicles!$C$8)*Fuel_Specs!$B$13+Vehicles!$C$8*Fuel_Specs!$B$26)*(EtOH!BE409*EtOH!$BF$401+EtOH!$BF409))/1000000*HLOOKUP($I$10,$Y$5:$AC$6,2,FALSE)/HLOOKUP($I$11,$Y$7:$AC$8,2,FALSE) -> 109.6755464 | N26: =((1-Vehicles!$C$28)*(1-Vehicles!$C$10)*Fuel_Specs!$B$11/((1-Vehicles!$C$28)*(1-Vehicles!$C$10)*Fuel_Specs!$B$11+Vehicles!$C$28*(1-Vehicles!$C$10)*Fuel_Specs!$B$13+Vehicles!$C$10*Fuel_Specs!$B$27)*(Petroleum!$B226*Petroleum!$D$218+Petroleum!$D226)+Vehicles!$C$28*(1-Vehicles!$C$10)*Fuel_Specs!$B$13/((1-Vehicles!$C$28)*(1-Vehicles!$C$10)*Fuel_Specs!$B$11+Vehicles!$C$28*(1-Vehicles!$C$10)*Fuel_Specs!$B$13+Vehicles!$C$10*Fuel_Specs!$B$27)*(Petroleum!B226*Petroleum!$F$218+Petroleum!$F226)+Vehicles!$C$10*Fuel_Specs!$B$27/((1-Vehicles!$C$28)*(1-Vehicles!$C$10)*Fuel_Specs!$B$11+Vehicles!$C$28*(1-Vehicles!$C$10)*Fuel_Specs!$B$13+Vehicles!$C$10*Fuel_Specs!$B$27)*(EtOH!$BI409*EtOH!$BJ$401+EtOH!$BJ409))/1000000*HLOOKUP($I$10,$Y$5:$AC$6,2,FALSE)/HLOOKUP($I$11,$Y$7:$AC$8,2,FALSE) -> 115.2541676 | O26: =((1-Vehicles!$C$27)*(1-Vehicles!$C$9)*Fuel_Specs!$B$11/((1-Vehicles!$C$27)*(1-Vehicles!$C$9)*Fuel_Specs!$B$11+Vehicles!$C$27*(1-Vehicles!$C$9)*Fuel_Specs!$B$13+Vehicles!$C$9*Fuel_Specs!$B$26)*(Petroleum!$B226*Petroleum!$D$218+Petroleum!$D226)+Vehicles!$C$27*(1-Vehicles!$C$9)*Fuel_Specs!$B$13/((1-Vehicles!$C$27)*(1-Vehicles!$C$9)*Fuel_Specs!$B$11+Vehicles!$C$27*(1-Vehicles!$C$9)*Fuel_Specs!$B$13+Vehicles!$C$9*Fuel_Specs!$B$26)*(Petroleum!B226*Petroleum!$F$218+Petroleum!$F226)+Vehicles!$C$9*Fuel_Specs!$B$26/((1-Vehicles!$C$27)*(1-Vehicles!$C$9)*Fuel_Specs!$B$11+Vehicles!$C$27*(1-Vehicles!$C$9)*Fuel_Specs!$B$13+Vehicles!$C$9*Fuel_Specs!$B$26)*(EtOH!BE409*EtOH!$BF$401+EtOH!$BF409))/1000000*HLOOKUP($I$10,$Y$5:$AC$6,2,FALSE)/HLOOKUP($I$11,$Y$7:$AC$8,2,FALSE) -> 109.6755464 | P26: =(EtOH!$BE409*EtOH!$BF$401+EtOH!$BF409)/1000000*HLOOKUP($I$10,$Y$5:$AC$6,2,FALSE)/HLOOKUP($I$11,$Y$7:$AC$8,2,FALSE) -> 127.5283202 | Q26: =((1-Vehicles!$C$29)*(1-Vehicles!$C$14)*Fuel_Specs!$B$11/((1-Vehicles!$C$29)*(1-Vehicles!$C$14)*Fuel_Specs!$B$11+Vehicles!$C$29*(1-Vehicles!$C$14)*Fuel_Specs!$B$13+Vehicles!$C$14*Fuel_Specs!$B$39)*(Petroleum!$B226*Petroleum!$D$218+Petroleum!$D226)+Vehicles!$C$29*(1-Vehicles!$C$14)*Fuel_Specs!$B$13/((1-Vehicles!$C$29)*(1-Vehicles!$C$14)*Fuel_Specs!$B$11+Vehicles!$C$29*(1-Vehicles!$C$14)*Fuel_Specs!$B$13+Vehicles!$C$14*Fuel_Specs!$B$39)*(Petroleum!B226*Petroleum!$F$218+Petroleum!$F226)+Vehicles!$C$14*Fuel_Specs!$B$39/((1-Vehicles!$C$29)*(1-Vehicles!$C$14)*Fuel_Specs!$B$11+Vehicles!$C$29*(1-Vehicles!$C$14)*Fuel_Specs!$B$13+Vehicles!$C$14*Fuel_Specs!$B$39)*(BioOil!$BQ322*BioOil!$BR$313+BioOil!$BR322))/1000000*HLOOKUP($I$10,$Y$5:$AC$6,2,FALSE)/HLOOKUP($I$11,$Y$7:$AC$8,2,FALSE) -> 191.065636 | R26: =((1-Vehicles!$C$29)*(1-Vehicles!$C$14)*Fuel_Specs!$B$11/((1-Vehicles!$C$29)*(1-Vehicles!$C$14)*Fuel_Specs!$B$11+Vehicles!$C$29*(1-Vehicles!$C$14)*Fuel_Specs!$B$13+Vehicles!$C$14*Fuel_Specs!$B$39)*(Petroleum!$B226*Petroleum!$D$218+Petroleum!$D226)+Vehicles!$C$29*(1-Vehicles!$C$14)*Fuel_Specs!$B$13/((1-Vehicles!$C$29)*(1-Vehicles!$C$14)*Fuel_Specs!$B$11+Vehicles!$C$29*(1-Vehicles!$C$14)*Fuel_Specs!$B$13+Vehicles!$C$14*Fuel_Specs!$B$39)*(Petroleum!B226*Petroleum!$F$218+Petroleum!$F226)+Vehicles!$C$14*Fuel_Specs!$B$39/((1-Vehicles!$C$29)*(1-Vehicles!$C$14)*Fuel_Specs!$B$11+Vehicles!$C$29*(1-Vehicles!$C$14)*Fuel_Specs!$B$13+Vehicles!$C$14*Fuel_Specs!$B$39)*(Pyrolysis!$Z174*Pyrolysis!$AA$166+Pyrolysis!$AA174))/1000000*HLOOKUP($I$10,$Y$5:$AC$6,2,FALSE)/HLOOKUP($I$11,$Y$7:$AC$8,2,FALSE) -> 54.48146322 | S26: =AN26*(Vehicles!$C$21/Vehicles!$AN$53)/(Vehicles!$C$21*(1/Vehicles!$AN$53+1/Vehicles!$AO$53)+Vehicles!$C$22/Vehicles!$AP$53)+B26*(Vehicles!$C$21/Vehicles!$AO$53+Vehicles!$C$22/Vehicles!$AP$53)/(Vehicles!$C$21*(1/Vehicles!$AN$53+1/Vehicles!$AO$53)+Vehicles!$C$22/Vehicles!$AP$53) -> 102.4623899 | T26: =AN26*(Vehicles!$D$21/Vehicles!$AR$53)/(Vehicles!$D$21*(1/Vehicles!$AR$53+1/Vehicles!$AS$53)+Vehicles!$D$22/Vehicles!$AT$53)+C26*(Vehicles!$D$21/Vehicles!$AS$53+Vehicles!$D$22/Vehicles!$AT$53)/(Vehicles!$D$21*(1/Vehicles!$AR$53+1/Vehicles!$AS$53)+Vehicles!$D$22/Vehicles!$AT$53) -> 96.18587593 | U26: =AN26*(Vehicles!$F$21/Vehicles!$AZ$53)/(Vehicles!$F$21*(1/Vehicles!$AZ$53+1/Vehicles!$BA$53)+Vehicles!$F$22/Vehicles!$BB$53)+D26*(Vehicles!$F$21/Vehicles!$BA$53+Vehicles!$F$22/Vehicles!$BB$53)/(Vehicles!$F$21*(1/Vehicles!$AZ$53+1/Vehicles!$BA$53)+Vehicles!$F$22/Vehicles!$BB$53) -> 102.4309422 | V26: =AN26*(Vehicles!$G$21/Vehicles!$BD$53)/(Vehicles!$G$21*(1/Vehicles!$BD$53+1/Vehicles!$BE$53)+Vehicles!$G$22/Vehicles!$BF$53)+F26*(Vehicles!$G$21/Vehicles!$BE$53+Vehicles!$G$22/Vehicles!$BF$53)/(Vehicles!$G$21*(1/Vehicles!$BD$53+1/Vehicles!$BE$53)+Vehicles!$G$22/Vehicles!$BF$53) -> 103.9147721 | W26: =AN26*(Vehicles!$H$21/Vehicles!$BH$53)/(Vehicles!$H$21*(1/Vehicles!$BH$53+1/Vehicles!$BI$53)+Vehicles!$H$22/Vehicles!$BJ$53)+G26*(Vehicles!$H$21/Vehicles!$BI$53+Vehicles!$H$22/Vehicles!$BJ$53)/(Vehicles!$H$21*(1/Vehicles!$BH$53+1/Vehicles!$BI$53)+Vehicles!$H$22/Vehicles!$BJ$53) -> 107.9264614 | X26: =AN26*(Vehicles!$I$21/Vehicles!$BL$53)/(Vehicles!$I$21*(1/Vehicles!$BL$53+1/Vehicles!$BM$53)+Vehicles!$I$22/Vehicles!$BN$53)+H26*(Vehicles!$I$21/Vehicles!$BM$53+Vehicles!$I$22/Vehicles!$BN$53)/(Vehicles!$I$21*(1/Vehicles!$BL$53+1/Vehicles!$BM$53)+Vehicles!$I$22/Vehicles!$BN$53) -> 88.05700343 | Y26: =AN26*(Vehicles!$J$21/Vehicles!$BP$53)/(Vehicles!$J$21*(1/Vehicles!$BP$53+1/Vehicles!$BQ$53)+Vehicles!$J$22/Vehicles!$BR$53)+K26*(Vehicles!$J$21/Vehicles!$BQ$53+Vehicles!$J$22/Vehicles!$BR$53)/(Vehicles!$J$21*(1/Vehicles!$BP$53+1/Vehicles!$BQ$53)+Vehicles!$J$22/Vehicles!$BR$53) -> 104.0037034 | Z26: =AN26*(Vehicles!$K$21/Vehicles!$BT$53)/(Vehicles!$K$21*(1/Vehicles!$BT$53+1/Vehicles!$BU$53)+Vehicles!$K$22/Vehicles!$BV$53)+O26*(Vehicles!$K$21/Vehicles!$BU$53+Vehicles!$K$22/Vehicles!$BV$53)/(Vehicles!$K$21*(1/Vehicles!$BT$53+1/Vehicles!$BU$53)+Vehicles!$K$22/Vehicles!$BV$53) -> 141.811154 | AA26: =AN26*(Vehicles!$L$21/Vehicles!$BX$53)/(Vehicles!$L$21*(1/Vehicles!$BX$53+1/Vehicles!$BY$53)+Vehicles!$L$22/Vehicles!$BZ$53)+AO26*(Vehicles!$L$21/Vehicles!$BY$53+Vehicles!$L$22/Vehicles!$BZ$53)/(Vehicles!$L$21*(1/Vehicles!$BX$53+1/Vehicles!$BY$53)+Vehicles!$L$22/Vehicles!$BZ$53) -> 145.0098569 | AB26: =AN26*(Vehicles!$L$21/Vehicles!$BX$53)/(Vehicles!$L$21*(1/Vehicles!$BX$53+1/Vehicles!$BY$53)+Vehicles!$L$22/Vehicles!$CA$53)+AP26*(Vehicles!$L$21/Vehicles!$BY$53+Vehicles!$L$22/Vehicles!$CA$53)/(Vehicles!$L$21*(1/Vehicles!$BX$53+1/Vehicles!$BY$53)+Vehicles!$L$22/Vehicles!$CA$53) -> 212.3333984 | AC26: =('MeOH&FTD'!$X140*'MeOH&FTD'!$Y$132+'MeOH&FTD'!$Y140)/1000000*HLOOKUP($I$10,$Y$5:$AC$6,2,FALSE)/HLOOKUP($I$11,$Y$7:$AC$8,2,FALSE) -> 47.90549797 | AD26: =((1-Vehicles!$C$30)*(1-Vehicles!$C$11)*Fuel_Specs!$B$15/((1-Vehicles!$C$30)*(1-Vehicles!$C$11)*Fuel_Specs!$B$15+Vehicles!$C$30*(1-Vehicles!$C$11)*Fuel_Specs!$B$18+Vehicles!$C$11*Fuel_Specs!$B$35)*(Petroleum!B226*Petroleum!$J$218+Petroleum!$J226)+Vehicles!$C$30*(1-Vehicles!$C$11)*Fuel_Specs!$B$18/((1-Vehicles!$C$30)*(1-Vehicles!$C$11)*Fuel_Specs!$B$15+Vehicles!$C$30*(1-Vehicles!$C$11)*Fuel_Specs!$B$18+Vehicles!$C$11*Fuel_Specs!$B$35)*(Petroleum!B226*Petroleum!$K$218+Petroleum!$K226)+Vehicles!$C$11*Fuel_Specs!$B$35/((1-Vehicles!$C$30)*(1-Vehicles!$C$11)*Fuel_Specs!$B$15+Vehicles!$C$30*(1-Vehicles!$C$11)*Fuel_Specs!$B$18+Vehicles!$C$11*Fuel_Specs!$B$35)*('MeOH&FTD'!$AL140*'MeOH&FTD'!$AM$132+'MeOH&FTD'!$AM140))/1000000*HLOOKUP($I$10,$Y$5:$AC$6,2,FALSE)/HLOOKUP($I$11,$Y$7:$AC$8,2,FALSE) -> 44.04718419 | AE26: =((1-Vehicles!$C$31)*(1-Vehicles!$C$12)*Fuel_Specs!$B$15/((1-Vehicles!$C$31)*(1-Vehicles!$C$12)*Fuel_Specs!$B$15+Vehicles!$C$31*(1-Vehicles!$C$12)*Fuel_Specs!$B$18+Vehicles!$C$12*Fuel_Specs!$B$34)*(Petroleum!B226*Petroleum!$J$218+Petroleum!$J226)+Vehicles!$C$31*(1-Vehicles!$C$12)*Fuel_Specs!$B$18/((1-Vehicles!$C$31)*(1-Vehicles!$C$12)*Fuel_Specs!$B$15+Vehicles!$C$31*(1-Vehicles!$C$12)*Fuel_Specs!$B$18+Vehicles!$C$12*Fuel_Specs!$B$34)*(Petroleum!B226*Petroleum!$K$218+Petroleum!$K226)+Vehicles!$C$12*Fuel_Specs!$B$34/((1-Vehicles!$C$31)*(1-Vehicles!$C$12)*Fuel_Specs!$B$15+Vehicles!$C$31*(1-Vehicles!$C$12)*Fuel_Specs!$B$18+Vehicles!$C$12*Fuel_Specs!$B$34)*(BioOil!$Y322*BioOil!$Z$313+BioOil!$Z322))/1000000*HLOOKUP($I$10,$Y$5:$AC$6,2,FALSE)/HLOOKUP($I$11,$Y$7:$AC$8,2,FALSE) -> 55.69165721 | AF26: =((1-Vehicles!$C$32)*(1-Vehicles!$C$13)*Fuel_Specs!$B$15/((1-Vehicles!$C$32)*(1-Vehicles!$C$13)*Fuel_Specs!$B$15+Vehicles!$C$32*(1-Vehicles!$C$13)*Fuel_Specs!$B$18+Vehicles!$C$13*IF(Inputs!$E$499=1,IF(Inputs!$E$499=1,Fuel_Specs!$B$36,IF(Inputs!$E$499=3,Fuel_Specs!$B$38,Fuel_Specs!$B$37)),Fuel_Specs!$B$37))*(Petroleum!B226*Petroleum!$J$218+Petroleum!$J226)+Vehicles!$C$32*(1-Vehicles!$C$13)*Fuel_Specs!$B$18/((1-Vehicles!$C$32)*(1-Vehicles!$C$13)*Fuel_Specs!$B$15+Vehicles!$C$32*(1-Vehicles!$C$13)*Fuel_Specs!$B$18+Vehicles!$C$13*IF(Inputs!$E$499=1,IF(Inputs!$E$499=1,Fuel_Specs!$B$36,IF(Inputs!$E$499=3,Fuel_Specs!$B$38,Fuel_Specs!$B$37)),Fuel_Specs!$B$37))*(Petroleum!B226*Petroleum!$K$218+Petroleum!$K226)+Vehicles!$C$13*IF(Inputs!$E$499=1,IF(Inputs!$E$499=1,Fuel_Specs!$B$36,IF(Inputs!$E$499=3,Fuel_Specs!$B$38,Fuel_Specs!$B$37)),Fuel_Specs!$B$37)/((1-Vehicles!$C$32)*(1-Vehicles!$C$13)*Fuel_Specs!$B$15+Vehicles!$C$32*(1-Vehicles!$C$13)*Fuel_Specs!$B$18+Vehicles!$C$13*IF(Inputs!$E$499=1,IF(Inputs!$E$499=1,Fuel_Specs!$B$36,IF(Inputs!$E$499=3,Fuel_Specs!$B$38,Fuel_Specs!$B$37)),Fuel_Specs!$B$37))*(BioOil!$BE322*BioOil!$BF$313+BioOil!$BF322))/1000000*HLOOKUP($I$10,$Y$5:$AC$6,2,FALSE)/HLOOKUP($I$11,$Y$7:$AC$8,2,FALSE) -> 38.41042461 | AG26: =((1-Vehicles!$C$32)*(1-Vehicles!$C$13)*Fuel_Specs!$B$15/((1-Vehicles!$C$32)*(1-Vehicles!$C$13)*Fuel_Specs!$B$15+Vehicles!$C$32*(1-Vehicles!$C$13)*Fuel_Specs!$B$18+Vehicles!$C$13*IF(Inputs!$E$499=1,Fuel_Specs!$B$36,Fuel_Specs!$B$37))*(Petroleum!B226*Petroleum!$J$218+Petroleum!$J226)+Vehicles!$C$32*(1-Vehicles!$C$13)*Fuel_Specs!$B$18/((1-Vehicles!$C$32)*(1-Vehicles!$C$13)*Fuel_Specs!$B$15+Vehicles!$C$32*(1-Vehicles!$C$13)*Fuel_Specs!$B$18+Vehicles!$C$13*IF(Inputs!$E$499=1,Fuel_Specs!$B$36,Fuel_Specs!$B$37))*(Petroleum!B226*Petroleum!$K$218+Petroleum!$K226)+Vehicles!$C$13*IF(Inputs!$E$499=1,Fuel_Specs!$B$36,Fuel_Specs!$B$37)/((1-Vehicles!$C$32)*(1-Vehicles!$C$13)*Fuel_Specs!$B$15+Vehicles!$C$32*(1-Vehicles!$C$13)*Fuel_Specs!$B$18+Vehicles!$C$13*IF(Inputs!$E$499=1,Fuel_Specs!$B$36,Fuel_Specs!$B$37))*(Pyrolysis!$AB174*Pyrolysis!$AC$166+Pyrolysis!$AC174))/1000000*HLOOKUP($I$10,$Y$5:$AC$6,2,FALSE)/HLOOKUP($I$11,$Y$7:$AC$8,2,FALSE) -> 52.31238589 | AH26: =(((1-Vehicles!$C$33)*(1-Vehicles!$C$15-Vehicles!$C$16)*Fuel_Specs!$B$15*(Petroleum!B226*Petroleum!$J$218+Petroleum!$J226)+Vehicles!$C$33*(1-Vehicles!$C$15-Vehicles!$C$16)*Fuel_Specs!$B$18*(Petroleum!B226*Petroleum!$K$218+Petroleum!$K226)+Vehicles!$C$15*Fuel_Specs!$B$26*(EtOH!BE409*EtOH!$BF$401+EtOH!$BF409)+Vehicles!$C$16*Fuel_Specs!$B$29*('E-D Additives'!$B56*'E-D Additives'!$B$48))/((1-Vehicles!$C$33)*(1-Vehicles!$C$15-Vehicles!$C$16)*Fuel_Specs!$B$15+Vehicles!$C$33*(1-Vehicles!$C$15-Vehicles!$C$16)*Fuel_Specs!$B$18+Vehicles!$C$15*Fuel_Specs!$B$26+Vehicles!$C$16*Fuel_Specs!$B$29))/1000000*HLOOKUP($I$10,$Y$5:$AC$6,2,FALSE)/HLOOKUP($I$11,$Y$7:$AC$8,2,FALSE) -> 57.9062898 | AI26: =AN26*(Vehicles!$M$21/Vehicles!$CI$53)/(Vehicles!$M$21*(1/Vehicles!$CI$53+1/Vehicles!$CJ$53)+Vehicles!$M$22/Vehicles!$CK$53)+E26*(Vehicles!$M$21/Vehicles!$CJ$53+Vehicles!$M$22/Vehicles!$CK$53)/(Vehicles!$M$21*(1/Vehicles!$CI$53+1/Vehicles!$CJ$53)+Vehicles!$M$22/Vehicles!$CK$53) -> 102.0337496 | AJ26: =AN26*(Vehicles!$N$21/Vehicles!$CM$53)/(Vehicles!$N$21*(1/Vehicles!$CM$53+1/Vehicles!$CN$53)+Vehicles!$N$22/Vehicles!$CO$53)+AC26*(Vehicles!$N$21/Vehicles!$CN$53+Vehicles!$N$22/Vehicles!$CO$53)/(Vehicles!$N$21*(1/Vehicles!$CM$53+1/Vehicles!$CN$53)+Vehicles!$N$22/Vehicles!$CO$53) -> 97.83637688 | AK26: =AN26*(Vehicles!$O$21/Vehicles!$CQ$53)/(Vehicles!$O$21*(1/Vehicles!$CQ$53+1/Vehicles!$CR$53)+Vehicles!$O$22/Vehicles!$CS$53)+AD26*(Vehicles!$O$21/Vehicles!$CR$53+Vehicles!$O$22/Vehicles!$CS$53)/(Vehicles!$O$21*(1/Vehicles!$CQ$53+1/Vehicles!$CR$53)+Vehicles!$O$22/Vehicles!$CS$53) -> 94.90586407 | AL26: =AN26*(Vehicles!$P$21/Vehicles!$CU$53)/(Vehicles!$P$21*(1/Vehicles!$CU$53+1/Vehicles!$CV$53)+Vehicles!$P$22/Vehicles!$CW$53)+AE26*(Vehicles!$P$21/Vehicles!$CV$53+Vehicles!$P$22/Vehicles!$CW$53)/(Vehicles!$P$21*(1/Vehicles!$CU$53+1/Vehicles!$CV$53)+Vehicles!$P$22/Vehicles!$CW$53) -> 103.750214 | AM26: =AN26*(Vehicles!$R$21/Vehicles!$DC$53)/(Vehicles!$R$21*(1/Vehicles!$DC$53+1/Vehicles!$DD$53)+Vehicles!$R$22/Vehicles!$DE$53)+AH26*(Vehicles!$R$21/Vehicles!$DD$53+Vehicles!$R$22/Vehicles!$DE$53)/(Vehicles!$R$21*(1/Vehicles!$DC$53+1/Vehicles!$DD$53)+Vehicles!$R$22/Vehicles!$DE$53) -> 105.4322983 | AN26: =(Electric!$G178+Electric!$F178)/1000000*HLOOKUP($I$10,$Y$5:$AC$6,2,FALSE)/HLOOKUP($I$11,$Y$7:$AC$8,2,FALSE) -> 255.545932 | AO26: =(Hydrogen!$Z155*Hydrogen!$AA$147+Hydrogen!$AA155)/1000000*HLOOKUP($I$10,$Y$5:$AC$6,2,FALSE)/HLOOKUP($I$11,$Y$7:$AC$8,2,FALSE) -> 108.8460297 | AP26: =(Hydrogen!$AX155*Hydrogen!$AY$147+Hydrogen!$AY155)/1000000*HLOOKUP($I$10,$Y$5:$AC$6,2,FALSE)/HLOOKUP($I$11,$Y$7:$AC$8,2,FALSE) -> 198.1956557 | AQ26: =AN26*(Vehicles!$S$21/Vehicles!$DS$53)/(Vehicles!$S$21*(1/Vehicles!$DS$53+1/Vehicles!$DT$53)+Vehicles!$S$22/Vehicles!$DU$53)+AO26*(Vehicles!$S$21/Vehicles!$DT$53+Vehicles!$S$22/Vehicles!$DU$53)/(Vehicles!$S$21*(1/Vehicles!$DS$53+1/Vehicles!$DT$53)+Vehicles!$S$22/Vehicles!$DU$53) -> 153.6292121 | AR26: =AN26*(Vehicles!$S$21/Vehicles!$DS$53)/(Vehicles!$S$21*(1/Vehicles!$DS$53+1/Vehicles!$DT$53)+Vehicles!$S$22/Vehicles!$DU$53)+AP26*(Vehicles!$S$21/Vehicles!$DT$53+Vehicles!$S$22/Vehicles!$DU$53)/(Vehicles!$S$21*(1/Vehicles!$DS$53+1/Vehicles!$DT$53)+Vehicles!$S$22/Vehicles!$DU$53) -> 215.7030149
A27: PM10: Total | B27: =(Inputs!$E$1056*(Petroleum!$B227*Petroleum!$F$218+Petroleum!$F227)+(1-Inputs!$E$1056)*(Petroleum!$B227*Petroleum!$D$218+Petroleum!$D227))/1000000*HLOOKUP($I$10,$Y$5:$AC$6,2,FALSE)/HLOOKUP($I$11,$Y$7:$AC$8,2,FALSE) -> 5.485104553 | C27: =(Petroleum!$C227*Petroleum!$G$218+Petroleum!$G227)/1000000*HLOOKUP($I$10,$Y$5:$AC$6,2,FALSE)/HLOOKUP($I$11,$Y$7:$AC$8,2,FALSE) -> 5.362192697 | D27: =((1-Vehicles!$C$26)*(1-Vehicles!$C$7)*Fuel_Specs!$B$11/((1-Vehicles!$C$26)*(1-Vehicles!$C$7)*Fuel_Specs!$B$11+Vehicles!$C$26*(1-Vehicles!$C$7)*Fuel_Specs!$B$13+Vehicles!$C$7*Fuel_Specs!$B$26)*(Petroleum!$B227*Petroleum!$D$218+Petroleum!$D227)+Vehicles!$C$26*(1-Vehicles!$C$7)*Fuel_Specs!$B$13/((1-Vehicles!$C$26)*(1-Vehicles!$C$7)*Fuel_Specs!$B$11+Vehicles!$C$26*(1-Vehicles!$C$7)*Fuel_Specs!$B$13+Vehicles!$C$7*Fuel_Specs!$B$26)*(Petroleum!B227*Petroleum!$F$218+Petroleum!$F227)+Vehicles!$C$7*Fuel_Specs!$B$26/((1-Vehicles!$C$26)*(1-Vehicles!$C$7)*Fuel_Specs!$B$11+Vehicles!$C$26*(1-Vehicles!$C$7)*Fuel_Specs!$B$13+Vehicles!$C$7*Fuel_Specs!$B$26)*(EtOH!BE410*EtOH!$BF$401+EtOH!$BF410))/1000000*HLOOKUP($I$10,$Y$5:$AC$6,2,FALSE)/HLOOKUP($I$11,$Y$7:$AC$8,2,FALSE) -> 5.484104368 | E27: =(Inputs!$E$88*(IF(Inputs!F$92=1,Petroleum!$B227,Petroleum!$C227)*Petroleum!$K$218+Petroleum!$K227)+(1-Inputs!$E$88)*(IF(Inputs!F$91=1,Petroleum!$B227,Petroleum!$C227)*Petroleum!$J$218+Petroleum!$J227))/1000000*HLOOKUP($I$10,$Y$5:$AC$6,2,FALSE)/HLOOKUP($I$11,$Y$7:$AC$8,2,FALSE) -> 4.817582315 | F27: =(NG!$H89*NG!$I$80+NG!$I89)/1000000*HLOOKUP($I$10,$Y$5:$AC$6,2,FALSE)/HLOOKUP($I$11,$Y$7:$AC$8,2,FALSE) -> 1.895190006 | G27: =(NG!$P89*NG!$Q$80+NG!$Q89)/1000000*HLOOKUP($I$10,$Y$5:$AC$6,2,FALSE)/HLOOKUP($I$11,$Y$7:$AC$8,2,FALSE) -> 1.121419979 | H27: =(NG!$V89*NG!$W$80+NG!$W89)/1000000*HLOOKUP($I$10,$Y$5:$AC$6,2,FALSE)/HLOOKUP($I$11,$Y$7:$AC$8,2,FALSE) -> 2.41761175 | I27: =('MeOH&FTD'!AV141*'MeOH&FTD'!AW$132+'MeOH&FTD'!AW141)/1000000*HLOOKUP($I$10,$Y$5:$AC$6,2,FALSE)/HLOOKUP($I$11,$Y$7:$AC$8,2,FALSE) -> 13.00134472 | J27: =((1-Vehicles!$C$25)*(1-Vehicles!$C$5)*Fuel_Specs!$B$11/((1-Vehicles!$C$25)*(1-Vehicles!$C$5)*Fuel_Specs!$B$11+Vehicles!$C$25*(1-Vehicles!$C$5)*Fuel_Specs!$B$13+Vehicles!$C$5*Fuel_Specs!$B$25)*(Petroleum!$B227*Petroleum!$D$218+Petroleum!$D227)+Vehicles!$C$25*(1-Vehicles!$C$5)*Fuel_Specs!$B$13/((1-Vehicles!$C$25)*(1-Vehicles!$C$5)*Fuel_Specs!$B$11+Vehicles!$C$25*(1-Vehicles!$C$5)*Fuel_Specs!$B$13+Vehicles!$C$5*Fuel_Specs!$B$25)*(Petroleum!B227*Petroleum!$F$218+Petroleum!$F227)+Vehicles!$C$5*Fuel_Specs!$B$25/((1-Vehicles!$C$25)*(1-Vehicles!$C$5)*Fuel_Specs!$B$11+Vehicles!$C$25*(1-Vehicles!$C$5)*Fuel_Specs!$B$13+Vehicles!$C$5*Fuel_Specs!$B$25)*('MeOH&FTD'!$L141*'MeOH&FTD'!$M$132+'MeOH&FTD'!$M141))/1000000*HLOOKUP($I$10,$Y$5:$AC$6,2,FALSE)/HLOOKUP($I$11,$Y$7:$AC$8,2,FALSE) -> 11.49927246 | K27: =((1-Vehicles!$C$25)*(1-Vehicles!$C$6)*Fuel_Specs!$B$11/((1-Vehicles!$C$25)*(1-Vehicles!$C$6)*Fuel_Specs!$B$11+Vehicles!$C$25*(1-Vehicles!$C$6)*Fuel_Specs!$B$13+Vehicles!$C$6*Fuel_Specs!$B$25)*(Petroleum!$B227*Petroleum!$D$218+Petroleum!$D227)+Vehicles!$C$25*(1-Vehicles!$C$6)*Fuel_Specs!$B$13/((1-Vehicles!$C$25)*(1-Vehicles!$C$6)*Fuel_Specs!$B$11+Vehicles!$C$25*(1-Vehicles!$C$6)*Fuel_Specs!$B$13+Vehicles!$C$6*Fuel_Specs!$B$25)*(Petroleum!B227*Petroleum!$F$218+Petroleum!$F227)+Vehicles!$C$6*Fuel_Specs!$B$25/((1-Vehicles!$C$25)*(1-Vehicles!$C$6)*Fuel_Specs!$B$11+Vehicles!$C$25*(1-Vehicles!$C$6)*Fuel_Specs!$B$13+Vehicles!$C$6*Fuel_Specs!$B$25)*('MeOH&FTD'!$L141*'MeOH&FTD'!$M$132+'MeOH&FTD'!$M141))/1000000*HLOOKUP($I$10,$Y$5:$AC$6,2,FALSE)/HLOOKUP($I$11,$Y$7:$AC$8,2,FALSE) -> 12.24954076 | L27: =('MeOH&FTD'!$L141*'MeOH&FTD'!$M$132+'MeOH&FTD'!$M141)/1000000*HLOOKUP($I$10,$Y$5:$AC$6,2,FALSE)/HLOOKUP($I$11,$Y$7:$AC$8,2,FALSE) -> 13.981409 | M27: =((1-Vehicles!$C$27)*(1-Vehicles!$C$8)*Fuel_Specs!$B$11/((1-Vehicles!$C$27)*(1-Vehicles!$C$8)*Fuel_Specs!$B$11+Vehicles!$C$27*(1-Vehicles!$C$8)*Fuel_Specs!$B$13+Vehicles!$C$8*Fuel_Specs!$B$26)*(Petroleum!$B227*Petroleum!$D$218+Petroleum!$D227)+Vehicles!$C$27*(1-Vehicles!$C$8)*Fuel_Specs!$B$13/((1-Vehicles!$C$27)*(1-Vehicles!$C$8)*Fuel_Specs!$B$11+Vehicles!$C$27*(1-Vehicles!$C$8)*Fuel_Specs!$B$13+Vehicles!$C$8*Fuel_Specs!$B$26)*(Petroleum!B227*Petroleum!$F$218+Petroleum!$F227)+Vehicles!$C$8*Fuel_Specs!$B$26/((1-Vehicles!$C$27)*(1-Vehicles!$C$8)*Fuel_Specs!$B$11+Vehicles!$C$27*(1-Vehicles!$C$8)*Fuel_Specs!$B$13+Vehicles!$C$8*Fuel_Specs!$B$26)*(EtOH!BE410*EtOH!$BF$401+EtOH!$BF410))/1000000*HLOOKUP($I$10,$Y$5:$AC$6,2,FALSE)/HLOOKUP($I$11,$Y$7:$AC$8,2,FALSE) -> 15.15136658 | N27: =((1-Vehicles!$C$28)*(1-Vehicles!$C$10)*Fuel_Specs!$B$11/((1-Vehicles!$C$28)*(1-Vehicles!$C$10)*Fuel_Specs!$B$11+Vehicles!$C$28*(1-Vehicles!$C$10)*Fuel_Specs!$B$13+Vehicles!$C$10*Fuel_Specs!$B$27)*(Petroleum!$B227*Petroleum!$D$218+Petroleum!$D227)+Vehicles!$C$28*(1-Vehicles!$C$10)*Fuel_Specs!$B$13/((1-Vehicles!$C$28)*(1-Vehicles!$C$10)*Fuel_Specs!$B$11+Vehicles!$C$28*(1-Vehicles!$C$10)*Fuel_Specs!$B$13+Vehicles!$C$10*Fuel_Specs!$B$27)*(Petroleum!B227*Petroleum!$F$218+Petroleum!$F227)+Vehicles!$C$10*Fuel_Specs!$B$27/((1-Vehicles!$C$28)*(1-Vehicles!$C$10)*Fuel_Specs!$B$11+Vehicles!$C$28*(1-Vehicles!$C$10)*Fuel_Specs!$B$13+Vehicles!$C$10*Fuel_Specs!$B$27)*(EtOH!$BI410*EtOH!$BJ$401+EtOH!$BJ410))/1000000*HLOOKUP($I$10,$Y$5:$AC$6,2,FALSE)/HLOOKUP($I$11,$Y$7:$AC$8,2,FALSE) -> 15.87795734 | O27: =((1-Vehicles!$C$27)*(1-Vehicles!$C$9)*Fuel_Specs!$B$11/((1-Vehicles!$C$27)*(1-Vehicles!$C$9)*Fuel_Specs!$B$11+Vehicles!$C$27*(1-Vehicles!$C$9)*Fuel_Specs!$B$13+Vehicles!$C$9*Fuel_Specs!$B$26)*(Petroleum!$B227*Petroleum!$D$218+Petroleum!$D227)+Vehicles!$C$27*(1-Vehicles!$C$9)*Fuel_Specs!$B$13/((1-Vehicles!$C$27)*(1-Vehicles!$C$9)*Fuel_Specs!$B$11+Vehicles!$C$27*(1-Vehicles!$C$9)*Fuel_Specs!$B$13+Vehicles!$C$9*Fuel_Specs!$B$26)*(Petroleum!B227*Petroleum!$F$218+Petroleum!$F227)+Vehicles!$C$9*Fuel_Specs!$B$26/((1-Vehicles!$C$27)*(1-Vehicles!$C$9)*Fuel_Specs!$B$11+Vehicles!$C$27*(1-Vehicles!$C$9)*Fuel_Specs!$B$13+Vehicles!$C$9*Fuel_Specs!$B$26)*(EtOH!BE410*EtOH!$BF$401+EtOH!$BF410))/1000000*HLOOKUP($I$10,$Y$5:$AC$6,2,FALSE)/HLOOKUP($I$11,$Y$7:$AC$8,2,FALSE) -> 15.15136658 | P27: =(EtOH!$BE410*EtOH!$BF$401+EtOH!$BF410)/1000000*HLOOKUP($I$10,$Y$5:$AC$6,2,FALSE)/HLOOKUP($I$11,$Y$7:$AC$8,2,FALSE) -> 18.37989892 | Q27: =((1-Vehicles!$C$29)*(1-Vehicles!$C$14)*Fuel_Specs!$B$11/((1-Vehicles!$C$29)*(1-Vehicles!$C$14)*Fuel_Specs!$B$11+Vehicles!$C$29*(1-Vehicles!$C$14)*Fuel_Specs!$B$13+Vehicles!$C$14*Fuel_Specs!$B$39)*(Petroleum!$B227*Petroleum!$D$218+Petroleum!$D227)+Vehicles!$C$29*(1-Vehicles!$C$14)*Fuel_Specs!$B$13/((1-Vehicles!$C$29)*(1-Vehicles!$C$14)*Fuel_Specs!$B$11+Vehicles!$C$29*(1-Vehicles!$C$14)*Fuel_Specs!$B$13+Vehicles!$C$14*Fuel_Specs!$B$39)*(Petroleum!B227*Petroleum!$F$218+Petroleum!$F227)+Vehicles!$C$14*Fuel_Specs!$B$39/((1-Vehicles!$C$29)*(1-Vehicles!$C$14)*Fuel_Specs!$B$11+Vehicles!$C$29*(1-Vehicles!$C$14)*Fuel_Specs!$B$13+Vehicles!$C$14*Fuel_Specs!$B$39)*(BioOil!$BQ323*BioOil!$BR$313+BioOil!$BR323))/1000000*HLOOKUP($I$10,$Y$5:$AC$6,2,FALSE)/HLOOKUP($I$11,$Y$7:$AC$8,2,FALSE) -> 6.658381203 | R27: =((1-Vehicles!$C$29)*(1-Vehicles!$C$14)*Fuel_Specs!$B$11/((1-Vehicles!$C$29)*(1-Vehicles!$C$14)*Fuel_Specs!$B$11+Vehicles!$C$29*(1-Vehicles!$C$14)*Fuel_Specs!$B$13+Vehicles!$C$14*Fuel_Specs!$B$39)*(Petroleum!$B227*Petroleum!$D$218+Petroleum!$D227)+Vehicles!$C$29*(1-Vehicles!$C$14)*Fuel_Specs!$B$13/((1-Vehicles!$C$29)*(1-Vehicles!$C$14)*Fuel_Specs!$B$11+Vehicles!$C$29*(1-Vehicles!$C$14)*Fuel_Specs!$B$13+Vehicles!$C$14*Fuel_Specs!$B$39)*(Petroleum!B227*Petroleum!$F$218+Petroleum!$F227)+Vehicles!$C$14*Fuel_Specs!$B$39/((1-Vehicles!$C$29)*(1-Vehicles!$C$14)*Fuel_Specs!$B$11+Vehicles!$C$29*(1-Vehicles!$C$14)*Fuel_Specs!$B$13+Vehicles!$C$14*Fuel_Specs!$B$39)*(Pyrolysis!$Z175*Pyrolysis!$AA$166+Pyrolysis!$AA175))/1000000*HLOOKUP($I$10,$Y$5:$AC$6,2,FALSE)/HLOOKUP($I$11,$Y$7:$AC$8,2,FALSE) -> 8.51920166 | S27: =AN27*(Vehicles!$C$21/Vehicles!$AN$53)/(Vehicles!$C$21*(1/Vehicles!$AN$53+1/Vehicles!$AO$53)+Vehicles!$C$22/Vehicles!$AP$53)+B27*(Vehicles!$C$21/Vehicles!$AO$53+Vehicles!$C$22/Vehicles!$AP$53)/(Vehicles!$C$21*(1/Vehicles!$AN$53+1/Vehicles!$AO$53)+Vehicles!$C$22/Vehicles!$AP$53) -> 17.46941406 | T27: =AN27*(Vehicles!$D$21/Vehicles!$AR$53)/(Vehicles!$D$21*(1/Vehicles!$AR$53+1/Vehicles!$AS$53)+Vehicles!$D$22/Vehicles!$AT$53)+C27*(Vehicles!$D$21/Vehicles!$AS$53+Vehicles!$D$22/Vehicles!$AT$53)/(Vehicles!$D$21*(1/Vehicles!$AR$53+1/Vehicles!$AS$53)+Vehicles!$D$22/Vehicles!$AT$53) -> 17.37499826 | U27: =AN27*(Vehicles!$F$21/Vehicles!$AZ$53)/(Vehicles!$F$21*(1/Vehicles!$AZ$53+1/Vehicles!$BA$53)+Vehicles!$F$22/Vehicles!$BB$53)+D27*(Vehicles!$F$21/Vehicles!$BA$53+Vehicles!$F$22/Vehicles!$BB$53)/(Vehicles!$F$21*(1/Vehicles!$AZ$53+1/Vehicles!$BA$53)+Vehicles!$F$22/Vehicles!$BB$53) -> 17.46864576 | V27: =AN27*(Vehicles!$G$21/Vehicles!$BD$53)/(Vehicles!$G$21*(1/Vehicles!$BD$53+1/Vehicles!$BE$53)+Vehicles!$G$22/Vehicles!$BF$53)+F27*(Vehicles!$G$21/Vehicles!$BE$53+Vehicles!$G$22/Vehicles!$BF$53)/(Vehicles!$G$21*(1/Vehicles!$BD$53+1/Vehicles!$BE$53)+Vehicles!$G$22/Vehicles!$BF$53) -> 14.71179044 | W27: =AN27*(Vehicles!$H$21/Vehicles!$BH$53)/(Vehicles!$H$21*(1/Vehicles!$BH$53+1/Vehicles!$BI$53)+Vehicles!$H$22/Vehicles!$BJ$53)+G27*(Vehicles!$H$21/Vehicles!$BI$53+Vehicles!$H$22/Vehicles!$BJ$53)/(Vehicles!$H$21*(1/Vehicles!$BH$53+1/Vehicles!$BI$53)+Vehicles!$H$22/Vehicles!$BJ$53) -> 14.11741236 | X27: =AN27*(Vehicles!$I$21/Vehicles!$BL$53)/(Vehicles!$I$21*(1/Vehicles!$BL$53+1/Vehicles!$BM$53)+Vehicles!$I$22/Vehicles!$BN$53)+H27*(Vehicles!$I$21/Vehicles!$BM$53+Vehicles!$I$22/Vehicles!$BN$53)/(Vehicles!$I$21*(1/Vehicles!$BL$53+1/Vehicles!$BM$53)+Vehicles!$I$22/Vehicles!$BN$53) -> 15.11309318 | Y27: =AN27*(Vehicles!$J$21/Vehicles!$BP$53)/(Vehicles!$J$21*(1/Vehicles!$BP$53+1/Vehicles!$BQ$53)+Vehicles!$J$22/Vehicles!$BR$53)+K27*(Vehicles!$J$21/Vehicles!$BQ$53+Vehicles!$J$22/Vehicles!$BR$53)/(Vehicles!$J$21*(1/Vehicles!$BP$53+1/Vehicles!$BQ$53)+Vehicles!$J$22/Vehicles!$BR$53) -> 22.6655737 | Z27: =AN27*(Vehicles!$K$21/Vehicles!$BT$53)/(Vehicles!$K$21*(1/Vehicles!$BT$53+1/Vehicles!$BU$53)+Vehicles!$K$22/Vehicles!$BV$53)+O27*(Vehicles!$K$21/Vehicles!$BU$53+Vehicles!$K$22/Vehicles!$BV$53)/(Vehicles!$K$21*(1/Vehicles!$BT$53+1/Vehicles!$BU$53)+Vehicles!$K$22/Vehicles!$BV$53) -> 24.40970502 | AA27: =AN27*(Vehicles!$L$21/Vehicles!$BX$53)/(Vehicles!$L$21*(1/Vehicles!$BX$53+1/Vehicles!$BY$53)+Vehicles!$L$22/Vehicles!$BZ$53)+AO27*(Vehicles!$L$21/Vehicles!$BY$53+Vehicles!$L$22/Vehicles!$BZ$53)/(Vehicles!$L$21*(1/Vehicles!$BX$53+1/Vehicles!$BY$53)+Vehicles!$L$22/Vehicles!$BZ$53) -> 28.67240144 | AB27: =AN27*(Vehicles!$L$21/Vehicles!$BX$53)/(Vehicles!$L$21*(1/Vehicles!$BX$53+1/Vehicles!$BY$53)+Vehicles!$L$22/Vehicles!$CA$53)+AP27*(Vehicles!$L$21/Vehicles!$BY$53+Vehicles!$L$22/Vehicles!$CA$53)/(Vehicles!$L$21*(1/Vehicles!$BX$53+1/Vehicles!$BY$53)+Vehicles!$L$22/Vehicles!$CA$53) -> 42.74386278 | AC27: =('MeOH&FTD'!$X141*'MeOH&FTD'!$Y$132+'MeOH&FTD'!$Y141)/1000000*HLOOKUP($I$10,$Y$5:$AC$6,2,FALSE)/HLOOKUP($I$11,$Y$7:$AC$8,2,FALSE) -> 12.80109394 | AD27: =((1-Vehicles!$C$30)*(1-Vehicles!$C$11)*Fuel_Specs!$B$15/((1-Vehicles!$C$30)*(1-Vehicles!$C$11)*Fuel_Specs!$B$15+Vehicles!$C$30*(1-Vehicles!$C$11)*Fuel_Specs!$B$18+Vehicles!$C$11*Fuel_Specs!$B$35)*(Petroleum!B227*Petroleum!$J$218+Petroleum!$J227)+Vehicles!$C$30*(1-Vehicles!$C$11)*Fuel_Specs!$B$18/((1-Vehicles!$C$30)*(1-Vehicles!$C$11)*Fuel_Specs!$B$15+Vehicles!$C$30*(1-Vehicles!$C$11)*Fuel_Specs!$B$18+Vehicles!$C$11*Fuel_Specs!$B$35)*(Petroleum!B227*Petroleum!$K$218+Petroleum!$K227)+Vehicles!$C$11*Fuel_Specs!$B$35/((1-Vehicles!$C$30)*(1-Vehicles!$C$11)*Fuel_Specs!$B$15+Vehicles!$C$30*(1-Vehicles!$C$11)*Fuel_Specs!$B$18+Vehicles!$C$11*Fuel_Specs!$B$35)*('MeOH&FTD'!$AL141*'MeOH&FTD'!$AM$132+'MeOH&FTD'!$AM141))/1000000*HLOOKUP($I$10,$Y$5:$AC$6,2,FALSE)/HLOOKUP($I$11,$Y$7:$AC$8,2,FALSE) -> 13.24259544 | AE27: =((1-Vehicles!$C$31)*(1-Vehicles!$C$12)*Fuel_Specs!$B$15/((1-Vehicles!$C$31)*(1-Vehicles!$C$12)*Fuel_Specs!$B$15+Vehicles!$C$31*(1-Vehicles!$C$12)*Fuel_Specs!$B$18+Vehicles!$C$12*Fuel_Specs!$B$34)*(Petroleum!B227*Petroleum!$J$218+Petroleum!$J227)+Vehicles!$C$31*(1-Vehicles!$C$12)*Fuel_Specs!$B$18/((1-Vehicles!$C$31)*(1-Vehicles!$C$12)*Fuel_Specs!$B$15+Vehicles!$C$31*(1-Vehicles!$C$12)*Fuel_Specs!$B$18+Vehicles!$C$12*Fuel_Specs!$B$34)*(Petroleum!B227*Petroleum!$K$218+Petroleum!$K227)+Vehicles!$C$12*Fuel_Specs!$B$34/((1-Vehicles!$C$31)*(1-Vehicles!$C$12)*Fuel_Specs!$B$15+Vehicles!$C$31*(1-Vehicles!$C$12)*Fuel_Specs!$B$18+Vehicles!$C$12*Fuel_Specs!$B$34)*(BioOil!$Y323*BioOil!$Z$313+BioOil!$Z323))/1000000*HLOOKUP($I$10,$Y$5:$AC$6,2,FALSE)/HLOOKUP($I$11,$Y$7:$AC$8,2,FALSE) -> 4.931877625 | AF27: =((1-Vehicles!$C$32)*(1-Vehicles!$C$13)*Fuel_Specs!$B$15/((1-Vehicles!$C$32)*(1-Vehicles!$C$13)*Fuel_Specs!$B$15+Vehicles!$C$32*(1-Vehicles!$C$13)*Fuel_Specs!$B$18+Vehicles!$C$13*IF(Inputs!$E$499=1,IF(Inputs!$E$499=1,Fuel_Specs!$B$36,IF(Inputs!$E$499=3,Fuel_Specs!$B$38,Fuel_Specs!$B$37)),Fuel_Specs!$B$37))*(Petroleum!B227*Petroleum!$J$218+Petroleum!$J227)+Vehicles!$C$32*(1-Vehicles!$C$13)*Fuel_Specs!$B$18/((1-Vehicles!$C$32)*(1-Vehicles!$C$13)*Fuel_Specs!$B$15+Vehicles!$C$32*(1-Vehicles!$C$13)*Fuel_Specs!$B$18+Vehicles!$C$13*IF(Inputs!$E$499=1,IF(Inputs!$E$499=1,Fuel_Specs!$B$36,IF(Inputs!$E$499=3,Fuel_Specs!$B$38,Fuel_Specs!$B$37)),Fuel_Specs!$B$37))*(Petroleum!B227*Petroleum!$K$218+Petroleum!$K227)+Vehicles!$C$13*IF(Inputs!$E$499=1,IF(Inputs!$E$499=1,Fuel_Specs!$B$36,IF(Inputs!$E$499=3,Fuel_Specs!$B$38,Fuel_Specs!$B$37)),Fuel_Specs!$B$37)/((1-Vehicles!$C$32)*(1-Vehicles!$C$13)*Fuel_Specs!$B$15+Vehicles!$C$32*(1-Vehicles!$C$13)*Fuel_Specs!$B$18+Vehicles!$C$13*IF(Inputs!$E$499=1,IF(Inputs!$E$499=1,Fuel_Specs!$B$36,IF(Inputs!$E$499=3,Fuel_Specs!$B$38,Fuel_Specs!$B$37)),Fuel_Specs!$B$37))*(BioOil!$BE323*BioOil!$BF$313+BioOil!$BF323))/1000000*HLOOKUP($I$10,$Y$5:$AC$6,2,FALSE)/HLOOKUP($I$11,$Y$7:$AC$8,2,FALSE) -> 2.66649853 | AG27: =((1-Vehicles!$C$32)*(1-Vehicles!$C$13)*Fuel_Specs!$B$15/((1-Vehicles!$C$32)*(1-Vehicles!$C$13)*Fuel_Specs!$B$15+Vehicles!$C$32*(1-Vehicles!$C$13)*Fuel_Specs!$B$18+Vehicles!$C$13*IF(Inputs!$E$499=1,Fuel_Specs!$B$36,Fuel_Specs!$B$37))*(Petroleum!B227*Petroleum!$J$218+Petroleum!$J227)+Vehicles!$C$32*(1-Vehicles!$C$13)*Fuel_Specs!$B$18/((1-Vehicles!$C$32)*(1-Vehicles!$C$13)*Fuel_Specs!$B$15+Vehicles!$C$32*(1-Vehicles!$C$13)*Fuel_Specs!$B$18+Vehicles!$C$13*IF(Inputs!$E$499=1,Fuel_Specs!$B$36,Fuel_Specs!$B$37))*(Petroleum!B227*Petroleum!$K$218+Petroleum!$K227)+Vehicles!$C$13*IF(Inputs!$E$499=1,Fuel_Specs!$B$36,Fuel_Specs!$B$37)/((1-Vehicles!$C$32)*(1-Vehicles!$C$13)*Fuel_Specs!$B$15+Vehicles!$C$32*(1-Vehicles!$C$13)*Fuel_Specs!$B$18+Vehicles!$C$13*IF(Inputs!$E$499=1,Fuel_Specs!$B$36,Fuel_Specs!$B$37))*(Pyrolysis!$AB175*Pyrolysis!$AC$166+Pyrolysis!$AC175))/1000000*HLOOKUP($I$10,$Y$5:$AC$6,2,FALSE)/HLOOKUP($I$11,$Y$7:$AC$8,2,FALSE) -> 8.31041132 | AH27: =(((1-Vehicles!$C$33)*(1-Vehicles!$C$15-Vehicles!$C$16)*Fuel_Specs!$B$15*(Petroleum!B227*Petroleum!$J$218+Petroleum!$J227)+Vehicles!$C$33*(1-Vehicles!$C$15-Vehicles!$C$16)*Fuel_Specs!$B$18*(Petroleum!B227*Petroleum!$K$218+Petroleum!$K227)+Vehicles!$C$15*Fuel_Specs!$B$26*(EtOH!BE410*EtOH!$BF$401+EtOH!$BF410)+Vehicles!$C$16*Fuel_Specs!$B$29*('E-D Additives'!$B57*'E-D Additives'!$B$48))/((1-Vehicles!$C$33)*(1-Vehicles!$C$15-Vehicles!$C$16)*Fuel_Specs!$B$15+Vehicles!$C$33*(1-Vehicles!$C$15-Vehicles!$C$16)*Fuel_Specs!$B$18+Vehicles!$C$15*Fuel_Specs!$B$26+Vehicles!$C$16*Fuel_Specs!$B$29))/1000000*HLOOKUP($I$10,$Y$5:$AC$6,2,FALSE)/HLOOKUP($I$11,$Y$7:$AC$8,2,FALSE) -> 5.66217571 | AI27: =AN27*(Vehicles!$M$21/Vehicles!$CI$53)/(Vehicles!$M$21*(1/Vehicles!$CI$53+1/Vehicles!$CJ$53)+Vehicles!$M$22/Vehicles!$CK$53)+E27*(Vehicles!$M$21/Vehicles!$CJ$53+Vehicles!$M$22/Vehicles!$CK$53)/(Vehicles!$M$21*(1/Vehicles!$CI$53+1/Vehicles!$CJ$53)+Vehicles!$M$22/Vehicles!$CK$53) -> 17.40833254 | AJ27: =AN27*(Vehicles!$N$21/Vehicles!$CM$53)/(Vehicles!$N$21*(1/Vehicles!$CM$53+1/Vehicles!$CN$53)+Vehicles!$N$22/Vehicles!$CO$53)+AC27*(Vehicles!$N$21/Vehicles!$CN$53+Vehicles!$N$22/Vehicles!$CO$53)/(Vehicles!$N$21*(1/Vehicles!$CM$53+1/Vehicles!$CN$53)+Vehicles!$N$22/Vehicles!$CO$53) -> 23.47206514 | AK27: =AN27*(Vehicles!$O$21/Vehicles!$CQ$53)/(Vehicles!$O$21*(1/Vehicles!$CQ$53+1/Vehicles!$CR$53)+Vehicles!$O$22/Vehicles!$CS$53)+AD27*(Vehicles!$O$21/Vehicles!$CR$53+Vehicles!$O$22/Vehicles!$CS$53)/(Vehicles!$O$21*(1/Vehicles!$CQ$53+1/Vehicles!$CR$53)+Vehicles!$O$22/Vehicles!$CS$53) -> 23.80739966 | AL27: =AN27*(Vehicles!$P$21/Vehicles!$CU$53)/(Vehicles!$P$21*(1/Vehicles!$CU$53+1/Vehicles!$CV$53)+Vehicles!$P$22/Vehicles!$CW$53)+AE27*(Vehicles!$P$21/Vehicles!$CV$53+Vehicles!$P$22/Vehicles!$CW$53)/(Vehicles!$P$21*(1/Vehicles!$CU$53+1/Vehicles!$CV$53)+Vehicles!$P$22/Vehicles!$CW$53) -> 17.49514349 | AM27: =AN27*(Vehicles!$R$21/Vehicles!$DC$53)/(Vehicles!$R$21*(1/Vehicles!$DC$53+1/Vehicles!$DD$53)+Vehicles!$R$22/Vehicles!$DE$53)+AH27*(Vehicles!$R$21/Vehicles!$DD$53+Vehicles!$R$22/Vehicles!$DE$53)/(Vehicles!$R$21*(1/Vehicles!$DC$53+1/Vehicles!$DD$53)+Vehicles!$R$22/Vehicles!$DE$53) -> 18.04982826 | AN27: =(Electric!$G179+Electric!$F179)/1000000*HLOOKUP($I$10,$Y$5:$AC$6,2,FALSE)/HLOOKUP($I$11,$Y$7:$AC$8,2,FALSE) -> 57.17694189 | AO27: =(Hydrogen!$Z156*Hydrogen!$AA$147+Hydrogen!$AA156)/1000000*HLOOKUP($I$10,$Y$5:$AC$6,2,FALSE)/HLOOKUP($I$11,$Y$7:$AC$8,2,FALSE) -> 19.34663813 | AP27: =(Hydrogen!$AX156*Hydrogen!$AY$147+Hydrogen!$AY156)/1000000*HLOOKUP($I$10,$Y$5:$AC$6,2,FALSE)/HLOOKUP($I$11,$Y$7:$AC$8,2,FALSE) -> 38.02182631 | AQ27: =AN27*(Vehicles!$S$21/Vehicles!$DS$53)/(Vehicles!$S$21*(1/Vehicles!$DS$53+1/Vehicles!$DT$53)+Vehicles!$S$22/Vehicles!$DU$53)+AO27*(Vehicles!$S$21/Vehicles!$DT$53+Vehicles!$S$22/Vehicles!$DU$53)/(Vehicles!$S$21*(1/Vehicles!$DS$53+1/Vehicles!$DT$53)+Vehicles!$S$22/Vehicles!$DU$53) -> 30.89512156 | AR27: =AN27*(Vehicles!$S$21/Vehicles!$DS$53)/(Vehicles!$S$21*(1/Vehicles!$DS$53+1/Vehicles!$DT$53)+Vehicles!$S$22/Vehicles!$DU$53)+AP27*(Vehicles!$S$21/Vehicles!$DT$53+Vehicles!$S$22/Vehicles!$DU$53)/(Vehicles!$S$21*(1/Vehicles!$DS$53+1/Vehicles!$DT$53)+Vehicles!$S$22/Vehicles!$DU$53) -> 43.86932191
